Workbook

Sheet Versioning (hidden)
B2: Version | C2: Release | D2: Comments | E2: Updated by
B3: 1.1 | C3: 2020-01-01 | E3: RA
B4: 1.2 | C4: 2020-08-20 | D4: Fixed a bug on the calculation of the effect of vertical grade (cell D132 in configuration sheets). This was first found for the R2L tool v 2.2 | E4: RA
B5: 1.2 | C5: 2020-08-20 | D5: Copied Table 11-11 from HSM that has the CMFs for Lane Width on Undivided Hwys. We have applied the ones for divided highways across the board. Should we update? | E5: RA
B6: 1.2 | C6: 2020-08-20 | D6: Modified the Table in "Start Here" for exporting to a single spreadsheet that merges multiple ones, similar to R2LS | E6: RA
B7: 1.2 | C7: 2020-08-20 | D7: Added notes sections to the right of the vortex, similar to v2.3 of R2LS | E7: RA
B8: 1.3 | C8: 2020-09-15 | D8: Changed the calculations of the LW and SW CMFs for Divided and undivided, according to the HSM | E8: RA
B9: 1.4 | C9: 2020-12-21 | D9: Created new tab "Reporting" that should display the results plus additional areas to indicate various project-level assessments. Updated the title of "PRIMARY CONSTRAINTS" in all the tabs | E9: RA
B10: 1.45 | C10: 2020-12-22 | D10: Enhancements to the new Reporting form (check boxes and others) | E10: RA
B11: 3.1 | C11: 2/1/2022 | D11: Major improvements & updates made in 2021, mainly inlcude: horizontal and vertical curves; reportingl; median configration; interface, missing warning message; vortex; etc. | E11: LW
B12: 3.2 | C12: 7/13/2022 | D12: Minor correction on traffic element score; inside shoulder width. | E12: LW
B13: 3.3 | C13: 2024-04-16 | D13: Update report per TxDOT requests. | E13: LW

Sheet CMFs (hidden)
C17: 518 (Install Continuous Turn Lane) | D17: Introduce TWLTL (two-way left turn lanes) | F17: 0.71 | G17: All | H17: All | I17: 583, 1285, 2337, 2338, 2339, 2340, 2341, 2352, 2354, 2356, 2358 | J17: This is a TTI Meta-Analysis Result.
D21: Provide Passing or Climbing Lane in One Direction | F21: 0.75 | G21: All | H21: All | J21: Rural Two-Lane; Texas Report | M21: Roadway Safety Design Workbook (pg 3-25)

Sheet Roadside (hidden)
A1: No. | B1: Name of Countermeasure | C1: Workcode Number (Name) | D1: Preventable Crash Type | E1: Workcode CMF | F1: Recommended CMF | G1: Target Crash Type | H1: Crash Severity | I1: Countermeasure Name | J1: Note | K1: CMFClearinghouse ID | L1: Study
A2: 1 | B2: Relocate Utility Pole | C2: 209 (Safety Treat Fixed Objects) | D2: ROR, Hit Objects (pole, barrier, etc.) (Roadway Related = 2, 3 or 4) OR (Object Struck = 20–26, 29–36, 40–42, 56–58, 60, 62, or 63) | E2: 0.5
F3: 0.9134743339 | G3: Fixed object | H3: All | I3: Offset increase by 1 ft. base = 15.8 ft | J3: Rural 2L and Muti-L, undivided (Regression) | K3: 5240 | L3: Evaluating safety risk of locating above ground utility structures in the highway right-of-way
F4: 0.66 * D^0.1162 | G4: Fixed object | H4: All | I4: D: Density of utility pole. base = 38/mi (Range 0.3 - 185) | J4: Rural 2L and Muti-L, undivided (Regression) | K4: 5241 | L4: Evaluating safety risk of locating above ground utility structures in the highway right-of-way
A5: 2 | B5: Remove or Shield Tree or Fixed Objects | C5: 209 (Safety Treat Fixed Objects) | D5: ROR, Hit Objects (pole, barrier, etc.) (Roadway Related = 2, 3 or 4) OR (Object Struck = 20–26, 29–36, 40–42, 56–58, 60, 62, or 63) | E5: 0.5
F6: 0.62 | G6: All | H6: All | I6: Remove or relocate fixed objects outside of clear zone | J6: Both Rural&Urban, Roadway type not specified | K6: 1024 | L6: Development of Crash Reduction Factors
F7: 0.62 | G7: All | H7: KABC | I7: Remove or relocate fixed objects outside of clear zone | J7: Both Rural&Urban, Roadway type not specified | K7: 1044 | L7: Development of Crash Reduction Factors
F8: 0.024 | G8: Fixed object | H8: All | I8: Remove or relocate fixed objects outside of clear zone | J8: Condition/Roadway type not specified | K8: 2724 | L8: Support for the Elimination of Roadside Hazards
A9: 4 | B9: Lateral Clearance | F9: 0.68 | G9: SVROR | H9: AKBC | I9: Increase lateral clearance from 10 to 40 feet | J9: Rural Two-Lane Texas | K9: 4127 | L9: Investigating the Effect of Roadside Features on Single-Vehicle Roadway Departure Crashes on Rural Two-Lane Roads
B10: For tangents | F10: 0.68 | G10: SVROR | H10: AKBC | I10: Increase lateral clearance by a delta value | J10: Rural Two-Lane Texas | K10: 4127 | L10: Robert's review of the report extracted the beta. Sept 2019
B11: For Curves | F11: 0.49 | G11: SVROR | H11: AKBC | I11: Increase lateral clearance by a delta value | J11: Rural Two-Lane Texas | K11: 4128 | L11: Robert's review of the report extracted the beta. Sept 2019
A12: 5 | B12: Flattening Sideslopes | C12: 204 (Flatten Side Slope) | D12: Median Related (Roadway Related = 3) | E12: 0.54
F13: 0.1 | G13: SVROR | H13: KABC | I13: Improve sideslope rating from 5 to 1 | J13: Rural Two-Lane Texas | K13: 4129 | L13: Investigating the Effect of Roadside Features on Single-Vehicle Roadway Departure Crashes on Rural Two-Lane Roads
F14: 0.82 | G14: Run off road | H14: All | I14: Flatten sideslope from 1V:3H to 1V:4H | J14: Rural Two-Lane | K14: 28 | L14: Measuring the Goodness of Fit of Accident Prediction Models
D15: Elvik et al. | F15: 0.58 | G15: All | H15: ABC | I15: Flatten sideslope from 1V:3H to 1V:4H | K15: 26
D16: Elvik et al. | F16: 0.78 | G16: All | H16: ABC | I16: Flatten sideslope from 1V:4H to 1V:6H | K16: 29
A17: 6 | B17: Install Median Barrier | C17: 201 (Install Median Barrier) | D17: HO Vehicle Movements/Manner of Collision = 30 | E17: 0.45
F18: 0.56 | G18: Head on | H18: All | I18: Install cable median barrier | J18: Condition/Roadway type not specified | K18: 9395 | L18: Crash Modification Factors for Median Cable Barriers in Tennessee
F19: 0.27 | G19: Sideswipe | H19: All | I19: Install cable median barrier | J19: Condition/Roadway type not specified | K19: 9396 | L19: Crash Modification Factors for Median Cable Barriers in Tennessee
F20: 0.5 | G20: Head on,Sideswipe | H20: All | I20: Install cable median barrier | J20: Condition/Roadway type not specified | K20: 9397 | L20: Crash Modification Factors for Median Cable Barriers in Tennessee
A21: 7 | B21: Install Roadside Barrier | C21: NA | D21: NA | E21: NA
F22: 0.49 | G22: Run off road | H22: KABC | I22: Install roadside barrier | J22: Rural Two-Lane | K22: 6402 | L22: Analyzing road design risk factors for run-off-road crashes in the Netherlands with crash prediction models
A23: 7 | B23: Install Safety Edge | C23: NA | D23: All | E23: NA | F23: 0.892 | H23: KAB | I23: Install Safety Edge | K23: 9205
D24: ROR, Hit Objects (pole, barrier, etc.) (Roadway Related = 2, 3 or 4) OR (Object Struck = 20–26, 29–36, 40–42, 56–58, 60, 62, or 63) | F24: 0.79 | G24: Run off road | H24: All | I24: Install Safety Edge | J24: Rural Two-Lane | K24: 9211 | L24: Study Title: Development Of Crash Modification Factors For The Application Of The Safetyedge Treatment On Two-Lane Rural Roads. Donnell et al. March 2017
B25: Roadside Object | D25: SVROR reduced severity | F25: 0.55 | K25: 37 and 38 | L25: Elviks
D29: Daniello and Garber, Fatality risk in motorcycle collisions with roadside objects in the US. AAP 2011
D31: P(fatal w guardrail)/P(fatal w ground) | E31: 16.7
D32: P(fatal w tree or pole)/P(fatal w ground) | E32: 9.5
B35: From Robert W.
B36: The CMFs for increasing clearance’s are:
B38: 0.68 for tangents
B39: 0.49 for curves
B41: For guardrail, the CMF is
B43: 0.84 for KA | F43: 0.84 | G43: Effect on KA crashes, to be applied for credit on Guardrail application
B45: I know this would be mixing applications, but it seems reasonable to say that you get that credit in the safety score for reducing severity. And at least we have some reason to do so.

Sheet Constraints (hidden)
C2: Total ROW
C3: Total Pavement W
O13: CRIS 2017
C14: TX Rural 4 Lane Divided Collision Type Distribution | O14: N_2017 | P14: HARM_EVNT_DESC | Q14: Percent
C15: Collision Type | D15: Total Crash | E15: Total | F15: KA Crash | G15: KA | H15: FI Crash | I15: FI | O15: 9110 | P15: ANIMAL | Q15: =O15/$O$25 -> 0.01470108862 | T15: 0.007441144356
E16: Percent | G16: Percent | I16: Percent | O16: 93332 | P16: FIXED OBJECT | Q16: 0.1506127336 | T16: 0.6815442782
C17: SVROR | D17: 9603 | E17: =D17/$D$24 -> 0.4766466471 | F17: 780 | G17: =F17/$F$24 -> 0.4596346494 | H17: 3437 | I17: =H17/$H$24 -> 0.4564409031 | O17: 437793 | P17: MOTOR VEHICLE IN TRANSPORT | Q17: 0.7064800979 | T17: 0.009626227116
C18: RE | D18: 4276 | E18: 0.2122400357 | F18: 267 | G18: 0.1573364761 | H18: 1638 | I18: 0.2175298805 | O18: 2255 | P18: OTHER NON COLLISION | Q18: 0.00363896321 | S18: 0.2889379707 | T18: 0.09584068923
C19: LT | D19: 1525 | E19: 0.07569365166 | F19: 137 | G19: 0.08073070124 | H19: 665 | I19: 0.08831341301 | O19: 3780 | P19: OTHER OBJECT | Q19: 0.006099902853 | T19: 0.1875114803
C20: HO | D20: 293 | E20: 0.01454310816 | F20: 109 | G20: 0.06423099588 | H20: 192 | I20: 0.02549800797 | O20: 13086 | P20: OVERTURNED | Q20: 0.02111728274 | T20: 0.01180748311
C21: SSS | D21: 0 | E21: 0 | F21: 0 | G21: 0 | H21: 0 | I21: 0 | O21: 49568 | P21: PARKED CAR | Q21: 0.07998941393 | T21: 0.005585801172
C22: ANG | D22: 2188 | E22: 0.1086017769 | F22: 316 | G22: 0.1862109605 | H22: 1119 | I22: 0.1486055777 | O22: 3244 | P22: PEDALCYCLIST | Q22: 0.005234943084 | T22: 0.0006428965039
C23: Ped/Bicycle, Animal, Overturn, Others | D23: 2262 | E23: 0.1122747804 | F23: 88 | G23: 0.05185621685 | H23: 479 | I23: 0.0636122178 | O23: 7227 | P23: PEDESTRIAN | Q23: 0.01166243331
C24: Grand Total | D24: =+SUM(D17:D23) -> 20147 | E24: =SUM(E17:E23) -> 1 | F24: =+SUM(F17:F23) -> 1697 | G24: =SUM(G17:G23) -> 1 | H24: =+SUM(H17:H23) -> 7530 | I24: =SUM(I17:I23) -> 1 | O24: 287 | P24: RR TRAIN | Q24: 0.0004631407722
O25: =SUM(O15:O24) -> 619682 | Q25: =SUM(Q15:Q24) -> 1
C28: TX Rural 4 Lane Undivided Collision Type Distribution
C29: Collision Type | D29: Total Crash | E29: Total | F29: KA Crash | G29: KA | H29: FI Crash | I29: FI
E30: Percent | G30: Percent | I30: Percent
C31: SVROR | D31: 3317 | E31: =D31/$D$24 -> 0.1646398968 | F31: 256 | G31: =F31/$F$24 -> 0.150854449 | H31: 1179 | I31: =H31/$H$24 -> 0.1565737052
C32: RE | D32: 2849 | E32: 0.1414106319 | F32: 111 | G32: 0.06540954626 | H32: 916 | I32: 0.1216467463
C33: LT | D33: 2218 | E33: 0.1100908324 | F33: 177 | G33: 0.1043017089 | H33: 846 | I33: 0.1123505976
C34: HO | D34: 421 | E34: 0.02089641138 | F34: 164 | G34: 0.09664113141 | H34: 285 | I34: 0.03784860558
C35: SSS | D35: 0 | E35: 0 | F35: 0 | G35: 0 | H35: 0 | I35: 0
C36: ANG | D36: 1648 | E36: 0.08179877897 | F36: 118 | G36: 0.0695344726 | H36: 671 | I36: 0.08911022576
C37: Ped/Bicycle, Animal, Overturn, Others | D37: 1287 | E37: 0.06388047848 | F37: 32 | G37: 0.01885680613 | H37: 221 | I37: 0.02934926959
C38: Grand Total | D38: =+SUM(D31:D37) -> 11740 | E38: =SUM(E31:E37) -> 0.5827170298 | F38: =+SUM(F31:F37) -> 858 | G38: =SUM(G31:G37) -> 0.5055981143 | H38: =+SUM(H31:H37) -> 4118 | I38: =SUM(I31:I37) -> 0.5468791501
P174: Emax=6%
P176: super | Q176: 15 | R176: 20 | S176: 25 | T176: 30 | U176: 35 | V176: 40 | W176: 45 | X176: 50 | Y176: 55 | Z176: 60 | AA176: 65 | AB176: 70 | AC176: 75 | AD176: 80
P177: 2 | Q177: 614 | R177: 1120 | S177: 1630 | T177: 2240 | U177: 2950 | V177: 3770 | W177: 4680 | X177: 5700 | Y177: 6820 | Z177: 8060 | AA177: 9130 | AB177: 10300 | AC177: 11500 | AD177: 12900 | AE177: 2
P178: 2.2 | Q178: 543 | R178: 991 | S178: 1450 | T178: 2000 | U178: 2630 | V178: 3370 | W178: 4190 | X178: 5100 | Y178: 6110 | Z178: 7230 | AA178: 8200 | AB178: 9240 | AC178: 10400 | AD178: 11600 | AE178: 2.2
P179: 2.4 | Q179: 482 | R179: 884 | S179: 1300 | T179: 1790 | U179: 2360 | V179: 3030 | W179: 3770 | X179: 4600 | Y179: 5520 | Z179: 6540 | AA179: 7430 | AB179: 8380 | AC179: 9420 | AD179: 10600 | AE179: 2.4
P180: 2.6 | Q180: 430 | R180: 791 | S180: 1170 | T180: 1610 | U180: 2130 | V180: 2740 | W180: 3420 | X180: 4170 | Y180: 5020 | Z180: 5950 | AA180: 6770 | AB180: 7660 | AC180: 8620 | AD180: 9670 | AE180: 2.6
P181: 2.8 | Q181: 384 | R181: 709 | S181: 1050 | T181: 1460 | U181: 1930 | V181: 2490 | W181: 3110 | X181: 3800 | Y181: 4580 | Z181: 5440 | AA181: 6200 | AB181: 7030 | AC181: 7930 | AD181: 8910 | AE181: 2.8
P182: 3 | Q182: 341 | R182: 635 | S182: 944 | T182: 1320 | U182: 1760 | V182: 2270 | W182: 2840 | X182: 3480 | Y182: 4200 | Z182: 4990 | AA182: 5710 | AB182: 6490 | AC182: 7330 | AD182: 8260 | AE182: 3
P183: 3.2 | Q183: 300 | R183: 566 | S183: 850 | T183: 1200 | U183: 1600 | V183: 2080 | W183: 2600 | X183: 3200 | Y183: 3860 | Z183: 4600 | AA183: 5280 | AB183: 6010 | AC183: 6810 | AD183: 7680 | AE183: 3.2
P184: 3.4 | Q184: 256 | R184: 498 | S184: 761 | T184: 1080 | U184: 1460 | V184: 1900 | W184: 2390 | X184: 2940 | Y184: 3560 | Z184: 4250 | AA184: 4890 | AB184: 5580 | AC184: 6340 | AD184: 7180 | AE184: 3.4
P185: 3.6 | Q185: 209 | R185: 422 | S185: 673 | T185: 972 | U185: 1320 | V185: 1740 | W185: 2190 | X185: 2710 | Y185: 3290 | Z185: 3940 | AA185: 4540 | AB185: 5210 | AC185: 5930 | AD185: 6720 | AE185: 3.6
P186: 3.8 | Q186: 176 | R186: 358 | S186: 583 | T186: 864 | U186: 1190 | V186: 1590 | W186: 2010 | X186: 2490 | Y186: 3040 | Z186: 3650 | AA186: 4230 | AB186: 4860 | AC186: 5560 | AD186: 6320 | AE186: 3.8
P187: 4 | Q187: 151 | R187: 309 | S187: 511 | T187: 766 | U187: 1070 | V187: 1440 | W187: 1840 | X187: 2300 | Y187: 2810 | Z187: 3390 | AA187: 3950 | AB187: 4550 | AC187: 5220 | AD187: 5950 | AE187: 4
P188: 4.2 | Q188: 131 | R188: 270 | S188: 452 | T188: 684 | U188: 960 | V188: 1310 | W188: 1680 | X188: 2110 | Y188: 2590 | Z188: 3140 | AA188: 3680 | AB188: 4270 | AC188: 4910 | AD188: 5620 | AE188: 4.2
P189: 4.4 | Q189: 116 | R189: 238 | S189: 402 | T189: 615 | U189: 868 | V189: 1190 | W189: 1540 | X189: 1940 | Y189: 2400 | Z189: 2920 | AA189: 3440 | AB189: 4010 | AC189: 4630 | AD189: 5320 | AE189: 4.4
P190: 4.6 | Q190: 102 | R190: 212 | S190: 360 | T190: 555 | U190: 788 | V190: 1090 | W190: 1410 | X190: 1780 | Y190: 2210 | Z190: 2710 | AA190: 3220 | AB190: 3770 | AC190: 4380 | AD190: 5040 | AE190: 4.6
P191: 4.8 | Q191: 91 | R191: 189 | S191: 324 | T191: 502 | U191: 718 | V191: 995 | W191: 1300 | X191: 1640 | Y191: 2050 | Z191: 2510 | AA191: 3000 | AB191: 3550 | AC191: 4140 | AD191: 4790 | AE191: 4.8
P192: 5 | Q192: 82 | R192: 169 | S192: 292 | T192: 456 | U192: 654 | V192: 911 | W192: 1190 | X192: 1510 | Y192: 1890 | Z192: 2330 | AA192: 2800 | AB192: 3330 | AC192: 3910 | AD192: 4550 | AE192: 5
P193: 5.2 | Q193: 73 | R193: 152 | S193: 264 | T193: 413 | U193: 595 | V193: 833 | W193: 1090 | X193: 1390 | Y193: 1750 | Z193: 2160 | AA193: 2610 | AB193: 3120 | AC193: 3690 | AD193: 4320 | AE193: 5.2
P194: 5.4 | Q194: 65 | R194: 136 | S194: 237 | T194: 373 | U194: 540 | V194: 759 | W194: 995 | X194: 1280 | Y194: 1610 | Z194: 1990 | AA194: 2420 | AB194: 2910 | AC194: 3460 | AD194: 4090 | AE194: 5.4
P195: 5.6 | Q195: 58 | R195: 121 | S195: 212 | T195: 335 | U195: 487 | V195: 687 | W195: 903 | X195: 1160 | Y195: 1470 | Z195: 1830 | AA195: 2230 | AB195: 2700 | AC195: 3230 | AD195: 3840 | AE195: 5.6
P196: 5.8 | Q196: 51 | R196: 106 | S196: 186 | T196: 296 | U196: 431 | V196: 611 | W196: 806 | X196: 1040 | Y196: 1320 | Z196: 1650 | AA196: 2020 | AB196: 2460 | AC196: 2970 | AD196: 3560 | AE196: 5.8
P197: 6 | Q197: 39 | R197: 81 | S197: 144 | T197: 231 | U197: 340 | V197: 485 | W197: 643 | X197: 833 | Y197: 1060 | Z197: 1330 | AA197: 1660 | AB197: 2040 | AC197: 2500 | AD197: 3050 | AE197: 6
P201: Emax=8%
Q202: speed
P203: super | Q203: 15 | R203: 20 | S203: 25 | T203: 30 | U203: 35 | V203: 40 | W203: 45 | X203: 50 | Y203: 55 | Z203: 60 | AA203: 65 | AB203: 70 | AC203: 75 | AD203: 80
P204: 2 | Q204: 676 | R204: 1190 | S204: 1720 | T204: 2370 | U204: 3120 | V204: 3970 | W204: 4930 | X204: 5990 | Y204: 7150 | Z204: 8440 | AA204: 9510 | AB204: 10700 | AC204: 12000 | AD204: 13300 | AE204: 2
P205: 2.2 | Q205: 605 | R205: 1070 | S205: 1550 | T205: 2130 | U205: 2800 | V205: 3570 | W205: 4440 | X205: 5400 | Y205: 6450 | Z205: 7620 | AA205: 8600 | AB205: 9660 | AC205: 10800 | AD205: 12000 | AE205: 2.2
P206: 2.4 | Q206: 546 | R206: 959 | S206: 1400 | T206: 1930 | U206: 2540 | V206: 3240 | W206: 4030 | X206: 4910 | Y206: 5870 | Z206: 6930 | AA206: 7830 | AB206: 8810 | AC206: 9850 | AD206: 11000 | AE206: 2.4
P207: 2.6 | Q207: 496 | R207: 872 | S207: 1280 | T207: 1760 | U207: 2320 | V207: 2960 | W207: 3690 | X207: 4490 | Y207: 5370 | Z207: 6350 | AA207: 7180 | AB207: 8090 | AC207: 9050 | AD207: 10100 | AE207: 2.6
P208: 2.8 | Q208: 453 | R208: 796 | S208: 1170 | T208: 1610 | U208: 2130 | V208: 2720 | W208: 3390 | X208: 4130 | Y208: 4950 | Z208: 5850 | AA208: 6630 | AB208: 7470 | AC208: 8370 | AD208: 9340 | AE208: 2.8
P209: 3 | Q209: 415 | R209: 730 | S209: 1070 | T209: 1480 | U209: 1960 | V209: 2510 | W209: 3130 | X209: 3820 | Y209: 4580 | Z209: 5420 | AA209: 6140 | AB209: 6930 | AC209: 7780 | AD209: 8700 | AE209: 3
P210: 3.2 | Q210: 382 | R210: 672 | S210: 985 | T210: 1370 | U210: 1820 | V210: 2330 | W210: 2900 | X210: 3550 | Y210: 4250 | Z210: 5040 | AA210: 5720 | AB210: 6460 | AC210: 7260 | AD210: 8130 | AE210: 3.2
P211: 3.4 | Q211: 352 | R211: 620 | S211: 911 | T211: 1270 | U211: 1690 | V211: 2170 | W211: 2700 | X211: 3300 | Y211: 3970 | Z211: 4700 | AA211: 5350 | AB211: 6050 | AC211: 6800 | AD211: 7620 | AE211: 3.4
P212: 3.6 | Q212: 324 | R212: 572 | S212: 845 | T212: 1180 | U212: 1570 | V212: 2020 | W212: 2520 | X212: 3090 | Y212: 3710 | Z212: 4400 | AA212: 5010 | AB212: 5680 | AC212: 6400 | AD212: 7180 | AE212: 3.6
P213: 3.8 | Q213: 300 | R213: 530 | S213: 784 | T213: 1100 | U213: 1470 | V213: 1890 | W213: 2360 | X213: 2890 | Y213: 3480 | Z213: 4140 | AA213: 4710 | AB213: 5350 | AC213: 6030 | AD213: 6780 | AE213: 3.8
P214: 4 | Q214: 277 | R214: 490 | S214: 729 | T214: 1030 | U214: 1370 | V214: 1770 | W214: 2220 | X214: 2720 | Y214: 3270 | Z214: 3890 | AA214: 4450 | AB214: 5050 | AC214: 5710 | AD214: 6420 | AE214: 4
P215: 4.2 | Q215: 255 | R215: 453 | S215: 678 | T215: 955 | U215: 1280 | V215: 1660 | W215: 2080 | X215: 2560 | Y215: 3080 | Z215: 3670 | AA215: 4200 | AB215: 4780 | AC215: 5410 | AD215: 6090 | AE215: 4.2
P216: 4.4 | Q216: 235 | R216: 418 | S216: 630 | T216: 893 | U216: 1200 | V216: 1560 | W216: 1960 | X216: 2410 | Y216: 2910 | Z216: 3470 | AA216: 3980 | AB216: 4540 | AC216: 5140 | AD216: 5800 | AE216: 4.4
P217: 4.6 | Q217: 215 | R217: 384 | S217: 585 | T217: 834 | U217: 1130 | V217: 1470 | W217: 1850 | X217: 2280 | Y217: 2750 | Z217: 3290 | AA217: 3770 | AB217: 4310 | AC217: 4890 | AD217: 5530 | AE217: 4.6
P218: 4.8 | Q218: 193 | R218: 349 | S218: 542 | T218: 779 | U218: 1060 | V218: 1390 | W218: 1750 | X218: 2160 | Y218: 2610 | Z218: 3120 | AA218: 3590 | AB218: 4100 | AC218: 4670 | AD218: 5280 | AE218: 4.8
P219: 5 | Q219: 172 | R219: 314 | S219: 499 | T219: 727 | U219: 991 | V219: 1310 | W219: 1650 | X219: 2040 | Y219: 2470 | Z219: 2960 | AA219: 3410 | AB219: 3910 | AC219: 4460 | AD219: 5050 | AE219: 5
P220: 5.2 | Q220: 154 | R220: 284 | S220: 457 | T220: 676 | U220: 929 | V220: 1230 | W220: 1560 | X220: 1930 | Y220: 2350 | Z220: 2820 | AA220: 3250 | AB220: 3740 | AC220: 4260 | AD220: 4840 | AE220: 5.2
P221: 5.4 | Q221: 139 | R221: 258 | S221: 420 | T221: 627 | U221: 870 | V221: 1160 | W221: 1480 | X221: 1830 | Y221: 2230 | Z221: 2680 | AA221: 3110 | AB221: 3570 | AC221: 4090 | AD221: 4640 | AE221: 5.4
P222: 5.6 | Q222: 126 | R222: 236 | S222: 387 | T222: 582 | U222: 813 | V222: 1090 | W222: 1390 | X222: 1740 | Y222: 2120 | Z222: 2550 | AA222: 2970 | AB222: 3420 | AC222: 3920 | AD222: 4460 | AE222: 5.6
P223: 5.8 | Q223: 115 | R223: 216 | S223: 358 | T223: 542 | U223: 761 | V223: 1030 | W223: 1320 | X223: 1650 | Y223: 2010 | Z223: 2430 | AA223: 2840 | AB223: 3280 | AC223: 3760 | AD223: 4290 | AE223: 5.8
P224: 6 | Q224: 105 | R224: 199 | S224: 332 | T224: 506 | U224: 713 | V224: 965 | W224: 1250 | X224: 1560 | Y224: 1920 | Z224: 2320 | AA224: 2710 | AB224: 3150 | AC224: 3620 | AD224: 4140 | AE224: 6
P225: 6.2 | Q225: 97 | R225: 184 | S225: 308 | T225: 472 | U225: 669 | V225: 909 | W225: 1180 | X225: 1480 | Y225: 1820 | Z225: 2210 | AA225: 2600 | AB225: 3020 | AC225: 3480 | AD225: 3990 | AE225: 6.2
P226: 6.4 | Q226: 89 | R226: 170 | S226: 287 | T226: 442 | U226: 628 | V226: 857 | W226: 1110 | X226: 1400 | Y226: 1730 | Z226: 2110 | AA226: 2490 | AB226: 2910 | AC226: 3360 | AD226: 3850 | AE226: 6.4
P227: 6.6 | Q227: 82 | R227: 157 | S227: 267 | T227: 413 | U227: 590 | V227: 808 | W227: 1050 | X227: 1330 | Y227: 1650 | Z227: 2010 | AA227: 2380 | AB227: 2790 | AC227: 3240 | AD227: 3720 | AE227: 6.6
P228: 6.8 | Q228: 76 | R228: 146 | S228: 248 | T228: 386 | U228: 553 | V228: 761 | W228: 990 | X228: 1260 | Y228: 1560 | Z228: 1910 | AA228: 2280 | AB228: 2690 | AC228: 3120 | AD228: 3600 | AE228: 6.8
P229: 7 | Q229: 70 | R229: 135 | S229: 231 | T229: 360 | U229: 518 | V229: 716 | W229: 933 | X229: 1190 | Y229: 1480 | Z229: 1820 | AA229: 2180 | AB229: 2580 | AC229: 3010 | AD229: 3480 | AE229: 7
P230: 7.2 | Q230: 64 | R230: 125 | S230: 214 | T230: 336 | U230: 485 | V230: 672 | W230: 878 | X230: 1120 | Y230: 1400 | Z230: 1720 | AA230: 2070 | AB230: 2470 | AC230: 2900 | AD230: 3370 | AE230: 7.2
P231: 7.4 | Q231: 59 | R231: 115 | S231: 198 | T231: 312 | U231: 451 | V231: 628 | W231: 822 | X231: 1060 | Y231: 1320 | Z231: 1630 | AA231: 1970 | AB231: 2350 | AC231: 2780 | AD231: 3250 | AE231: 7.4
P232: 7.6 | Q232: 54 | R232: 105 | S232: 182 | T232: 287 | U232: 417 | V232: 583 | W232: 765 | X232: 980 | Y232: 1230 | Z232: 1530 | AA232: 1850 | AB232: 2230 | AC232: 2650 | AD232: 3120 | AE232: 7.6
P233: 7.8 | Q233: 48 | R233: 94 | S233: 164 | T233: 261 | U233: 380 | V233: 533 | W233: 701 | X233: 901 | Y233: 1140 | Z233: 1410 | AA233: 1720 | AB233: 2090 | AC233: 2500 | AD233: 2970 | AE233: 7.8
P234: 8 | Q234: 38 | R234: 76 | S234: 134 | T234: 214 | U234: 314 | V234: 444 | W234: 587 | X234: 758 | Y234: 960 | Z234: 1200 | AA234: 1480 | AB234: 1810 | AC234: 2210 | AD234: 2670 | AE234: 8

Sheet Traffic (hidden)
A2: Category | B2: No. | C2: Name of Countermeasure | D2: Workcode Number (Name) | E2: Countermeasure Name | F2: Recommended CMF | G2: Target Crash Type | H2: Crash Severity | I2: Note | J2: CMFClearinghouse ID | K2: Study
A3: Signs | B3: 1 | C3: Hazard Warning (Crash Warning Sign) | D3: 101 (Install Warning/Guide Signs) | E3: Install changeable crash ahead warning signs | F3: 0.56 | G3: All | H3: ABC | I3: in Urban area. (Meta-Ana. Method) | J3: 75 | K3: Handbook of Road Safety Measures
B4: 2 | C4: Curve Warning | D4: 123 (Install Advance Curve Warning Signals – Existing Warning Signs) | E4: Advance static curve warning signs | F4: 0.7 | G4: All | H4: ABC | I4: Not specified (Meta-Ana. Method) | J4: 71 | K4: Handbook of Road Safety Measures
B5: 3 | C5: Chevrons | D5: 137 (Install Chevrons on Curve)
E6: Install chevron signs on horizontal curves | F6: 0.96 | G6: Non-intersection | H6: All | I6: Rural Two-Lane | J6: 2436 | K6: Safety Evaluation of Improved Curve Delineation
E7: Install chevron signs on horizontal curves | F7: 0.94 | G7: Head on,Non-intersection,Run off road,Sideswipe | H7: All | I7: Rural Two-Lane | J7: 2437 | K7: Safety Evaluation of Improved Curve Delineation
E8: Install chevron signs on horizontal curves | F8: 0.84 | G8: Non-intersection | H8: KABC | I8: Rural Two-Lane | J8: 2438 | K8: Safety Evaluation of Improved Curve Delineation
E9: Install chevron signs on horizontal curves | F9: 0.75 | G9: Nighttime,Non-intersection | H9: All | I9: Rural Two-Lane | J9: 2439 | K9: Safety Evaluation of Improved Curve Delineation
E10: Install chevron signs on horizontal curves | F10: 0.78 | G10: Head on,Nighttime,Non-intersection,Run off road,Sideswipe | H10: All | I10: Rural Two-Lane | J10: 2440 | K10: Safety Evaluation of Improved Curve Delineation
B11: 4 | C11: Delineators | D11: 113 (Install Delineators)
E12: Install post-mounted delineators | F12: 0.85 | G12: Run off road | H12: All | I12: Rural Two-Lane (Regression Model Method) | J12: 9727 | K12: Estimating Crash Modification Factors for Lane Departure Countermeasures in Kansas
E13: Install post-mounted delineators | F13: 0.9 | G13: Run off road | H13: KABC | I13: Rural Two-Lane (Regression Model Method) | J13: 9728 | K13: Estimating Crash Modification Factors for Lane Departure Countermeasures in Kansas
B14: 5 | C14: Multiple Curve Treatment Combination | D14: 123 (Install Advance Curve Warning Signals – Existing Warning Signs) 125 (Install Advance Curve Warning Signals and Signs) 136 (Install LED Flashing Chevrons on Curve) 137 (Install Chevrons on Curve) | E14: Install chevron signs, curve warning signs, and sequential flashing beacons | F14: 0.52 | G14: Run off road | H14: All | I14: Freeway | J14: 1919 | K14: Safety Evaluation of Curve Delineation Improvements An Empirical Bayes Observational Before-After Study
A15: Markings | B15: 6 | C15: Centerline Marking | D15: 404 (Install Centerline Striping)
E16: Place centerline markings | F16: 0.99 | G16: All | H16: ABC | I16: Rural Two-Lane (Meta-Ana. Method) | J16: 87 | K16: Handbook of Road Safety Measures
E17: Place centerline markings | F17: 1.01 | G17: All | H17: PDO | I17: Rural Two-Lane (Meta-Ana. Method) | J17: 88 | K17: Handbook of Road Safety Measures
B18: 7 | C18: Edgeline Marking | D18: 402 (Install Edge Marking) | E18: Install edgeline pavement markings on narrow, rural, two-lane roads | F18: 0.85 | G18: All | H18: All | I18: Rural Two-Lane | J18: 5646 | K18: Investigating Safety Impact of Edge Line on Narrow Rural 2-lane Highways by Empirical Bayes Method
B19: 8 | C19: Profile Pavement Markings (Both CL&EL) | D19: 543 (Profile Centerline Markings) 533 (Profile Edgeline Markings)
E20: Install alternative audible lane departure warning treatments | F20: 0.79 | G20: Head on,Run off road,Sideswipe | H20: All | I20: Rural Two-Lane Texas | J20: 9716 | K20: Safety Evaluation of Alternative Audible Lane Departure Warning Treatments in Reducing Traffic Crashes: an Empirical Bayes Observational Before-After Study
E21: Install alternative audible lane departure warning treatments | F21: 0.68 | G21: Head on,Run off road,Sideswipe | H21: KABC | I21: Rural Two-Lane Texas | J21: 9717 | K21: Safety Evaluation of Alternative Audible Lane Departure Warning Treatments in Reducing Traffic Crashes: an Empirical Bayes Observational Before-After Study
B22: 9 | C22: Raised Pavement Markers (Both CL&EL) | D22: 544 (Raised Centerline Rumble Strips) 534 (Raised Edgeline Rumble Strips)
E23: Install snowplowable, permanent raised pavement markers | F23: 1.13 | G23: Nighttime | H23: All | I23: Rural Four-Lane (AADT < 20,000) | J23: 109 | K23: NCHRP Report 518: Safety Evaluation of Permanent Raised Pavement Markers
E24: Install snowplowable, permanent raised pavement markers | F24: 0.94 | G24: Nighttime | H24: All | I24: Rural Four-Lane (20,000 < AADT < 60,000) | J24: 110 | K24: NCHRP Report 518: Safety Evaluation of Permanent Raised Pavement Markers
E25: Install snowplowable, permanent raised pavement markers | F25: 0.67 | G25: Nighttime | H25: All | I25: Rural Four-Lane (AADT > 60,000) | J25: 111 | K25: NCHRP Report 518: Safety Evaluation of Permanent Raised Pavement Markers
A26: Tactile (Rumble Strips) | B26: 10 | C26: Edgeline Rumble Strips | D26: 532 (Milled Edgeline Rumble Strips)
E27: Shoulder rumble strips | F27: 0.83 | G27: Run off road | H27: All | I27: Rural Two-Lane | J27: 3442, 3443, 3444, 3445, 3582, 3583, 3584, 3585, 3603, 3604, 3605, 3606, 7744 | K27: This is a TTI Meta-Analysis Result.
E28: Shoulder rumble strips | F28: 0.64 | G28: Run off road | H28: KABC | I28: Rural Two-Lane | J28: 3454, 3455, 3456, 3457, 7745 | K28: This is a TTI Meta-Analysis Result.
B29: 11 | C29: Centerline Rumble Strips | D29: 542 (Milled Centerline Rumble Strips) | E29: Install centerline rumble strips | F29: 0.808 | G29: Run off road | H29: All | I29: Rural Two-Lane | J29: 5400 | K29: Study of KDOT Policy on Lane and Shoulder Minimum Width for Application of Centerline Rumble Strips
B30: 12 | C30: Install CL and EL Rumble Strips | E30: Install centerline and shoulder rumble strips | F30: 0.6 | G30: Head on | H30: All | I30: Rural Two-Lane | J30: 6853, 6940, 6950, 6971 | K30: This is a TTI Meta-Analysis Result.
A31: Access Management | B31: 13 | C31: Driveway Density | D31: NA | E31: Reduce driveway density by 1 per mile, base 3 driveways per mi. | F31: 0.98 | G31: All | H31: All | I31: Rural Two-Lane | J31: 2248 | K31: Potential Driveway Density Accident Modification Factors for Rural Highways Using Texas Data
B38: 16 | C38: Delineations, Signs for Accesses (No CMFs found)
A39: Lighting | B39: 17 | C39: Lighting at General / Normal Segment | D39: 305 (Safety Lighting)
E40: Install lighting | F40: 0.63 | G40: All | H40: KABC | I40: Both Rural&Urban, all roadway | J40: 7774 | K40: Validation and Application of Highway Safety Manual (Part D) in Florida
E41: Install lighting | F41: 0.84 | G41: All | H41: PDO | I41: Both Rural&Urban, all roadway | J41: 7775 | K41: Validation and Application of Highway Safety Manual (Part D) in Florida
E42: Install lighting | F42: 0.68 | G42: All | H42: All | I42: Both Rural&Urban, all roadway | J42: 7776 | K42: Validation and Application of Highway Safety Manual (Part D) in Florida
E43: Install lighting | F43: 0.67 | G43: Rear end | H43: All | I43: Both Rural&Urban, all roadway | J43: 7777 | K43: Validation and Application of Highway Safety Manual (Part D) in Florida
E44: Install lighting | F44: 0.64 | G44: Angle | H44: All | I44: Both Rural&Urban, all roadway | J44: 7778 | K44: Validation and Application of Highway Safety Manual (Part D) in Florida
E45: Install lighting | F45: 0.72 | G45: Single vehicle | H45: All | I45: Both Rural&Urban, all roadway | J45: 7779 | K45: Validation and Application of Highway Safety Manual (Part D) in Florida
E46: Install lighting | F46: 0.72 | G46: Other | H46: All | I46: Both Rural&Urban, all roadway | J46: 7780 | K46: Validation and Application of Highway Safety Manual (Part D) in Florida
A47: Pavement Friction | B47: 18 | C47: Skid Number | D47: 303 (Resurfacing)
E48: Increase Skid Number by 1 unit, base 40 | F48: 0.991 | G48: All | H48: All | I48: Rural Two-Lane Curve Texas | K48: TTI Report FHWA/TX-18/0-6932-R1
E49: Increase Skid Number by 1 unit, base 40 | F49: 0.963 | G49: Wet-weather | H49: All | I49: Rural Two-Lane Curve Texas | K49: TTI Report FHWA/TX-18/0-6932-R1
E50: Increase Skid Number by 1 unit, base 40 | F50: 0.99 | G50: Run off road | H50: All | I50: Rural Two-Lane Curve Texas | K50: TTI Report FHWA/TX-18/0-6932-R1
E51: Increase Skid Number by 1 unit, base 40 | F51: 0.963 | G51: Wet-weather Run off Road | H51: All | I51: Rural Two-Lane Curve Texas | K51: TTI Report FHWA/TX-18/0-6932-R1
E53: FROM ELVIK ET AL
E54: Install lighting | F54: 0.72 | G54: Nighttime | H54: ABC | J54: 191 | K54: Elvik et al.
E55: Install lighting | F55: 0.83 | G55: Nighttime | H55: O | J55: 192 | K55: Elvik et al.
E56: Install lighting | F56: 0.31 | G56: All | H56: K | J56: 193 | K56: Elvik et al.
E60: From MUTCD
E62: Table 2C-5. Horizontal Alignment Sign Selection
E63: Type of | F63: Difference Between Speed Limit and Advisory Speed
E64: Horizontal
E65: Alignment Sign | F65: 5 mph | G65: 10 mph | H65: 15 mph | I65: 20 mph | J65: 25 mph or more
E66: Turn (W1-1), Curve (W1-2), Reverse Turn (W1-3), Reverse Curve (W1-4), Winding Road (W1-5), and Combination Horizontal Alignment/Intersection (W1-10) (see Section 2C.07 to determine which sign to use) | F66: Recommended | G66: Required | H66: Required | I66: Required | J66: Required
E67: Advisory Speed Plaque (W13-1P) | F67: Recommended | G67: Required | H67: Required | I67: Required | J67: Required
E68: Chevrons (W1-8) and/or One Direction Large Arrow (W1-6) | F68: Optional | G68: Recommended | H68: Required | I68: Required | J68: Required
E69: Exit Speed (W13-2) and Ramp Speed (W13-3) on exit ramp | F69: Optional | G69: Optional | H69: Recommended | I69: Required | J69: Required
E70: Note: Required means that the sign and/or plaque shall be used, recommended means that the sign and/or plaque should be used, and optional means that the sign and/or plaque may be used.
E71: See Section 2C.06 for roadways with less than 1,000 AADT.
E78: Two Lane Roadway
E79: Centerline Rumble Strips | H79: CMF 124 from Crash Reduction Following Installation of Centerline Rumble Strips on Rural Two-Lane Roads, Persaud (HSM)
E80: CMF
E81: 0.86

Sheet Construction (hidden)
C1: ORIGINAL | H1: Meta Parameters | I1: Total Score | K1: For validation of curve signing | M1: Yes or No | N1: (Cell range named "Responses")
C2: LW | D2: CMF | E2: CRF | H2: Geometry | I2: 40 | M2: Yes
C3: 10 | D3: 1.05 | E3: =100*(1-D3) -> -5 | H3: Traffic Control | I3: 20 | M3: No
C4: 10.5 | D4: 1.04 | E4: =100*(1-D4) -> -4 | H4: Roadside | I4: 40 | AD4: Xsect | AE4: Blank | AH4: For validation
C5: 11 | D5: 1.02 | E5: =100*(1-D5) -> -2 | H5: Total: | I5: =SUM(I2:I4) -> 100 | M5: Lane | N5: Shld | P5: Super | R5: Emax6 | S5: Emax8 | U5: AADT | W5: View2 | Y5: Sslope | AA5: PrType | AD5: Configuration 1 | AE5: -- | AF5: =AD5 -> Configuration 1 | AG5: =IFERROR(RIGHT('Start Here'!H81,2)+0,0) -> 1 | AH5: ="Construction!$AF$5:$AF$"&Construction!$AG$21+5 -> Construction!$AF$5:$AF$6
C6: 11.5 | D6: 1.01 | E6: =100*(1-D6) -> -1 | M6: 10 | N6: 0 | P6: 6 | R6: 2 | S6: 2 | U6: < 2000 | W6: Existing | Y6: 1V:1H | AA6: 3R | AD6: Configuration 2 | AF6: =AD6 -> Configuration 2 | AG6: =IFERROR(RIGHT('Start Here'!H82,2)+0,0) -> 1
C7: 12 | D7: 1 | E7: =100*(1-D7) -> 0 | M7: 10.5 | N7: 1 | P7: 8 | R7: 2.2 | S7: 2.2 | U7: 2,001 < AADT < 40,000 | W7: Standard | Y7: 1V:2H | AA7: 4R | AD7: Configuration 3 | AF7: Configuration 3 | AG7: =IFERROR(RIGHT('Start Here'!H83,2)+0,0) -> 1
M8: 11 | N8: 2 | R8: 2.4 | S8: 2.4 | U8: 40,001 < AADT < 60,000 | W8: Design 1 | Y8: 1V:3H | AD8: Configuration 4 | AF8: Configuration 4 | AG8: =IFERROR(RIGHT('Start Here'!H84,2)+0,0) -> 1
A9: Shoulder Width (HSM for divided) | M9: 11.5 | N9: 3 | R9: 2.6 | S9: 2.6 | W9: Design 2 | Y9: 1V:4H | AD9: Configuration 5 | AF9: Configuration 5 | AG9: =IFERROR(RIGHT('Start Here'!H85,2)+0,0) -> 1
C10: SW | D10: CMF | E10: CRF | H10: Config | M10: 12 | N10: 4 | R10: 2.8 | S10: 2.8 | W10: Optimal | Y10: 1V:5H | AD10: Configuration 6 | AF10: Configuration 6 | AG10: =IFERROR(RIGHT('Start Here'!H86,2)+0,0) -> 1
C11: 0 | D11: 1.29 | E11: =100*(1-D11) -> -29 | H11: Undivided | N11: 5 | R11: 3 | S11: 3 | Y11: 1V:6H | AD11: Configuration 7 | AF11: Configuration 7 | AG11: =IFERROR(RIGHT('Start Here'!H87,2)+0,0) -> 1
C12: 1 | D12: 1.23 | E12: -23 | H12: Divided | N12: 6 | R12: 3.2 | S12: 3.2 | Y12: 1V:7H | AD12: Configuration 8 | AF12: Configuration 8 | AG12: =IFERROR(RIGHT('Start Here'!H88,2)+0,0) -> 1
C13: 2 | D13: 1.17 | E13: -17 | I13: UNDIVIDED HSM (TABLE11-11) | N13: 7 | R13: 3.4 | S13: 3.4 | Y13: 1V:8H | AD13: Configuration 9 | AF13: Configuration 9 | AG13: =IFERROR(RIGHT('Start Here'!H89,2)+0,0) -> 1
C14: 3 | D14: 1.13 | E14: -13 | I14: LW | J14: CMF | N14: 8 | R14: 3.6 | S14: 3.6 | U14: SLimit | Y14: 1V:9H | AD14: Configuration 10 | AF14: Configuration 10 | AG14: =IFERROR(RIGHT('Start Here'!H90,2)+0,0) -> 1
C15: 4 | D15: 1.09 | E15: -9 | I15: 9 | J15: 1.38 | N15: 9 | R15: 3.8 | S15: 3.8 | U15: 20 | Y15: 1V:10H | AD15: Configuration 11 | AF15: Configuration 11 | AG15: =IFERROR(RIGHT('Start Here'!H91,2)+0,0) -> 1
C16: 5 | D16: 1.04 | E16: -4 | I16: 9.5 | J16: =AVERAGE(J15,J17) -> 1.305 | N16: 10 | R16: 4 | S16: 4 | U16: 25 | Y16: 1V:11H | AD16: Configuration 12 | AF16: Configuration 12 | AG16: =IFERROR(RIGHT('Start Here'!H92,2)+0,0) -> 1
C17: 6 | D17: 1 | E17: 0 | I17: 10 | J17: 1.23 | N17: 11 | R17: 0.2 | S17: 0.2 | U17: 30 | Y17: 1V:12H | AD17: Configuration 13 | AF17: Configuration 13 | AG17: =IFERROR(RIGHT('Start Here'!H93,2)+0,0) -> 1
C18: 7 | D18: 0.96 | E18: 4 | I18: 10.5 | J18: =AVERAGE(J17,J19) -> 1.135 | N18: 12 | R18: 4.4 | S18: 4.4 | U18: 35 | AD18: Configuration 14 | AF18: Configuration 14 | AG18: =IFERROR(RIGHT('Start Here'!H94,2)+0,0) -> 1
C19: 8 | D19: 0.93 | E19: 7 | I19: 11 | J19: 1.04 | R19: 4.6 | S19: 4.6 | U19: 40 | AD19: Configuration 15 | AF19: Configuration 15 | AG19: =IFERROR(RIGHT('Start Here'!H95,2)+0,0) -> 1
C20: 9 | D20: 0.91 | E20: 9 | I20: 11.5 | J20: =AVERAGE(J19,J21) -> 1.02 | R20: 4.8 | S20: 4.8 | U20: 45 | W20: Location
C21: 10 | D21: 0.9 | E21: 10 | I21: 12 | J21: 1 | R21: 5 | S21: 5 | U21: 50 | W21: Rural (no town) | AF21: max | AG21: =MAX(AG5:AG19) -> 1
U22: 55
B23: HC | C23: Table 2-3 TxDOT design Manual | G23: Table 2-4 TxDOT design Manual | U23: 60
U24: 65
B25: Emax 6 | G25: Emax 8 | U25: 70
B26: Des. Speed | C26: usual min R | D26: Abs min R | G26: Des. Speed | H26: usual min R | I26: Abs min R | J26: emax = 8 | U26: 75
B27: 45 | C27: 810 | D27: 643 | G27: 45 | H27: 740 | I27: 587 | U27: 80
B28: 50 | C28: 1050 | D28: 833 | G28: 50 | H28: 955 | I28: 758 | N28: Lane Width (divided)
B29: 55 | C29: 1635 | D29: 1060 | G29: 55 | H29: 1480 | I29: 960 | N29: LW | O29: >2000
B30: 60 | C30: 2195 | D30: 1330 | G30: 60 | H30: 1980 | I30: 1200 | N30: 9 | O30: 1.25
B31: 65 | C31: 2740 | D31: 1660 | G31: 65 | H31: 2445 | I31: 1480 | N31: 9.5 | O31: =EXP(AVERAGE(LN(O30),LN(O32))) -> 1.198957881
B32: 70 | C32: 3390 | D32: 2040 | G32: 70 | H32: 3005 | I32: 1810 | N32: 10 | O32: 1.15
B33: 75 | C33: 3750 | D33: 2500 | G33: 75 | H33: 3315 | I33: 2210 | N33: 10.5 | O33: =EXP(AVERAGE(LN(O32),LN(O34))) -> 1.088347371
B34: 80 | C34: 4575 | D34: 3050 | G34: 80 | H34: 4005 | I34: 2670 | N34: 11 | O34: 1.03
N35: 11.5 | O35: =EXP(AVERAGE(LN(O34),LN(O36))) -> 1.014889157
N36: 12 | O36: 1
B40: OPTIMAL VALUES (Karen's)
B41: Emax 6 | G41: Emax 8 | M41: Shoulder Width (HSM for undivided)
B42: Des. Speed | C42: R | G42: Des. Speed | H42: R | J42: emax = 8 | O42: SW | P42: CMF | Q42: CRF
B43: 45 | C43: =C27*2 -> 1620 | G43: 45 | H43: 1480 | O43: 0 | P43: 1.5 | Q43: =100*(1-P43) -> -50
B44: 50 | C44: 1800 | G44: 50 | H44: 1700 | O44: 1 | P44: =AVERAGE(P43,P45) -> 1.4 | Q44: -40
B45: 55 | C45: 2200 | G45: 55 | H45: 2100 | O45: 2 | P45: 1.3 | Q45: -30
B46: 60 | C46: 3300 | G46: 60 | H46: 3100 | O46: 3 | P46: =AVERAGE(P45,P47) -> 1.225 | Q46: -22.5
B47: 65 | C47: 4200 | G47: 65 | H47: 4000 | O47: 4 | P47: 1.15 | Q47: -15
B48: 70 | C48: 5600 | G48: 70 | H48: 5400 | O48: 5 | P48: =AVERAGE(P47,P49) -> 1.075 | Q48: -7.5
B49: 75 | C49: 6200 | G49: 75 | H49: 6000 | O49: 6 | P49: 1 | Q49: 0
B50: 80 | C50: 7000 | G50: 80 | H50: 6800 | O50: 7 | P50: =AVERAGE(P49,P51) -> 0.935 | Q50: 6.5
O51: 8 | P51: 0.87 | Q51: 13
O52: 9 | P52: 0.87 | Q52: 13
H53: Was D28, now H25 | I53: Was E28, now I25 | J53: Was F28, now J25 | O53: 10 | P53: 0.87 | Q53: 13 | R53: 5.2 | S53: 5.2 | W53: Rural (small town)
A54: Combined Horizontal Curves and Straight Grades | R54: 5.4 | S54: 5.4 | W54: Urban to Rural Transition
H55: Grade | I55: HC Coeff. | J55: Interaction Term | R55: 5.6 | S55: 5.6 | W55: Urban
H56: 0.042 | I56: 0.16 | J56: 4.16 | R56: 5.8 | S56: 5.8
A57: Equations below represent HC with straight tangent (sum for total crashes) | R57: 6 | S57: 6
S58: 6.2 | W58: Fixed
S59: 6.4 | W59: Guardrail
S60: 6.6 | W60: Other Fixed Object
S61: 6.8 | W61: None
S62: 7
S63: 7.2
S64: 7.4
S65: 7.6
S66: 7.8
S67: 8
A69: Equations below represent HC and tangents with Type 1 crest -- so G1>G2 (sum for total crashes)
A70: 3 | B70: HA and VA: Crests Type I | D70: Interact
D71: =(0.0088*EXP(-9.56)+0.0046*EXP(-8.46))/(EXP(-8.46)+EXP(-9.56)) -> 0.005648907557
A86: Equations below represent HC and tangents with Type I sag vertical curve -- so G1<G2 (sum for total crashes)
B87: HA and VA: Sags Type I | D87: K | E87: Interact
D88: =(10.51*EXP(-9.55)+8.62*EXP(-8.63))/(EXP(-8.63)+EXP(-9.55)) -> 9.15857042 | E88: =(0.011*EXP(-9.55)+0.01*EXP(-8.63))/(EXP(-8.63)+EXP(-9.55)) -> 0.01028495789
B100: HA and VA: Crest Type II | D100: R effect
D101: =(0.2*EXP(-9.52)+0.1*EXP(-8.38))/(EXP(-8.38)+EXP(-9.52)) -> 0.1242320361
I103: OVERWROTE TO TYPE I BECAUSE OF INCONSISTENT RESULTS AND CAUTION OFFERRED BY THE RESEARCHERS
B126: HA and VA: Sag Type II
D129: ln R effect | E129: weight | F129: R effect | G129: weight
D130: 0.188 | E130: =EXP(-9.42)/(EXP(-9.42)+EXP(-8.3)) -> 0.2460112836 | F130: 0.022 | G130: =EXP(-8.3)/(EXP(-9.42)+EXP(-8.3)) -> 0.7539887164
A154: Table 2-6 and 2-7 of TxDOT Design Manual
A155: Minimum Design Controls for Vertical Curves (Standard)
B156: Design Speed | C156: Min Crest K | D156: Min Sag K
B157: 20 | C157: 7 | D157: 17
B158: 25 | C158: 12 | D158: 26
B159: 30 | C159: 19 | D159: 37
B160: 35 | C160: 29 | D160: 49
B161: 40 | C161: 44 | D161: 64
B162: 45 | C162: 61 | D162: 79
B163: 50 | C163: 84 | D163: 96
B164: 55 | C164: 114 | D164: 115
B165: 60 | C165: 151 | D165: 136
B166: 65 | C166: 193 | D166: 157
B167: 70 | C167: 247 | D167: 181
B168: 75 | C168: 312 | D168: 206
B169: 80 | C169: 384 | D169: 231
A174: Table 2-6 and 2-7 of TxDOT Design Manual
A175: Design Controls for Vertical Curves (Optimal)
B176: Design Speed | C176: Min Crest K | D176: Min Sag K
B177: 20 | C177: 10 | D177: 10
B178: 25 | C178: 20 | D178: 40
B179: 30 | C179: 40 | D179: 70
B180: 35 | C180: 60 | D180: 100
B181: 40 | C181: 90 | D181: 130
B182: 45 | C182: 120 | D182: 160
B183: 50 | C183: 170 | D183: 190
B184: 55 | C184: 230 | D184: 230
B185: 60 | C185: 300 | D185: 270
B186: 65 | C186: 390 | D186: 310
B187: 70 | C187: 490 | D187: 360
B188: 75 | C188: 620 | D188: 410
B189: 80 | C189: 760 | D189: 460
A192: Median width | F192: Number of Lanes per Direction
B193: MW (ft) | F193: 2
B194: 10 | C194: 1 | F194: 3
B195: 12 | C195: 0.98
B196: 15 | C196: 0.975
B197: 20 | C197: 0.95
B198: 30 | C198: 0.91
B199: 40 | C199: 0.87
B200: 50 | C200: 0.83
B201: 60 | C201: 0.79
B202: 70 | C202: 0.76
B203: 80 | C203: 0.72
B204: 90 | C204: 0.69
B205: 100 | C205: 0.66

Sheet Definitions
D4: Rural Multi-Lane Roadway Element Definitions
D5: Geometric Design Elements | E5: Definition | F5: Notes
D6: Configuration of Multilane Roadway Median Configuration (Width or Type) | E6: Flush Median: Striped Buffer or Two Way Left Turn Lanes (TWLTL); Divided Unsurfaced Median: Width of Median (ft); No Median: undivided.
D7: Lane Width (feet) | E7: The nominal width of the lane.
D8: Average Outside Shoulder Width (feet) | E8: The average width of paved shoulder on the outside of the rightmost travel lanes in both directions.
D9: Average Inside Shoulder Width (feet) | E9: The average width of the shoulder on the inside of the leftmost lanes of travel in both directions .
D10: Number of Lanes per Direction of Travel | E10: Number of through traffic lanes in each direction of travel.
D11: If Horizontal Curve is Present
D12: Horizontal Curve Data for Controlling Element:
D13: Radius (feet) | E13: Radius of the controlling curve at the centerline.
D14: Length of Horizontal Curve (feet) | E14: Length of curve along the centerline from point of curvature to point of tangency.
D15: If Vertical Curve is Present
D16: Vertical Curve Data for Controlling Element:
D17: Approach (Entry) Grade, G1 (%) | E17: grade of the approach vertical tangent.
D18: Departure (Exit) Grade, G2 (%) | E18: grade of the departure vertical tangent.
D19: Length (feet) | E19: distance between the point of vertical curvature and point of tangency (see Design Manual Figure 2-4). (see Design Manual Figure 2-4, reproduced to the right).
D20: Calculated Rate of Change, K (ft/ft) | E20: The length of curve divided by the algebraic difference in grades G1 and G2. | K20: Figure 2-4 from TxDOT Roadway Design Manual
D21: Calculated Sag or Crest? | E21: Is the curve a vertical sag or crest curve.
D29: Traffic Elements | E29: Definition | F29: Notes
D30: Advance Static Curve Warning Signs | E30: Are curve warning signs posted in compliance with MUTCD requirements on both approaches to all horizontal curves in the segment?
D31: Chevron Signs on Horizontal Curves | E31: Are chevron signs posted in compliance with MUTCD requirements on all horizontal curves in the segment?
D32: Post-Mounted Delineators | E32: Are post-mounted delineators placed in compliance with MUTCD spacing recommendations along all horizontal curves in the segment?
D33: Edgeline Pavement Markings or Profile Markings | E33: Are continuous edgeline rumble strips or profile markings present along both sides of the segment?
D34: Shoulder Rumble Strips | E34: Are rumble strips present on the shoulder? | F34: * Only one of these treatments should be present at the site
D35: Centerline Rumble Strips | E35: Are continuous centerline rumble strips present along the entire segment? | F35: * Only one of these treatments should be present at the site
D36: Driveway Density (driveways per mile) | E36: The number of driveways along both sides of the roadway divided by the segment length.
D37: Lighting | E37: Is continuous roadway lighting provided along the entire length of the segment?
D38: Pavement Friction (skid number) | E38: What is the recorded skid number along the segment? (available in TxDOTs roadway inventory)
D43: Roadside Elements | E43: Definition | F43: Notes
D44: Sideslope (Foreslope) | E44: The ratio of horizontal distance for to 1 unit of vertical distance on the slope immediately adjacent to the travel lane or shouder. The smallest ratio of any foreslop in the segment is entered.
D45: Backslope | E45: The ratio of horizontal distance for to 1 unit of vertical distance on the slope adjacent to the foreslope. The smallest ratio of any backslope in the segment is entered.
D46: SafetyEdge | E46: Is a safety edge present along both pavement edgelines for the entire segment length.
D47: Lateral Clearance to obstruction (ft) | E47: The distance from the edge of the travel lane to the nearest obstruction or guardrail. Examples of obstructions are fixed objects such as trees, utility poles, non-breakawy luminaires, fences, culverts without forgiving features, piers, columns, and buildings or dropoffs and ditches with slopes greater than 1V:3H or the beginning of any backslope greater than 1V:3H.
D48: Obstruction Type | E48: choose between 1) fixed objects drop offs or 2) guardrail.

Sheet Start Here
E2: Rural Multi-Lane Road Segment -- Safety Score Input
E3: INPUT INSTRUCTIONS
E4: Blue Boxes -- Select from pulldown options | H4: Select from Pulldown
E5: Yellow Boxes -- Type input information into box | H5: Type Input Value
E6: General Information
F7: Analyst:
F8: Agency / Company / District:
F9: Date:
E10: Segment Limits (Limit up to 15 miles in length):
F11: Road Name:
F12: Category (4R, 3R) -- Future Enhancement
F13: Segment Beginning Mile Point (BMP):
F14: Segment Ending Mile Point (EMP):
H15: =+H14-H13 -> 0
E16: Calculated Total Segment Length (miles):
B79: Segment Number | D79: Type | E79: Boundary Conditions | H79: Applicable Worksheet (similar segment can use same worksheet) | I79: Segment Safety Score
E80: BMP | F80: EMP | G80: Length | I80: Existing | J80: Standard | K80: Design 1 | L80: Design 2 | M80: Optimal
B81: 1 | D81: RMLS | E81: =+$H$13 -> 0 | F81: =IF($H$15<=1,$H$14,($H$13+1)) -> 0 | G81: =IF($H$14-$H$13>1,1,F81-E81) -> 0 | H81: Configuration 1 | I81: =IF($E81=" "," ",INDIRECT("'" & $H81 & "'!d50")) ->  | J81: =IF($E81=" "," ",INDIRECT("'" & $H81 & "'!e50")) ->  | K81: =IF($E81=" "," ",INDIRECT("'" & $H81 & "'!f50")) ->  | L81: =IF($E81=" "," ",INDIRECT("'" & $H81 & "'!g50")) ->  | M81: =IF($E81=" "," ",INDIRECT("'" & $H81 & "'!i50")) -> 
B82: =IF($E82=" "," ", 2) ->  | D82: =IF(E82=" ","","RMLS") ->  | E82: =IF($H$14-$H$13<=1," ",F81) ->  | F82: =IF($E82=" "," ",IF($H$14<($F81+1),$H$14,($F81+1))) ->  | G82: =+IF(E82=" "," ",IF($H$14<(F81+1),(F82-E82),1)) ->  | H82: Configuration 1
B83: =IF($E83=" "," ", 3) ->  | D83: =IF(E83=" ","","RMLS") ->  | E83: =IF($H$14-$H$13<=2," ",F82) ->  | G83: =+IF(E83=" "," ",IF($H$14<(F82+1),(F83-E83),1)) ->  | H83: Configuration 1
B84: =IF($E84=" "," ", 4) ->  | E84: =IF($H$14-$H$13<=3," ",F83) ->  | G84: =+IF(E84=" "," ",IF($H$14<(F83+1),(F84-E84),1)) ->  | H84: Configuration 1
B85: =IF($E85=" "," ", 5) ->  | E85: =IF($H$14-$H$13<=4," ",F84) ->  | H85: Configuration 1
B86: =IF($E86=" "," ", 6) ->  | E86: =IF($H$14-$H$13<=5," ",F85) ->  | H86: Configuration 1
B87: =IF($E87=" "," ", 7) ->  | E87: =IF($H$14-$H$13<=6," ",F86) ->  | H87: Configuration 1
B88: =IF($E88=" "," ", 8) ->  | E88: =IF($H$14-$H$13<=7," ",F87) ->  | H88: Configuration 1
B89: =IF($E89=" "," ", 9) ->  | E89: =IF($H$14-$H$13<=8," ",F88) ->  | H89: Configuration 1
B90: =IF($E90=" "," ", 10) ->  | E90: =IF($H$14-$H$13<=9," ",F89) ->  | H90: Configuration 1
B91: =IF($E91=" "," ", 11) ->  | E91: =IF($H$14-$H$13<=10," ",F90) ->  | H91: Configuration 1
B92: =IF($E92=" "," ",12) ->  | E92: =IF($H$14-$H$13<=11," ",F91) ->  | H92: Configuration 1
B93: =IF($E93=" "," ", 13) ->  | E93: =IF($H$14-$H$13<=12," ",F92) ->  | H93: Configuration 1
B94: =IF($E94=" "," ", 14) ->  | E94: =IF($H$14-$H$13<=13," ",F93) ->  | H94: Configuration 1
B95: =IF($E95=" "," ", 15) ->  | E95: =IF($H$14-$H$13<=14," ",F94) ->  | H95: Configuration 1 | I95: =IF(OR($E95=" ",$H95=" ")," ",INDIRECT("'" & $H95 & "'!d50")) ->  | J95: =IF(OR($E95=" ",$H95=" ")," ",INDIRECT("'" & $H95 & "'!d50")) ->  | K95: =IF(OR($E95=" ",$H95=" ")," ",INDIRECT("'" & $H95 & "'!d50")) ->  | L95: =IF(OR($E95=" ",$H95=" ")," ",INDIRECT("'" & $H95 & "'!d50")) ->  | M95: =IF(OR($E95=" ",$H95=" ")," ",INDIRECT("'" & $H95 & "'!d50")) -> 
C96: =" "& CELL("filename") -> S:\DES\Safety Scoring\2024.10\Comment - Oct\[rural-multilane-v3-3.xlsm]Reporting | D96: RMLS | E96: =H13 -> 0 | F96: =H14 -> 0 | G96: =SUM(G81:G95) -> 0 | H96: Weighted Total Score: | I96: =IF(ISERROR(I98), "Check Conf.",I98) ->  | J96: =IF(ISERROR(J98), "Check Conf.",J98) ->  | K96: =IF(ISERROR(K98), "Check Conf.",K98) ->  | L96: =IF(ISERROR(L98), "Check Conf.",L98) ->  | M96: =IF(ISERROR(M98), "Check Conf.",M98) -> 
I98: =+IF($G$96>14,((SUM(I$81:I$94)+(I$95*$G$95))/$G$96),IF($G$96>13,(SUM(I$81:I$93)+(I$94*$G$94))/$G$96,IF($G$96>12,(SUM(I$81:I$92)+(I$93*$G$93))/$G$96,IF($G$96>11,(SUM(I$81:I$91)+(I$92*$G$92))/$G$96,IF($G$96>10,((SUM(I$81:I$90)+(I$91*$G$91))/$G$96),IF($G$96>9,((SUM(I$81:I$89)+(I$90*$G$90))/$G$96),IF($G$96>8,(SUM(I$81:I$88)+(I$89*$G$89))/$G$96,IF($G$96>7,(SUM(I$81:I$87)+(I$88*$G$88))/$G$96,IF($G$96>6,(SUM(I$81:I$86)+(I$87*$G$87))/$G$96,IF($G$96>5,(SUM(I$81:I$85)+(I$86*$G$86))/$G$96,IF($G$96>4,(SUM(I$81:I$84)+(I$85*$G$85))/$G$96,IF($G$96>3,(SUM(I$81:I$83)+(I$84*$G$84))/$G$96,IF($G$96>2,(SUM(I$81:I$82)+I$83*$G$83)/$G$96,IF($G$96>1,(I$81+I$82*$G$82)/$G$96,I$81)))))))))))))) ->  | J98: =+IF($G$96>14,((SUM(J$81:J$94)+(J$95*$G$95))/$G$96),IF($G$96>13,(SUM(J$81:J$93)+(J$94*$G$94))/$G$96,IF($G$96>12,(SUM(J$81:J$92)+(J$93*$G$93))/$G$96,IF($G$96>11,(SUM(J$81:J$91)+(J$92*$G$92))/$G$96,IF($G$96>10,((SUM(J$81:J$90)+(J$91*$G$91))/$G$96),IF($G$96>9,((SUM(J$81:J$89)+(J$90*$G$90))/$G$96),IF($G$96>8,(SUM(J$81:J$88)+(J$89*$G$89))/$G$96,IF($G$96>7,(SUM(J$81:J$87)+(J$88*$G$88))/$G$96,IF($G$96>6,(SUM(J$81:J$86)+(J$87*$G$87))/$G$96,IF($G$96>5,(SUM(J$81:J$85)+(J$86*$G$86))/$G$96,IF($G$96>4,(SUM(J$81:J$84)+(J$85*$G$85))/$G$96,IF($G$96>3,(SUM(J$81:J$83)+(J$84*$G$84))/$G$96,IF($G$96>2,(SUM(J$81:J$82)+J$83*$G$83)/$G$96,IF($G$96>1,(J$81+J$82*$G$82)/$G$96,J$81)))))))))))))) ->  | K98: =+IF($G$96>14,((SUM(K$81:K$94)+(K$95*$G$95))/$G$96),IF($G$96>13,(SUM(K$81:K$93)+(K$94*$G$94))/$G$96,IF($G$96>12,(SUM(K$81:K$92)+(K$93*$G$93))/$G$96,IF($G$96>11,(SUM(K$81:K$91)+(K$92*$G$92))/$G$96,IF($G$96>10,((SUM(K$81:K$90)+(K$91*$G$91))/$G$96),IF($G$96>9,((SUM(K$81:K$89)+(K$90*$G$90))/$G$96),IF($G$96>8,(SUM(K$81:K$88)+(K$89*$G$89))/$G$96,IF($G$96>7,(SUM(K$81:K$87)+(K$88*$G$88))/$G$96,IF($G$96>6,(SUM(K$81:K$86)+(K$87*$G$87))/$G$96,IF($G$96>5,(SUM(K$81:K$85)+(K$86*$G$86))/$G$96,IF($G$96>4,(SUM(K$81:K$84)+(K$85*$G$85))/$G$96,IF($G$96>3,(SUM(K$81:K$83)+(K$84*$G$84))/$G$96,IF($G$96>2,(SUM(K$81:K$82)+K$83*$G$83)/$G$96,IF($G$96>1,(K$81+K$82*$G$82)/$G$96,K$81)))))))))))))) ->  | L98: =+IF($G$96>14,((SUM(L$81:L$94)+(L$95*$G$95))/$G$96),IF($G$96>13,(SUM(L$81:L$93)+(L$94*$G$94))/$G$96,IF($G$96>12,(SUM(L$81:L$92)+(L$93*$G$93))/$G$96,IF($G$96>11,(SUM(L$81:L$91)+(L$92*$G$92))/$G$96,IF($G$96>10,((SUM(L$81:L$90)+(L$91*$G$91))/$G$96),IF($G$96>9,((SUM(L$81:L$89)+(L$90*$G$90))/$G$96),IF($G$96>8,(SUM(L$81:L$88)+(L$89*$G$89))/$G$96,IF($G$96>7,(SUM(L$81:L$87)+(L$88*$G$88))/$G$96,IF($G$96>6,(SUM(L$81:L$86)+(L$87*$G$87))/$G$96,IF($G$96>5,(SUM(L$81:L$85)+(L$86*$G$86))/$G$96,IF($G$96>4,(SUM(L$81:L$84)+(L$85*$G$85))/$G$96,IF($G$96>3,(SUM(L$81:L$83)+(L$84*$G$84))/$G$96,IF($G$96>2,(SUM(L$81:L$82)+L$83*$G$83)/$G$96,IF($G$96>1,(L$81+L$82*$G$82)/$G$96,L$81)))))))))))))) ->  | M98: =+IF($G$96>14,((SUM(M$81:M$94)+(M$95*$G$95))/$G$96),IF($G$96>13,(SUM(M$81:M$93)+(M$94*$G$94))/$G$96,IF($G$96>12,(SUM(M$81:M$92)+(M$93*$G$93))/$G$96,IF($G$96>11,(SUM(M$81:M$91)+(M$92*$G$92))/$G$96,IF($G$96>10,((SUM(M$81:M$90)+(M$91*$G$91))/$G$96),IF($G$96>9,((SUM(M$81:M$89)+(M$90*$G$90))/$G$96),IF($G$96>8,(SUM(M$81:M$88)+(M$89*$G$89))/$G$96,IF($G$96>7,(SUM(M$81:M$87)+(M$88*$G$88))/$G$96,IF($G$96>6,(SUM(M$81:M$86)+(M$87*$G$87))/$G$96,IF($G$96>5,(SUM(M$81:M$85)+(M$86*$G$86))/$G$96,IF($G$96>4,(SUM(M$81:M$84)+(M$85*$G$85))/$G$96,IF($G$96>3,(SUM(M$81:M$83)+(M$84*$G$84))/$G$96,IF($G$96>2,(SUM(M$81:M$82)+M$83*$G$83)/$G$96,IF($G$96>1,(M$81+M$82*$G$82)/$G$96,M$81)))))))))))))) -> 

Sheet Reporting0 (hidden)
D3: Project General Information | M3: ='Start Here'!B79 -> Segment Number | N3: ='Start Here'!D79 -> Type | O3: ='Start Here'!E79 -> Boundary Conditions | R3: Appicable Worksheet | S3: ='Start Here'!I79 -> Segment Safety Score
E4: ='Start Here'!F7 -> Analyst: | G4: ='Start Here'!H7 -> 0 | O4: ='Start Here'!E80 -> BMP | P4: ='Start Here'!F80 -> EMP | Q4: ='Start Here'!G80 -> Length | S4: ='Start Here'!I80 -> Existing | T4: ='Start Here'!J80 -> Standard | U4: ='Start Here'!K80 -> Design 1 | V4: ='Start Here'!L80 -> Design 2 | W4: ='Start Here'!M80 -> Optimal
E5: ='Start Here'!F8 -> Agency / Company / District: | G5: ='Start Here'!H8 -> 0 | M5: ='Start Here'!B81 -> 1 | N5: ='Start Here'!D81 -> RMLS | O5: ='Start Here'!E81 -> 0 | P5: ='Start Here'!F81 -> 0 | Q5: ='Start Here'!G81 -> 0 | R5: ='Start Here'!H81 -> Configuration 1 | S5: ='Start Here'!I81 ->  | T5: ='Start Here'!J81 ->  | U5: ='Start Here'!K81 ->  | V5: ='Start Here'!L81 ->  | W5: ='Start Here'!M81 -> 
E6: ='Start Here'!F9 -> Date: | G6: ='Start Here'!H9 -> 00:00:00 | M6: ='Start Here'!B82 ->  | N6: ='Start Here'!D82 ->  | O6: ='Start Here'!E82 ->  | P6: ='Start Here'!F82 ->  | Q6: ='Start Here'!G82 ->  | R6: ='Start Here'!H82 -> Configuration 1 | S6: ='Start Here'!I82 ->  | T6: ='Start Here'!J82 ->  | U6: ='Start Here'!K82 ->  | V6: ='Start Here'!L82 ->  | W6: ='Start Here'!M82 -> 
D7: ='Start Here'!E10 -> Segment Limits (Limit up to 15 miles in length): | M7: ='Start Here'!B83 ->  | N7: ='Start Here'!D83 ->  | O7: ='Start Here'!E83 ->  | P7: ='Start Here'!F83 ->  | Q7: ='Start Here'!G83 ->  | R7: ='Start Here'!H83 -> Configuration 1 | S7: ='Start Here'!I83 ->  | T7: ='Start Here'!J83 ->  | U7: ='Start Here'!K83 ->  | V7: ='Start Here'!L83 ->  | W7: ='Start Here'!M83 -> 
E8: ='Start Here'!F11 -> Road Name: | G8: ='Start Here'!H11 -> 0 | M8: ='Start Here'!B84 ->  | N8: ='Start Here'!D84 ->  | O8: ='Start Here'!E84 ->  | P8: ='Start Here'!F84 ->  | Q8: ='Start Here'!G84 ->  | R8: ='Start Here'!H84 -> Configuration 1 | S8: ='Start Here'!I84 ->  | T8: ='Start Here'!J84 ->  | U8: ='Start Here'!K84 ->  | V8: ='Start Here'!L84 ->  | W8: ='Start Here'!M84 -> 
E9: ='Start Here'!F12 -> Category (4R, 3R) -- Future Enhancement | G9: ='Start Here'!H12 -> 0 | M9: ='Start Here'!B85 ->  | N9: ='Start Here'!D85 ->  | O9: ='Start Here'!E85 ->  | P9: ='Start Here'!F85 ->  | Q9: ='Start Here'!G85 ->  | R9: ='Start Here'!H85 -> Configuration 1 | S9: ='Start Here'!I85 ->  | T9: ='Start Here'!J85 ->  | U9: ='Start Here'!K85 ->  | V9: ='Start Here'!L85 ->  | W9: ='Start Here'!M85 -> 
M10: ='Start Here'!B86 ->  | N10: ='Start Here'!D86 ->  | O10: ='Start Here'!E86 ->  | P10: ='Start Here'!F86 ->  | Q10: ='Start Here'!G86 ->  | R10: ='Start Here'!H86 -> Configuration 1 | S10: ='Start Here'!I86 ->  | T10: ='Start Here'!J86 ->  | U10: ='Start Here'!K86 ->  | V10: ='Start Here'!L86 ->  | W10: ='Start Here'!M86 -> 
E11: ='Start Here'!F13 -> Segment Beginning Mile Point (BMP): | G11: ='Start Here'!H13 -> 0 | M11: ='Start Here'!B87 ->  | N11: ='Start Here'!D87 ->  | O11: ='Start Here'!E87 ->  | P11: ='Start Here'!F87 ->  | Q11: ='Start Here'!G87 ->  | R11: ='Start Here'!H87 -> Configuration 1 | S11: ='Start Here'!I87 ->  | T11: ='Start Here'!J87 ->  | U11: ='Start Here'!K87 ->  | V11: ='Start Here'!L87 ->  | W11: ='Start Here'!M87 -> 
E12: ='Start Here'!F14 -> Segment Ending Mile Point (EMP): | G12: ='Start Here'!H14 -> 0 | M12: ='Start Here'!B88 ->  | N12: ='Start Here'!D88 ->  | O12: ='Start Here'!E88 ->  | P12: ='Start Here'!F88 ->  | Q12: ='Start Here'!G88 ->  | R12: ='Start Here'!H88 -> Configuration 1 | S12: ='Start Here'!I88 ->  | T12: ='Start Here'!J88 ->  | U12: ='Start Here'!K88 ->  | V12: ='Start Here'!L88 ->  | W12: ='Start Here'!M88 -> 
G13: ='Start Here'!H15 -> 0 | M13: ='Start Here'!B89 ->  | N13: ='Start Here'!D89 ->  | O13: ='Start Here'!E89 ->  | P13: ='Start Here'!F89 ->  | Q13: ='Start Here'!G89 ->  | R13: ='Start Here'!H89 -> Configuration 1 | S13: ='Start Here'!I89 ->  | T13: ='Start Here'!J89 ->  | U13: ='Start Here'!K89 ->  | V13: ='Start Here'!L89 ->  | W13: ='Start Here'!M89 -> 
D14: ='Start Here'!E16 -> Calculated Total Segment Length (miles): | M14: ='Start Here'!B90 ->  | N14: ='Start Here'!D90 ->  | O14: ='Start Here'!E90 ->  | P14: ='Start Here'!F90 ->  | Q14: ='Start Here'!G90 ->  | R14: ='Start Here'!H90 -> Configuration 1 | S14: ='Start Here'!I90 ->  | T14: ='Start Here'!J90 ->  | U14: ='Start Here'!K90 ->  | V14: ='Start Here'!L90 ->  | W14: ='Start Here'!M90 -> 
M15: ='Start Here'!B91 ->  | N15: ='Start Here'!D91 ->  | O15: ='Start Here'!E91 ->  | P15: ='Start Here'!F91 ->  | Q15: ='Start Here'!G91 ->  | R15: ='Start Here'!H91 -> Configuration 1 | S15: ='Start Here'!I91 ->  | T15: ='Start Here'!J91 ->  | U15: ='Start Here'!K91 ->  | V15: ='Start Here'!L91 ->  | W15: ='Start Here'!M91 -> 
M16: ='Start Here'!B92 ->  | N16: ='Start Here'!D92 ->  | O16: ='Start Here'!E92 ->  | P16: ='Start Here'!F92 ->  | Q16: ='Start Here'!G92 ->  | R16: ='Start Here'!H92 -> Configuration 1 | S16: ='Start Here'!I92 ->  | T16: ='Start Here'!J92 ->  | U16: ='Start Here'!K92 ->  | V16: ='Start Here'!L92 ->  | W16: ='Start Here'!M92 -> 
E17: FUTURE FUNDED PROJECT | F17: =IF(H100,"Yes","No") -> No | M17: ='Start Here'!B93 ->  | N17: ='Start Here'!D93 ->  | O17: ='Start Here'!E93 ->  | P17: ='Start Here'!F93 ->  | Q17: ='Start Here'!G93 ->  | R17: ='Start Here'!H93 -> Configuration 1 | S17: ='Start Here'!I93 ->  | T17: ='Start Here'!J93 ->  | U17: ='Start Here'!K93 ->  | V17: ='Start Here'!L93 ->  | W17: ='Start Here'!M93 -> 
M18: ='Start Here'!B94 ->  | N18: ='Start Here'!D94 ->  | O18: ='Start Here'!E94 ->  | P18: ='Start Here'!F94 ->  | Q18: ='Start Here'!G94 ->  | R18: ='Start Here'!H94 -> Configuration 1 | S18: ='Start Here'!I94 ->  | T18: ='Start Here'!J94 ->  | U18: ='Start Here'!K94 ->  | V18: ='Start Here'!L94 ->  | W18: ='Start Here'!M94 -> 
D19: FUTURE UNFUNDED PROJECT IDENTIFIED | F19: =IF(H101,"Yes","No") -> No | M19: ='Start Here'!B95 ->  | N19: ='Start Here'!D95 ->  | O19: ='Start Here'!E95 ->  | P19: ='Start Here'!F95 ->  | Q19: ='Start Here'!G95 ->  | R19: ='Start Here'!H95 -> Configuration 1 | S19: ='Start Here'!I95 ->  | T19: ='Start Here'!J95 ->  | U19: ='Start Here'!K95 ->  | V19: ='Start Here'!L95 ->  | W19: ='Start Here'!M95 -> 
M20: ='Start Here'!C96 -> S:\DES\Safety Scoring\2024.10\Comment - Oct\[rural-multilane-v3-3.xlsm]Reporting | N20: ='Start Here'!D96 -> RMLS | O20: ='Start Here'!E96 -> 0 | P20: ='Start Here'!F96 -> 0 | Q20: ='Start Here'!G96 -> 0 | R20: ='Start Here'!H96 -> Weighted Total Score: | S20: ='Start Here'!I96 ->  | T20: ='Start Here'!J96 ->  | U20: ='Start Here'!K96 ->  | V20: ='Start Here'!L96 ->  | W20: ='Start Here'!M96 -> 
A25: ELEMENTS INCREASING SAFETY | L25: COMMENTS ON PRIMARY CONSTRAINTS | S25: ESTIMATED ADDITIONAL COST TO ACHIEVE OPTIMAL
S27: now set at left justified and begins at top
S40: ESTIMATED ADDITIONAL TIME (mo). TO ACHIEVE OPTIMAL
S42: Set at 28 font and left justified and top (as set now)
S56: PRIMARY CONSTRAINTS TOWARD OPTIMAL SAFETY SCORE
T58: A. FUNDING ELEGIBILITY / SCOPE | W58: =IF(X100,"Yes","No") -> No
T59: B. SCHEDULE / DELIVERY TIMEFRAME | W59: No
T60: C. LOCAL ROW / UTILITIES | W60: No
T61: D. ROW / UTILITIES | W61: No
T62: E. ENVIRONMENTAL ISSUES | W62: No
T63: F. RAILROAD IMPACT | W63: No
H100: FALSE | X100: FALSE
H101: FALSE | X101: FALSE
X102: FALSE
X103: FALSE
X104: FALSE
X105: FALSE

Sheet Helper (hidden)
B1: SkidNums | D1: Passing_Lane_Type | E1: PassLNCMF | H1: HCurveChange | J1: VCurveChange | M1: Flush Median | N1: Divided - Unsurfaced Median | O1: No Median | Q1: Wid1 | R1: Divided | S1: Undivided | T1: MedTypeCMF | U1: MedWidCMF
B2: Hot Mix – 37 | D2: No Passing Lane | E2: 1 | H2: Yes. | J2: Yes. | M2: Striped Buffer | N2: =Q2 -> 10 | Q2: 10 | R2: ="Width: " &Q2 &" ft" -> Width: 10 ft | S2: None | T2: 4U | U2: 1
B3: Seal Coat – 54 | D3: Passing or Climbing Lane in One Direction | E3: 0.75 | F3: See CMF Tab | H3: No, I will change the L/R. | J3: No, I will change the G/L. | M3: TWLTL | N3: =Q3 -> 12 | Q3: 12 | R3: ="Width: " &Q3 &" ft" -> Width: 12 ft | S3: 4 ft Striped Buffer | T3: 4M | U3: 0.98 | Z3: 0-7035 Betas
B4: No Change | D4: Super 2 | E4: 0.65 | F4: See Park et al. 2012 | N4: 15 | Q4: 15 | R4: Width: 15 ft | S4: TWLTL | T4: 4T | U4: 0.975 | AA4: 2S | AB4: 4U | AC4: 4M | AD4: 4T
N5: 20 | Q5: 20 | R5: Width: 20 ft | U5: 0.95 | Z5: Intercept | AA5: -9.5179 | AB5: -6.4562 | AC5: -9.2452 | AD5: -6.786
N6: 30 | Q6: 30 | R6: Width: 30 ft | U6: 0.91 | Z6: ADT coefficient | AA6: 1.0534 | AB6: 0.8027 | AC6: 1.0725 | AD6: 0.8294
N7: 40 | Q7: 40 | R7: Width: 40 ft | U7: 0.87 | Z7: Shoulder coefficient | AA7: -0.0213 | AB7: -0.0213 | AC7: -0.1508 | AD7: -0.0213
N8: 50 | Q8: 50 | R8: Width: 50 ft | U8: 0.83 | Z8: Driveway coeffcient | AA8: 0.2411 | AB8: 0.2411 | AC8: 0.2411 | AD8: 0.2411
N9: 60 | Q9: 60 | R9: Width: 60 ft | U9: 0.79 | Z9: Horizontal curve prop | AA9: 0.4554 | AB9: 0.4554 | AC9: 0.4554 | AD9: 0.4554
N10: 70 | Q10: 70 | R10: Width: 70 ft | U10: 0.76 | Z10: Speed above psoted speed | AA10: 0.01442 | AB10: 0.01442 | AC10: 0.01442 | AD10: 0.01442
C11: ModView | N11: 80 | Q11: 80 | R11: Width: 80 ft | U11: 0.72
C12: Existing | N12: 90 | Q12: 90 | R12: Width: 90 ft | U12: 0.69
C13: Standard | N13: 100 | Q13: 100 | R13: Width: 100 ft | U13: 0.66
C14: Design 1
C15: Design 2
C16: HolderNone
C17: Optimal

Sheet Reporting
B2: Please complete all yellow fields
B3: Grey fields are automatically populated
B5: CCSJ
B6: DIST
B7: Total Project Length
B9: ='Start Here'!E6 -> General Information | F9: ='Start Here'!$B$79 -> Segment Number | G9: ='Start Here'!D79 -> Type | H9: ='Start Here'!E79 -> Boundary Conditions | K9: Configuration | L9: ='Start Here'!I79 -> Segment Safety Score
B10: ='Start Here'!F7 -> Analyst: | C10: ='Start Here'!H7 -> 0 | H10: ='Start Here'!E80 -> BMP | I10: ='Start Here'!F80 -> EMP | J10: ='Start Here'!G80 -> Length | L10: ='Start Here'!I80 -> Existing | M10: ='Start Here'!J80 -> Standard | N10: ='Start Here'!K80 -> Design 1 | O10: ='Start Here'!L80 -> Design 2 | P10: ='Start Here'!M80 -> Optimal
B11: ='Start Here'!F8 -> Agency / Company / District: | C11: ='Start Here'!H8 -> 0 | F11: ='Start Here'!B81 -> 1 | G11: ='Start Here'!D81 -> RMLS | H11: ='Start Here'!E81 -> 0 | I11: ='Start Here'!F81 -> 0 | J11: ='Start Here'!G81 -> 0 | K11: ='Start Here'!H81 -> Configuration 1 | L11: ='Start Here'!I81 ->  | M11: ='Start Here'!J81 ->  | N11: ='Start Here'!K81 ->  | O11: ='Start Here'!L81 ->  | P11: ='Start Here'!M81 -> 
B12: ='Start Here'!F9 -> Date: | C12: ='Start Here'!H9 -> 00:00:00 | F12: ='Start Here'!B82 ->  | G12: ='Start Here'!D82 ->  | H12: ='Start Here'!E82 ->  | I12: ='Start Here'!F82 ->  | J12: ='Start Here'!G82 ->  | K12: ='Start Here'!H82 -> Configuration 1 | L12: ='Start Here'!I82 ->  | M12: ='Start Here'!J82 ->  | N12: ='Start Here'!K82 ->  | O12: ='Start Here'!L82 ->  | P12: ='Start Here'!M82 -> 
B13: ='Start Here'!E10 -> Segment Limits (Limit up to 15 miles in length): | F13: ='Start Here'!B83 ->  | G13: ='Start Here'!D83 ->  | H13: ='Start Here'!E83 ->  | I13: ='Start Here'!F83 ->  | J13: ='Start Here'!G83 ->  | K13: ='Start Here'!H83 -> Configuration 1 | L13: ='Start Here'!I83 ->  | M13: ='Start Here'!J83 ->  | N13: ='Start Here'!K83 ->  | O13: ='Start Here'!L83 ->  | P13: ='Start Here'!M83 -> 
B14: ='Start Here'!F11 -> Road Name: | C14: ='Start Here'!H11 -> 0 | F14: ='Start Here'!B84 ->  | G14: ='Start Here'!D84 ->  | H14: ='Start Here'!E84 ->  | I14: ='Start Here'!F84 ->  | J14: ='Start Here'!G84 ->  | K14: ='Start Here'!H84 -> Configuration 1 | L14: ='Start Here'!I84 ->  | M14: ='Start Here'!J84 ->  | N14: ='Start Here'!K84 ->  | O14: ='Start Here'!L84 ->  | P14: ='Start Here'!M84 -> 
B15: ='Start Here'!F12 -> Category (4R, 3R) -- Future Enhancement | C15: ='Start Here'!H12 -> 0 | F15: ='Start Here'!B85 ->  | G15: ='Start Here'!D85 ->  | H15: ='Start Here'!E85 ->  | I15: ='Start Here'!F85 ->  | J15: ='Start Here'!G85 ->  | K15: ='Start Here'!H85 -> Configuration 1 | L15: ='Start Here'!I85 ->  | M15: ='Start Here'!J85 ->  | N15: ='Start Here'!K85 ->  | O15: ='Start Here'!L85 ->  | P15: ='Start Here'!M85 -> 
B16: ='Start Here'!F13 -> Segment Beginning Mile Point (BMP): | C16: ='Start Here'!H13 -> 0 | F16: ='Start Here'!B86 ->  | G16: ='Start Here'!D86 ->  | H16: ='Start Here'!E86 ->  | I16: ='Start Here'!F86 ->  | J16: ='Start Here'!G86 ->  | K16: ='Start Here'!H86 -> Configuration 1 | L16: ='Start Here'!I86 ->  | M16: ='Start Here'!J86 ->  | N16: ='Start Here'!K86 ->  | O16: ='Start Here'!L86 ->  | P16: ='Start Here'!M86 -> 
B17: ='Start Here'!F14 -> Segment Ending Mile Point (EMP): | C17: ='Start Here'!H14 -> 0 | F17: ='Start Here'!B87 ->  | G17: ='Start Here'!D87 ->  | H17: ='Start Here'!E87 ->  | I17: ='Start Here'!F87 ->  | J17: ='Start Here'!G87 ->  | K17: ='Start Here'!H87 -> Configuration 1 | L17: ='Start Here'!I87 ->  | M17: ='Start Here'!J87 ->  | N17: ='Start Here'!K87 ->  | O17: ='Start Here'!L87 ->  | P17: ='Start Here'!M87 -> 
B18: ='Start Here'!E16 -> Calculated Total Segment Length (miles): | C18: ='Start Here'!H15 -> 0 | F18: ='Start Here'!B88 ->  | G18: ='Start Here'!D88 ->  | H18: ='Start Here'!E88 ->  | I18: ='Start Here'!F88 ->  | J18: ='Start Here'!G88 ->  | K18: ='Start Here'!H88 -> Configuration 1 | L18: ='Start Here'!I88 ->  | M18: ='Start Here'!J88 ->  | N18: ='Start Here'!K88 ->  | O18: ='Start Here'!L88 ->  | P18: ='Start Here'!M88 -> 
F19: ='Start Here'!B89 ->  | G19: ='Start Here'!D89 ->  | H19: ='Start Here'!E89 ->  | I19: ='Start Here'!F89 ->  | J19: ='Start Here'!G89 ->  | K19: ='Start Here'!H89 -> Configuration 1 | L19: ='Start Here'!I89 ->  | M19: ='Start Here'!J89 ->  | N19: ='Start Here'!K89 ->  | O19: ='Start Here'!L89 ->  | P19: ='Start Here'!M89 -> 
F20: ='Start Here'!B90 ->  | G20: ='Start Here'!D90 ->  | H20: ='Start Here'!E90 ->  | I20: ='Start Here'!F90 ->  | J20: ='Start Here'!G90 ->  | K20: ='Start Here'!H90 -> Configuration 1 | L20: ='Start Here'!I90 ->  | M20: ='Start Here'!J90 ->  | N20: ='Start Here'!K90 ->  | O20: ='Start Here'!L90 ->  | P20: ='Start Here'!M90 -> 
F21: ='Start Here'!B91 ->  | G21: ='Start Here'!D91 ->  | H21: ='Start Here'!E91 ->  | I21: ='Start Here'!F91 ->  | J21: ='Start Here'!G91 ->  | K21: ='Start Here'!H91 -> Configuration 1 | L21: ='Start Here'!I91 ->  | M21: ='Start Here'!J91 ->  | N21: ='Start Here'!K91 ->  | O21: ='Start Here'!L91 ->  | P21: ='Start Here'!M91 -> 
F22: ='Start Here'!B92 ->  | G22: ='Start Here'!D92 ->  | H22: ='Start Here'!E92 ->  | I22: ='Start Here'!F92 ->  | J22: ='Start Here'!G92 ->  | K22: ='Start Here'!H92 -> Configuration 1 | L22: ='Start Here'!I92 ->  | M22: ='Start Here'!J92 ->  | N22: ='Start Here'!K92 ->  | O22: ='Start Here'!L92 ->  | P22: ='Start Here'!M92 -> 
F23: ='Start Here'!B93 ->  | G23: ='Start Here'!D93 ->  | H23: ='Start Here'!E93 ->  | I23: ='Start Here'!F93 ->  | J23: ='Start Here'!G93 ->  | K23: ='Start Here'!H93 -> Configuration 1 | L23: ='Start Here'!I93 ->  | M23: ='Start Here'!J93 ->  | N23: ='Start Here'!K93 ->  | O23: ='Start Here'!L93 ->  | P23: ='Start Here'!M93 -> 
F24: ='Start Here'!B94 ->  | G24: ='Start Here'!D94 ->  | H24: ='Start Here'!E94 ->  | I24: ='Start Here'!F94 ->  | J24: ='Start Here'!G94 ->  | K24: ='Start Here'!H94 -> Configuration 1 | L24: ='Start Here'!I94 ->  | M24: ='Start Here'!J94 ->  | N24: ='Start Here'!K94 ->  | O24: ='Start Here'!L94 ->  | P24: ='Start Here'!M94 -> 
F25: ='Start Here'!B95 ->  | G25: ='Start Here'!D95 ->  | H25: ='Start Here'!E95 ->  | I25: ='Start Here'!F95 ->  | J25: ='Start Here'!G95 ->  | K25: ='Start Here'!H95 -> Configuration 1 | L25: ='Start Here'!I95 ->  | M25: ='Start Here'!J95 ->  | N25: ='Start Here'!K95 ->  | O25: ='Start Here'!L95 ->  | P25: ='Start Here'!M95 -> 
F26: ='Start Here'!$C$96 -> S:\DES\Safety Scoring\2024.10\Comment - Oct\[rural-multilane-v3-3.xlsm]Reporting | G26: ='Start Here'!D96 -> RMLS | H26: ='Start Here'!E96 -> 0 | I26: ='Start Here'!F96 -> 0 | J26: ='Start Here'!G96 -> 0 | K26: ='Start Here'!H96 -> Weighted Total Score: | L26: ='Start Here'!I96 ->  | M26: ='Start Here'!J96 ->  | N26: ='Start Here'!K96 ->  | O26: ='Start Here'!L96 ->  | P26: ='Start Here'!M96 -> 
B28: Selected Design | C28: Design 1
B29: Initial Score | C29: =L26 -> 
B30: Final Score | C30: =IFERROR(HLOOKUP(C28,M10:P26,17,FALSE),"") -> 
B31: Safety Score Increase | C31: =IFERROR(C30-C29,"") -> 
B33: ELEMENTS INCREASING SAFETY
B36: KEY ELEMENTS REQUIRED TO MATCH OPTIMAL SCORE
B39: PRIMARY CONSTRAINTS TOWARD OPTIMAL SAFETY SCORE | E39: Options - Hide
B40: A. FUNDING ELEGIBILITY / SCOPE | C40: =IF(I91,"Yes","No") -> No | E40: Yes | F40: Check the boxes for Yes
B41: B. SCHEDULE / DELIVERY TIMEFRAME | C41: =IF(I92,"Yes","No") -> No | E41: No
B42: C. LOCAL ROW / UTILITIES | C42: No
B43: D. ROW / UTILITIES | C43: No
B44: E. ENVIRONMENTAL ISSUES | C44: No
B45: F. RAILROAD IMPACT | C45: No
B47: PLANNED PROJECTS/PROGRAMS DEALING WITH KEY ELEMENTS TO MATCH OPTIMAL
B48: FUTURE FUNDED PROJECT | C48: =IF(I98,"Yes","No") -> No
B49: FUTURE UNFUNDED PROJECT IDENTIFIED | C49: =IF(I99,"Yes","No") -> No
B51: ESTIMATED ADDITIONAL COST TO ACHIEVE OPTIMAL
B54: ESTIMATED ADDITIONAL TIME (mo). TO ACHIEVE OPTIMAL
B57: COMMENTS ON PRIMARY CONSTRAINTS
I91: FALSE
I92: FALSE
I93: FALSE
I94: FALSE
I95: FALSE
I96: FALSE
I98: FALSE
I99: FALSE
I100: FALSE

Sheet Configuration 1
G2: Preferred Schematic View to Display | I2: Standard | V2: NOTES:
B3: CHARACTERISTICS TO CONSIDER FOR ANALYSIS | V3: ELEMENTS INCREASING SAFETY | AE3: COMMENTS ON PRIMARY CONSTRAINTS
B4: INPUT INSTRUCTIONS | G4: Relative to | I4: Existing
B5: Blue Boxes -- Select from pulldown options | D5: Select from Pulldown
B6: Yellow Boxes -- Type input information into box | D6: Type Input Value
B7: Rural Multi-Lane Road Segment -- Safety Score Input | CF7: Unadjusted Marginal Safety
B8: General Information: | F8: General Site Features | H8: =I315 & " Missing Features and Curves" -> 9 Missing Features and Curves | CF8: =I2&" relative to " &I4 -> Standard relative to Existing
C9: Analyst: | D9: =+'Start Here'!H7 -> 0 | F9: Location
C10: Agency or Company: | D10: =+'Start Here'!H8 -> 0 | F10: Design Speed (mph)
C11: Date: | D11: =+'Start Here'!H9 -> 00:00:00 | F11: Posted Speed (mph)
C12: Description: | F12: E max (%)
C13: Input additional site information here | F13: Design Year AADT (vehicles per day)
F14: Dist. from Centerline to Left ROW (feet)
F15: Dist. from Centerline to Right ROW (feet)
B17: Warning:
C18: =+IF(+I11>I10,"Posted speed exceeds design speed. Optimal safety will only be achieved if design speed exceeds posted speed. The Safety Assessment Score is based on the higher of the two speed values.","No speed warnings identified") -> No speed warnings identified
C19: =IF(OR(F24=INDEX(MedConf_Header,1,3),+G24=INDEX(MedConf_Header,1,3)), "Multilane undivided facilities are known to have substantially more collisions than multilane facilities with medians. In new construction a median or TWLTL should be considered."," ") ->  | DB19: =COUNTIF(DB23:DB46,DB20) -> 1
C20: =IF(I13="40,001 < AADT < 60,000", "Multi-lane Road Should be Divided Due to High AADT Value","") ->  | DB20: =VLOOKUP(0,CZ23:DB46,3,) -> 10.01
D21: Fill all elements | F21: To enter notes, use boxes to the right of the vortex
B22: =+Construction!$I$2&" Total Available Points" -> 40 Total Available Points | D22: =D249 & " Missing Elements" -> 19 Missing Elements | F22: =F249 & " Missing Elements" -> 19 Missing Elements | G22: =G249 & " Missing Elements" -> 19 Missing Elements | CX22: Ranked element | CY22: CRF | CZ22: abs | DA22: Re-rank | DB22: Rank | DC22: Ranked CRF | DD22: Element | DE22: New Element | DF22: crf.abs | DG22: rank | DH22: Sorted Element | DI22: Sorted CRF
B23: Geometric Design Elements | D23: Existing | E23: Standard (Based on Multi-lane Divided) | F23: Design 1 | G23: Design 2 | H23: ="Marginal Safety for "&$I$2&" (compared to " & $I$4 & ")" -> Marginal Safety for Standard (compared to Existing) | I23: Optimal (Based on Multi-lane Divided) | CX23: =IF(CY23=0,"",DB23&". "&DD23) ->  | CY23: =H24 -> 0 | CZ23: =ABS(CY23) -> 0 | DA23: =_xlfn.RANK.EQ(DB23,$DB$23:$DB$46,1) -> 10 | DB23: =_xlfn.RANK.EQ(CZ23,$CZ$23:$CZ$46)+DG23/100 -> 10.01 | DC23: =CY23 -> 0 | DD23: =IF(ROUND(DF23,2)=0,"",C24) ->  | DE23: =DD23 ->  | DF23: =CZ23 -> 0 | DG23: 1 | DH23: =IFERROR(IF(IFERROR(VLOOKUP(DG23,$DA$23:$DF$46,4,)&", "&CY23=0,""),"",IFERROR(VLOOKUP(DG23,$DA$23:$DE$46,4,),"")),"") -> Pavement Friction (skid number) *** | DI23: =IFERROR(IF(IFERROR(VLOOKUP(DG23,$DA$23:$DF$46,3,)&", "&CY23=0,""),"",IFERROR(VLOOKUP(DG23,$DA$23:$DE$46,3,),"")),"") -> 0.2843095602
C24: Configuration of Multilane Roadway | E24: Divided - Unsurfaced Median | I24: Divided - Unsurfaced Median | CX24: =IF(CY24=0,"",DB24&". "&DD24) -> 5.02. Median Configuration (Width or Type) | CY24: =H25 -> 0.09 | CZ24: =ABS(CY24) -> 0.09 | DA24: =_xlfn.RANK.EQ(DB24,$DB$23:$DB$46,1) -> 5 | DB24: =_xlfn.RANK.EQ(CZ24,$CZ$23:$CZ$46)+DG24/100 -> 5.02 | DC24: =CY24 -> 0.09 | DD24: =IF(ROUND(DF24,2)=0,"",C25) -> Median Configuration (Width or Type) | DE24: =DD24 -> Median Configuration (Width or Type) | DF24: =CZ24 -> 0.09 | DG24: 2 | DH24: =IFERROR(IF(IFERROR(VLOOKUP(DG24,$DA$23:$DF$46,4,)&", "&CY24=0,""),"",IFERROR(VLOOKUP(DG24,$DA$23:$DE$46,4,),"")),"") -> Driveway Density (driveways per mile) | DI24: =IFERROR(IF(IFERROR(VLOOKUP(DG24,$DA$23:$DF$46,3,)&", "&CY24=0,""),"",IFERROR(VLOOKUP(DG24,$DA$23:$DE$46,3,),"")),"") -> -0.223881142
C25: Median Configuration (Width or Type) | E25: 30 | H25: =M103 -> 0.09 | I25: 100 | CY25: =H27 -> 0 | CZ25: 0 | DA25: 11 | DB25: 10.03 | DC25: =CY25 -> 0 | DD25: =IF(ROUND(DF25,2)=0,"",C27) ->  | DE25: =DD25 ->  | DF25: 0 | DG25: 3 | DH25: =IFERROR(IF(IFERROR(VLOOKUP(DG25,$DA$23:$DF$46,4,)&", "&CY25=0,""),"",IFERROR(VLOOKUP(DG25,$DA$23:$DE$46,4,),"")),"") -> Average Outside Shoulder Width (feet) | DI25: =IFERROR(IF(IFERROR(VLOOKUP(DG25,$DA$23:$DF$46,3,)&", "&CY25=0,""),"",IFERROR(VLOOKUP(DG25,$DA$23:$DE$46,3,),"")),"") -> 0.1806167401
DG26: 4 | DH26: =IFERROR(IF(IFERROR(VLOOKUP(DG26,$DA$23:$DF$46,4,)&", "&CY26=0,""),"",IFERROR(VLOOKUP(DG26,$DA$23:$DE$46,4,),"")),"") -> Roadside Sideslope (Foreslope) | DI26: =IFERROR(IF(IFERROR(VLOOKUP(DG26,$DA$23:$DF$46,3,)&", "&CY26=0,""),"",IFERROR(VLOOKUP(DG26,$DA$23:$DE$46,3,),"")),"") -> 0.1569762247
C27: Lane Width (feet) | E27: 12 | H27: =M104 -> 0 | I27: 12 | DG27: 5 | DH27: Median Configuration (Width or Type) | DI27: 0.09
C28: Average Outside Shoulder Width (feet) | E28: 8 | H28: =M105 -> 0.1806167401 | I28: 10 | CX28: =IF(CY28=0,"",DB28&". "&DD28) -> 3.06. Average Outside Shoulder Width (feet) | CY28: =H28 -> 0.1806167401 | CZ28: =ABS(CY28) -> 0.1806167401 | DA28: 3 | DB28: 3.06 | DC28: =CY28 -> 0.1806167401 | DD28: =IF(ROUND(DF28,2)=0,"",C28) -> Average Outside Shoulder Width (feet) | DE28: =DD28 -> Average Outside Shoulder Width (feet) | DF28: =CZ28 -> 0.1806167401 | DG28: 6 | DH28: Roadside Lateral Clearance to Obstruction (ft) | DI28: 0.064777607
C29: Average Inside Shoulder Width (feet) | E29: 4 | H29: =M106 -> 0 | I29: 10 | CX29: =IF(CY29=0,"",DB29&". "&DD29) ->  | CY29: =H33 -> 0 | CZ29: =ABS(CY29) -> 0 | DA29: 12 | DB29: 10.07 | DC29: 0 | DD29: =IF(ROUND(DF29,2)=0,"","Hz and Vt Alignment") ->  | DF29: =CZ29 -> 0 | DG29: 7 | DH29: Safety Edge | DI29: -0.0234240316
C30: Number of Lanes per Direction of Travel | E30: 2 | I30: 2 | CX30: =IF(CY30=0,"",DB30&". "&DD30) ->  | CY30: =H29 -> 0 | CZ30: =ABS(CY30) -> 0 | DA30: =_xlfn.RANK.EQ(DB30,$DB$23:$DB$46,1) -> 13 | DB30: =_xlfn.RANK.EQ(CZ30,$CZ$23:$CZ$46)+DG30/100 -> 10.08 | DC30: =CY30 -> 0 | DD30: =IF(ROUND(DF30,2)=0,"",C29) ->  | DE30: =DD30 ->  | DF30: =CZ30 -> 0 | DG30: 8 | DH30: Shoulder Rumble Strips | DI30: 0.0228750088
C31: Horizontal Curve Present? | D31: -- | E31: -- | F31: -- | G31: -- | I31: -- | CX31: =IF(CY31=0,"",DB31&". "&DD31) ->  | CY31: =H47 -> 0 | CZ31: =ABS(CY31) -> 0 | DA31: 14 | DB31: 10.09 | DC31: 0 | DD31: =IF(ROUND(DF31,2)=0,"",C47) ->  | DF31: =CZ31 -> 0 | DG31: 9 | DH31: Lighting | DI31: -0.01709657912
C32: Horizontal Curve Data for Controlling Element: | D32: -- | E32: -- | F32: -- | G32: -- | I32: -- | CY32: =H48 -> 0 | CZ32: =ABS(CY32) -> 0 | DA32: 15 | DB32: 10.1 | DC32: 0 | DD32: =IF(ROUND(DF32,2)=0,"",C48) ->  | DF32: 0 | DG32: 10 | DI32: =IFERROR(IF(IFERROR(VLOOKUP(DG32,$DA$23:$DF$46,3,)&", "&CY32=0,""),"",IFERROR(VLOOKUP(DG32,$DA$23:$DE$46,3,),"")),"") -> 0
C33: Radius (feet) | E33: =IF(MAX($I$10,$I$11)<45,590,IF($I$12=6,VLOOKUP(MAX($I$10,$I$11),Construction!$B$27:$D$34,2,TRUE),VLOOKUP(MAX($I$10,$I$11),Construction!$G$27:$I$34,2,TRUE))) -> 590 | H33: =M144 -> 0 | I33: =IF(MAX($I$10,$I$11)<45,590,IF($I$12=6,VLOOKUP(MAX($I$10,$I$11),Construction!$B$43:$C$50,2,TRUE),VLOOKUP(MAX($I$10,$I$11),Construction!$G$43:$H$50,2,TRUE))) -> 590 | CY33: =H56 -> 0 | CZ33: =ABS(CY33) -> 0 | DA33: 16 | DB33: 10.11 | DC33: 0 | DD33: =IF(ROUND(DF33,2)=0,"",C56) ->  | DF33: 0 | DG33: 11 | DI33: 0
C34: Length of Horizontal Curve (feet) | E34: =IF(D35="", "", E33*E35/57.296) ->  | I34: =I33*I35/57.296 -> 3758.55208 | CY34: 0 | CZ34: =ABS(CY34) -> 0 | DA34: 17 | DB34: 10.12 | DC34: 0 | DF34: 0 | DG34: 12 | DI34: 0
C35: Calculated Deflection Angle ∆ | D35: =IF(OR(ISBLANK(D33),ISBLANK(D34),$B$31="No",ISBLANK($B$31)),"",ROUND(D34/D33*57.296,1)) ->  | E35: =IF(ISBLANK(D35), "",D35) ->  | F35: =IF(OR(ISBLANK(F33),ISBLANK(F34),$B$31="No",ISBLANK($B$31)),"",ROUND(F34/F33*57.296,1)) ->  | G35: =IF(OR(ISBLANK(G33),ISBLANK(G34),$B$31="No",ISBLANK($B$31)),"",ROUND(G34/G33*57.296,1)) ->  | I35: =MIN(D35,IF(F37=INDEX(HCurveChange,1,0), F35, 365),IF(G37=INDEX(HCurveChange,1,0), G35, 365)) -> 365 | CY35: 0 | CZ35: 0 | DA35: 18 | DB35: 10.13 | DC35: 0 | DF35: 0 | DG35: 13 | DI35: 0
F36: ∆ has changed. Are you changing the ∆? | G36: ∆ has changed. Are you changing the ∆? | CY36: 0 | CZ36: 0 | DA36: 19 | DB36: 10.14 | DC36: 0 | DF36: 0 | DG36: 14 | DI36: 0
CX37: 8.15. Shoulder Rumble Strips | CY37: 0.0228750088 | CZ37: =ABS(CY37) -> 0.0228750088 | DA37: 8 | DB37: 8.15 | DC37: 0.0228750088 | DD37: Shoulder Rumble Strips | DE37: =DD37 -> Shoulder Rumble Strips | DF37: 0.0228750088 | DG37: 15 | DI37: 0
C38: Vertical Curve Present? | D38: -- | E38: -- | F38: -- | G38: -- | I38: =E38 -> -- | CY38: 0 | CZ38: 0 | DA38: 20 | DB38: 10.16 | DC38: 0 | DF38: 0 | DG38: 16 | DI38: 0
C39: Vertical Curve Data for Controlling Element: | D39: -- | E39: -- | F39: -- | G39: -- | I39: -- | CX39: 2.17. Driveway Density (driveways per mile) | CY39: -0.223881142 | CZ39: 0.223881142 | DA39: 2 | DB39: 2.17 | DC39: -0.223881142 | DD39: =IF(DF39=0,"",C62) -> Driveway Density (driveways per mile) | DE39: Driveway Density (driveways per mile) | DF39: 0.223881142 | DG39: 17 | DI39: 0
C40: Approach (Entry) Grade, G1 (%) | E40: =IF(ISBLANK(D40),"", D40) ->  | I40: =IF(B38="Yes",I231,I241) ->  | CX40: 9.18. Lighting | CY40: -0.01709657912 | CZ40: 0.01709657912 | DA40: 9 | DB40: 9.18 | DC40: -0.01709657912 | DD40: =IF(DF40=0,"",C63) -> Lighting | DE40: Lighting | DF40: 0.01709657912 | DG40: 18 | DI40: 0
C41: Departure (Exit) Grade, G2 (%) | E41: =IF(ISBLANK(D41),"", D41) ->  | I41: =IF($B$38="Yes",I232,"") ->  | CX41: 1.19. Pavement Friction (skid number) *** | CY41: 0.2843095602 | CZ41: 0.2843095602 | DA41: 1 | DB41: 1.19 | DC41: 0.2843095602 | DD41: =IF(DF41=0,"",C64) -> Pavement Friction (skid number) *** | DE41: Pavement Friction (skid number) *** | DF41: 0.2843095602 | DG41: 19 | DI41: 0
C42: Length (feet) | E42: =IF(AND($B$38="Yes", D43<>""), ABS(E40-E41)*D43, "") ->  | I42: =IF(AND($B$38="Yes",I40<>"",I41<>"", NOT(ISBLANK($I$10)), NOT(ISBLANK($I$11))),ABS(I41-I40)*I43,"") ->  | CX42: 4.2. Roadside Sideslope (Foreslope) | CY42: =H75 -> 0.1569762247 | CZ42: 0.1569762247 | DA42: 4 | DB42: 4.2 | DC42: 0.1569762247 | DD42: =IF(DF42=0,"",C75) -> Roadside Sideslope (Foreslope) | DE42: Roadside Sideslope (Foreslope) | DF42: 0.1569762247 | DG42: 20 | DI42: =IFERROR(IF(IFERROR(VLOOKUP(DG42,$DA$23:$DF$46,3,)&", "&CY42=0,""),"",IFERROR(VLOOKUP(DG42,$DA$23:$DE$46,3,),"")),"") -> 0
C43: Calculated Rate of Change, K (ft/ft) | D43: =IF(OR($B$38="No",ISBLANK($B$38), ISBLANK(D40), ISBLANK(D41),ISBLANK(D42), D40=D41), "", ROUND(D42/(ABS(D41-D40)),1)) ->  | E43: =IF(AND($B$38="Yes", NOT(ISBLANK($I$10)), NOT(ISBLANK($I$11)), D43<>""), IF($E$46="Crest", VLOOKUP(MAX($I$10,$I$11),Construction!$B$159:$D$171,2,TRUE), VLOOKUP(MAX($I$10,$I$11),Construction!$B$159:$D$171,3,TRUE)), "") ->  | F43: =IF(AND($B$38="Yes", SUM(F267:F269)=0),ROUND(F42/(ABS(F41-F40)),1),"") ->  | G43: =IF(AND($B$38="Yes", SUM(G267:G269)=0),ROUND(G42/(ABS(G41-G40)),1),"") ->  | I43: =IF(OR($B$38<>"Yes", ISBLANK($I$10), ISBLANK($I$11), $I$40="", $I$41="", $I$46="--", ISBLANK($I$46)),"",IF(I$46="Crest",VLOOKUP(MAX($I$10,$I$11),Construction!$B$177:$D$189,2,TRUE),VLOOKUP(MAX($I$10,$I$11),Construction!$B$177:$D$189,3,TRUE))) ->  | CY43: =H76 -> 0 | CZ43: =ABS(CY43) -> 0 | DA43: 21 | DB43: 10.21 | DC43: 0 | DD43: =IF(DF43=0,"",C76) ->  | DF43: 0 | DG43: 21 | DI43: 0
F44: Are you changing the geometry? | G44: Are you changing the geometry? | CX44: 7.22. Safety Edge | CY44: =H77 -> -0.0234240316 | CZ44: =ABS(CY44) -> 0.0234240316 | DA44: 7 | DB44: 7.22 | DC44: -0.0234240316 | DD44: =IF(DF44=0,"",C77) -> Safety Edge | DE44: Safety Edge | DF44: 0.0234240316 | DG44: 22 | DI44: 0
CX45: 6.23. Roadside Lateral Clearance to Obstruction (ft) | CY45: =H78 -> 0.064777607 | CZ45: 0.064777607 | DA45: 6 | DB45: 6.23 | DC45: 0.064777607 | DD45: =IF(DF45=0,"",C78) -> Roadside Lateral Clearance to Obstruction (ft) | DE45: Roadside Lateral Clearance to Obstruction (ft) | DF45: 0.064777607 | DG45: 23 | DI45: =IFERROR(IF(IFERROR(VLOOKUP(DG45,$DA$23:$DF$46,3,)&", "&CY45=0,""),"",IFERROR(VLOOKUP(DG45,$DA$23:$DE$46,3,),"")),"") -> 
C46: Calculated Sag or Crest? | D46: =IF(AND($B$38="Yes", SUM(D267:D269)=0),IF(D40>D41,"Crest","Sag"),"--") -> -- | E46: =IF(AND($B$38="Yes", SUM(D267:D269)=0),IF(E40>E41,"Crest","Sag"),"--") -> -- | F46: =IF(AND($B$38="Yes", SUM(F267:F269)=0),IF(F40>F41,"Crest","Sag"),"--") -> -- | G46: =IF(AND($B$38="Yes", SUM(G267:G269)=0),IF(G40>G41,"Crest","Sag"),"--") -> -- | I46: =IF($B$38="Yes",IF(I40>I41,"Crest","Sag"),"--") -> -- | CY46: =H79 -> 0 | CZ46: 0 | DA46: 22 | DB46: 10.24 | DC46: 0 | DD46: =IF(DF46=0,"",C79) ->  | DF46: 0 | DG46: 24 | DI46: =IFERROR(IF(IFERROR(VLOOKUP(DG46,$DA$23:$DF$46,3,)&", "&CY46=0,""),"",IFERROR(VLOOKUP(DG46,$DA$23:$DE$46,3,),"")),"") -> 
C49: Geometric Design Element (Partial Score) | D49: =IF(OR(SUM(D251:D252,D254:D257,D260:D261,D267:D269)>0, ISERR(D129)),"",D129) ->  | E49: =IF(OR(SUM(E251:E252,E254:E257,E260:E261,E267:E269)>0, ISERR(E129)),"",E129) ->  | I49: =IF(OR(SUM(I251:I252,I254:I257,I260:I261,I267:I269)>0, ISERR(I129)),"",I129) ->  | M49: SCHEMATIC REPRESENTING INPUT DATA FOR | U49: =IF($I$2="Existing","EXISTING CONFIGURATION",IF($I$2="Standard","STANDARD OPTION",IF($I$2="Design 1","DESIGN 1 OPTION",IF($I$2="Design 2","DESIGN 2 OPTION","OPTIMAL OPTION")))) -> STANDARD OPTION
C50: Total Safety Score | D50: =IF(OR(D$249>0, $I$315>0, ISERROR(D$205+D$175+D$129)),"",D$205+D$175+D$129) ->  | E50: =IF(OR(E$249>0, $I$315>0, ISERROR(E$205+E$175+E$129)),"",E$205+E$175+E$129) ->  | F50: =IF(OR(F$249>0, $I$315>0, ISERROR(F$205+F$175+F$129)),"",F$205+F$175+F$129) ->  | G50: =IF(OR(G$249>0, $I$315>0, ISERROR(G$205+G$175+G$129)),"",G$205+G$175+G$129) ->  | I50: =IF(OR(I$249>0, $I$315>0, ISERROR(I$205+I$175+I$129)),"",I$205+I$175+I$129) -> 
L51: LT | AA51: RT
L52: R/W | S52: =+O54+W54 -> 0 | AA52: R/W
B54: =+Construction!$I$3&" Total Available Points" -> 20 Total Available Points | O54: =+$I$14 -> 0 | W54: =+$I$15 -> 0
B55: Traffic Elements | D55: Existing | E55: Standard | F55: Design 1 | G55: Design 2 | H55: =H23 -> Marginal Safety for Standard (compared to Existing) | I55: Optimal
C56: Advance Static Curve Warning Signs | E56: No | H56: =M149 -> 0 | I56: Yes | L56: =+O54-N56-P56 -> -32 | N56: =IF(+$I$2="Existing",D28,IF($I$2="Standard",E28,IF($I$2="Design 1",F28,IF($I$2="Design 2",G28,I28)))) -> 8 | P56: =IF(+$I$2="Existing",D27*D30,IF($I$2="Standard",E27*E30,IF($I$2="Design 1",F27*F30,IF($I$2="Design 2",G27*G30,I27*I30)))) -> 24 | V56: =+P56 -> 24 | Y56: =+N56 -> 8 | Z56: =+W54-V56-Y56 -> -32
C57: Chevron Signs on Horizontal Curves | E57: No | H57: =M150 -> 0 | I57: Yes
C58: Post-Mounted Delineators | E58: No | H58: =M151 -> 0 | I58: Yes
C59: Edgeline Pavement Markings or Profile Markings | E59: No | H59: =M152 -> 0 | I59: Yes
C60: Shoulder Rumble Strips | E60: Yes | H60: =M154 -> 0.0228750088 | I60: Yes
C61: Centerline Rumble Strips | E61: No | H61: =M155 -> 0 | I61: Yes | S61: Tangent X-Section
C62: Driveway Density (driveways per mile) | E62: 10 | H62: =M156 -> -0.223881142 | I62: 0
C63: Lighting | E63: No | H63: =M157 -> -0.01709657912 | I63: Yes
C64: Pavement Friction (skid number) *** | E64: 37 | H64: =M158 -> 0.2843095602 | I64: 54
C65: Traffic Control Element (Partial Score): | D65: =IF(ISERROR(D175), "", D175) -> 12 | E65: =IF(ISERROR(E175), "", E175) -> 14 | I65: =IF(ISERROR(I175), "", I175) -> 20
C66: Total Safety Score | D66: =IF(OR(D$249>0, $I$315>0, ISERROR(D$205+D$175+D$129)),"",D$205+D$175+D$129) ->  | E66: =IF(OR(E$249>0, $I$315>0, ISERROR(E$205+E$175+E$129)),"",E$205+E$175+E$129) ->  | I66: =IF(OR(I$249>0, $I$315>0, ISERROR(I$205+I$175+I$129)),"",I$205+I$175+I$129) -> 
C68: *** Pavement friction/skid numbers will not be subject to open records requests *** | Q68: =IF($I$2="Existing","SCORE SUMMARY FOR EXISTING CONFIGURATION", IF($I$2="Standard","SCORE SUMMARY FOR STANDARD OPTION",IF($I$2="Design 1","SCORE SUMMARY FOR DESIGN 1 OPTION",IF($I$2="Design 2","SCORE SUMMARY FOR DESIGN 2 OPTION", "SCORE SUMMARY FOR OPTIMAL OPTION")))) -> SCORE SUMMARY FOR STANDARD OPTION
Q69: GEOMETRIC DESIGN: | W69: =IF($I$2="Existing",D49,IF($I$2="Standard",E49,IF($I$2="Design 1",F49,IF($I$2="Design 2",G49,I49)))) -> 
Q70: TRAFFIC CONTROL: | W70: =IF($I$2="Existing",D65,IF($I$2="Standard",E65,IF($I$2="Design 1",F65,IF($I$2="Design 2",G65,I65)))) -> 14
Q71: ROADSIDE: | W71: =IF($I$2="Existing",D80,IF($I$2="Standard",E80,IF($I$2="Design 1",F80,IF($I$2="Design 2",G80,I80)))) -> 27
Q72: OVERALL SAFETY SCORE: | W72: =SUM(W69:X71) -> 41
B73: =+Construction!$I$4&" Total Available Points" -> 40 Total Available Points
B74: Roadside Elements | D74: Existing | E74: Standard | F74: Design 1 | G74: Design 2 | H74: =H23 -> Marginal Safety for Standard (compared to Existing) | I74: Optimal
C75: Roadside Sideslope (Foreslope) | E75: 1V:4H | H75: =M184 -> 0.1569762247 | I75: 1V:6H
C76: Roadside Backslope | E76: =E75 -> 1V:4H | H76: =M185 -> 0 | I76: 1V:4H
C77: Safety Edge | E77: No | H77: -0.0234240316 | I77: Yes
C78: Roadside Lateral Clearance to Obstruction (ft) | E78: 30 | H78: 0.064777607 | I78: 40
C79: Roadside Obstruction Type | E79: None | H79: 0 | I79: None/Removed
C80: Roadside Element (Partial Score): | D80: =IF(ISERR(D205),"",D205) -> 20 | E80: =IF(ISERR(E205),"",E205) -> 27 | F80: 20 | G80: 20 | I80: =IF(ISERR(I205),"",I205) -> 40
C81: Total Safety Score | D81: =IF(OR(D$249>0, $I$315>0, ISERROR(D$205+D$175+D$129)),"",D$205+D$175+D$129) ->  | E81: =IF(OR(E$249>0, $I$315>0, ISERROR(E$205+E$175+E$129)),"",E$205+E$175+E$129) ->  | I81: =IF(OR(I$249>0, $I$315>0, ISERROR(I$205+I$175+I$129)),"",I$205+I$175+I$129) -> 
B86: ADDITIONAL SIDESLOPE INFORMATION
C87: Distance to Slope Toe from Shoulder (ft) | E87: =D87 -> 0 | F87: =E87 -> 0 | G87: 0 | I87: =G87 -> 0
B88: Minimum foreslope feasible within current ROW | E88: =IF(OR(ISBLANK($D$87), ISERROR(E209)), "", "1V:"&E209&"H") ->  | F88: =IF(OR(ISBLANK($D$87), ISERROR(F209)), "", "1V:"&F209&"H") ->  | G88: =IF(OR(ISBLANK($D$87), ISERROR(G209)), "", "1V:"&G209&"H") ->  | I88: =IF(OR(ISBLANK($D$87), ISERROR(I209)), "", "1V:"&I209&"H") -> 
B89: Additional R/W needed on left side | E89: =IF(OR(ISBLANK($D$87), ISERROR(E213)),"", MAX(E213,E216)) ->  | F89: =IF(OR(ISBLANK($D$87), ISERROR(F213)), "", MAX(F213,F216)) ->  | G89: =IF(OR(ISBLANK($D$87), ISERROR(G213)),"", MAX(G213,G216)) ->  | I89: =IF(OR(ISBLANK($D$87), ISERROR(I213)),"", MAX(I213,I216)) -> 
B90: Additional R/W needed on right side | E90: =IF(OR(ISBLANK($D$87), ISERROR(E214)), "", MAX(E214,E217)) ->  | F90: =IF(OR(ISBLANK($D$87), ISERROR(F214)), "", MAX(F214,F217)) ->  | G90: =IF(OR(ISBLANK($D$87), ISERROR(G214)),"", MAX(G214,G217)) ->  | I90: =IF(OR(ISBLANK($D$87), ISERROR(I214)),"", MAX(I214,I217)) -> 
D98: =GetCMF_MED(D24,D25,2000,D28) -> 1 | J98: =1-I104/E104 -> 0 | K98: For Plot
J99: =1-I105/E105 -> 0.03225806452 | K99: relative to | L99: Prefer
D100: =MAX(SUM(D107:D111)-5,$I$100) ->  | E100: =MAX(SUM(E107:E111)-5,$I$100) ->  | I100: =SUM(I107:I111)-5 ->  | J100: =1-I106/E106 -> 0.1444408096 | K100: =MATCH(K101,ModView,0) -> 1 | L100: =MATCH(L101,ModView,0) -> 2
B101: Geometric | J101: =1-I107/E107 ->  | K101: =I4 -> Existing | L101: =I2 -> Standard | M101: %
C102: Divided versus Undivided | D102: 1 | E102: 1 | F102: 1 | G102: 1 | I102: 1 | K102: =INDEX($D102:$I102,K$100) -> 1 | L102: =INDEX($D102:$I102,L$100) -> 1 | M102: =IF(ISERROR(1-L102/K102), 0, 1-L102/K102) -> 0
C103: Median Width | D103: =GetCMF_MED(D24,D25,$I$13,D28) -> 1 | E103: =GetCMF_MED(E24,E25,$I$13,E28) -> 0.91 | F103: =GetCMF_MED(F24,F25,$I$13,F28) -> 1 | G103: =GetCMF_MED(G24,G25,$I$13,G28) -> 1 | H103: =H25 -> 0.09 | I103: =GetCMF_MED(I24,I25,$I$13,I28) -> 0.66 | K103: =INDEX($D103:$I103,K$100) -> 1 | L103: =INDEX($D103:$I103,L$100) -> 0.91 | M103: =IF(ISERROR(1-L103/K103), 0, 1-L103/K103) -> 0.09
C104: LW CMF | D104: =IF(D24=INDEX(MedConf_Header,1,2),VLOOKUP(+D27,Construction!$N$30:$O$36,2),VLOOKUP(D27,Construction!$I$15:$J$21,2)) ->  | E104: =IF(E24=INDEX(MedConf_Header,1,2),VLOOKUP(+E27,Construction!$N$30:$O$36,2),VLOOKUP(E27,Construction!$I$15:$J$21,2)) -> 1 | F104: =IF(F24=INDEX(MedConf_Header,1,2),VLOOKUP(+F27,Construction!$N$30:$O$36,2),VLOOKUP(F27,Construction!$I$15:$J$21,2)) ->  | G104: =IF(G24=INDEX(MedConf_Header,1,2),VLOOKUP(+G27,Construction!$N$30:$O$36,2),VLOOKUP(G27,Construction!$I$15:$J$21,2)) ->  | H104: =H27 -> 0 | I104: =IF(I24=INDEX(MedConf_Header,1,2),VLOOKUP(+I27,Construction!$N$30:$O$36,2),VLOOKUP(I27,Construction!$I$15:$J$21,2)) -> 1 | K104: =INDEX($D104:$I104,K$100) ->  | L104: =INDEX($D104:$I104,L$100) -> 1 | M104: 0 | O104: 0
C105: SW CMF | D105: =IF(D24=INDEX(MedConf_Header,1,2),VLOOKUP(D28,Construction!$C$11:D21,2),(VLOOKUP(D28,Construction!$O$43:$P$53,2)-1)*0.27+1) -> 1.135 | E105: =IF(E24=INDEX(MedConf_Header,1,2),VLOOKUP(E28,Construction!$C$11:E21,2),(VLOOKUP(E28,Construction!$O$43:$P$53,2)-1)*0.27+1) -> 0.93 | F105: =IF(F24=INDEX(MedConf_Header,1,2),VLOOKUP(F28,Construction!$C$11:F21,2),(VLOOKUP(F28,Construction!$O$43:$P$53,2)-1)*0.27+1) -> 1.135 | G105: =IF(G24=INDEX(MedConf_Header,1,2),VLOOKUP(G28,Construction!$C$11:G21,2),(VLOOKUP(G28,Construction!$O$43:$P$53,2)-1)*0.27+1) -> 1.135 | H105: =IF($I$2="Existing",(1-D105/E105),(IF($I$2="Design 1",(1-F105/E105),(IF($I$2="Design 2",(1-G105/E105),(IF($I$2="Optimal",(1-I105/E105),0))))))) -> 0 | I105: =IF(I24=INDEX(MedConf_Header,1,2),VLOOKUP(I28,Construction!$C$11:I21,2),(VLOOKUP(I28,Construction!$O$43:$P$53,2)-1)*0.27+1) -> 0.9 | K105: =INDEX($D105:$I105,K$100) -> 1.135 | L105: =INDEX($D105:$I105,L$100) -> 0.93 | M105: 0.1806167401 | O105: 0.1550387597
C106: Inside Shoulder Width | D106: =IF(AND(D24=INDEX(MedConf_Header,1,2), NOT(ISBLANK(D29))), EXP(-0.026*(D29-4)), 1) -> 1 | E106: =IF(AND(E24=INDEX(MedConf_Header,1,2), NOT(ISBLANK(E29))), EXP(-0.026*(E29-4)), 1) -> 1 | F106: =IF(AND(F24=INDEX(MedConf_Header,1,2), NOT(ISBLANK(F29))), EXP(-0.026*(F29-4)), 1) -> 1 | G106: =IF(AND(G24=INDEX(MedConf_Header,1,2), NOT(ISBLANK(G29))), EXP(-0.026*(G29-4)), 1) -> 1 | H106: 0 | I106: =IF(AND(I24=INDEX(MedConf_Header,1,2), NOT(ISBLANK(I29))), EXP(-0.026*(I29-4)), 1) -> 0.8555591904 | K106: =INDEX($D106:$I106,K$100) -> 1 | L106: =INDEX($D106:$I106,L$100) -> 1 | M106: 0 | O106: 0
C107: HC and Grade | D107: =D$138^D$131 -> 1 | E107: =E$138^E$131 -> 1 | F107: 1 | G107: 1 | H107: 0 | I107: =I$138^I$131 ->  | K107: =INDEX($D107:$I107,K$100) -> 1 | L107: =INDEX($D107:$I107,L$100) -> 1 | M107: 0 | O107: 0
C108: HC and VC Crest type I | D108: =D$139^D$132 -> 1 | E108: =E$139^E$132 -> 1 | F108: 1 | G108: 1 | H108: 0 | I108: =I$139^I$132 ->  | K108: =INDEX($D108:$I108,K$100) -> 1 | L108: =INDEX($D108:$I108,L$100) -> 1 | M108: 0 | O108: 0
C109: HC and VC Sag type I | D109: =D$140^D$133 -> 1 | E109: =E$140^E$133 -> 1 | F109: 1 | G109: 1 | H109: 0 | I109: =I$140^I$133 ->  | J109: =1-I115/E115 ->  | K109: =INDEX($D109:$I109,K$100) -> 1 | L109: =INDEX($D109:$I109,L$100) -> 1 | M109: 0 | O109: 0
C110: HC and VC Crest type II | D110: =D$141^D$134 -> 1 | E110: =E$141^E$134 -> 1 | F110: 1 | G110: 1 | H110: 0 | I110: =I$141^I$134 ->  | J110: =1-I116/E116 ->  | K110: =INDEX($D110:$I110,K$100) -> 1 | L110: =INDEX($D110:$I110,L$100) -> 1 | M110: 0 | O110: 0
C111: HC and VC Sag type II | D111: =D$142^D$135 -> 1 | E111: =E$142^E$135 -> 1 | F111: 1 | G111: 1 | H111: 0 | I111: =I$142^I$135 ->  | J111: =1-I117/E117 ->  | K111: =INDEX($D111:$I111,K$100) -> 1 | L111: =INDEX($D111:$I111,L$100) -> 1 | M111: 0 | O111: 0
C112: Add TWLTL | D112: =IF(D$47="No",1,CMFs!$F$17) -> 0.71 | E112: =IF(E$47="No",1,CMFs!$F$17) -> 0.71 | F112: =IF(F$47="No",1,CMFs!$F$17) -> 0.71 | G112: =IF(G$47="No",1,CMFs!$F$17) -> 0.71 | H112: 0 | I112: =IF(I$47="No",1,CMFs!$F$17) -> 0.71 | J112: =1-I118/E118 ->  | K112: =INDEX($D112:$I112,K$100) -> 0.71 | L112: =INDEX($D112:$I112,L$100) -> 0.71 | M112: 0 | O112: 0
C113: Provide passing lane | D113: =IF(D$48="No",1,CMFs!$F$21) -> 0.75 | E113: =IF(E$48="No",1,CMFs!$F$21) -> 0.75 | F113: =IF(F$48="No",1,CMFs!$F$21) -> 0.75 | G113: =IF(G$48="No",1,CMFs!$F$21) -> 0.75 | H113: 0 | I113: =IF(I$48="No",1,CMFs!$F$21) -> 0.75 | J113: =I119/E119 ->  | K113: =INDEX($D113:$I113,K$100) -> 0.75 | L113: =INDEX($D113:$I113,L$100) -> 0.75 | M113: 0 | O113: 0
C115: COMBINED Calculated CMF | D115: =+D104*D105*D106*D107*D108*D109*D110*D111*D112*D113*D103*D102 ->  | E115: =+E104*E105*E106*E107*E108*E109*E110*E111*E112*E113*E103*E102 -> 0.45065475 | H115: =IF($I$2="Existing",(D115),(IF($I$2="Design 1",(F115),(IF($I$2="Design 2",(G115),(IF($I$2="Optimal",(I115),E115))))))) -> 0.45065475 | I115: =+I104*I105*I106*I107*I108*I109*I110*I111*I112*I113*I103*I102 ->  | K115: =INDEX($D115:$I115,K$100) ->  | L115: =INDEX($D115:$I115,L$100) -> 0.45065475 | M115: 0 | O115: 0
C116: Calculated Relative to Design Standards (Column E) | D116: =+D115/$E$115 ->  | E116: 1 | H116: 1 | K116: =INDEX($D116:$I116,K$100) ->  | L116: =INDEX($D116:$I116,L$100) -> 1 | M116: 0 | O116: 0
C117: P(Crash) | D117: =+D116/(D116+1) ->  | E117: 0.5 | H117: 0.5 | K117: =INDEX($D117:$I117,K$100) ->  | L117: =INDEX($D117:$I117,L$100) -> 0.5 | M117: 0 | O117: 0
C118: Factor Change on S curve | D118: =+D117/$E$117 ->  | E118: 1 | H118: 1 | K118: =INDEX($D118:$I118,K$100) ->  | L118: =INDEX($D118:$I118,L$100) -> 1 | M118: 0 | O118: 0
C119: Adjust to Scale of 100 | D119: =+$I$118/D118*100 ->  | K119: =INDEX($D119:$I119,K$100) ->  | L119: =INDEX($D119:$I119,L$100) ->  | M119: 0
C120: Unadjusted Combined Relative to Standard | D120: =+D115/$E$115 ->  | E120: 1 | H120: 1 | J120: =I126/E126 ->  | K120: =INDEX($D120:$I120,K$100) ->  | L120: =INDEX($D120:$I120,L$100) -> 1 | M120: 0 | O120: 0
C122: Adjusted for PA Basis | D122: =+D115*(1+1)/(1+D115*1) ->  | E122: 0.621312204 | H122: =IF($I$2="Existing",(D122),(IF($I$2="Design 1",(F122),(IF($I$2="Design 2",(G122),(IF($I$2="Optimal",(I122),E122))))))) -> 0.621312204 | K122: =INDEX($D122:$I122,K$100) ->  | L122: =INDEX($D122:$I122,L$100) -> 0.621312204 | M122: 0 | O122: 0
C123: Corrected by Odds Ratio | D123: =+D122/$E$122 ->  | E123: 1 | H123: =IF($I$2="Existing",(D123),(IF($I$2="Design 1",(F123),(IF($I$2="Design 2",(G123),(IF($I$2="Optimal",(I123),E123))))))) -> 1 | J123: =I129/E129 ->  | K123: =INDEX($D123:$I123,K$100) ->  | L123: =INDEX($D123:$I123,L$100) -> 1 | M123: 0 | O123: 0
C124: Pinned s | D124: =(1/D123)^$D127 ->  | E124: =(1/E123)^$D127 ->  | G124: =IF(ISERROR((1/G123)^$D127), 0, (1/G123)^$D127) -> 0 | K124: =INDEX($D124:$I124,K$100) ->  | L124: =INDEX($D124:$I124,L$100) ->  | M124: 0 | O124: 0
D125: =(D124+$F128-1)/(1+(D124+$F128-1)) ->  | E125: =(E124+$F128-1)/(1+(E124+$F128-1)) ->  | G125: 0.5714285714 | K125: =INDEX($D125:$I125,K$100) ->  | L125: =INDEX($D125:$I125,L$100) ->  | M125: 0 | O125: 0
C126: Score Odds Ratio with Optimal (old) | D126: =MIN(ROUND($I$123/D123*Construction!$I$2,0),$I126) ->  | E126: =MIN(ROUND($I$123/E123*Construction!$I$2,0),$I126) ->  | F126: =MIN(ROUND($I$123/F123*Construction!$I$2,0),$I126) ->  | G126: =MIN(ROUND($I$123/G123*Construction!$I$2,0),$I126) ->  | H126: =IF($I$2="Existing",(D126),(IF($I$2="Design 1",(F126),(IF($I$2="Design 2",(G126),(IF($I$2="Optimal",(I126),E126))))))) ->  | I126: =ROUND($I$123/I123*Construction!$I$2,0) -> 
C127: Logistic1 | D127: =LN((D128/(1-D128))/(0.5/0.5))/LN(IF($E123/I123=1,0.999,$E123/I123)) -> 
C128: Logistic Param | D128: 0.999 | F128: =0.7/0.3 -> 2.333333333
C129: Score | D129: =MIN(ROUND(D125*Construction!$I$2,0),$I126) ->  | E129: =MIN(ROUND(E125*Construction!$I$2,0),$I126) ->  | F129: =MIN(ROUND(F125*Construction!$I$2,0),$I126) ->  | G129: =MIN(ROUND(G125*Construction!$I$2,0),$I126) ->  | H129: =MIN(ROUND(H125*Construction!$I$2,0),$I126) ->  | I129: =MIN(ROUND(I125*Construction!$I$2,0),$I126) -> 
C131: HC and Grade | D131: =IF($B$139,0,1) -> 1 | E131: =IF($B$139,0,1) -> 1 | F131: 1 | G131: 1 | H131: =IF($I$2="Existing",(D131),(IF($I$2="Design 1",(F131),(IF($I$2="Design 2",(G131),(IF($I$2="Optimal",(I131),E131))))))) -> 1 | I131: =IF($B$139,0,1) -> 1
A132: HC? | C132: HC and VC Crest type I | D132: =IF(AND($B$139=1,SIGN(D$40)=1,ABS(D$40)<=ABS(D$40-D$41),D$46="Crest"),1,0) -> 0 | E132: =IF(AND($B$139=1,SIGN(IF(ISNUMBER(E$40),E$40,0))=1, ABS(IF(ISNUMBER(E$40),E$40,0))<=ABS(IF(ISNUMBER(E$40),E$40,0)-IF(ISNUMBER(E$41),E$41,0)),E$46="Crest"), 1,0) -> 0 | F132: =IF(AND($B$139=1,SIGN(F$40)=1,ABS(F$40)<=ABS(F$40-F$41),F$46="Crest"),1,0) -> 0 | G132: =IF(AND($B$139=1,SIGN(G$40)=1,ABS(G$40)<=ABS(G$40-G$41),G$46="Crest"),1,0) -> 0 | H132: =IF($I$2="Existing",(D132),(IF($I$2="Design 1",(F132),(IF($I$2="Design 2",(G132),(IF($I$2="Optimal",(I132),E132))))))) -> 0 | I132: =IF(AND($B$138=1,SIGN(I$40)=1,ABS(I$40)<=ABS(I$40-IF(ISNUMBER(I$41), I$41,0)),I$46="Crest"),1,0) ->  | K132: =INDEX($D132:$I132,K$100) -> 0 | L132: =INDEX($D132:$I132,L$100) -> 0 | M132: 0
A133: VC? | C133: HC and VC Sag type I | D133: =IF(AND($B$139=1,SIGN(D$40)=1,ABS(D$40)<=ABS(D$40-D$41),D$46="Sag"),1,0) -> 0 | E133: =IF(AND($B$139=1,SIGN(IF(ISNUMBER(E$40),E$40,0))=1, ABS(IF(ISNUMBER(E$40),E$40,0))<=ABS(IF(ISNUMBER(E$40),E$40,0)-IF(ISNUMBER(E$41),E$41,0)),E$46="Sag"), 1,0) -> 0 | F133: =IF(AND($B$139=1,SIGN(F$40)=1,ABS(F$40)<=ABS(F$40-F$41),F$46="Sag"),1,0) -> 0 | G133: =IF(AND($B$139=1,SIGN(G$40)=1,ABS(G$40)<=ABS(G$40-G$41),G$46="Sag"),1,0) -> 0 | H133: =IF($I$2="Existing",(D133),(IF($I$2="Design 1",(F133),(IF($I$2="Design 2",(G133),(IF($I$2="Optimal",(I133),E133))))))) -> 0 | I133: =IF(AND($B$138=1,SIGN(I$40)=1,ABS(I$40)<=ABS(I$40-IF(ISNUMBER(I$41), I$41,0)),I$46="Sag"),1,0) ->  | K133: =INDEX($D133:$I133,K$100) -> 0 | L133: =INDEX($D133:$I133,L$100) -> 0 | M133: 0
C134: HC and VC Crest type II | D134: =IF(AND($B$139=1,D$46="Crest",D$132=0),1,0) -> 0 | E134: =IF(AND($B$139=1,E$46="Crest",E$132=0),1,0) -> 0 | F134: =IF(AND($B$139=1,F$46="Crest",F$132=0),1,0) -> 0 | G134: =IF(AND($B$139=1,G$46="Crest",G$132=0),1,0) -> 0 | H134: =IF($I$2="Existing",(D134),(IF($I$2="Design 1",(F134),(IF($I$2="Design 2",(G134),(IF($I$2="Optimal",(I134),E134))))))) -> 0 | I134: =IF(AND($B$139=1,I$46="Crest",I$132=0),1,0) ->  | K134: =INDEX($D134:$I134,K$100) -> 0 | L134: =INDEX($D134:$I134,L$100) -> 0 | M134: 0
C135: HC and VC Sag type II | D135: =IF(AND($B$139=1,D$46="Sag",D$133=0),1,0) -> 0 | E135: =IF(AND($B$139=1,E$46="Sag",E$133=0),1,0) -> 0 | F135: =IF(AND($B$139=1,F$46="Sag",F$133=0),1,0) -> 0 | G135: =IF(AND($B$139=1,G$46="Sag",G$133=0),1,0) -> 0 | H135: =IF($I$2="Existing",(D135),(IF($I$2="Design 1",(F135),(IF($I$2="Design 2",(G135),(IF($I$2="Optimal",(I135),E135))))))) -> 0 | I135: =IF(AND($B$139=1,I$46="Sag",I$133=0),1,0) ->  | K135: =INDEX($D135:$I135,K$100) -> 0 | L135: =INDEX($D135:$I135,L$100) -> 0 | M135: 0
B136: Yes/No
C137: HC and VC:
B138: =IF(B31="Yes",1,0) -> 0 | C138: HC and Grade | D138: =IF($B$139=0, EXP(0.042*ABS(D$40) +$B$138*0.16*LN(2*5730/IF(ISNUMBER(D$33),D$33,1))*$B$138 +4.16*$B$138/IF(ISNUMBER(D$33),D$33,1)/IF( AND(ISNUMBER(D$34),D$34<>0),D$34,1)), 1) -> 1 | E138: =IF($B$139=0, EXP(0.042*ABS(D$40) +$B$138*0.16*LN(2*5730/IF(ISNUMBER(E$33),E$33,1))*$B$138 +4.16*$B$138/IF(ISNUMBER(E$33),E$33,1)/IF( AND(ISNUMBER(E$34),E$34<>0),E$34,1)), 1) -> 1 | F138: =IF($B$139=0, EXP(0.042*ABS(F$40) +$B$138*0.16*LN(2*5730/IF(ISNUMBER(F$33),F$33,1))*$B$138 +4.16*$B$138/IF(ISNUMBER(F$33),F$33,1)/IF( AND(ISNUMBER(F$34),F$34<>0),F$34,1)), 1) -> 1 | G138: =IF($B$139=0, EXP(0.042*ABS(G$40) +$B$138*0.16*LN(2*5730/IF(ISNUMBER(G$33),G$33,1))*$B$138 +4.16*$B$138/IF(ISNUMBER(G$33),G$33,1)/IF( AND(ISNUMBER(G$34),G$34<>0),G$34,1)), 1) -> 1 | I138: =IF($B$139=0, EXP(0.042*ABS(I$40) +$B$138*0.16*LN(2*5730/IF(ISNUMBER(I$33),I$33,1))*$B$138 +4.16*$B$138/IF(ISNUMBER(I$33),I$33,1)/IF( AND(ISNUMBER(I$34),I$34<>0),I$34,1)), 1) ->  | K138: =INDEX($D138:$I138,K$100) -> 1 | L138: =INDEX($D138:$I138,L$100) -> 1 | M138: 0 | O138: 0
B139: =IF(B38="Yes",1,0) -> 0 | C139: HC and VC Crest type I | D139: =IF($B$139=0,1,EXP(0.005648908*5730*ABS(+D$40-D$41)*$B$139/D$145*$B$138)) -> 1 | E139: =IF($B$139=0,1,EXP(0.005648908*5730*ABS(+E$40-E$41)*$B$139/E$145*$B$138)) -> 1 | F139: 1 | G139: 1 | H139: =IF($I$2="Existing",(D139),(IF($I$2="Design 1",(F139),(IF($I$2="Design 2",(G139),(IF($I$2="Optimal",(I139),E139))))))) -> 1 | I139: 1 | K139: =INDEX($D139:$I139,K$100) -> 1 | L139: =INDEX($D139:$I139,L$100) -> 1 | M139: 0 | O139: 0
C140: HC and VC Sag type I | D140: =IF($B$139=0,1,EXP(9.15857042*$B$139/D$146+0.010284958*5730*$B$139*$B$138*ABS(+D$40-D$41)/D$145)) -> 1 | E140: =IF($B$139=0,1,EXP(9.15857042*$B$139/E$146+0.010284958*5730*$B$139*$B$138*ABS(+E$40-E$41)/E$145)) -> 1 | F140: 1 | G140: 1 | H140: =IF($I$2="Existing",(D140),(IF($I$2="Design 1",(F140),(IF($I$2="Design 2",(G140),(IF($I$2="Optimal",(I140),E140))))))) -> 1 | I140: 1 | K140: =INDEX($D140:$I140,K$100) -> 1 | L140: =INDEX($D140:$I140,L$100) -> 1 | M140: 0 | O140: 0
C141: HC and VC Crest type II | D141: =IF($B$139=0,1,EXP(0.005648908*5730*ABS(+D$40-D$41)*$B$139/D$145*$B$138)) -> 1 | E141: =IF($B$139=0,1,EXP(0.005648908*5730*ABS(+E$40-E$41)*$B$139/E$145*$B$138)) -> 1 | F141: 1 | G141: 1 | H141: =IF($I$2="Existing",(D141),(IF($I$2="Design 1",(F141),(IF($I$2="Design 2",(G141),(IF($I$2="Optimal",(I141),E141))))))) -> 1 | I141: 1 | K141: =INDEX($D141:$I141,K$100) -> 1 | L141: =INDEX($D141:$I141,L$100) -> 1 | M141: 0 | O141: 0
C142: HC and VC Sag type II | D142: =IF($B$139=0,1,(0.246011284*EXP(LN(0.188*2*5730/D$145)*$B$138)+0.753988716*EXP(0.022*5730/D$145*ABS(D$40-D$41)*$B$139*$B$138))) -> 1 | E142: =IF($B$139=0,1,(0.246011284*EXP(LN(0.188*2*5730/E$145)*$B$138)+0.753988716*EXP(0.022*5730/E$145*ABS(E$40-E$41)*$B$139*$B$138))) -> 1 | F142: 1 | G142: 1 | H142: =IF($I$2="Existing",(D142),(IF($I$2="Design 1",(F142),(IF($I$2="Design 2",(G142),(IF($I$2="Optimal",(I142),E142))))))) -> 1 | I142: 1 | K142: =INDEX($D142:$I142,K$100) -> 1 | L142: =INDEX($D142:$I142,L$100) -> 1 | M142: 0 | O142: 0
C144: Combined HZ and VT | D144: =MMULT(TRANSPOSE(D131:D135),D138:D142) -> 1 | E144: =MMULT(TRANSPOSE(E131:E135),E138:E142) -> 1 | F144: =MMULT(TRANSPOSE(F131:F135),F138:F142) -> 1 | G144: =MMULT(TRANSPOSE(G131:G135),G138:G142) -> 1 | H144: =IF($I$2="Existing",(D144),(IF($I$2="Design 1",(F144),(IF($I$2="Design 2",(G144),(IF($I$2="Optimal",(I144),E144))))))) -> 1 | I144: =MMULT(TRANSPOSE(I131:I135),I138:I142) ->  | K144: =INDEX($D144:$I144,K$100) -> 1 | L144: =INDEX($D144:$I144,L$100) -> 1 | M144: =IF(ISERROR(1-L144/K144), 0, 1-L144/K144) -> 0 | O144: 0
C145: effective R for calculation | D145: =IF(ISNUMBER(D33), D33, 99999999) -> 99999999 | E145: =IF(ISNUMBER(E33), E33, 99999999) -> 590 | F145: 99999999 | G145: 99999999 | I145: 590
C146: effective K for calculation | D146: =IF(ISNUMBER(D43), D43, 99999999) -> 99999999 | E146: =IF(ISNUMBER(E43), E43, 99999999) -> 99999999 | F146: 99999999 | G146: 99999999 | I146: 99999999
B147: Traffic
D148: Existing | E148: Standard | F148: Design 1 | G148: Design 2
C149: Advance static curve warning signs | D149: =IF(D24=INDEX(MedConf_Header,1,2),IF(AND($B$31="Yes",D$56="Yes"),(Traffic!$F$4-1)*AVERAGE(Constraints!$F$24,Constraints!$H$24)/Constraints!$D$24+1,1),(IF(AND($B$31="Yes",D$56="Yes"),(Traffic!$F$4-1)*AVERAGE(Constraints!$F$38,Constraints!$H$38)/Constraints!$D$38+1,1))) -> 1 | E149: =IF(AND($B$31="Yes",E$56="Yes"),(Traffic!$F$4-1)*AVERAGE(Constraints!$F$24,Constraints!$H$24)/Constraints!$D$24+1,1) -> 1 | F149: =IF(F24=INDEX(MedConf_Header,1,2),IF(AND($B$31="Yes",F$56="Yes"),(Traffic!$F$4-1)*AVERAGE(Constraints!$F$24,Constraints!$H$24)/Constraints!$D$24+1,1),(IF(AND($B$31="Yes",F$56="Yes"),(Traffic!$F$4-1)*AVERAGE(Constraints!$F$38,Constraints!$H$38)/Constraints!$D$38+1,1))) -> 1 | G149: =IF(G24=INDEX(MedConf_Header,1,2),IF(AND($B$31="Yes",G$56="Yes"),(Traffic!$F$4-1)*AVERAGE(Constraints!$F$24,Constraints!$H$24)/Constraints!$D$24+1,1),(IF(AND($B$31="Yes",G$56="Yes"),(Traffic!$F$4-1)*AVERAGE(Constraints!$F$38,Constraints!$H$38)/Constraints!$D$38+1,1))) -> 1 | H149: =IF($I$2="Existing",(D149),(IF($I$2="Design 1",(F149),(IF($I$2="Design 2",(G149),(IF($I$2="Optimal",(I149),E149))))))) -> 1 | I149: =IF(AND($B$31="Yes",I$56="Yes"),(Traffic!$F$4-1)*AVERAGE(Constraints!$F$24,Constraints!$H$24)/Constraints!$D$24+1,1) -> 1 | K149: =INDEX($D149:$I149,K$100) -> 1 | L149: =INDEX($D149:$I149,L$100) -> 1 | M149: 0 | O149: 0
C150: Install chevron signs on horizontal curves | D150: =IF(D24=INDEX(MedConf_Header,1,2),(IF(D$57="No",1,(IF(AND($B$31="Yes",D$27<11.5),((Traffic!$F$6-1)*(Constraints!$E$18+Constraints!$E$22))+1,1)))),(IF(D$57="No",1,(IF(AND($B$31="Yes",D$27<11.5),((Traffic!$F$6-1)*(Constraints!$E$32+Constraints!$E$36))+1,1))))) -> 1 | E150: =IF(E$57="No",1,(IF(AND($B$31="Yes",E$27<11.5),((Traffic!$F$6-1)*(Constraints!$E$18+Constraints!$E$22))+1,1))) -> 1 | F150: =IF(F24=INDEX(MedConf_Header,1,2),(IF(F$57="No",1,(IF(AND($B$31="Yes",F$27<11.5),((Traffic!$F$6-1)*(Constraints!$E$18+Constraints!$E$22))+1,1)))),(IF(F$57="No",1,(IF(AND($B$31="Yes",F$27<11.5),((Traffic!$F$6-1)*(Constraints!$E$32+Constraints!$E$36))+1,1))))) -> 1 | G150: =IF(G24=INDEX(MedConf_Header,1,2),(IF(G$57="No",1,(IF(AND($B$31="Yes",G$27<11.5),((Traffic!$F$6-1)*(Constraints!$E$18+Constraints!$E$22))+1,1)))),(IF(G$57="No",1,(IF(AND($B$31="Yes",G$27<11.5),((Traffic!$F$6-1)*(Constraints!$E$32+Constraints!$E$36))+1,1))))) -> 1 | H150: =IF($I$2="Existing",(D150),(IF($I$2="Design 1",(F150),(IF($I$2="Design 2",(G150),(IF($I$2="Optimal",(I150),E150))))))) -> 1 | I150: =IF(I$57="No",1,(IF(AND($B$31="Yes",I$27<11.5),((Traffic!$F$6-1)*(Constraints!$E$18+Constraints!$E$22))+1,1))) -> 1 | K150: =INDEX($D150:$I150,K$100) -> 1 | L150: =INDEX($D150:$I150,L$100) -> 1 | M150: 0 | O150: 0
C151: Install post-mounted delineators | D151: =IF(D24=INDEX(MedConf_Header,1,2),IF(AND($B$31="Yes",D$58="Yes"),(Traffic!$F$12-1)*Constraints!$E$17+1,1),(IF(AND($B$31="Yes",D$58="Yes"),(Traffic!$F$12-1)*Constraints!$E$31+1,1))) -> 1 | E151: =IF(AND($B$31="Yes",E$58="Yes"),(Traffic!$F$12-1)*Constraints!$E$17+1,1) -> 1 | F151: =IF(F24=INDEX(MedConf_Header,1,2),IF(AND($B$31="Yes",F$58="Yes"),(Traffic!$F$12-1)*Constraints!$E$17+1,1),(IF(AND($B$31="Yes",F$58="Yes"),(Traffic!$F$12-1)*Constraints!$E$31+1,1))) -> 1 | G151: =IF(G24=INDEX(MedConf_Header,1,2),IF(AND($B$31="Yes",G$58="Yes"),(Traffic!$F$12-1)*Constraints!$E$17+1,1),(IF(AND($B$31="Yes",G$58="Yes"),(Traffic!$F$12-1)*Constraints!$E$31+1,1))) -> 1 | H151: =IF($I$2="Existing",(D151),(IF($I$2="Design 1",(F151),(IF($I$2="Design 2",(G151),(IF($I$2="Optimal",(I151),E151))))))) -> 1 | I151: =IF(AND($B$31="Yes",I$58="Yes"),(Traffic!$F$12-1)*Constraints!$E$17+1,1) -> 1 | K151: =INDEX($D151:$I151,K$100) -> 1 | L151: =INDEX($D151:$I151,L$100) -> 1 | M151: 0 | O151: 0
C152: Install edgeline or Profile pavement markings | D152: =IF(D24=INDEX(MedConf_Header,1,2),(IF(D$59="Yes",Traffic!$F$18*0.5+((Traffic!$F$20*(Constraints!$H$17+Constraints!$H$20+Constraints!$H$21)+1*(Constraints!$H$24-(Constraints!$H$17+Constraints!$H$20+Constraints!$H$21)))/Constraints!$H$24)*0.5,1)),(IF(D$59="Yes",Traffic!$F$18*0.5+((Traffic!$F$20*(Constraints!$H$31+Constraints!$H$34+Constraints!$H$35)+1*(Constraints!$H$38-(Constraints!$H$31+Constraints!$H$34+Constraints!$H$35)))/Constraints!$H$38)*0.5,1))) -> 1 | E152: =IF(E24=INDEX(MedConf_Header,1,2),(IF(E$59="Yes",Traffic!$F$18*0.5+((Traffic!$F$20*(Constraints!$H$17+Constraints!$H$20+Constraints!$H$21)+1*(Constraints!$H$24-(Constraints!$H$17+Constraints!$H$20+Constraints!$H$21)))/Constraints!$H$24)*0.5,1)),(IF(E$59="Yes",Traffic!$F$18*0.5+((Traffic!$F$20*(Constraints!$H$31+Constraints!$H$34+Constraints!$H$35)+1*(Constraints!$H$38-(Constraints!$H$31+Constraints!$H$34+Constraints!$H$35)))/Constraints!$H$38)*0.5,1))) -> 1 | F152: =IF(F24=INDEX(MedConf_Header,1,2),(IF(F$59="Yes",Traffic!$F$18*0.5+((Traffic!$F$20*(Constraints!$H$17+Constraints!$H$20+Constraints!$H$21)+1*(Constraints!$H$24-(Constraints!$H$17+Constraints!$H$20+Constraints!$H$21)))/Constraints!$H$24)*0.5,1)),(IF(F$59="Yes",Traffic!$F$18*0.5+((Traffic!$F$20*(Constraints!$H$31+Constraints!$H$34+Constraints!$H$35)+1*(Constraints!$H$38-(Constraints!$H$31+Constraints!$H$34+Constraints!$H$35)))/Constraints!$H$38)*0.5,1))) -> 1 | G152: =IF(G24=INDEX(MedConf_Header,1,2),(IF(G$59="Yes",Traffic!$F$18*0.5+((Traffic!$F$20*(Constraints!$H$17+Constraints!$H$20+Constraints!$H$21)+1*(Constraints!$H$24-(Constraints!$H$17+Constraints!$H$20+Constraints!$H$21)))/Constraints!$H$24)*0.5,1)),(IF(G$59="Yes",Traffic!$F$18*0.5+((Traffic!$F$20*(Constraints!$H$31+Constraints!$H$34+Constraints!$H$35)+1*(Constraints!$H$38-(Constraints!$H$31+Constraints!$H$34+Constraints!$H$35)))/Constraints!$H$38)*0.5,1))) -> 1 | H152: =IF($I$2="Existing",(D152),(IF($I$2="Design 1",(F152),(IF($I$2="Design 2",(G152),(IF($I$2="Optimal",(I152),E152))))))) -> 1 | I152: =IF(I24=INDEX(MedConf_Header,1,2),(IF(I$59="Yes",Traffic!$F$18*0.5+((Traffic!$F$20*(Constraints!$H$17+Constraints!$H$20+Constraints!$H$21)+1*(Constraints!$H$24-(Constraints!$H$17+Constraints!$H$20+Constraints!$H$21)))/Constraints!$H$24)*0.5,1)),(IF(I$59="Yes",Traffic!$F$18*0.5+((Traffic!$F$20*(Constraints!$H$31+Constraints!$H$34+Constraints!$H$35)+1*(Constraints!$H$38-(Constraints!$H$31+Constraints!$H$34+Constraints!$H$35)))/Constraints!$H$38)*0.5,1))) -> 0.8743964143 | K152: =INDEX($D152:$I152,K$100) -> 1 | L152: =INDEX($D152:$I152,L$100) -> 1 | M152: 0 | O152: 0.1382411869
C153: Profiles | D153: 1 | E153: 1 | F153: 1 | G153: 1 | H153: 1 | I153: 1 | K153: =INDEX($D153:$I153,K$100) -> 1 | L153: =INDEX($D153:$I153,L$100) -> 1 | M153: 0 | O153: 0
C154: Shoulder rumble strips | D154: =IF(D24=INDEX(MedConf_Header,1,2),(IF(D$60="No",1,(Traffic!$F$27*(Constraints!$H$17+Constraints!$H$20+Constraints!$H$21)+1*(Constraints!$H$24-(Constraints!$H$17+Constraints!$H$20+Constraints!$H$21)))/Constraints!$H$24)),(IF(D$60="No",1,(Traffic!$F$27*(Constraints!$H$31+Constraints!$H$34+Constraints!$H$35)+1*(Constraints!$H$38-(Constraints!$H$31+Constraints!$H$34+Constraints!$H$35)))/Constraints!$H$38))) -> 0.9395628946 | E154: =IF(E$60="No",1,(Traffic!$F$27*(Constraints!$H$17+Constraints!$H$20+Constraints!$H$21)+1*(Constraints!$H$24-(Constraints!$H$17+Constraints!$H$20+Constraints!$H$21)))/Constraints!$H$24) -> 0.9180703851 | F154: =IF(F24=INDEX(MedConf_Header,1,2),(IF(F$60="No",1,(Traffic!$F$27*(Constraints!$H$17+Constraints!$H$20+Constraints!$H$21)+1*(Constraints!$H$24-(Constraints!$H$17+Constraints!$H$20+Constraints!$H$21)))/Constraints!$H$24)),(IF(F$60="No",1,(Traffic!$F$27*(Constraints!$H$31+Constraints!$H$34+Constraints!$H$35)+1*(Constraints!$H$38-(Constraints!$H$31+Constraints!$H$34+Constraints!$H$35)))/Constraints!$H$38))) -> 0.9395628946 | G154: =IF(G24=INDEX(MedConf_Header,1,2),(IF(G$60="No",1,(Traffic!$F$27*(Constraints!$H$17+Constraints!$H$20+Constraints!$H$21)+1*(Constraints!$H$24-(Constraints!$H$17+Constraints!$H$20+Constraints!$H$21)))/Constraints!$H$24)),(IF(G$60="No",1,(Traffic!$F$27*(Constraints!$H$31+Constraints!$H$34+Constraints!$H$35)+1*(Constraints!$H$38-(Constraints!$H$31+Constraints!$H$34+Constraints!$H$35)))/Constraints!$H$38))) -> 0.9395628946 | H154: =IF($I$2="Existing",(D154),(IF($I$2="Design 1",(F154),(IF($I$2="Design 2",(G154),(IF($I$2="Optimal",(I154),E154))))))) -> 0.9180703851 | I154: =IF(I$60="No",1,(Traffic!$F$27*(Constraints!$H$17+Constraints!$H$20+Constraints!$H$21)+1*(Constraints!$H$24-(Constraints!$H$17+Constraints!$H$20+Constraints!$H$21)))/Constraints!$H$24) -> 0.9180703851 | K154: =INDEX($D154:$I154,K$100) -> 0.9395628946 | L154: =INDEX($D154:$I154,L$100) -> 0.9180703851 | M154: 0.0228750088 | O154: 0
C155: Install centerline rumble strips | D155: =IF(D24=INDEX(MedConf_Header,1,3),(IF(D$61="No",1,(Traffic!$E$81*(Constraints!$H$31+Constraints!$H$34+Constraints!$H$35)+1*(Constraints!$H$38-(Constraints!$H$31+Constraints!$H$34+Constraints!$H$35)))/Constraints!$H$38)+0.001),1) -> 1 | E155: =IF(E24=INDEX(MedConf_Header,1,3),(IF(E$61="No",1,(Traffic!$E$81*(Constraints!$H$31+Constraints!$H$34+Constraints!$H$35)+1*(Constraints!$H$38-(Constraints!$H$31+Constraints!$H$34+Constraints!$H$35)))/Constraints!$H$38)+0.001),1) -> 1 | F155: =IF(F24=INDEX(MedConf_Header,1,3),(IF(F$61="No",1,(Traffic!$E$81*(Constraints!$H$31+Constraints!$H$34+Constraints!$H$35)+1*(Constraints!$H$38-(Constraints!$H$31+Constraints!$H$34+Constraints!$H$35)))/Constraints!$H$38)+0.001),1) -> 1 | G155: =IF(G24=INDEX(MedConf_Header,1,3),(IF(G$61="No",1,(Traffic!$E$81*(Constraints!$H$31+Constraints!$H$34+Constraints!$H$35)+1*(Constraints!$H$38-(Constraints!$H$31+Constraints!$H$34+Constraints!$H$35)))/Constraints!$H$38)+0.001),1) -> 1 | H155: =IF($I$2="Existing",(D155),(IF($I$2="Design 1",(F155),(IF($I$2="Design 2",(G155),(IF($I$2="Optimal",(I155),E155))))))) -> 1 | I155: =IF(I24=INDEX(MedConf_Header,1,3),(IF(I$61="No",1,(Traffic!$E$81*(Constraints!$H$31+Constraints!$H$34+Constraints!$H$35)+1*(Constraints!$H$38-(Constraints!$H$31+Constraints!$H$34+Constraints!$H$35)))/Constraints!$H$38)+0.001),1) -> 1 | K155: =INDEX($D155:$I155,K$100) -> 1 | L155: =INDEX($D155:$I155,L$100) -> 1 | M155: 0 | O155: -0.1627906977
C156: Driveway Density (driveways per mile) | D156: =EXP(-LN(Traffic!$F$31)*(D$62-$E$62)) -> 0.8170728069 | E156: =EXP(-LN(Traffic!$F$31)*(E$62-$E$62)) -> 1 | F156: =EXP(-LN(Traffic!$F$31)*(F$62-$E$62)) -> 0.8170728069 | G156: =EXP(-LN(Traffic!$F$31)*(G$62-$E$62)) -> 0.8170728069 | H156: =IF($I$2="Existing",(D156),(IF($I$2="Design 1",(F156),(IF($I$2="Design 2",(G156),(IF($I$2="Optimal",(I156),E156))))))) -> 1 | I156: =EXP(-LN(Traffic!$F$31)*(I$62-$E$62)) -> 0.8170728069 | K156: =INDEX($D156:$I156,K$100) -> 0.8170728069 | L156: =INDEX($D156:$I156,L$100) -> 1 | M156: -0.223881142 | O156: -0.223881142
C157: Install lighting | D157: =IF(D24=INDEX(MedConf_Header,1,2),(IF(D$63="No",1,1-(((1-Traffic!$F$54*Constraints!$H$24-Constraints!$F$24/3)+((1-Traffic!$F$54*Constraints!$D$24-Constraints!$H$24)))*$S$19+((1-Traffic!$F$56)*Constraints!$F$24/3))/Constraints!$D$24)),(IF(D$63="No",1,1-(((1-Traffic!$F$54*Constraints!$H$38-Constraints!$F$38/3)+((1-Traffic!$F$54*Constraints!$D$38-Constraints!$H$38)))*$S$19+((1-Traffic!$F$56)*Constraints!$F$38/3))/Constraints!$D$38))) -> 0.9831908007 | E157: =IF(E$63="No",1,1-(((1-Traffic!$F$54*Constraints!$H$24-Constraints!$F$24/3)+((1-Traffic!$F$54*Constraints!$D$24-Constraints!$H$24)))*$S$19+((1-Traffic!$F$56)*Constraints!$F$24/3))/Constraints!$D$24) -> 1 | F157: =IF(F24=INDEX(MedConf_Header,1,2),(IF(F$63="No",1,1-(((1-Traffic!$F$54*Constraints!$H$24-Constraints!$F$24/3)+((1-Traffic!$F$54*Constraints!$D$24-Constraints!$H$24)))*$S$19+((1-Traffic!$F$56)*Constraints!$F$24/3))/Constraints!$D$24)),(IF(F$63="No",1,1-(((1-Traffic!$F$54*Constraints!$H$38-Constraints!$F$38/3)+((1-Traffic!$F$54*Constraints!$D$38-Constraints!$H$38)))*$S$19+((1-Traffic!$F$56)*Constraints!$F$38/3))/Constraints!$D$38))) -> 0.9831908007 | G157: =IF(G24=INDEX(MedConf_Header,1,2),(IF(G$63="No",1,1-(((1-Traffic!$F$54*Constraints!$H$24-Constraints!$F$24/3)+((1-Traffic!$F$54*Constraints!$D$24-Constraints!$H$24)))*$S$19+((1-Traffic!$F$56)*Constraints!$F$24/3))/Constraints!$D$24)),(IF(G$63="No",1,1-(((1-Traffic!$F$54*Constraints!$H$38-Constraints!$F$38/3)+((1-Traffic!$F$54*Constraints!$D$38-Constraints!$H$38)))*$S$19+((1-Traffic!$F$56)*Constraints!$F$38/3))/Constraints!$D$38))) -> 0.9831908007 | H157: =IF($I$2="Existing",(D157),(IF($I$2="Design 1",(F157),(IF($I$2="Design 2",(G157),(IF($I$2="Optimal",(I157),E157))))))) -> 1 | I157: =IF(I$63="No",1,1-(((1-Traffic!$F$54*Constraints!$H$24-Constraints!$F$24/3)+((1-Traffic!$F$54*Constraints!$D$24-Constraints!$H$24)))*$S$19+((1-Traffic!$F$56)*Constraints!$F$24/3))/Constraints!$D$24) -> 0.9806268923 | K157: =INDEX($D157:$I157,K$100) -> 0.9831908007 | L157: =INDEX($D157:$I157,L$100) -> 1 | M157: -0.01709657912 | O157: -0.02349908153
C158: Pavement friction (skid number) | D158: =EXP(LN(Traffic!$F$48)*(D$64-$E$64)) -> 1.397252142 | E158: =EXP(LN(Traffic!$F$48)*(E$64-$E$64)) -> 1 | F158: =IF(MATCH(F64,SkidNums,0)=3, $D158,EXP(LN([5]Traffic!$F$49)*(RIGHT(F$64,2)-$E$64))) ->  | G158: =IF(MATCH(G64,SkidNums,0)=3, $D158,EXP(LN([5]Traffic!$F$49)*(RIGHT(G$64,2)-$E$64))) ->  | H158: =IF($I$2="Existing",(D158),(IF($I$2="Design 1",(F158),(IF($I$2="Design 2",(G158),(IF($I$2="Optimal",(I158),E158))))))) -> 1 | I158: =EXP(LN(Traffic!$F$48)*(I$64-$E$64)) -> 0.8575355363 | K158: =INDEX($D158:$I158,K$100) -> 1.397252142 | L158: =INDEX($D158:$I158,L$100) -> 1 | M158: 0.2843095602 | O158: 0
C161: COMBINED Calculated CMF | D161: =+D149*D150*D151*D152*D153*D154*D155*D156*D157*D158 -> 1.054627774 | E161: =+E149*E150*E151*E152*E153*E154*E155*E156*E157*E158 -> 0.9180703851 | H161: =IF($I$2="Existing",(D161),(IF($I$2="Design 1",(F161),(IF($I$2="Design 2",(G161),(IF($I$2="Optimal",(I161),E161))))))) -> 0.9180703851 | I161: =+I149*I150*I151*I152*I153*I154*I155*I156*I157*I158 -> 0.5515704974 | K161: =INDEX($D161:$I161,K$100) -> 1.054627774 | L161: =INDEX($D161:$I161,L$100) -> 0.9180703851 | M161: 0.1294839682 | O161: 0
C162: Calculated Relative to Design Standards (Column E) | D162: =+D161/$E$161 -> 1.148743921 | E162: =+E161/$E$161 -> 1 | H162: 1 | I162: =+I161/$E$161 -> 0.6007932577 | K162: =INDEX($D162:$I162,K$100) -> 1.148743921 | L162: =INDEX($D162:$I162,L$100) -> 1 | M162: 0.1294839682 | O162: 0
C163: P(Crash) | D163: =+D162/(D162+1) -> 0.5346118306 | E163: 0.5 | H163: 0.5 | I163: =+I162/(I162+1) -> 0.3753097127 | K163: =INDEX($D163:$I163,K$100) -> 0.5346118306 | L163: =INDEX($D163:$I163,L$100) -> 0.5 | M163: 0.06474198408
C164: Factor Change on S curve | D164: =+D163/$E$163 -> 1.069223661 | E164: =+E163/$E$163 -> 1 | F164: =+F163/$E$163 ->  | H164: 1 | I164: =+I163/$E$163 -> 0.7506194254 | K164: =INDEX($D164:$I164,K$100) -> 1.069223661 | L164: =INDEX($D164:$I164,L$100) -> 1 | M164: 0.06474198408
C165: Adjust to Scale of 100 | D165: =+$I$118/D164*100 ->  | I165: =+$I$118/I164*100 -> 
C166: Unadjusted Combined Relative to Standard | D166: =+D161/$E$161 -> 1.148743921 | E166: =+E161/$E$161 -> 1 | F166: =+F161/$E$161 ->  | H166: 1 | I166: =+I161/$E$161 -> 0.6007932577 | J166: =I172/E172 -> 1.333333333 | K166: =INDEX($D166:$I166,K$100) -> 1.148743921 | L166: =INDEX($D166:$I166,L$100) -> 1 | M166: 0.1294839682
H167: 0 | K167: =INDEX($D167:$I167,K$100) -> 0 | L167: =INDEX($D167:$I167,L$100) -> 0 | M167: =IF(ISERROR(1-L167/K167), 0, 1-L167/K167) -> 0
C168: Adjusted for PA Basis | D168: =+D161*(1+1)/(1+D161*1) -> 1.026587674 | E168: 0.9572853971 | H168: 0.9572853971 | I168: =+I161*(1+1)/(1+I161*1) -> 0.710983482 | K168: =INDEX($D168:$I168,K$100) -> 1.026587674 | L168: =INDEX($D168:$I168,L$100) -> 0.9572853971 | M168: 0.06750741222
C169: Corrected by Odds Ratio | D169: =+D168/$E$168 -> 1.072394583 | E169: =+E168/$E$168 -> 1 | F169: =+F168/$E$168 ->  | H169: 1 | I169: =+I168/$E$168 -> 0.7427079575 | J169: =I175/E175 -> 1.428571429 | K169: =INDEX($D169:$I169,K$100) -> 1.072394583 | L169: =INDEX($D169:$I169,L$100) -> 1 | M169: 0.06750741222
D170: =(1/D169)^$D173 -> 0.1973217807 | E170: =(1/E169)^$D173 -> 1 | H170: 1 | I170: 999 | K170: =INDEX($D170:$I170,K$100) -> 0.1973217807 | L170: =INDEX($D170:$I170,L$100) -> 1 | M170: -4.067864259
D171: =(D170+$F174-1)/(1+(D170+$F174-1)) -> 0.6048454037 | E171: =(E170+$F174-1)/(1+(E170+$F174-1)) -> 0.7 | H171: 0.7 | I171: 0.9990013316 | K171: =INDEX($D171:$I171,K$100) -> 0.6048454037 | L171: =INDEX($D171:$I171,L$100) -> 0.7 | M171: -0.1573205248
C172: Score Odds Ratio with Optimal as 100 (old) | D172: =MIN(ROUND($I$169/D169*Construction!$I$3,0),$I172) -> 14 | E172: =MIN(ROUND($I$169/E169*Construction!$I$3,0),$I172) -> 15 | F172: =MIN(ROUND($I$169/F169*Construction!$I$3,0),$I172) ->  | G172: =MIN(ROUND($I$169/G169*Construction!$I$3,0),$I172) ->  | I172: =ROUND($I$169/I169*Construction!$I$3,0) -> 20
C173: Logistic1 | D173: =LN((D174/(1-D174))/(0.5/0.5))/LN($E169/I169) -> 23.21969994
C174: Logistic Param | D174: 0.999 | F174: =0.7/0.3 -> 2.333333333
C175: Score | D175: =MIN(ROUND(D171*Construction!$I$3,0),$I172) -> 12 | E175: =MIN(ROUND(E171*Construction!$I$3,0),$I172) -> 14 | F175: =MIN(ROUND(F171*Construction!$I$3,0),$I172) ->  | G175: =MIN(ROUND(G171*Construction!$I$3,0),$I172) ->  | I175: =MIN(ROUND(I171*Construction!$I$3,0),$I172) -> 20
D180: =INDEX(MedConf_Header,1,2) -> Divided - Unsurfaced Median
B182: Roadsde | D182: Existing | E182: Standard | F182: Design 1 | G182: Design 2
D183: =IF(ISBLANK(D75), 0, MID(D75,FIND(":",D75,1)+1,FIND("H",D75,1)-FIND(":",D75,1)-1)+0) -> 0 | E183: =MID(E75,FIND(":",E75,1)+1,FIND("H",E75,1)-FIND(":",E75,1)-1)+0 -> 4 | F183: =IF(ISBLANK(F75), 0, MID(F75,FIND(":",F75,1)+1,FIND("H",F75,1)-FIND(":",F75,1)-1)+0) -> 0 | G183: =IF(ISBLANK(G75), 0, MID(G75,FIND(":",G75,1)+1,FIND("H",G75,1)-FIND(":",G75,1)-1)+0) -> 0 | I183: =MID(I75,FIND(":",I75,1)+1,FIND("H",I75,1)-FIND(":",I75,1)-1)+0 -> 6 | O183: 0
C184: Sideslope (Foreslope) | D184: =IF(D24=INDEX(MedConf_Header,1,2),(IF(D183<=3,1,IF(OR(D183=4,D183=5),(Roadside!$F$15-1)*Constraints!$H$24/Constraints!$D$24+1,(Roadside!$F$15*Roadside!$F$16-1)*Constraints!$H$24/Constraints!$D$24+1))),(IF(D183<=3,1,IF(OR(D183=4,D183=5),(Roadside!$F$15-1)*Constraints!$H$38/Constraints!$D$38+1,(Roadside!$F$15*Roadside!$F$16-1)*Constraints!$H$38/Constraints!$D$38+1)))) -> 1 | E184: =IF(E24=INDEX(MedConf_Header,1,2),(IF(E183<=3,1,IF(OR(E183=4,E183=5),(Roadside!$F$15-1)*Constraints!$H$24/Constraints!$D$24+1,(Roadside!$F$15*Roadside!$F$16-1)*Constraints!$H$24/Constraints!$D$24+1))),(IF(E183<=3,1,IF(OR(E183=4,E183=5),(Roadside!$F$15-1)*Constraints!$H$38/Constraints!$D$38+1,(Roadside!$F$15*Roadside!$F$16-1)*Constraints!$H$38/Constraints!$D$38+1)))) -> 0.8430237753 | F184: =IF(F24=INDEX(MedConf_Header,1,2),(IF(F183<=3,1,IF(OR(F183=4,F183=5),(Roadside!$F$15-1)*Constraints!$H$24/Constraints!$D$24+1,(Roadside!$F$15*Roadside!$F$16-1)*Constraints!$H$24/Constraints!$D$24+1))),(IF(F183<=3,1,IF(OR(F183=4,F183=5),(Roadside!$F$15-1)*Constraints!$H$38/Constraints!$D$38+1,(Roadside!$F$15*Roadside!$F$16-1)*Constraints!$H$38/Constraints!$D$38+1)))) -> 1 | G184: =IF(G24=INDEX(MedConf_Header,1,2),(IF(G183<=3,1,IF(OR(G183=4,G183=5),(Roadside!$F$15-1)*Constraints!$H$24/Constraints!$D$24+1,(Roadside!$F$15*Roadside!$F$16-1)*Constraints!$H$24/Constraints!$D$24+1))),(IF(G183<=3,1,IF(OR(G183=4,G183=5),(Roadside!$F$15-1)*Constraints!$H$38/Constraints!$D$38+1,(Roadside!$F$15*Roadside!$F$16-1)*Constraints!$H$38/Constraints!$D$38+1)))) -> 1 | H184: =IF($I$2="Existing",(D184),(IF($I$2="Design 1",(F184),(IF($I$2="Design 2",(G184),(IF($I$2="Optimal",(I184),E184))))))) -> 0.8430237753 | I184: =IF(I24=INDEX(MedConf_Header,1,2),(IF(I183<=3,1,IF(OR(I183=4,I183=5),(Roadside!$F$15-1)*Constraints!$H$24/Constraints!$D$24+1,(Roadside!$F$15*Roadside!$F$16-1)*Constraints!$H$24/Constraints!$D$24+1))),(IF(I183<=3,1,IF(OR(I183=4,I183=5),(Roadside!$F$15-1)*Constraints!$H$38/Constraints!$D$38+1,(Roadside!$F$15*Roadside!$F$16-1)*Constraints!$H$38/Constraints!$D$38+1)))) -> 0.7953329032 | K184: =INDEX($D184:$I184,K$100) -> 1 | L184: =INDEX($D184:$I184,L$100) -> 0.8430237753 | M184: 0.1569762247 | O184: 0
C185: Backslope | D185: 1 | E185: 1 | F185: 1 | G185: 1 | H185: =IF($I$2="Existing",(D185),(IF($I$2="Design 1",(F185),(IF($I$2="Design 2",(G185),(IF($I$2="Optimal",(I185),E185))))))) -> 1 | I185: 1 | K185: =INDEX($D185:$I185,K$100) -> 1 | L185: =INDEX($D185:$I185,L$100) -> 1 | M185: 0 | O185: 0
C186: SafetyEdge | D186: =IF(D24=INDEX(MedConf_Header,1,2),(IF(D$77="No",1,(Roadside!$F$23-1)*AVERAGE(Constraints!$H$24,Constraints!$F$24)/Constraints!$D$24+1)),(IF(D$77="No",1,(Roadside!$F$23-1)*AVERAGE(Constraints!$H$38,Constraints!$F$38)/Constraints!$D$38+1))) -> 0.9771120954 | E186: =IF(E$77="No",1,(Roadside!$F$23-1)*AVERAGE(Constraints!$H$24,Constraints!$F$24)/Constraints!$D$24+1) -> 1 | F186: =IF(F24=INDEX(MedConf_Header,1,2),(IF(F$77="No",1,(Roadside!$F$23-1)*AVERAGE(Constraints!$H$24,Constraints!$F$24)/Constraints!$D$24+1)),(IF(F$77="No",1,(Roadside!$F$23-1)*AVERAGE(Constraints!$H$38,Constraints!$F$38)/Constraints!$D$38+1))) -> 0.9771120954 | G186: =IF(G24=INDEX(MedConf_Header,1,2),(IF(G$77="No",1,(Roadside!$F$23-1)*AVERAGE(Constraints!$H$24,Constraints!$F$24)/Constraints!$D$24+1)),(IF(G$77="No",1,(Roadside!$F$23-1)*AVERAGE(Constraints!$H$38,Constraints!$F$38)/Constraints!$D$38+1))) -> 0.9771120954 | H186: =IF($I$2="Existing",(D186),(IF($I$2="Design 1",(F186),(IF($I$2="Design 2",(G186),(IF($I$2="Optimal",(I186),E186))))))) -> 1 | I186: =IF(I$77="No",1,(Roadside!$F$23-1)*AVERAGE(Constraints!$H$24,Constraints!$F$24)/Constraints!$D$24+1) -> 0.9752688738 | K186: =INDEX($D186:$I186,K$100) -> 0.9771120954 | L186: =INDEX($D186:$I186,L$100) -> 1 | M186: -0.0234240316 | O186: -0.02818899192
C187: Lateral Clearance (ft) | D187: =IF(D24=INDEX(MedConf_Header,1,2),(IF($B$31="Yes",((EXP(LN(Roadside!$F$11)*(IF(D$79="None",40,D$78)-30)/30)-1))*Constraints!$H$17/Constraints!$D$24+1,((EXP(LN(Roadside!$F$10)*(IF(D$79="None",40,D$78)-30)/30)-1))*Constraints!$H$17/Constraints!$D$24+1)),(IF($B$31="Yes",((EXP(LN(Roadside!$F$11)*(IF(D$79="None",40,D$78)-30)/30)-1))*Constraints!$H$31/Constraints!$D$38+1,((EXP(LN(Roadside!$F$10)*(IF(D$79="None",40,D$78)-30)/30)-1))*Constraints!$H$31/Constraints!$D$38+1))) -> 1.047259244 | E187: =IF(E24=INDEX(MedConf_Header,1,2),(IF($B$31="Yes",((EXP(LN(Roadside!$F$11)*(IF(E$79="None",40,E$78)-30)/30)-1))*Constraints!$H$17/Constraints!$D$24+1,((EXP(LN(Roadside!$F$10)*(IF(E$79="None",40,E$78)-30)/30)-1))*Constraints!$H$17/Constraints!$D$24+1)),(IF($B$31="Yes",((EXP(LN(Roadside!$F$11)*(IF(E$79="None",40,E$78)-30)/30)-1))*Constraints!$H$31/Constraints!$D$38+1,((EXP(LN(Roadside!$F$10)*(IF(E$79="None",40,E$78)-30)/30)-1))*Constraints!$H$31/Constraints!$D$38+1))) -> 0.9794202967 | F187: =IF(F24=INDEX(MedConf_Header,1,2),(IF($B$31="Yes",((EXP(LN(Roadside!$F$11)*(IF(F$79="None",40,F$78)-30)/30)-1))*Constraints!$H$17/Constraints!$D$24+1,((EXP(LN(Roadside!$F$10)*(IF(F$79="None",40,F$78)-30)/30)-1))*Constraints!$H$17/Constraints!$D$24+1)),(IF($B$31="Yes",((EXP(LN(Roadside!$F$11)*(IF(F$79="None",40,F$78)-30)/30)-1))*Constraints!$H$31/Constraints!$D$38+1,((EXP(LN(Roadside!$F$10)*(IF(F$79="None",40,F$78)-30)/30)-1))*Constraints!$H$31/Constraints!$D$38+1))) -> 1.047259244 | G187: =IF(G24=INDEX(MedConf_Header,1,2),(IF($B$31="Yes",((EXP(LN(Roadside!$F$11)*(IF(G$79="None",40,G$78)-30)/30)-1))*Constraints!$H$17/Constraints!$D$24+1,((EXP(LN(Roadside!$F$10)*(IF(G$79="None",40,G$78)-30)/30)-1))*Constraints!$H$17/Constraints!$D$24+1)),(IF($B$31="Yes",((EXP(LN(Roadside!$F$11)*(IF(G$79="None",40,G$78)-30)/30)-1))*Constraints!$H$31/Constraints!$D$38+1,((EXP(LN(Roadside!$F$10)*(IF(G$79="None",40,G$78)-30)/30)-1))*Constraints!$H$31/Constraints!$D$38+1))) -> 1.047259244 | H187: =IF($I$2="Existing",(D187),(IF($I$2="Design 1",(F187),(IF($I$2="Design 2",(G187),(IF($I$2="Optimal",(I187),E187))))))) -> 0.9794202967 | I187: =IF(I24=INDEX(MedConf_Header,1,2),(IF($B$31="Yes",((EXP(LN(Roadside!$F$11)*(IF(I$79="None",40,I$78)-30)/30)-1))*Constraints!$H$17/Constraints!$D$24+1,((EXP(LN(Roadside!$F$10)*(IF(I$79="None",40,I$78)-30)/30)-1))*Constraints!$H$17/Constraints!$D$24+1)),(IF($B$31="Yes",((EXP(LN(Roadside!$F$11)*(IF(I$79="None",40,I$78)-30)/30)-1))*Constraints!$H$31/Constraints!$D$38+1,((EXP(LN(Roadside!$F$10)*(IF(I$79="None",40,I$78)-30)/30)-1))*Constraints!$H$31/Constraints!$D$38+1))) -> 0.9794202967 | K187: =INDEX($D187:$I187,K$100) -> 1.047259244 | L187: =INDEX($D187:$I187,L$100) -> 0.9794202967 | M187: 0.064777607 | O187: 0.09030716297
C188: Roadside Obstruction Type | D188: =IF(D24=INDEX(MedConf_Header,1,2),(IF(D$79="Guardrail",(Roadside!$F$25-1)*(($I$78-D$78)/$I$78)^2*Constraints!$H$17/Constraints!$D$24+1,1)),(IF(D$79="Guardrail",(Roadside!$F$25-1)*(($I$78-D$78)/$I$78)^2*Constraints!$H$31/Constraints!$D$38+1,1))) -> 1 | E188: =IF(E24=INDEX(MedConf_Header,1,2),(IF(E$79="Guardrail",(Roadside!$F$25-1)*(($I$78-E$78)/$I$78)^2*Constraints!$H$17/Constraints!$D$24+1,1)),(IF(E$79="Guardrail",(Roadside!$F$25-1)*(($I$78-E$78)/$I$78)^2*Constraints!$H$31/Constraints!$D$38+1,1))) -> 1 | F188: =IF(F24=INDEX(MedConf_Header,1,2),(IF(F$79="Guardrail",(Roadside!$F$25-1)*(($I$78-F$78)/$I$78)^2*Constraints!$H$17/Constraints!$D$24+1,1)),(IF(F$79="Guardrail",(Roadside!$F$25-1)*(($I$78-F$78)/$I$78)^2*Constraints!$H$31/Constraints!$D$38+1,1))) -> 1 | G188: =IF(G24=INDEX(MedConf_Header,1,2),(IF(G$79="Guardrail",(Roadside!$F$25-1)*(($I$78-G$78)/$I$78)^2*Constraints!$H$17/Constraints!$D$24+1,1)),(IF(G$79="Guardrail",(Roadside!$F$25-1)*(($I$78-G$78)/$I$78)^2*Constraints!$H$31/Constraints!$D$38+1,1))) -> 1 | H188: =IF($I$2="Existing",(D188),(IF($I$2="Design 1",(F188),(IF($I$2="Design 2",(G188),(IF($I$2="Optimal",(I188),E188))))))) -> 1 | I188: =IF(I24=INDEX(MedConf_Header,1,2),(IF(I$79="Guardrail",(Roadside!$F$25-1)*(($I$78-I$78)/$I$78)^2*Constraints!$H$17/Constraints!$D$24+1,1)),(IF(I$79="Guardrail",(Roadside!$F$25-1)*(($I$78-I$78)/$I$78)^2*Constraints!$H$31/Constraints!$D$38+1,1))) -> 1 | K188: =INDEX($D188:$I188,K$100) -> 1 | L188: =INDEX($D188:$I188,L$100) -> 1 | M188: 0 | O188: 0
K189: =INDEX($D189:$I189,K$100) -> 0 | L189: =INDEX($D189:$I189,L$100) -> 0 | M189: 0
K190: =INDEX($D190:$I190,K$100) -> 0 | L190: =INDEX($D190:$I190,L$100) -> 0 | M190: 0
C191: COMBINED Calculated CMF | D191: =+D184*D185*D186*D187*D188 -> 1.023289675 | E191: =+E184*E185*E186*E187*E188 -> 0.825674596 | F191: 1.023289675 | G191: 1.023289675 | H191: =IF($I$2="Existing",(D191),(IF($I$2="Design 1",(F191),(IF($I$2="Design 2",(G191),(IF($I$2="Optimal",(I191),E191))))))) -> 0.825674596 | I191: =+I184*I185*I186*I187*I188 -> 0.7597005016 | K191: =INDEX($D191:$I191,K$100) -> 1.023289675 | L191: =INDEX($D191:$I191,L$100) -> 0.825674596 | M191: 0.1931174364
C192: Calculated Relative to Design Standards (Column E) | D192: =+D191/$E$191 -> 1.239337724 | E192: =+E191/$E$191 -> 1 | F192: 1.239337724 | G192: 1.239337724 | H192: 1 | I192: =+I191/$E$191 -> 0.9200967369 | K192: =INDEX($D192:$I192,K$100) -> 1.239337724 | L192: =INDEX($D192:$I192,L$100) -> 1 | M192: 0.1931174364
C193: P(Crash) | D193: =+D192/(D192+1) -> 0.553439399 | E193: 0.5 | F193: 0.553439399 | G193: 0.553439399 | H193: 0.5 | I193: =+I192/(I192+1) -> 0.4791929069 | K193: =INDEX($D193:$I193,K$100) -> 0.553439399 | L193: =INDEX($D193:$I193,L$100) -> 0.5 | M193: 0.09655871821
C194: Factor Change on S curve | D194: =+D193/$E$193 -> 1.106878798 | E194: =+E193/$E$193 -> 1 | F194: 1.106878798 | G194: 1.106878798 | H194: 1 | I194: =+I193/$E$193 -> 0.9583858138 | K194: =INDEX($D194:$I194,K$100) -> 1.106878798 | L194: =INDEX($D194:$I194,L$100) -> 1 | M194: 0.09655871821
C195: Adjust to Scale of 100 | D195: =+$I$118/D194*100 ->  | I195: =+$I$118/I194*100 ->  | K195: =INDEX($D195:$I195,K$100) ->  | L195: =INDEX($D195:$I195,L$100) ->  | M195: 0
C196: Unadjusted Combined Relative to Standard | D196: =+D191/$E$191 -> 1.239337724 | E196: =+E191/$E$191 -> 1 | F196: 1.239337724 | G196: 1.239337724 | H196: 1 | I196: =+I191/$E$191 -> 0.9200967369 | J196: =I202/E202 -> 1.081081081 | K196: =INDEX($D196:$I196,K$100) -> 1.239337724 | L196: =INDEX($D196:$I196,L$100) -> 1 | M196: 0.1931174364
K197: =INDEX($D197:$I197,K$100) -> 0 | L197: =INDEX($D197:$I197,L$100) -> 0 | M197: 0
C198: Adjusted for PA Basis | D198: =+D191*(1+1)/(1+D191*1) -> 1.011510796 | E198: 0.9045145261 | F198: 1.011510796 | G198: 1.011510796 | H198: =IF($I$2="Existing",(D198),(IF($I$2="Design 1",(F198),(IF($I$2="Design 2",(G198),(IF($I$2="Optimal",(I198),E198))))))) -> 0.9045145261 | I198: =+I191*(1+1)/(1+I191*1) -> 0.8634429562 | K198: =INDEX($D198:$I198,K$100) -> 1.011510796 | L198: =INDEX($D198:$I198,L$100) -> 0.9045145261 | M198: 0.1057786732
C199: Corrected by Odds Ratio | D199: =+D191/$E$191 -> 1.239337724 | E199: =+E191/$E$191 -> 1 | F199: 1.239337724 | G199: 1.239337724 | H199: =IF($I$2="Existing",(D199),(IF($I$2="Design 1",(F199),(IF($I$2="Design 2",(G199),(IF($I$2="Optimal",(I199),E199))))))) -> 1 | I199: =+I191/$E$191 -> 0.9200967369 | J199: =I205/E205 -> 1.481481481 | K199: =INDEX($D199:$I199,K$100) -> 1.239337724 | L199: =INDEX($D199:$I199,L$100) -> 1 | M199: 0.1931174364
D200: =(1/D199)^$D203 -> 1.866669158e-08 | E200: =(1/E199)^$D203 -> 1 | F200: 1.866669158e-08 | G200: 1.866669158e-08 | H200: 1 | I200: 999
D201: =(D200+$F204-1)/(1+(D200+$F204-1)) -> 0.5000000047 | E201: =(E200+$F204-1)/(1+(E200+$F204-1)) -> 0.6666666667 | F201: 0.5000000047 | G201: 0.5000000047 | H201: 0.6666666667 | I201: 0.999000999
C202: Score Odds Ratio with Optimal as 100 (old) | D202: =MIN(ROUND($I$199/D199*Construction!$I$4,0),$I202) -> 30 | E202: =MIN(ROUND($I$199/E199*Construction!$I$4,0),$I202) -> 37 | F202: =MIN(ROUND($I$199/F199*Construction!$I$4,0),$I202) -> 30 | G202: =MIN(ROUND($I$199/G199*Construction!$I$4,0),$I202) -> 30 | I202: =ROUND($I$199/I199*Construction!$I$4,0) -> 40
C203: Logistic1 | D203: =LN((D204/(1-D204))/(0.5/0.5))/LN($E199/I199) -> 82.93765501
C204: Logistic Param | D204: 0.999 | F204: 2
C205: Score | D205: =MIN(ROUND(D201*Construction!$I$4,0),$I202) -> 20 | E205: =MIN(ROUND(E201*Construction!$I$4,0),$I202) -> 27 | F205: =MIN(ROUND(F201*Construction!$I$4,0),$I202) -> 20 | G205: =MIN(ROUND(G201*Construction!$I$4,0),$I202) -> 20 | I205: =MIN(ROUND(I201*Construction!$I$4,0),$I202) -> 40
C210: =D87/D183 ->  | E210: =ROUNDUP((MIN($I$14,$I$15)-E27-E28)/$C$210,0) ->  | F210: =ROUNDUP((MIN($I$14,$I$15)-F27-F28)/$C$210,0) ->  | G210: =ROUNDUP((MIN($I$14,$I$15)-G27-G28)/$C$210,0) ->  | I210: =ROUNDUP((MIN($I$14,$I$15)-I27-I28)/$C$210,0) -> 
C213: Distance to low point | D213: Distance to low point | E213: =$C$210*E183 ->  | F213: =$C$210*F183 ->  | I213: =$C$210*I183 -> 
D214: Additional ROW1 Needed for Foreslope | E214: =IF(E213>($I$14-E27-E28),E213-($I$14-E27-E28),0) ->  | F214: =IF(F213>($I$14-F27-F28),F213-($I$14-F27-F28),0) ->  | G214: =IF(G213>($I$14-G27-G28),G213-($I$14-G27-G28),0) ->  | I214: =IF(I213>($I$14-I27-I28),I213-($I$14-I27-I28),0) -> 
D215: Additional ROW2 Needed for Foreslope | E215: =IF(E213>($I$15-E27-E28),E213-($I$15-E27-E28),0) ->  | F215: =IF(F213>($I$15-F27-F28),F213-($I$15-F27-F28),0) ->  | G215: =IF(G213>($I$15-G27-G28),G213-($I$15-G27-G28),0) ->  | I215: =IF(I213>($I$15-I27-I28),I213-($I$15-I27-I28),0) -> 
D217: Additional ROW1 Needed for Lateral Clearance | E217: =IF((CL251+E30)-$I$14<0,0,(CL251+E30)-$I$14) -> 2 | F217: =IF((CM251+F30)-$I$14<0,0,(CM251+F30)-$I$14) -> 0 | G217: =IF((CN251+G30)-$I$14<0,0,(CN251+G30)-$I$14) -> 0 | I217: =IF((CP251+I30)-$I$14<0,0,(CP251+I30)-$I$14) -> 2
D218: Additional ROW2 Needed for Lateral Clearance | E218: =IF((CL251+E30)-$I$15<0,0,(CL251+E30)-$I$15) -> 2 | F218: =IF((CM251+F30)-$I$15<0,0,(CM251+F30)-$I$15) -> 0 | G218: =IF((CN251+G30)-$I$15<0,0,(CN251+G30)-$I$15) -> 0 | I218: =IF((CP251+I30)-$I$15<0,0,(CP251+I30)-$I$15) -> 2
C230: For Vertical Opt Use when Yes Vertical:
C231: G1 | D231: =D40 -> 0 | F231: =F40 -> 0 | G231: =G40 -> 0 | I231: =IF(ISERROR($E$238),"",INDEX(D231:G231,$E$238)) -> 
C232: G2 | D232: =D41 -> 0 | F232: =F41 -> 0 | G232: =G41 -> 0 | I232: =IF(ISERROR($E$238),"",INDEX(D232:G232,$E$238)) -> 
C233: abs(G2-G1) | D233: =ABS(D40-D41) -> 0 | F233: =ABS(F40-F41) -> 0 | G233: =ABS(G40-G41) -> 0
C234: Count in indicator (K no change; or K change but accept) | D234: =IF(D43<>"",1,"") ->  | F234: =IF(OR(AND($B$38 = "Yes", $D$43 <> F43, F43 <>"", $D$43 <> "", F45="Yes."),AND($B$38 = "Yes", $D$43 = F43, F43 <>"", $D$43 <> "")), 1,"") ->  | G234: =IF(OR(AND($B$38 = "Yes", $D$43 <> G43, G43 <>"", $D$43 <> "", G45="Yes."),AND($B$38 = "Yes", $D$43 = G43, G43 <>"", $D$43 <> "")), 1,"") -> 
C236: Valid abs(G2-G1) | D236: =IF(ISERROR(D233*D234),"",D233*D234) ->  | F236: =IF(ISERROR(F233*F234),"",F233*F234) ->  | G236: =IF(ISERROR(G233*G234),"",G233*G234) -> 
C237: The min valid abs(G2-G1) | E237: =MIN(D236,F236,G236) -> 0
C238: Index | E238: =MATCH(E237,D236:G236,0) -> 
C240: For Vertical Opt Use When No Vertical:
C241: G1 | D241: =IF(ISBLANK(D40), 999, D40) -> 999 | F241: =IF(ISBLANK(F40), 999, F40) -> 999 | G241: =IF(ISBLANK(G40), 999, G40) -> 999 | I241: =IF(E246=999,"",E246) -> 
C242: Sign of G1 | D242: =IF(D241>=0,1,-1) -> 1 | F242: =IF(F241>=0,1,-1) -> 1 | G242: =IF(G241>=0,1,-1) -> 1
C243: Abs G1 | D243: =ABS(D241) -> 999 | F243: =ABS(F241) -> 999 | G243: =ABS(G241) -> 999
C244: Min Abs G1 | E244: =MIN(D243:G243) -> 999
C245: Which is the Best G1 | E245: =MATCH(E244,D243:G243,0) -> 1
C246: Best G1 Value | E246: =INDEX(D241:G241,1,E245) -> 999
C249: Check if all cells filled | D249: =SUM(D251:D314) -> 19 | E249: =SUM(E251:E314) -> 1 | F249: 19 | G249: 19 | H249: 0 | I249: 0
C251: =C24 -> Configuration of Multilane Roadway | D251: =IF(ISBLANK(D24),1,0) -> 1 | E251: =IF(ISBLANK(E24),1,0) -> 0 | F251: 1 | G251: 1 | I251: 0
... 114 more rows

Sheet Configuration 2
G2: Preferred Schematic View to Display | I2: Standard | V2: NOTES:
B3: CHARACTERISTICS TO CONSIDER FOR ANALYSIS | V3: ELEMENTS INCREASING SAFETY | AE3: COMMENTS ON PRIMARY CONSTRAINTS
B4: INPUT INSTRUCTIONS | G4: Relative to | I4: Existing
B5: Blue Boxes -- Select from pulldown options | D5: Select from Pulldown
B6: Yellow Boxes -- Type input information into box | D6: Type Input Value
B7: Rural Multi-Lane Road Segment -- Safety Score Input | CF7: Unadjusted Marginal Safety
B8: General Information: | F8: General Site Features | H8: =I315 & " Missing Features and Curves" -> 9 Missing Features and Curves | CF8: =I2&" relative to " &I4 -> Standard relative to Existing
C9: Analyst: | D9: =+'Start Here'!H7 -> 0 | F9: Location
C10: Agency or Company: | D10: =+'Start Here'!H8 -> 0 | F10: Design Speed (mph)
C11: Date: | D11: =+'Start Here'!H9 -> 00:00:00 | F11: Posted Speed (mph)
C12: Description: | F12: E max (%)
C13: Input additional site information here | F13: Design Year AADT (vehicles per day)
F14: Dist. from Centerline to Left ROW (feet)
F15: Dist. from Centerline to Right ROW (feet)
B17: Warning:
C18: =+IF(+I11>I10,"Posted speed exceeds design speed. Optimal safety will only be achieved if design speed exceeds posted speed. The Safety Assessment Score is based on the higher of the two speed values.","No speed warnings identified") -> No speed warnings identified
C19: =IF(OR(F24=INDEX(MedConf_Header,1,3),+G24=INDEX(MedConf_Header,1,3)), "Multilane undivided facilities are known to have substantially more collisions than multilane facilities with medians. In new construction a median or TWLTL should be considered."," ") ->  | DB19: =COUNTIF(DB23:DB46,DB20) -> 1
C20: =IF(I13="40,001 < AADT < 60,000", "Multi-lane Road Should be Divided Due to High AADT Value","") ->  | DB20: =VLOOKUP(0,CZ23:DB46,3,) -> 10.01
D21: Fill all elements | F21: To enter notes, use boxes to the right of the vortex
B22: =+Construction!$I$2&" Total Available Points" -> 40 Total Available Points | D22: =D249 & " Missing Elements" -> 19 Missing Elements | F22: =F249 & " Missing Elements" -> 19 Missing Elements | G22: =G249 & " Missing Elements" -> 19 Missing Elements | CX22: Ranked element | CY22: CRF | CZ22: abs | DA22: Re-rank | DB22: Rank | DC22: Ranked CRF | DD22: Element | DE22: New Element | DF22: crf.abs | DG22: rank | DH22: Sorted Element | DI22: Sorted CRF
B23: Geometric Design Elements | D23: Existing | E23: Standard (Based on Multi-lane Divided) | F23: Design 1 | G23: Design 2 | H23: ="Marginal Safety for "&$I$2&" (compared to " & $I$4 & ")" -> Marginal Safety for Standard (compared to Existing) | I23: Optimal (Based on Multi-lane Divided) | CX23: =IF(CY23=0,"",DB23&". "&DD23) ->  | CY23: =H24 -> 0 | CZ23: =ABS(CY23) -> 0 | DA23: =_xlfn.RANK.EQ(DB23,$DB$23:$DB$46,1) -> 10 | DB23: =_xlfn.RANK.EQ(CZ23,$CZ$23:$CZ$46)+DG23/100 -> 10.01 | DC23: =CY23 -> 0 | DD23: =IF(ROUND(DF23,2)=0,"",C24) ->  | DE23: =DD23 ->  | DF23: =CZ23 -> 0 | DG23: 1 | DH23: =IFERROR(IF(IFERROR(VLOOKUP(DG23,$DA$23:$DF$46,4,)&", "&CY23=0,""),"",IFERROR(VLOOKUP(DG23,$DA$23:$DE$46,4,),"")),"") -> Pavement Friction (skid number) *** | DI23: =IFERROR(IF(IFERROR(VLOOKUP(DG23,$DA$23:$DF$46,3,)&", "&CY23=0,""),"",IFERROR(VLOOKUP(DG23,$DA$23:$DE$46,3,),"")),"") -> 0.2843095602
C24: Configuration of Multilane Roadway | E24: Divided - Unsurfaced Median | I24: Divided - Unsurfaced Median | CX24: 5.02. Median Configuration (Width or Type) | CY24: =H25 -> 0.09 | CZ24: 0.09 | DA24: =_xlfn.RANK.EQ(DB24,$DB$23:$DB$46,1) -> 5 | DB24: =_xlfn.RANK.EQ(CZ24,$CZ$23:$CZ$46)+DG24/100 -> 5.02 | DC24: =CY24 -> 0.09 | DD24: =IF(ROUND(DF24,2)=0,"",C25) -> Median Configuration (Width or Type) | DE24: =DD24 -> Median Configuration (Width or Type) | DF24: 0.09 | DG24: 2 | DH24: =IFERROR(IF(IFERROR(VLOOKUP(DG24,$DA$23:$DF$46,4,)&", "&CY24=0,""),"",IFERROR(VLOOKUP(DG24,$DA$23:$DE$46,4,),"")),"") -> Driveway Density (driveways per mile) | DI24: =IFERROR(IF(IFERROR(VLOOKUP(DG24,$DA$23:$DF$46,3,)&", "&CY24=0,""),"",IFERROR(VLOOKUP(DG24,$DA$23:$DE$46,3,),"")),"") -> -0.223881142
C25: Median Configuration (Width or Type) | E25: 30 | H25: =M103 -> 0.09 | I25: 100 | CY25: =H27 -> 0 | CZ25: 0 | DA25: 11 | DB25: 10.03 | DC25: =CY25 -> 0 | DD25: =IF(ROUND(DF25,2)=0,"",C27) ->  | DE25: =DD25 ->  | DF25: 0 | DG25: 3 | DH25: =IFERROR(IF(IFERROR(VLOOKUP(DG25,$DA$23:$DF$46,4,)&", "&CY25=0,""),"",IFERROR(VLOOKUP(DG25,$DA$23:$DE$46,4,),"")),"") -> Average Outside Shoulder Width (feet) | DI25: =IFERROR(IF(IFERROR(VLOOKUP(DG25,$DA$23:$DF$46,3,)&", "&CY25=0,""),"",IFERROR(VLOOKUP(DG25,$DA$23:$DE$46,3,),"")),"") -> 0.1806167401
DG26: 4 | DH26: =IFERROR(IF(IFERROR(VLOOKUP(DG26,$DA$23:$DF$46,4,)&", "&CY26=0,""),"",IFERROR(VLOOKUP(DG26,$DA$23:$DE$46,4,),"")),"") -> Roadside Sideslope (Foreslope) | DI26: =IFERROR(IF(IFERROR(VLOOKUP(DG26,$DA$23:$DF$46,3,)&", "&CY26=0,""),"",IFERROR(VLOOKUP(DG26,$DA$23:$DE$46,3,),"")),"") -> 0.1569762247
C27: Lane Width (feet) | E27: 12 | H27: =M104 -> 0 | I27: 12 | DG27: 5 | DH27: Median Configuration (Width or Type) | DI27: 0.09
C28: Average Outside Shoulder Width (feet) | E28: 8 | H28: =M105 -> 0.1806167401 | I28: 10 | CX28: =IF(CY28=0,"",DB28&". "&DD28) -> 3.06. Average Outside Shoulder Width (feet) | CY28: =H28 -> 0.1806167401 | CZ28: =ABS(CY28) -> 0.1806167401 | DA28: 3 | DB28: 3.06 | DC28: =CY28 -> 0.1806167401 | DD28: =IF(ROUND(DF28,2)=0,"",C28) -> Average Outside Shoulder Width (feet) | DE28: =DD28 -> Average Outside Shoulder Width (feet) | DF28: =CZ28 -> 0.1806167401 | DG28: 6 | DH28: Roadside Lateral Clearance to Obstruction (ft) | DI28: 0.064777607
C29: Average Inside Shoulder Width (feet) | E29: 4 | H29: =M106 -> 0 | I29: 10 | CX29: =IF(CY29=0,"",DB29&". "&DD29) ->  | CY29: =H33 -> 0 | CZ29: =ABS(CY29) -> 0 | DA29: 12 | DB29: 10.07 | DC29: 0 | DD29: =IF(ROUND(DF29,2)=0,"","Hz and Vt Alignment") ->  | DF29: =CZ29 -> 0 | DG29: 7 | DH29: Safety Edge | DI29: -0.0234240316
C30: Number of Lanes per Direction of Travel | E30: 2 | I30: 2 | CX30: =IF(CY30=0,"",DB30&". "&DD30) ->  | CY30: =H29 -> 0 | CZ30: =ABS(CY30) -> 0 | DA30: 13 | DB30: 10.08 | DC30: 0 | DD30: =IF(ROUND(DF30,2)=0,"",C29) ->  | DF30: =CZ30 -> 0 | DG30: 8 | DH30: Shoulder Rumble Strips | DI30: 0.0228750088
C31: Horizontal Curve Present? | D31: -- | E31: -- | F31: -- | G31: -- | I31: -- | CX31: =IF(CY31=0,"",DB31&". "&DD31) ->  | CY31: =H47 -> 0 | CZ31: =ABS(CY31) -> 0 | DA31: 14 | DB31: 10.09 | DC31: 0 | DD31: =IF(ROUND(DF31,2)=0,"",C47) ->  | DF31: =CZ31 -> 0 | DG31: 9 | DH31: Lighting | DI31: -0.01709657912
C32: Horizontal Curve Data for Controlling Element: | D32: -- | E32: -- | F32: -- | G32: -- | I32: -- | CY32: =H48 -> 0 | CZ32: 0 | DA32: 15 | DB32: 10.1 | DC32: 0 | DD32: =IF(ROUND(DF32,2)=0,"",C48) ->  | DF32: 0 | DG32: 10 | DI32: 0
C33: Radius (feet) | E33: =IF(MAX($I$10,$I$11)<45,590,IF($I$12=6,VLOOKUP(MAX($I$10,$I$11),Construction!$B$27:$D$34,2,TRUE),VLOOKUP(MAX($I$10,$I$11),Construction!$G$27:$I$34,2,TRUE))) -> 590 | H33: =M144 -> 0 | I33: =IF(MAX($I$10,$I$11)<45,590,IF($I$12=6,VLOOKUP(MAX($I$10,$I$11),Construction!$B$43:$C$50,2,TRUE),VLOOKUP(MAX($I$10,$I$11),Construction!$G$43:$H$50,2,TRUE))) -> 590 | CY33: =H56 -> 0 | CZ33: 0 | DA33: 16 | DB33: 10.11 | DC33: 0 | DD33: =IF(ROUND(DF33,2)=0,"",C56) ->  | DF33: 0 | DG33: 11 | DI33: 0
C34: Length of Horizontal Curve (feet) | E34: =IF(D35="", "", E33*E35/57.296) ->  | I34: =I33*I35/57.296 -> 3758.55208 | CY34: 0 | CZ34: 0 | DA34: 17 | DB34: 10.12 | DC34: 0 | DF34: 0 | DG34: 12 | DI34: 0
C35: Calculated Deflection Angle ∆ | D35: =IF(OR(ISBLANK(D33),ISBLANK(D34),$B$31="No",ISBLANK($B$31)),"",ROUND(D34/D33*57.296,1)) ->  | E35: =IF(ISBLANK(D35), "",D35) ->  | F35: =IF(OR(ISBLANK(F33),ISBLANK(F34),$B$31="No",ISBLANK($B$31)),"",ROUND(F34/F33*57.296,1)) ->  | G35: =IF(OR(ISBLANK(G33),ISBLANK(G34),$B$31="No",ISBLANK($B$31)),"",ROUND(G34/G33*57.296,1)) ->  | I35: =MIN(D35,IF(F37=INDEX(HCurveChange,1,0), F35, 365),IF(G37=INDEX(HCurveChange,1,0), G35, 365)) -> 365 | CY35: 0 | CZ35: 0 | DA35: 18 | DB35: 10.13 | DC35: 0 | DF35: 0 | DG35: 13 | DI35: 0
F36: ∆ has changed. Are you changing the ∆? | G36: ∆ has changed. Are you changing the ∆? | CY36: 0 | CZ36: 0 | DA36: 19 | DB36: 10.14 | DC36: 0 | DF36: 0 | DG36: 14 | DI36: 0
CX37: 8.15. Shoulder Rumble Strips | CY37: 0.0228750088 | CZ37: 0.0228750088 | DA37: 8 | DB37: 8.15 | DC37: 0.0228750088 | DD37: Shoulder Rumble Strips | DE37: Shoulder Rumble Strips | DF37: 0.0228750088 | DG37: 15 | DI37: 0
C38: Vertical Curve Present? | D38: -- | E38: -- | F38: -- | G38: -- | I38: =E38 -> -- | CY38: 0 | CZ38: 0 | DA38: 20 | DB38: 10.16 | DC38: 0 | DF38: 0 | DG38: 16 | DI38: 0
C39: Vertical Curve Data for Controlling Element: | D39: -- | E39: -- | F39: -- | G39: -- | I39: -- | CX39: 2.17. Driveway Density (driveways per mile) | CY39: -0.223881142 | CZ39: 0.223881142 | DA39: 2 | DB39: 2.17 | DC39: -0.223881142 | DD39: =IF(DF39=0,"",C62) -> Driveway Density (driveways per mile) | DE39: Driveway Density (driveways per mile) | DF39: 0.223881142 | DG39: 17 | DI39: 0
C40: Approach (Entry) Grade, G1 (%) | E40: =IF(ISBLANK(D40),"", D40) ->  | I40: =IF(B38="Yes",I231,I241) ->  | CX40: 9.18. Lighting | CY40: -0.01709657912 | CZ40: 0.01709657912 | DA40: 9 | DB40: 9.18 | DC40: -0.01709657912 | DD40: =IF(DF40=0,"",C63) -> Lighting | DE40: Lighting | DF40: 0.01709657912 | DG40: 18 | DI40: 0
C41: Departure (Exit) Grade, G2 (%) | E41: =IF(ISBLANK(D41),"", D41) ->  | I41: =IF($B$38="Yes",I232,"") ->  | CX41: 1.19. Pavement Friction (skid number) *** | CY41: 0.2843095602 | CZ41: 0.2843095602 | DA41: 1 | DB41: 1.19 | DC41: 0.2843095602 | DD41: =IF(DF41=0,"",C64) -> Pavement Friction (skid number) *** | DE41: Pavement Friction (skid number) *** | DF41: 0.2843095602 | DG41: 19 | DI41: 0
C42: Length (feet) | E42: =IF(AND($B$38="Yes", D43<>""), ABS(E40-E41)*D43, "") ->  | I42: =IF(AND($B$38="Yes",I40<>"",I41<>"", NOT(ISBLANK($I$10)), NOT(ISBLANK($I$11))),ABS(I41-I40)*I43,"") ->  | CX42: 4.2. Roadside Sideslope (Foreslope) | CY42: =H75 -> 0.1569762247 | CZ42: 0.1569762247 | DA42: 4 | DB42: 4.2 | DC42: 0.1569762247 | DD42: =IF(DF42=0,"",C75) -> Roadside Sideslope (Foreslope) | DE42: Roadside Sideslope (Foreslope) | DF42: 0.1569762247 | DG42: 20 | DI42: 0
C43: Calculated Rate of Change, K (ft/ft) | D43: =IF(OR($B$38="No",ISBLANK($B$38), ISBLANK(D40), ISBLANK(D41),ISBLANK(D42), D40=D41), "", ROUND(D42/(ABS(D41-D40)),1)) ->  | E43: =IF(AND($B$38="Yes", NOT(ISBLANK($I$10)), NOT(ISBLANK($I$11)), D43<>""), IF($E$46="Crest", VLOOKUP(MAX($I$10,$I$11),Construction!$B$159:$D$171,2,TRUE), VLOOKUP(MAX($I$10,$I$11),Construction!$B$159:$D$171,3,TRUE)), "") ->  | F43: =IF(AND($B$38="Yes", SUM(F267:F269)=0),ROUND(F42/(ABS(F41-F40)),1),"") ->  | G43: =IF(AND($B$38="Yes", SUM(G267:G269)=0),ROUND(G42/(ABS(G41-G40)),1),"") ->  | I43: =IF(OR($B$38<>"Yes", ISBLANK($I$10), ISBLANK($I$11), $I$40="", $I$41="", $I$46="--", ISBLANK($I$46)),"",IF(I$46="Crest",VLOOKUP(MAX($I$10,$I$11),Construction!$B$177:$D$189,2,TRUE),VLOOKUP(MAX($I$10,$I$11),Construction!$B$177:$D$189,3,TRUE))) ->  | CY43: =H76 -> 0 | CZ43: 0 | DA43: 21 | DB43: 10.21 | DC43: 0 | DD43: =IF(DF43=0,"",C76) ->  | DF43: 0 | DG43: 21 | DI43: 0
F44: Are you changing the geometry? | G44: Are you changing the geometry? | CX44: 7.22. Safety Edge | CY44: =H77 -> -0.0234240316 | CZ44: 0.0234240316 | DA44: 7 | DB44: 7.22 | DC44: -0.0234240316 | DD44: =IF(DF44=0,"",C77) -> Safety Edge | DE44: Safety Edge | DF44: 0.0234240316 | DG44: 22 | DI44: 0
CX45: 6.23. Roadside Lateral Clearance to Obstruction (ft) | CY45: =H78 -> 0.064777607 | CZ45: 0.064777607 | DA45: 6 | DB45: 6.23 | DC45: 0.064777607 | DD45: =IF(DF45=0,"",C78) -> Roadside Lateral Clearance to Obstruction (ft) | DE45: Roadside Lateral Clearance to Obstruction (ft) | DF45: 0.064777607 | DG45: 23 | DI45: =IFERROR(IF(IFERROR(VLOOKUP(DG45,$DA$23:$DF$46,3,)&", "&CY45=0,""),"",IFERROR(VLOOKUP(DG45,$DA$23:$DE$46,3,),"")),"") -> 
C46: Calculated Sag or Crest? | D46: =IF(AND($B$38="Yes", SUM(D267:D269)=0),IF(D40>D41,"Crest","Sag"),"--") -> -- | E46: =IF(AND($B$38="Yes", SUM(D267:D269)=0),IF(E40>E41,"Crest","Sag"),"--") -> -- | F46: =IF(AND($B$38="Yes", SUM(F267:F269)=0),IF(F40>F41,"Crest","Sag"),"--") -> -- | G46: =IF(AND($B$38="Yes", SUM(G267:G269)=0),IF(G40>G41,"Crest","Sag"),"--") -> -- | I46: =IF($B$38="Yes",IF(I40>I41,"Crest","Sag"),"--") -> -- | CY46: =H79 -> 0 | CZ46: 0 | DA46: 22 | DB46: 10.24 | DC46: 0 | DD46: =IF(DF46=0,"",C79) ->  | DF46: 0 | DG46: 24 | DI46: =IFERROR(IF(IFERROR(VLOOKUP(DG46,$DA$23:$DF$46,3,)&", "&CY46=0,""),"",IFERROR(VLOOKUP(DG46,$DA$23:$DE$46,3,),"")),"") -> 
C49: Geometric Design Element (Partial Score) | D49: =IF(OR(SUM(D251:D252,D254:D257,D260:D261,D267:D269)>0, ISERR(D129)),"",D129) ->  | E49: =IF(OR(SUM(E251:E252,E254:E257,E260:E261,E267:E269)>0, ISERR(E129)),"",E129) ->  | I49: =IF(OR(SUM(I251:I252,I254:I257,I260:I261,I267:I269)>0, ISERR(I129)),"",I129) ->  | M49: SCHEMATIC REPRESENTING INPUT DATA FOR | U49: =IF($I$2="Existing","EXISTING CONFIGURATION",IF($I$2="Standard","STANDARD OPTION",IF($I$2="Design 1","DESIGN 1 OPTION",IF($I$2="Design 2","DESIGN 2 OPTION","OPTIMAL OPTION")))) -> STANDARD OPTION
C50: Total Safety Score | D50: =IF(OR(D$249>0, $I$315>0, ISERROR(D$205+D$175+D$129)),"",D$205+D$175+D$129) ->  | E50: =IF(OR(E$249>0, $I$315>0, ISERROR(E$205+E$175+E$129)),"",E$205+E$175+E$129) ->  | F50: =IF(OR(F$249>0, $I$315>0, ISERROR(F$205+F$175+F$129)),"",F$205+F$175+F$129) ->  | G50: =IF(OR(G$249>0, $I$315>0, ISERROR(G$205+G$175+G$129)),"",G$205+G$175+G$129) ->  | I50: =IF(OR(I$249>0, $I$315>0, ISERROR(I$205+I$175+I$129)),"",I$205+I$175+I$129) -> 
L51: LT | AA51: RT
L52: R/W | S52: =+O54+W54 -> 0 | AA52: R/W
B54: =+Construction!$I$3&" Total Available Points" -> 20 Total Available Points | O54: =+$I$14 -> 0 | W54: =+$I$15 -> 0
B55: Traffic Elements | D55: Existing | E55: Standard | F55: Design 1 | G55: Design 2 | H55: =H23 -> Marginal Safety for Standard (compared to Existing) | I55: Optimal
C56: Advance Static Curve Warning Signs | E56: No | H56: =M149 -> 0 | I56: Yes | L56: =+O54-N56-P56 -> -32 | N56: =IF(+$I$2="Existing",D28,IF($I$2="Standard",E28,IF($I$2="Design 1",F28,IF($I$2="Design 2",G28,I28)))) -> 8 | P56: =IF(+$I$2="Existing",D27*D30,IF($I$2="Standard",E27*E30,IF($I$2="Design 1",F27*F30,IF($I$2="Design 2",G27*G30,I27*I30)))) -> 24 | V56: =+P56 -> 24 | Y56: =+N56 -> 8 | Z56: =+W54-V56-Y56 -> -32
C57: Chevron Signs on Horizontal Curves | E57: No | H57: =M150 -> 0 | I57: Yes
C58: Post-Mounted Delineators | E58: No | H58: =M151 -> 0 | I58: Yes
C59: Edgeline Pavement Markings or Profile Markings | E59: No | H59: =M152 -> 0 | I59: Yes
C60: Shoulder Rumble Strips | E60: Yes | H60: =M154 -> 0.0228750088 | I60: Yes
C61: Centerline Rumble Strips | E61: No | H61: =M155 -> 0 | I61: Yes | S61: Tangent X-Section
C62: Driveway Density (driveways per mile) | E62: 10 | H62: =M156 -> -0.223881142 | I62: 0
C63: Lighting | E63: No | H63: =M157 -> -0.01709657912 | I63: Yes
C64: Pavement Friction (skid number) *** | E64: 37 | H64: =M158 -> 0.2843095602 | I64: 54
C65: Traffic Control Element (Partial Score): | D65: =IF(ISERROR(D175), "", D175) -> 12 | E65: =IF(ISERROR(E175), "", E175) -> 14 | I65: =IF(ISERROR(I175), "", I175) -> 20
C66: Total Safety Score | D66: =IF(OR(D$249>0, $I$315>0, ISERROR(D$205+D$175+D$129)),"",D$205+D$175+D$129) ->  | E66: =IF(OR(E$249>0, $I$315>0, ISERROR(E$205+E$175+E$129)),"",E$205+E$175+E$129) ->  | I66: =IF(OR(I$249>0, $I$315>0, ISERROR(I$205+I$175+I$129)),"",I$205+I$175+I$129) -> 
C68: *** Pavement friction/skid numbers will not be subject to open records requests *** | Q68: =IF($I$2="Existing","SCORE SUMMARY FOR EXISTING CONFIGURATION", IF($I$2="Standard","SCORE SUMMARY FOR STANDARD OPTION",IF($I$2="Design 1","SCORE SUMMARY FOR DESIGN 1 OPTION",IF($I$2="Design 2","SCORE SUMMARY FOR DESIGN 2 OPTION", "SCORE SUMMARY FOR OPTIMAL OPTION")))) -> SCORE SUMMARY FOR STANDARD OPTION
Q69: GEOMETRIC DESIGN: | W69: =IF($I$2="Existing",D49,IF($I$2="Standard",E49,IF($I$2="Design 1",F49,IF($I$2="Design 2",G49,I49)))) -> 
Q70: TRAFFIC CONTROL: | W70: =IF($I$2="Existing",D65,IF($I$2="Standard",E65,IF($I$2="Design 1",F65,IF($I$2="Design 2",G65,I65)))) -> 14
Q71: ROADSIDE: | W71: =IF($I$2="Existing",D80,IF($I$2="Standard",E80,IF($I$2="Design 1",F80,IF($I$2="Design 2",G80,I80)))) -> 27
Q72: OVERALL SAFETY SCORE: | W72: =SUM(W69:X71) -> 41
B73: =+Construction!$I$4&" Total Available Points" -> 40 Total Available Points
B74: Roadside Elements | D74: Existing | E74: Standard | F74: Design 1 | G74: Design 2 | H74: =H23 -> Marginal Safety for Standard (compared to Existing) | I74: Optimal
C75: Roadside Sideslope (Foreslope) | E75: 1V:4H | H75: =M184 -> 0.1569762247 | I75: 1V:6H
C76: Roadside Backslope | E76: =E75 -> 1V:4H | H76: =M185 -> 0 | I76: 1V:4H
C77: Safety Edge | E77: No | H77: -0.0234240316 | I77: Yes
C78: Roadside Lateral Clearance to Obstruction (ft) | E78: 30 | H78: 0.064777607 | I78: 40
C79: Roadside Obstruction Type | E79: None | H79: 0 | I79: None/Removed
C80: Roadside Element (Partial Score): | D80: =IF(ISERR(D205),"",D205) -> 20 | E80: =IF(ISERR(E205),"",E205) -> 27 | F80: 20 | G80: 20 | I80: =IF(ISERR(I205),"",I205) -> 40
C81: Total Safety Score | D81: =IF(OR(D$249>0, $I$315>0, ISERROR(D$205+D$175+D$129)),"",D$205+D$175+D$129) ->  | E81: =IF(OR(E$249>0, $I$315>0, ISERROR(E$205+E$175+E$129)),"",E$205+E$175+E$129) ->  | I81: =IF(OR(I$249>0, $I$315>0, ISERROR(I$205+I$175+I$129)),"",I$205+I$175+I$129) -> 
B86: ADDITIONAL SIDESLOPE INFORMATION
C87: Distance to Slope Toe from Shoulder (ft) | E87: =D87 -> 0 | F87: =E87 -> 0 | G87: 0 | I87: =G87 -> 0
B88: Minimum foreslope feasible within current ROW | E88: =IF(OR(ISBLANK($D$87), ISERROR(E209)), "", "1V:"&E209&"H") ->  | F88: =IF(OR(ISBLANK($D$87), ISERROR(F209)), "", "1V:"&F209&"H") ->  | G88: =IF(OR(ISBLANK($D$87), ISERROR(G209)), "", "1V:"&G209&"H") ->  | I88: =IF(OR(ISBLANK($D$87), ISERROR(I209)), "", "1V:"&I209&"H") -> 
B89: Additional R/W needed on left side | E89: =IF(OR(ISBLANK($D$87), ISERROR(E213)),"", MAX(E213,E216)) ->  | F89: =IF(OR(ISBLANK($D$87), ISERROR(F213)), "", MAX(F213,F216)) ->  | G89: =IF(OR(ISBLANK($D$87), ISERROR(G213)),"", MAX(G213,G216)) ->  | I89: =IF(OR(ISBLANK($D$87), ISERROR(I213)),"", MAX(I213,I216)) -> 
B90: Additional R/W needed on right side | E90: =IF(OR(ISBLANK($D$87), ISERROR(E214)), "", MAX(E214,E217)) ->  | F90: =IF(OR(ISBLANK($D$87), ISERROR(F214)), "", MAX(F214,F217)) ->  | G90: =IF(OR(ISBLANK($D$87), ISERROR(G214)),"", MAX(G214,G217)) ->  | I90: =IF(OR(ISBLANK($D$87), ISERROR(I214)),"", MAX(I214,I217)) -> 
D98: =GetCMF_MED(D24,D25,2000,D28) -> 1 | J98: =1-I104/E104 -> 0 | K98: For Plot
J99: =1-I105/E105 -> 0.03225806452 | K99: relative to | L99: Prefer
D100: =MAX(SUM(D107:D111)-5,$I$100) ->  | E100: =MAX(SUM(E107:E111)-5,$I$100) ->  | I100: =SUM(I107:I111)-5 ->  | J100: =1-I106/E106 -> 0.1444408096 | K100: =MATCH(K101,ModView,0) -> 1 | L100: =MATCH(L101,ModView,0) -> 2
B101: Geometric | J101: =1-I107/E107 ->  | K101: =I4 -> Existing | L101: =I2 -> Standard | M101: %
C102: Divided versus Undivided | D102: 1 | E102: 1 | F102: 1 | G102: 1 | I102: 1 | K102: =INDEX($D102:$I102,K$100) -> 1 | L102: =INDEX($D102:$I102,L$100) -> 1 | M102: =IF(ISERROR(1-L102/K102), 0, 1-L102/K102) -> 0
C103: Median Width | D103: =GetCMF_MED(D24,D25,$I$13,D28) -> 1 | E103: =GetCMF_MED(E24,E25,$I$13,E28) -> 0.91 | F103: =GetCMF_MED(F24,F25,$I$13,F28) -> 1 | G103: =GetCMF_MED(G24,G25,$I$13,G28) -> 1 | H103: =H25 -> 0.09 | I103: =GetCMF_MED(I24,I25,$I$13,I28) -> 0.66 | K103: =INDEX($D103:$I103,K$100) -> 1 | L103: =INDEX($D103:$I103,L$100) -> 0.91 | M103: =IF(ISERROR(1-L103/K103), 0, 1-L103/K103) -> 0.09
C104: LW CMF | D104: =IF(D24=INDEX(MedConf_Header,1,2),VLOOKUP(+D27,Construction!$N$30:$O$36,2),VLOOKUP(D27,Construction!$I$15:$J$21,2)) ->  | E104: =IF(E24=INDEX(MedConf_Header,1,2),VLOOKUP(+E27,Construction!$N$30:$O$36,2),VLOOKUP(E27,Construction!$I$15:$J$21,2)) -> 1 | F104: =IF(F24=INDEX(MedConf_Header,1,2),VLOOKUP(+F27,Construction!$N$30:$O$36,2),VLOOKUP(F27,Construction!$I$15:$J$21,2)) ->  | G104: =IF(G24=INDEX(MedConf_Header,1,2),VLOOKUP(+G27,Construction!$N$30:$O$36,2),VLOOKUP(G27,Construction!$I$15:$J$21,2)) ->  | H104: =H27 -> 0 | I104: =IF(I24=INDEX(MedConf_Header,1,2),VLOOKUP(+I27,Construction!$N$30:$O$36,2),VLOOKUP(I27,Construction!$I$15:$J$21,2)) -> 1 | K104: =INDEX($D104:$I104,K$100) ->  | L104: =INDEX($D104:$I104,L$100) -> 1 | M104: 0 | O104: 0
C105: SW CMF | D105: =IF(D24=INDEX(MedConf_Header,1,2),VLOOKUP(D28,Construction!$C$11:D21,2),(VLOOKUP(D28,Construction!$O$43:$P$53,2)-1)*0.27+1) -> 1.135 | E105: =IF(E24=INDEX(MedConf_Header,1,2),VLOOKUP(E28,Construction!$C$11:E21,2),(VLOOKUP(E28,Construction!$O$43:$P$53,2)-1)*0.27+1) -> 0.93 | F105: =IF(F24=INDEX(MedConf_Header,1,2),VLOOKUP(F28,Construction!$C$11:F21,2),(VLOOKUP(F28,Construction!$O$43:$P$53,2)-1)*0.27+1) -> 1.135 | G105: =IF(G24=INDEX(MedConf_Header,1,2),VLOOKUP(G28,Construction!$C$11:G21,2),(VLOOKUP(G28,Construction!$O$43:$P$53,2)-1)*0.27+1) -> 1.135 | H105: =IF($I$2="Existing",(1-D105/E105),(IF($I$2="Design 1",(1-F105/E105),(IF($I$2="Design 2",(1-G105/E105),(IF($I$2="Optimal",(1-I105/E105),0))))))) -> 0 | I105: =IF(I24=INDEX(MedConf_Header,1,2),VLOOKUP(I28,Construction!$C$11:I21,2),(VLOOKUP(I28,Construction!$O$43:$P$53,2)-1)*0.27+1) -> 0.9 | K105: =INDEX($D105:$I105,K$100) -> 1.135 | L105: =INDEX($D105:$I105,L$100) -> 0.93 | M105: 0.1806167401 | O105: 0.1550387597
C106: Inside Shoulder Width | D106: =IF(AND(D24=INDEX(MedConf_Header,1,2), NOT(ISBLANK(D29))), EXP(-0.026*(D29-4)), 1) -> 1 | E106: =IF(AND(E24=INDEX(MedConf_Header,1,2), NOT(ISBLANK(E29))), EXP(-0.026*(E29-4)), 1) -> 1 | F106: =IF(AND(F24=INDEX(MedConf_Header,1,2), NOT(ISBLANK(F29))), EXP(-0.026*(F29-4)), 1) -> 1 | G106: =IF(AND(G24=INDEX(MedConf_Header,1,2), NOT(ISBLANK(G29))), EXP(-0.026*(G29-4)), 1) -> 1 | H106: 0 | I106: =IF(AND(I24=INDEX(MedConf_Header,1,2), NOT(ISBLANK(I29))), EXP(-0.026*(I29-4)), 1) -> 0.8555591904 | K106: =INDEX($D106:$I106,K$100) -> 1 | L106: =INDEX($D106:$I106,L$100) -> 1 | M106: 0 | O106: 0
C107: HC and Grade | D107: =D$138^D$131 -> 1 | E107: =E$138^E$131 -> 1 | F107: 1 | G107: 1 | H107: 0 | I107: =I$138^I$131 ->  | K107: =INDEX($D107:$I107,K$100) -> 1 | L107: =INDEX($D107:$I107,L$100) -> 1 | M107: 0 | O107: 0
C108: HC and VC Crest type I | D108: =D$139^D$132 -> 1 | E108: =E$139^E$132 -> 1 | F108: 1 | G108: 1 | H108: 0 | I108: =I$139^I$132 ->  | K108: =INDEX($D108:$I108,K$100) -> 1 | L108: =INDEX($D108:$I108,L$100) -> 1 | M108: 0 | O108: 0
C109: HC and VC Sag type I | D109: =D$140^D$133 -> 1 | E109: =E$140^E$133 -> 1 | F109: 1 | G109: 1 | H109: 0 | I109: =I$140^I$133 ->  | J109: =1-I115/E115 ->  | K109: =INDEX($D109:$I109,K$100) -> 1 | L109: =INDEX($D109:$I109,L$100) -> 1 | M109: 0 | O109: 0
C110: HC and VC Crest type II | D110: =D$141^D$134 -> 1 | E110: =E$141^E$134 -> 1 | F110: 1 | G110: 1 | H110: 0 | I110: =I$141^I$134 ->  | J110: =1-I116/E116 ->  | K110: =INDEX($D110:$I110,K$100) -> 1 | L110: =INDEX($D110:$I110,L$100) -> 1 | M110: 0 | O110: 0
C111: HC and VC Sag type II | D111: =D$142^D$135 -> 1 | E111: =E$142^E$135 -> 1 | F111: 1 | G111: 1 | H111: 0 | I111: =I$142^I$135 ->  | J111: =1-I117/E117 ->  | K111: =INDEX($D111:$I111,K$100) -> 1 | L111: =INDEX($D111:$I111,L$100) -> 1 | M111: 0 | O111: 0
C112: Add TWLTL | D112: =IF(D$47="No",1,CMFs!$F$17) -> 0.71 | E112: =IF(E$47="No",1,CMFs!$F$17) -> 0.71 | F112: =IF(F$47="No",1,CMFs!$F$17) -> 0.71 | G112: =IF(G$47="No",1,CMFs!$F$17) -> 0.71 | H112: 0 | I112: =IF(I$47="No",1,CMFs!$F$17) -> 0.71 | J112: =1-I118/E118 ->  | K112: =INDEX($D112:$I112,K$100) -> 0.71 | L112: =INDEX($D112:$I112,L$100) -> 0.71 | M112: 0 | O112: 0
C113: Provide passing lane | D113: =IF(D$48="No",1,CMFs!$F$21) -> 0.75 | E113: =IF(E$48="No",1,CMFs!$F$21) -> 0.75 | F113: =IF(F$48="No",1,CMFs!$F$21) -> 0.75 | G113: =IF(G$48="No",1,CMFs!$F$21) -> 0.75 | H113: 0 | I113: =IF(I$48="No",1,CMFs!$F$21) -> 0.75 | J113: =I119/E119 ->  | K113: =INDEX($D113:$I113,K$100) -> 0.75 | L113: =INDEX($D113:$I113,L$100) -> 0.75 | M113: 0 | O113: 0
C115: COMBINED Calculated CMF | D115: =+D104*D105*D106*D107*D108*D109*D110*D111*D112*D113*D103*D102 ->  | E115: =+E104*E105*E106*E107*E108*E109*E110*E111*E112*E113*E103*E102 -> 0.45065475 | H115: =IF($I$2="Existing",(D115),(IF($I$2="Design 1",(F115),(IF($I$2="Design 2",(G115),(IF($I$2="Optimal",(I115),E115))))))) -> 0.45065475 | I115: =+I104*I105*I106*I107*I108*I109*I110*I111*I112*I113*I103*I102 ->  | K115: =INDEX($D115:$I115,K$100) ->  | L115: =INDEX($D115:$I115,L$100) -> 0.45065475 | M115: =IF(ISERROR(1-L115/K115), 0, 1-L115/K115) -> 0 | O115: 0
C116: Calculated Relative to Design Standards (Column E) | D116: =+D115/$E$115 ->  | E116: 1 | H116: 1 | K116: =INDEX($D116:$I116,K$100) ->  | L116: =INDEX($D116:$I116,L$100) -> 1 | M116: 0 | O116: 0
C117: P(Crash) | D117: =+D116/(D116+1) ->  | E117: 0.5 | H117: 0.5 | K117: =INDEX($D117:$I117,K$100) ->  | L117: =INDEX($D117:$I117,L$100) -> 0.5 | M117: 0 | O117: 0
C118: Factor Change on S curve | D118: =+D117/$E$117 ->  | E118: 1 | H118: 1 | K118: =INDEX($D118:$I118,K$100) ->  | L118: =INDEX($D118:$I118,L$100) -> 1 | M118: 0 | O118: 0
C119: Adjust to Scale of 100 | D119: =+$I$118/D118*100 ->  | K119: =INDEX($D119:$I119,K$100) ->  | L119: =INDEX($D119:$I119,L$100) ->  | M119: 0
C120: Unadjusted Combined Relative to Standard | D120: =+D115/$E$115 ->  | E120: 1 | H120: 1 | J120: =I126/E126 ->  | K120: =INDEX($D120:$I120,K$100) ->  | L120: =INDEX($D120:$I120,L$100) -> 1 | M120: 0 | O120: 0
C122: Adjusted for PA Basis | D122: =+D115*(1+1)/(1+D115*1) ->  | E122: 0.621312204 | H122: =IF($I$2="Existing",(D122),(IF($I$2="Design 1",(F122),(IF($I$2="Design 2",(G122),(IF($I$2="Optimal",(I122),E122))))))) -> 0.621312204 | K122: =INDEX($D122:$I122,K$100) ->  | L122: =INDEX($D122:$I122,L$100) -> 0.621312204 | M122: =IF(ISERROR(1-L122/K122), 0, 1-L122/K122) -> 0 | O122: 0
C123: Corrected by Odds Ratio | D123: =+D122/$E$122 ->  | E123: 1 | H123: =IF($I$2="Existing",(D123),(IF($I$2="Design 1",(F123),(IF($I$2="Design 2",(G123),(IF($I$2="Optimal",(I123),E123))))))) -> 1 | J123: =I129/E129 ->  | K123: =INDEX($D123:$I123,K$100) ->  | L123: =INDEX($D123:$I123,L$100) -> 1 | M123: 0 | O123: 0
C124: Pinned s | D124: =(1/D123)^$D127 ->  | E124: =(1/E123)^$D127 ->  | G124: =IF(ISERROR((1/G123)^$D127), 0, (1/G123)^$D127) -> 0 | K124: =INDEX($D124:$I124,K$100) ->  | L124: =INDEX($D124:$I124,L$100) ->  | M124: 0 | O124: 0
D125: =(D124+$F128-1)/(1+(D124+$F128-1)) ->  | E125: =(E124+$F128-1)/(1+(E124+$F128-1)) ->  | G125: 0.5714285714 | K125: =INDEX($D125:$I125,K$100) ->  | L125: =INDEX($D125:$I125,L$100) ->  | M125: 0 | O125: 0
C126: Score Odds Ratio with Optimal (old) | D126: =MIN(ROUND($I$123/D123*Construction!$I$2,0),$I126) ->  | E126: =MIN(ROUND($I$123/E123*Construction!$I$2,0),$I126) ->  | F126: =MIN(ROUND($I$123/F123*Construction!$I$2,0),$I126) ->  | G126: =MIN(ROUND($I$123/G123*Construction!$I$2,0),$I126) ->  | H126: =IF($I$2="Existing",(D126),(IF($I$2="Design 1",(F126),(IF($I$2="Design 2",(G126),(IF($I$2="Optimal",(I126),E126))))))) ->  | I126: =ROUND($I$123/I123*Construction!$I$2,0) -> 
C127: Logistic1 | D127: =LN((D128/(1-D128))/(0.5/0.5))/LN(IF($E123/I123=1,0.999,$E123/I123)) -> 
C128: Logistic Param | D128: 0.999 | F128: =0.7/0.3 -> 2.333333333
C129: Score | D129: =MIN(ROUND(D125*Construction!$I$2,0),$I126) ->  | E129: =MIN(ROUND(E125*Construction!$I$2,0),$I126) ->  | F129: =MIN(ROUND(F125*Construction!$I$2,0),$I126) ->  | G129: =MIN(ROUND(G125*Construction!$I$2,0),$I126) ->  | H129: =MIN(ROUND(H125*Construction!$I$2,0),$I126) ->  | I129: =MIN(ROUND(I125*Construction!$I$2,0),$I126) -> 
C131: HC and Grade | D131: =IF($B$139,0,1) -> 1 | E131: =IF($B$139,0,1) -> 1 | F131: 1 | G131: 1 | H131: =IF($I$2="Existing",(D131),(IF($I$2="Design 1",(F131),(IF($I$2="Design 2",(G131),(IF($I$2="Optimal",(I131),E131))))))) -> 1 | I131: =IF($B$139,0,1) -> 1
A132: HC? | C132: HC and VC Crest type I | D132: =IF(AND($B$139=1,SIGN(D$40)=1,ABS(D$40)<=ABS(D$40-D$41),D$46="Crest"),1,0) -> 0 | E132: =IF(AND($B$139=1,SIGN(IF(ISNUMBER(E$40),E$40,0))=1, ABS(IF(ISNUMBER(E$40),E$40,0))<=ABS(IF(ISNUMBER(E$40),E$40,0)-IF(ISNUMBER(E$41),E$41,0)),E$46="Crest"), 1,0) -> 0 | F132: =IF(AND($B$139=1,SIGN(F$40)=1,ABS(F$40)<=ABS(F$40-F$41),F$46="Crest"),1,0) -> 0 | G132: =IF(AND($B$139=1,SIGN(G$40)=1,ABS(G$40)<=ABS(G$40-G$41),G$46="Crest"),1,0) -> 0 | H132: =IF($I$2="Existing",(D132),(IF($I$2="Design 1",(F132),(IF($I$2="Design 2",(G132),(IF($I$2="Optimal",(I132),E132))))))) -> 0 | I132: =IF(AND($B$138=1,SIGN(I$40)=1,ABS(I$40)<=ABS(I$40-IF(ISNUMBER(I$41), I$41,0)),I$46="Crest"),1,0) ->  | K132: =INDEX($D132:$I132,K$100) -> 0 | L132: =INDEX($D132:$I132,L$100) -> 0 | M132: =IF(ISERROR(1-L132/K132), 0, 1-L132/K132) -> 0
A133: VC? | C133: HC and VC Sag type I | D133: =IF(AND($B$139=1,SIGN(D$40)=1,ABS(D$40)<=ABS(D$40-D$41),D$46="Sag"),1,0) -> 0 | E133: =IF(AND($B$139=1,SIGN(IF(ISNUMBER(E$40),E$40,0))=1, ABS(IF(ISNUMBER(E$40),E$40,0))<=ABS(IF(ISNUMBER(E$40),E$40,0)-IF(ISNUMBER(E$41),E$41,0)),E$46="Sag"), 1,0) -> 0 | F133: =IF(AND($B$139=1,SIGN(F$40)=1,ABS(F$40)<=ABS(F$40-F$41),F$46="Sag"),1,0) -> 0 | G133: =IF(AND($B$139=1,SIGN(G$40)=1,ABS(G$40)<=ABS(G$40-G$41),G$46="Sag"),1,0) -> 0 | H133: =IF($I$2="Existing",(D133),(IF($I$2="Design 1",(F133),(IF($I$2="Design 2",(G133),(IF($I$2="Optimal",(I133),E133))))))) -> 0 | I133: =IF(AND($B$138=1,SIGN(I$40)=1,ABS(I$40)<=ABS(I$40-IF(ISNUMBER(I$41), I$41,0)),I$46="Sag"),1,0) ->  | K133: =INDEX($D133:$I133,K$100) -> 0 | L133: =INDEX($D133:$I133,L$100) -> 0 | M133: 0
C134: HC and VC Crest type II | D134: =IF(AND($B$139=1,D$46="Crest",D$132=0),1,0) -> 0 | E134: =IF(AND($B$139=1,E$46="Crest",E$132=0),1,0) -> 0 | F134: =IF(AND($B$139=1,F$46="Crest",F$132=0),1,0) -> 0 | G134: =IF(AND($B$139=1,G$46="Crest",G$132=0),1,0) -> 0 | H134: =IF($I$2="Existing",(D134),(IF($I$2="Design 1",(F134),(IF($I$2="Design 2",(G134),(IF($I$2="Optimal",(I134),E134))))))) -> 0 | I134: =IF(AND($B$139=1,I$46="Crest",I$132=0),1,0) ->  | K134: =INDEX($D134:$I134,K$100) -> 0 | L134: =INDEX($D134:$I134,L$100) -> 0 | M134: 0
C135: HC and VC Sag type II | D135: =IF(AND($B$139=1,D$46="Sag",D$133=0),1,0) -> 0 | E135: =IF(AND($B$139=1,E$46="Sag",E$133=0),1,0) -> 0 | F135: =IF(AND($B$139=1,F$46="Sag",F$133=0),1,0) -> 0 | G135: =IF(AND($B$139=1,G$46="Sag",G$133=0),1,0) -> 0 | H135: =IF($I$2="Existing",(D135),(IF($I$2="Design 1",(F135),(IF($I$2="Design 2",(G135),(IF($I$2="Optimal",(I135),E135))))))) -> 0 | I135: =IF(AND($B$139=1,I$46="Sag",I$133=0),1,0) ->  | K135: =INDEX($D135:$I135,K$100) -> 0 | L135: =INDEX($D135:$I135,L$100) -> 0 | M135: 0
B136: Yes/No
C137: HC and VC:
B138: =IF(B31="Yes",1,0) -> 0 | C138: HC and Grade | D138: =IF($B$139=0, EXP(0.042*ABS(D$40) +$B$138*0.16*LN(2*5730/IF(ISNUMBER(D$33),D$33,1))*$B$138 +4.16*$B$138/IF(ISNUMBER(D$33),D$33,1)/IF( AND(ISNUMBER(D$34),D$34<>0),D$34,1)), 1) -> 1 | E138: =IF($B$139=0, EXP(0.042*ABS(D$40) +$B$138*0.16*LN(2*5730/IF(ISNUMBER(E$33),E$33,1))*$B$138 +4.16*$B$138/IF(ISNUMBER(E$33),E$33,1)/IF( AND(ISNUMBER(E$34),E$34<>0),E$34,1)), 1) -> 1 | F138: =IF($B$139=0, EXP(0.042*ABS(F$40) +$B$138*0.16*LN(2*5730/IF(ISNUMBER(F$33),F$33,1))*$B$138 +4.16*$B$138/IF(ISNUMBER(F$33),F$33,1)/IF( AND(ISNUMBER(F$34),F$34<>0),F$34,1)), 1) -> 1 | G138: =IF($B$139=0, EXP(0.042*ABS(G$40) +$B$138*0.16*LN(2*5730/IF(ISNUMBER(G$33),G$33,1))*$B$138 +4.16*$B$138/IF(ISNUMBER(G$33),G$33,1)/IF( AND(ISNUMBER(G$34),G$34<>0),G$34,1)), 1) -> 1 | I138: =IF($B$139=0, EXP(0.042*ABS(I$40) +$B$138*0.16*LN(2*5730/IF(ISNUMBER(I$33),I$33,1))*$B$138 +4.16*$B$138/IF(ISNUMBER(I$33),I$33,1)/IF( AND(ISNUMBER(I$34),I$34<>0),I$34,1)), 1) ->  | K138: =INDEX($D138:$I138,K$100) -> 1 | L138: =INDEX($D138:$I138,L$100) -> 1 | M138: =IF(ISERROR(1-L138/K138), 0, 1-L138/K138) -> 0 | O138: 0
B139: =IF(B38="Yes",1,0) -> 0 | C139: HC and VC Crest type I | D139: =IF($B$139=0,1,EXP(0.005648908*5730*ABS(+D$40-D$41)*$B$139/D$145*$B$138)) -> 1 | E139: =IF($B$139=0,1,EXP(0.005648908*5730*ABS(+E$40-E$41)*$B$139/E$145*$B$138)) -> 1 | F139: 1 | G139: 1 | H139: =IF($I$2="Existing",(D139),(IF($I$2="Design 1",(F139),(IF($I$2="Design 2",(G139),(IF($I$2="Optimal",(I139),E139))))))) -> 1 | I139: 1 | K139: =INDEX($D139:$I139,K$100) -> 1 | L139: =INDEX($D139:$I139,L$100) -> 1 | M139: 0 | O139: 0
C140: HC and VC Sag type I | D140: =IF($B$139=0,1,EXP(9.15857042*$B$139/D$146+0.010284958*5730*$B$139*$B$138*ABS(+D$40-D$41)/D$145)) -> 1 | E140: =IF($B$139=0,1,EXP(9.15857042*$B$139/E$146+0.010284958*5730*$B$139*$B$138*ABS(+E$40-E$41)/E$145)) -> 1 | F140: 1 | G140: 1 | H140: =IF($I$2="Existing",(D140),(IF($I$2="Design 1",(F140),(IF($I$2="Design 2",(G140),(IF($I$2="Optimal",(I140),E140))))))) -> 1 | I140: 1 | K140: =INDEX($D140:$I140,K$100) -> 1 | L140: =INDEX($D140:$I140,L$100) -> 1 | M140: 0 | O140: 0
C141: HC and VC Crest type II | D141: =IF($B$139=0,1,EXP(0.005648908*5730*ABS(+D$40-D$41)*$B$139/D$145*$B$138)) -> 1 | E141: =IF($B$139=0,1,EXP(0.005648908*5730*ABS(+E$40-E$41)*$B$139/E$145*$B$138)) -> 1 | F141: 1 | G141: 1 | H141: =IF($I$2="Existing",(D141),(IF($I$2="Design 1",(F141),(IF($I$2="Design 2",(G141),(IF($I$2="Optimal",(I141),E141))))))) -> 1 | I141: 1 | K141: =INDEX($D141:$I141,K$100) -> 1 | L141: =INDEX($D141:$I141,L$100) -> 1 | M141: 0 | O141: 0
C142: HC and VC Sag type II | D142: =IF($B$139=0,1,(0.246011284*EXP(LN(0.188*2*5730/D$145)*$B$138)+0.753988716*EXP(0.022*5730/D$145*ABS(D$40-D$41)*$B$139*$B$138))) -> 1 | E142: =IF($B$139=0,1,(0.246011284*EXP(LN(0.188*2*5730/E$145)*$B$138)+0.753988716*EXP(0.022*5730/E$145*ABS(E$40-E$41)*$B$139*$B$138))) -> 1 | F142: 1 | G142: 1 | H142: =IF($I$2="Existing",(D142),(IF($I$2="Design 1",(F142),(IF($I$2="Design 2",(G142),(IF($I$2="Optimal",(I142),E142))))))) -> 1 | I142: 1 | K142: =INDEX($D142:$I142,K$100) -> 1 | L142: =INDEX($D142:$I142,L$100) -> 1 | M142: 0 | O142: 0
C144: Combined HZ and VT | D144: =MMULT(TRANSPOSE(D131:D135),D138:D142) -> 1 | E144: =MMULT(TRANSPOSE(E131:E135),E138:E142) -> 1 | F144: =MMULT(TRANSPOSE(F131:F135),F138:F142) -> 1 | G144: =MMULT(TRANSPOSE(G131:G135),G138:G142) -> 1 | H144: =IF($I$2="Existing",(D144),(IF($I$2="Design 1",(F144),(IF($I$2="Design 2",(G144),(IF($I$2="Optimal",(I144),E144))))))) -> 1 | I144: =MMULT(TRANSPOSE(I131:I135),I138:I142) ->  | K144: =INDEX($D144:$I144,K$100) -> 1 | L144: =INDEX($D144:$I144,L$100) -> 1 | M144: =IF(ISERROR(1-L144/K144), 0, 1-L144/K144) -> 0 | O144: 0
C145: effective R for calculation | D145: =IF(ISNUMBER(D33), D33, 99999999) -> 99999999 | E145: =IF(ISNUMBER(E33), E33, 99999999) -> 590 | F145: 99999999 | G145: 99999999 | I145: 590
C146: effective K for calculation | D146: =IF(ISNUMBER(D43), D43, 99999999) -> 99999999 | E146: =IF(ISNUMBER(E43), E43, 99999999) -> 99999999 | F146: 99999999 | G146: 99999999 | I146: 99999999
B147: Traffic
D148: Existing | E148: Standard | F148: Design 1 | G148: Design 2
C149: Advance static curve warning signs | D149: =IF(D24=INDEX(MedConf_Header,1,2),IF(AND($B$31="Yes",D$56="Yes"),(Traffic!$F$4-1)*AVERAGE(Constraints!$F$24,Constraints!$H$24)/Constraints!$D$24+1,1),(IF(AND($B$31="Yes",D$56="Yes"),(Traffic!$F$4-1)*AVERAGE(Constraints!$F$38,Constraints!$H$38)/Constraints!$D$38+1,1))) -> 1 | E149: =IF(AND($B$31="Yes",E$56="Yes"),(Traffic!$F$4-1)*AVERAGE(Constraints!$F$24,Constraints!$H$24)/Constraints!$D$24+1,1) -> 1 | F149: =IF(F24=INDEX(MedConf_Header,1,2),IF(AND($B$31="Yes",F$56="Yes"),(Traffic!$F$4-1)*AVERAGE(Constraints!$F$24,Constraints!$H$24)/Constraints!$D$24+1,1),(IF(AND($B$31="Yes",F$56="Yes"),(Traffic!$F$4-1)*AVERAGE(Constraints!$F$38,Constraints!$H$38)/Constraints!$D$38+1,1))) -> 1 | G149: =IF(G24=INDEX(MedConf_Header,1,2),IF(AND($B$31="Yes",G$56="Yes"),(Traffic!$F$4-1)*AVERAGE(Constraints!$F$24,Constraints!$H$24)/Constraints!$D$24+1,1),(IF(AND($B$31="Yes",G$56="Yes"),(Traffic!$F$4-1)*AVERAGE(Constraints!$F$38,Constraints!$H$38)/Constraints!$D$38+1,1))) -> 1 | H149: =IF($I$2="Existing",(D149),(IF($I$2="Design 1",(F149),(IF($I$2="Design 2",(G149),(IF($I$2="Optimal",(I149),E149))))))) -> 1 | I149: =IF(AND($B$31="Yes",I$56="Yes"),(Traffic!$F$4-1)*AVERAGE(Constraints!$F$24,Constraints!$H$24)/Constraints!$D$24+1,1) -> 1 | K149: =INDEX($D149:$I149,K$100) -> 1 | L149: =INDEX($D149:$I149,L$100) -> 1 | M149: =IF(ISERROR(1-L149/K149), 0, 1-L149/K149) -> 0 | O149: 0
C150: Install chevron signs on horizontal curves | D150: =IF(D24=INDEX(MedConf_Header,1,2),(IF(D$57="No",1,(IF(AND($B$31="Yes",D$27<11.5),((Traffic!$F$6-1)*(Constraints!$E$18+Constraints!$E$22))+1,1)))),(IF(D$57="No",1,(IF(AND($B$31="Yes",D$27<11.5),((Traffic!$F$6-1)*(Constraints!$E$32+Constraints!$E$36))+1,1))))) -> 1 | E150: =IF(E$57="No",1,(IF(AND($B$31="Yes",E$27<11.5),((Traffic!$F$6-1)*(Constraints!$E$18+Constraints!$E$22))+1,1))) -> 1 | F150: =IF(F24=INDEX(MedConf_Header,1,2),(IF(F$57="No",1,(IF(AND($B$31="Yes",F$27<11.5),((Traffic!$F$6-1)*(Constraints!$E$18+Constraints!$E$22))+1,1)))),(IF(F$57="No",1,(IF(AND($B$31="Yes",F$27<11.5),((Traffic!$F$6-1)*(Constraints!$E$32+Constraints!$E$36))+1,1))))) -> 1 | G150: =IF(G24=INDEX(MedConf_Header,1,2),(IF(G$57="No",1,(IF(AND($B$31="Yes",G$27<11.5),((Traffic!$F$6-1)*(Constraints!$E$18+Constraints!$E$22))+1,1)))),(IF(G$57="No",1,(IF(AND($B$31="Yes",G$27<11.5),((Traffic!$F$6-1)*(Constraints!$E$32+Constraints!$E$36))+1,1))))) -> 1 | H150: =IF($I$2="Existing",(D150),(IF($I$2="Design 1",(F150),(IF($I$2="Design 2",(G150),(IF($I$2="Optimal",(I150),E150))))))) -> 1 | I150: =IF(I$57="No",1,(IF(AND($B$31="Yes",I$27<11.5),((Traffic!$F$6-1)*(Constraints!$E$18+Constraints!$E$22))+1,1))) -> 1 | K150: =INDEX($D150:$I150,K$100) -> 1 | L150: =INDEX($D150:$I150,L$100) -> 1 | M150: 0 | O150: 0
C151: Install post-mounted delineators | D151: =IF(D24=INDEX(MedConf_Header,1,2),IF(AND($B$31="Yes",D$58="Yes"),(Traffic!$F$12-1)*Constraints!$E$17+1,1),(IF(AND($B$31="Yes",D$58="Yes"),(Traffic!$F$12-1)*Constraints!$E$31+1,1))) -> 1 | E151: =IF(AND($B$31="Yes",E$58="Yes"),(Traffic!$F$12-1)*Constraints!$E$17+1,1) -> 1 | F151: =IF(F24=INDEX(MedConf_Header,1,2),IF(AND($B$31="Yes",F$58="Yes"),(Traffic!$F$12-1)*Constraints!$E$17+1,1),(IF(AND($B$31="Yes",F$58="Yes"),(Traffic!$F$12-1)*Constraints!$E$31+1,1))) -> 1 | G151: =IF(G24=INDEX(MedConf_Header,1,2),IF(AND($B$31="Yes",G$58="Yes"),(Traffic!$F$12-1)*Constraints!$E$17+1,1),(IF(AND($B$31="Yes",G$58="Yes"),(Traffic!$F$12-1)*Constraints!$E$31+1,1))) -> 1 | H151: =IF($I$2="Existing",(D151),(IF($I$2="Design 1",(F151),(IF($I$2="Design 2",(G151),(IF($I$2="Optimal",(I151),E151))))))) -> 1 | I151: =IF(AND($B$31="Yes",I$58="Yes"),(Traffic!$F$12-1)*Constraints!$E$17+1,1) -> 1 | K151: =INDEX($D151:$I151,K$100) -> 1 | L151: =INDEX($D151:$I151,L$100) -> 1 | M151: 0 | O151: 0
C152: Install edgeline or Profile pavement markings | D152: =IF(D24=INDEX(MedConf_Header,1,2),(IF(D$59="Yes",Traffic!$F$18*0.5+((Traffic!$F$20*(Constraints!$H$17+Constraints!$H$20+Constraints!$H$21)+1*(Constraints!$H$24-(Constraints!$H$17+Constraints!$H$20+Constraints!$H$21)))/Constraints!$H$24)*0.5,1)),(IF(D$59="Yes",Traffic!$F$18*0.5+((Traffic!$F$20*(Constraints!$H$31+Constraints!$H$34+Constraints!$H$35)+1*(Constraints!$H$38-(Constraints!$H$31+Constraints!$H$34+Constraints!$H$35)))/Constraints!$H$38)*0.5,1))) -> 1 | E152: =IF(E24=INDEX(MedConf_Header,1,2),(IF(E$59="Yes",Traffic!$F$18*0.5+((Traffic!$F$20*(Constraints!$H$17+Constraints!$H$20+Constraints!$H$21)+1*(Constraints!$H$24-(Constraints!$H$17+Constraints!$H$20+Constraints!$H$21)))/Constraints!$H$24)*0.5,1)),(IF(E$59="Yes",Traffic!$F$18*0.5+((Traffic!$F$20*(Constraints!$H$31+Constraints!$H$34+Constraints!$H$35)+1*(Constraints!$H$38-(Constraints!$H$31+Constraints!$H$34+Constraints!$H$35)))/Constraints!$H$38)*0.5,1))) -> 1 | F152: =IF(F24=INDEX(MedConf_Header,1,2),(IF(F$59="Yes",Traffic!$F$18*0.5+((Traffic!$F$20*(Constraints!$H$17+Constraints!$H$20+Constraints!$H$21)+1*(Constraints!$H$24-(Constraints!$H$17+Constraints!$H$20+Constraints!$H$21)))/Constraints!$H$24)*0.5,1)),(IF(F$59="Yes",Traffic!$F$18*0.5+((Traffic!$F$20*(Constraints!$H$31+Constraints!$H$34+Constraints!$H$35)+1*(Constraints!$H$38-(Constraints!$H$31+Constraints!$H$34+Constraints!$H$35)))/Constraints!$H$38)*0.5,1))) -> 1 | G152: =IF(G24=INDEX(MedConf_Header,1,2),(IF(G$59="Yes",Traffic!$F$18*0.5+((Traffic!$F$20*(Constraints!$H$17+Constraints!$H$20+Constraints!$H$21)+1*(Constraints!$H$24-(Constraints!$H$17+Constraints!$H$20+Constraints!$H$21)))/Constraints!$H$24)*0.5,1)),(IF(G$59="Yes",Traffic!$F$18*0.5+((Traffic!$F$20*(Constraints!$H$31+Constraints!$H$34+Constraints!$H$35)+1*(Constraints!$H$38-(Constraints!$H$31+Constraints!$H$34+Constraints!$H$35)))/Constraints!$H$38)*0.5,1))) -> 1 | H152: =IF($I$2="Existing",(D152),(IF($I$2="Design 1",(F152),(IF($I$2="Design 2",(G152),(IF($I$2="Optimal",(I152),E152))))))) -> 1 | I152: =IF(I24=INDEX(MedConf_Header,1,2),(IF(I$59="Yes",Traffic!$F$18*0.5+((Traffic!$F$20*(Constraints!$H$17+Constraints!$H$20+Constraints!$H$21)+1*(Constraints!$H$24-(Constraints!$H$17+Constraints!$H$20+Constraints!$H$21)))/Constraints!$H$24)*0.5,1)),(IF(I$59="Yes",Traffic!$F$18*0.5+((Traffic!$F$20*(Constraints!$H$31+Constraints!$H$34+Constraints!$H$35)+1*(Constraints!$H$38-(Constraints!$H$31+Constraints!$H$34+Constraints!$H$35)))/Constraints!$H$38)*0.5,1))) -> 0.8743964143 | K152: =INDEX($D152:$I152,K$100) -> 1 | L152: =INDEX($D152:$I152,L$100) -> 1 | M152: 0 | O152: 0.1382411869
C153: Profiles | D153: 1 | E153: 1 | F153: 1 | G153: 1 | H153: 1 | I153: 1 | K153: =INDEX($D153:$I153,K$100) -> 1 | L153: =INDEX($D153:$I153,L$100) -> 1 | M153: 0 | O153: 0
C154: Shoulder rumble strips | D154: =IF(D24=INDEX(MedConf_Header,1,2),(IF(D$60="No",1,(Traffic!$F$27*(Constraints!$H$17+Constraints!$H$20+Constraints!$H$21)+1*(Constraints!$H$24-(Constraints!$H$17+Constraints!$H$20+Constraints!$H$21)))/Constraints!$H$24)),(IF(D$60="No",1,(Traffic!$F$27*(Constraints!$H$31+Constraints!$H$34+Constraints!$H$35)+1*(Constraints!$H$38-(Constraints!$H$31+Constraints!$H$34+Constraints!$H$35)))/Constraints!$H$38))) -> 0.9395628946 | E154: =IF(E$60="No",1,(Traffic!$F$27*(Constraints!$H$17+Constraints!$H$20+Constraints!$H$21)+1*(Constraints!$H$24-(Constraints!$H$17+Constraints!$H$20+Constraints!$H$21)))/Constraints!$H$24) -> 0.9180703851 | F154: =IF(F24=INDEX(MedConf_Header,1,2),(IF(F$60="No",1,(Traffic!$F$27*(Constraints!$H$17+Constraints!$H$20+Constraints!$H$21)+1*(Constraints!$H$24-(Constraints!$H$17+Constraints!$H$20+Constraints!$H$21)))/Constraints!$H$24)),(IF(F$60="No",1,(Traffic!$F$27*(Constraints!$H$31+Constraints!$H$34+Constraints!$H$35)+1*(Constraints!$H$38-(Constraints!$H$31+Constraints!$H$34+Constraints!$H$35)))/Constraints!$H$38))) -> 0.9395628946 | G154: =IF(G24=INDEX(MedConf_Header,1,2),(IF(G$60="No",1,(Traffic!$F$27*(Constraints!$H$17+Constraints!$H$20+Constraints!$H$21)+1*(Constraints!$H$24-(Constraints!$H$17+Constraints!$H$20+Constraints!$H$21)))/Constraints!$H$24)),(IF(G$60="No",1,(Traffic!$F$27*(Constraints!$H$31+Constraints!$H$34+Constraints!$H$35)+1*(Constraints!$H$38-(Constraints!$H$31+Constraints!$H$34+Constraints!$H$35)))/Constraints!$H$38))) -> 0.9395628946 | H154: =IF($I$2="Existing",(D154),(IF($I$2="Design 1",(F154),(IF($I$2="Design 2",(G154),(IF($I$2="Optimal",(I154),E154))))))) -> 0.9180703851 | I154: =IF(I$60="No",1,(Traffic!$F$27*(Constraints!$H$17+Constraints!$H$20+Constraints!$H$21)+1*(Constraints!$H$24-(Constraints!$H$17+Constraints!$H$20+Constraints!$H$21)))/Constraints!$H$24) -> 0.9180703851 | K154: =INDEX($D154:$I154,K$100) -> 0.9395628946 | L154: =INDEX($D154:$I154,L$100) -> 0.9180703851 | M154: 0.0228750088 | O154: 0
C155: Install centerline rumble strips | D155: =IF(D24=INDEX(MedConf_Header,1,3),(IF(D$61="No",1,(Traffic!$E$81*(Constraints!$H$31+Constraints!$H$34+Constraints!$H$35)+1*(Constraints!$H$38-(Constraints!$H$31+Constraints!$H$34+Constraints!$H$35)))/Constraints!$H$38)+0.001),1) -> 1 | E155: =IF(E24=INDEX(MedConf_Header,1,3),(IF(E$61="No",1,(Traffic!$E$81*(Constraints!$H$31+Constraints!$H$34+Constraints!$H$35)+1*(Constraints!$H$38-(Constraints!$H$31+Constraints!$H$34+Constraints!$H$35)))/Constraints!$H$38)+0.001),1) -> 1 | F155: =IF(F24=INDEX(MedConf_Header,1,3),(IF(F$61="No",1,(Traffic!$E$81*(Constraints!$H$31+Constraints!$H$34+Constraints!$H$35)+1*(Constraints!$H$38-(Constraints!$H$31+Constraints!$H$34+Constraints!$H$35)))/Constraints!$H$38)+0.001),1) -> 1 | G155: =IF(G24=INDEX(MedConf_Header,1,3),(IF(G$61="No",1,(Traffic!$E$81*(Constraints!$H$31+Constraints!$H$34+Constraints!$H$35)+1*(Constraints!$H$38-(Constraints!$H$31+Constraints!$H$34+Constraints!$H$35)))/Constraints!$H$38)+0.001),1) -> 1 | H155: =IF($I$2="Existing",(D155),(IF($I$2="Design 1",(F155),(IF($I$2="Design 2",(G155),(IF($I$2="Optimal",(I155),E155))))))) -> 1 | I155: =IF(I24=INDEX(MedConf_Header,1,3),(IF(I$61="No",1,(Traffic!$E$81*(Constraints!$H$31+Constraints!$H$34+Constraints!$H$35)+1*(Constraints!$H$38-(Constraints!$H$31+Constraints!$H$34+Constraints!$H$35)))/Constraints!$H$38)+0.001),1) -> 1 | K155: =INDEX($D155:$I155,K$100) -> 1 | L155: =INDEX($D155:$I155,L$100) -> 1 | M155: 0 | O155: -0.1627906977
C156: Driveway Density (driveways per mile) | D156: =EXP(-LN(Traffic!$F$31)*(D$62-$E$62)) -> 0.8170728069 | E156: =EXP(-LN(Traffic!$F$31)*(E$62-$E$62)) -> 1 | F156: =EXP(-LN(Traffic!$F$31)*(F$62-$E$62)) -> 0.8170728069 | G156: =EXP(-LN(Traffic!$F$31)*(G$62-$E$62)) -> 0.8170728069 | H156: =IF($I$2="Existing",(D156),(IF($I$2="Design 1",(F156),(IF($I$2="Design 2",(G156),(IF($I$2="Optimal",(I156),E156))))))) -> 1 | I156: =EXP(-LN(Traffic!$F$31)*(I$62-$E$62)) -> 0.8170728069 | K156: =INDEX($D156:$I156,K$100) -> 0.8170728069 | L156: =INDEX($D156:$I156,L$100) -> 1 | M156: -0.223881142 | O156: -0.223881142
C157: Install lighting | D157: =IF(D24=INDEX(MedConf_Header,1,2),(IF(D$63="No",1,1-(((1-Traffic!$F$54*Constraints!$H$24-Constraints!$F$24/3)+((1-Traffic!$F$54*Constraints!$D$24-Constraints!$H$24)))*$S$19+((1-Traffic!$F$56)*Constraints!$F$24/3))/Constraints!$D$24)),(IF(D$63="No",1,1-(((1-Traffic!$F$54*Constraints!$H$38-Constraints!$F$38/3)+((1-Traffic!$F$54*Constraints!$D$38-Constraints!$H$38)))*$S$19+((1-Traffic!$F$56)*Constraints!$F$38/3))/Constraints!$D$38))) -> 0.9831908007 | E157: =IF(E$63="No",1,1-(((1-Traffic!$F$54*Constraints!$H$24-Constraints!$F$24/3)+((1-Traffic!$F$54*Constraints!$D$24-Constraints!$H$24)))*$S$19+((1-Traffic!$F$56)*Constraints!$F$24/3))/Constraints!$D$24) -> 1 | F157: =IF(F24=INDEX(MedConf_Header,1,2),(IF(F$63="No",1,1-(((1-Traffic!$F$54*Constraints!$H$24-Constraints!$F$24/3)+((1-Traffic!$F$54*Constraints!$D$24-Constraints!$H$24)))*$S$19+((1-Traffic!$F$56)*Constraints!$F$24/3))/Constraints!$D$24)),(IF(F$63="No",1,1-(((1-Traffic!$F$54*Constraints!$H$38-Constraints!$F$38/3)+((1-Traffic!$F$54*Constraints!$D$38-Constraints!$H$38)))*$S$19+((1-Traffic!$F$56)*Constraints!$F$38/3))/Constraints!$D$38))) -> 0.9831908007 | G157: =IF(G24=INDEX(MedConf_Header,1,2),(IF(G$63="No",1,1-(((1-Traffic!$F$54*Constraints!$H$24-Constraints!$F$24/3)+((1-Traffic!$F$54*Constraints!$D$24-Constraints!$H$24)))*$S$19+((1-Traffic!$F$56)*Constraints!$F$24/3))/Constraints!$D$24)),(IF(G$63="No",1,1-(((1-Traffic!$F$54*Constraints!$H$38-Constraints!$F$38/3)+((1-Traffic!$F$54*Constraints!$D$38-Constraints!$H$38)))*$S$19+((1-Traffic!$F$56)*Constraints!$F$38/3))/Constraints!$D$38))) -> 0.9831908007 | H157: =IF($I$2="Existing",(D157),(IF($I$2="Design 1",(F157),(IF($I$2="Design 2",(G157),(IF($I$2="Optimal",(I157),E157))))))) -> 1 | I157: =IF(I$63="No",1,1-(((1-Traffic!$F$54*Constraints!$H$24-Constraints!$F$24/3)+((1-Traffic!$F$54*Constraints!$D$24-Constraints!$H$24)))*$S$19+((1-Traffic!$F$56)*Constraints!$F$24/3))/Constraints!$D$24) -> 0.9806268923 | K157: =INDEX($D157:$I157,K$100) -> 0.9831908007 | L157: =INDEX($D157:$I157,L$100) -> 1 | M157: -0.01709657912 | O157: -0.02349908153
C158: Pavement friction (skid number) | D158: =EXP(LN(Traffic!$F$48)*(D$64-$E$64)) -> 1.397252142 | E158: =EXP(LN(Traffic!$F$48)*(E$64-$E$64)) -> 1 | F158: =IF(MATCH(F64,SkidNums,0)=3, $D158,EXP(LN([5]Traffic!$F$49)*(RIGHT(F$64,2)-$E$64))) ->  | G158: =IF(MATCH(G64,SkidNums,0)=3, $D158,EXP(LN([5]Traffic!$F$49)*(RIGHT(G$64,2)-$E$64))) ->  | H158: =IF($I$2="Existing",(D158),(IF($I$2="Design 1",(F158),(IF($I$2="Design 2",(G158),(IF($I$2="Optimal",(I158),E158))))))) -> 1 | I158: =EXP(LN(Traffic!$F$48)*(I$64-$E$64)) -> 0.8575355363 | K158: =INDEX($D158:$I158,K$100) -> 1.397252142 | L158: =INDEX($D158:$I158,L$100) -> 1 | M158: 0.2843095602 | O158: 0
C161: COMBINED Calculated CMF | D161: =+D149*D150*D151*D152*D153*D154*D155*D156*D157*D158 -> 1.054627774 | E161: =+E149*E150*E151*E152*E153*E154*E155*E156*E157*E158 -> 0.9180703851 | H161: =IF($I$2="Existing",(D161),(IF($I$2="Design 1",(F161),(IF($I$2="Design 2",(G161),(IF($I$2="Optimal",(I161),E161))))))) -> 0.9180703851 | I161: =+I149*I150*I151*I152*I153*I154*I155*I156*I157*I158 -> 0.5515704974 | K161: =INDEX($D161:$I161,K$100) -> 1.054627774 | L161: =INDEX($D161:$I161,L$100) -> 0.9180703851 | M161: =IF(ISERROR(1-L161/K161), 0, 1-L161/K161) -> 0.1294839682 | O161: 0
C162: Calculated Relative to Design Standards (Column E) | D162: =+D161/$E$161 -> 1.148743921 | E162: =+E161/$E$161 -> 1 | H162: 1 | I162: =+I161/$E$161 -> 0.6007932577 | K162: =INDEX($D162:$I162,K$100) -> 1.148743921 | L162: =INDEX($D162:$I162,L$100) -> 1 | M162: 0.1294839682 | O162: 0
C163: P(Crash) | D163: =+D162/(D162+1) -> 0.5346118306 | E163: 0.5 | H163: 0.5 | I163: =+I162/(I162+1) -> 0.3753097127 | K163: =INDEX($D163:$I163,K$100) -> 0.5346118306 | L163: =INDEX($D163:$I163,L$100) -> 0.5 | M163: 0.06474198408
C164: Factor Change on S curve | D164: =+D163/$E$163 -> 1.069223661 | E164: =+E163/$E$163 -> 1 | F164: =+F163/$E$163 ->  | H164: 1 | I164: =+I163/$E$163 -> 0.7506194254 | K164: =INDEX($D164:$I164,K$100) -> 1.069223661 | L164: =INDEX($D164:$I164,L$100) -> 1 | M164: 0.06474198408
C165: Adjust to Scale of 100 | D165: =+$I$118/D164*100 ->  | I165: =+$I$118/I164*100 -> 
C166: Unadjusted Combined Relative to Standard | D166: =+D161/$E$161 -> 1.148743921 | E166: =+E161/$E$161 -> 1 | F166: =+F161/$E$161 ->  | H166: 1 | I166: =+I161/$E$161 -> 0.6007932577 | J166: =I172/E172 -> 1.333333333 | K166: =INDEX($D166:$I166,K$100) -> 1.148743921 | L166: =INDEX($D166:$I166,L$100) -> 1 | M166: =IF(ISERROR(1-L166/K166), 0, 1-L166/K166) -> 0.1294839682
H167: 0 | K167: =INDEX($D167:$I167,K$100) -> 0 | L167: =INDEX($D167:$I167,L$100) -> 0 | M167: 0
C168: Adjusted for PA Basis | D168: =+D161*(1+1)/(1+D161*1) -> 1.026587674 | E168: 0.9572853971 | H168: 0.9572853971 | I168: =+I161*(1+1)/(1+I161*1) -> 0.710983482 | K168: =INDEX($D168:$I168,K$100) -> 1.026587674 | L168: =INDEX($D168:$I168,L$100) -> 0.9572853971 | M168: 0.06750741222
C169: Corrected by Odds Ratio | D169: =+D168/$E$168 -> 1.072394583 | E169: =+E168/$E$168 -> 1 | F169: =+F168/$E$168 ->  | H169: 1 | I169: =+I168/$E$168 -> 0.7427079575 | J169: =I175/E175 -> 1.428571429 | K169: =INDEX($D169:$I169,K$100) -> 1.072394583 | L169: =INDEX($D169:$I169,L$100) -> 1 | M169: 0.06750741222
D170: =(1/D169)^$D173 -> 0.1973217807 | E170: =(1/E169)^$D173 -> 1 | H170: 1 | I170: 999 | K170: =INDEX($D170:$I170,K$100) -> 0.1973217807 | L170: =INDEX($D170:$I170,L$100) -> 1 | M170: -4.067864259
D171: =(D170+$F174-1)/(1+(D170+$F174-1)) -> 0.6048454037 | E171: =(E170+$F174-1)/(1+(E170+$F174-1)) -> 0.7 | H171: 0.7 | I171: 0.9990013316 | K171: =INDEX($D171:$I171,K$100) -> 0.6048454037 | L171: =INDEX($D171:$I171,L$100) -> 0.7 | M171: -0.1573205248
C172: Score Odds Ratio with Optimal as 100 (old) | D172: =MIN(ROUND($I$169/D169*Construction!$I$3,0),$I172) -> 14 | E172: =MIN(ROUND($I$169/E169*Construction!$I$3,0),$I172) -> 15 | F172: =MIN(ROUND($I$169/F169*Construction!$I$3,0),$I172) ->  | G172: =MIN(ROUND($I$169/G169*Construction!$I$3,0),$I172) ->  | I172: =ROUND($I$169/I169*Construction!$I$3,0) -> 20
C173: Logistic1 | D173: =LN((D174/(1-D174))/(0.5/0.5))/LN($E169/I169) -> 23.21969994
C174: Logistic Param | D174: 0.999 | F174: =0.7/0.3 -> 2.333333333
C175: Score | D175: =MIN(ROUND(D171*Construction!$I$3,0),$I172) -> 12 | E175: =MIN(ROUND(E171*Construction!$I$3,0),$I172) -> 14 | F175: =MIN(ROUND(F171*Construction!$I$3,0),$I172) ->  | G175: =MIN(ROUND(G171*Construction!$I$3,0),$I172) ->  | I175: =MIN(ROUND(I171*Construction!$I$3,0),$I172) -> 20
D180: =INDEX(MedConf_Header,1,2) -> Divided - Unsurfaced Median
B182: Roadsde | D182: Existing | E182: Standard | F182: Design 1 | G182: Design 2
D183: =IF(ISBLANK(D75), 0, MID(D75,FIND(":",D75,1)+1,FIND("H",D75,1)-FIND(":",D75,1)-1)+0) -> 0 | E183: =MID(E75,FIND(":",E75,1)+1,FIND("H",E75,1)-FIND(":",E75,1)-1)+0 -> 4 | F183: =IF(ISBLANK(F75), 0, MID(F75,FIND(":",F75,1)+1,FIND("H",F75,1)-FIND(":",F75,1)-1)+0) -> 0 | G183: =IF(ISBLANK(G75), 0, MID(G75,FIND(":",G75,1)+1,FIND("H",G75,1)-FIND(":",G75,1)-1)+0) -> 0 | I183: =MID(I75,FIND(":",I75,1)+1,FIND("H",I75,1)-FIND(":",I75,1)-1)+0 -> 6 | O183: 0
C184: Sideslope (Foreslope) | D184: =IF(D24=INDEX(MedConf_Header,1,2),(IF(D183<=3,1,IF(OR(D183=4,D183=5),(Roadside!$F$15-1)*Constraints!$H$24/Constraints!$D$24+1,(Roadside!$F$15*Roadside!$F$16-1)*Constraints!$H$24/Constraints!$D$24+1))),(IF(D183<=3,1,IF(OR(D183=4,D183=5),(Roadside!$F$15-1)*Constraints!$H$38/Constraints!$D$38+1,(Roadside!$F$15*Roadside!$F$16-1)*Constraints!$H$38/Constraints!$D$38+1)))) -> 1 | E184: =IF(E24=INDEX(MedConf_Header,1,2),(IF(E183<=3,1,IF(OR(E183=4,E183=5),(Roadside!$F$15-1)*Constraints!$H$24/Constraints!$D$24+1,(Roadside!$F$15*Roadside!$F$16-1)*Constraints!$H$24/Constraints!$D$24+1))),(IF(E183<=3,1,IF(OR(E183=4,E183=5),(Roadside!$F$15-1)*Constraints!$H$38/Constraints!$D$38+1,(Roadside!$F$15*Roadside!$F$16-1)*Constraints!$H$38/Constraints!$D$38+1)))) -> 0.8430237753 | F184: =IF(F24=INDEX(MedConf_Header,1,2),(IF(F183<=3,1,IF(OR(F183=4,F183=5),(Roadside!$F$15-1)*Constraints!$H$24/Constraints!$D$24+1,(Roadside!$F$15*Roadside!$F$16-1)*Constraints!$H$24/Constraints!$D$24+1))),(IF(F183<=3,1,IF(OR(F183=4,F183=5),(Roadside!$F$15-1)*Constraints!$H$38/Constraints!$D$38+1,(Roadside!$F$15*Roadside!$F$16-1)*Constraints!$H$38/Constraints!$D$38+1)))) -> 1 | G184: =IF(G24=INDEX(MedConf_Header,1,2),(IF(G183<=3,1,IF(OR(G183=4,G183=5),(Roadside!$F$15-1)*Constraints!$H$24/Constraints!$D$24+1,(Roadside!$F$15*Roadside!$F$16-1)*Constraints!$H$24/Constraints!$D$24+1))),(IF(G183<=3,1,IF(OR(G183=4,G183=5),(Roadside!$F$15-1)*Constraints!$H$38/Constraints!$D$38+1,(Roadside!$F$15*Roadside!$F$16-1)*Constraints!$H$38/Constraints!$D$38+1)))) -> 1 | H184: =IF($I$2="Existing",(D184),(IF($I$2="Design 1",(F184),(IF($I$2="Design 2",(G184),(IF($I$2="Optimal",(I184),E184))))))) -> 0.8430237753 | I184: =IF(I24=INDEX(MedConf_Header,1,2),(IF(I183<=3,1,IF(OR(I183=4,I183=5),(Roadside!$F$15-1)*Constraints!$H$24/Constraints!$D$24+1,(Roadside!$F$15*Roadside!$F$16-1)*Constraints!$H$24/Constraints!$D$24+1))),(IF(I183<=3,1,IF(OR(I183=4,I183=5),(Roadside!$F$15-1)*Constraints!$H$38/Constraints!$D$38+1,(Roadside!$F$15*Roadside!$F$16-1)*Constraints!$H$38/Constraints!$D$38+1)))) -> 0.7953329032 | K184: =INDEX($D184:$I184,K$100) -> 1 | L184: =INDEX($D184:$I184,L$100) -> 0.8430237753 | M184: =IF(ISERROR(1-L184/K184), 0, 1-L184/K184) -> 0.1569762247 | O184: 0
C185: Backslope | D185: 1 | E185: 1 | F185: 1 | G185: 1 | H185: =IF($I$2="Existing",(D185),(IF($I$2="Design 1",(F185),(IF($I$2="Design 2",(G185),(IF($I$2="Optimal",(I185),E185))))))) -> 1 | I185: 1 | K185: =INDEX($D185:$I185,K$100) -> 1 | L185: =INDEX($D185:$I185,L$100) -> 1 | M185: 0 | O185: 0
C186: SafetyEdge | D186: =IF(D24=INDEX(MedConf_Header,1,2),(IF(D$77="No",1,(Roadside!$F$23-1)*AVERAGE(Constraints!$H$24,Constraints!$F$24)/Constraints!$D$24+1)),(IF(D$77="No",1,(Roadside!$F$23-1)*AVERAGE(Constraints!$H$38,Constraints!$F$38)/Constraints!$D$38+1))) -> 0.9771120954 | E186: =IF(E$77="No",1,(Roadside!$F$23-1)*AVERAGE(Constraints!$H$24,Constraints!$F$24)/Constraints!$D$24+1) -> 1 | F186: =IF(F24=INDEX(MedConf_Header,1,2),(IF(F$77="No",1,(Roadside!$F$23-1)*AVERAGE(Constraints!$H$24,Constraints!$F$24)/Constraints!$D$24+1)),(IF(F$77="No",1,(Roadside!$F$23-1)*AVERAGE(Constraints!$H$38,Constraints!$F$38)/Constraints!$D$38+1))) -> 0.9771120954 | G186: =IF(G24=INDEX(MedConf_Header,1,2),(IF(G$77="No",1,(Roadside!$F$23-1)*AVERAGE(Constraints!$H$24,Constraints!$F$24)/Constraints!$D$24+1)),(IF(G$77="No",1,(Roadside!$F$23-1)*AVERAGE(Constraints!$H$38,Constraints!$F$38)/Constraints!$D$38+1))) -> 0.9771120954 | H186: =IF($I$2="Existing",(D186),(IF($I$2="Design 1",(F186),(IF($I$2="Design 2",(G186),(IF($I$2="Optimal",(I186),E186))))))) -> 1 | I186: =IF(I$77="No",1,(Roadside!$F$23-1)*AVERAGE(Constraints!$H$24,Constraints!$F$24)/Constraints!$D$24+1) -> 0.9752688738 | K186: =INDEX($D186:$I186,K$100) -> 0.9771120954 | L186: =INDEX($D186:$I186,L$100) -> 1 | M186: -0.0234240316 | O186: -0.02818899192
C187: Lateral Clearance (ft) | D187: =IF(D24=INDEX(MedConf_Header,1,2),(IF($B$31="Yes",((EXP(LN(Roadside!$F$11)*(IF(D$79="None",40,D$78)-30)/30)-1))*Constraints!$H$17/Constraints!$D$24+1,((EXP(LN(Roadside!$F$10)*(IF(D$79="None",40,D$78)-30)/30)-1))*Constraints!$H$17/Constraints!$D$24+1)),(IF($B$31="Yes",((EXP(LN(Roadside!$F$11)*(IF(D$79="None",40,D$78)-30)/30)-1))*Constraints!$H$31/Constraints!$D$38+1,((EXP(LN(Roadside!$F$10)*(IF(D$79="None",40,D$78)-30)/30)-1))*Constraints!$H$31/Constraints!$D$38+1))) -> 1.047259244 | E187: =IF(E24=INDEX(MedConf_Header,1,2),(IF($B$31="Yes",((EXP(LN(Roadside!$F$11)*(IF(E$79="None",40,E$78)-30)/30)-1))*Constraints!$H$17/Constraints!$D$24+1,((EXP(LN(Roadside!$F$10)*(IF(E$79="None",40,E$78)-30)/30)-1))*Constraints!$H$17/Constraints!$D$24+1)),(IF($B$31="Yes",((EXP(LN(Roadside!$F$11)*(IF(E$79="None",40,E$78)-30)/30)-1))*Constraints!$H$31/Constraints!$D$38+1,((EXP(LN(Roadside!$F$10)*(IF(E$79="None",40,E$78)-30)/30)-1))*Constraints!$H$31/Constraints!$D$38+1))) -> 0.9794202967 | F187: =IF(F24=INDEX(MedConf_Header,1,2),(IF($B$31="Yes",((EXP(LN(Roadside!$F$11)*(IF(F$79="None",40,F$78)-30)/30)-1))*Constraints!$H$17/Constraints!$D$24+1,((EXP(LN(Roadside!$F$10)*(IF(F$79="None",40,F$78)-30)/30)-1))*Constraints!$H$17/Constraints!$D$24+1)),(IF($B$31="Yes",((EXP(LN(Roadside!$F$11)*(IF(F$79="None",40,F$78)-30)/30)-1))*Constraints!$H$31/Constraints!$D$38+1,((EXP(LN(Roadside!$F$10)*(IF(F$79="None",40,F$78)-30)/30)-1))*Constraints!$H$31/Constraints!$D$38+1))) -> 1.047259244 | G187: =IF(G24=INDEX(MedConf_Header,1,2),(IF($B$31="Yes",((EXP(LN(Roadside!$F$11)*(IF(G$79="None",40,G$78)-30)/30)-1))*Constraints!$H$17/Constraints!$D$24+1,((EXP(LN(Roadside!$F$10)*(IF(G$79="None",40,G$78)-30)/30)-1))*Constraints!$H$17/Constraints!$D$24+1)),(IF($B$31="Yes",((EXP(LN(Roadside!$F$11)*(IF(G$79="None",40,G$78)-30)/30)-1))*Constraints!$H$31/Constraints!$D$38+1,((EXP(LN(Roadside!$F$10)*(IF(G$79="None",40,G$78)-30)/30)-1))*Constraints!$H$31/Constraints!$D$38+1))) -> 1.047259244 | H187: =IF($I$2="Existing",(D187),(IF($I$2="Design 1",(F187),(IF($I$2="Design 2",(G187),(IF($I$2="Optimal",(I187),E187))))))) -> 0.9794202967 | I187: =IF(I24=INDEX(MedConf_Header,1,2),(IF($B$31="Yes",((EXP(LN(Roadside!$F$11)*(IF(I$79="None",40,I$78)-30)/30)-1))*Constraints!$H$17/Constraints!$D$24+1,((EXP(LN(Roadside!$F$10)*(IF(I$79="None",40,I$78)-30)/30)-1))*Constraints!$H$17/Constraints!$D$24+1)),(IF($B$31="Yes",((EXP(LN(Roadside!$F$11)*(IF(I$79="None",40,I$78)-30)/30)-1))*Constraints!$H$31/Constraints!$D$38+1,((EXP(LN(Roadside!$F$10)*(IF(I$79="None",40,I$78)-30)/30)-1))*Constraints!$H$31/Constraints!$D$38+1))) -> 0.9794202967 | K187: =INDEX($D187:$I187,K$100) -> 1.047259244 | L187: =INDEX($D187:$I187,L$100) -> 0.9794202967 | M187: 0.064777607 | O187: 0.09030716297
C188: Roadside Obstruction Type | D188: =IF(D24=INDEX(MedConf_Header,1,2),(IF(D$79="Guardrail",(Roadside!$F$25-1)*(($I$78-D$78)/$I$78)^2*Constraints!$H$17/Constraints!$D$24+1,1)),(IF(D$79="Guardrail",(Roadside!$F$25-1)*(($I$78-D$78)/$I$78)^2*Constraints!$H$31/Constraints!$D$38+1,1))) -> 1 | E188: =IF(E24=INDEX(MedConf_Header,1,2),(IF(E$79="Guardrail",(Roadside!$F$25-1)*(($I$78-E$78)/$I$78)^2*Constraints!$H$17/Constraints!$D$24+1,1)),(IF(E$79="Guardrail",(Roadside!$F$25-1)*(($I$78-E$78)/$I$78)^2*Constraints!$H$31/Constraints!$D$38+1,1))) -> 1 | F188: =IF(F24=INDEX(MedConf_Header,1,2),(IF(F$79="Guardrail",(Roadside!$F$25-1)*(($I$78-F$78)/$I$78)^2*Constraints!$H$17/Constraints!$D$24+1,1)),(IF(F$79="Guardrail",(Roadside!$F$25-1)*(($I$78-F$78)/$I$78)^2*Constraints!$H$31/Constraints!$D$38+1,1))) -> 1 | G188: =IF(G24=INDEX(MedConf_Header,1,2),(IF(G$79="Guardrail",(Roadside!$F$25-1)*(($I$78-G$78)/$I$78)^2*Constraints!$H$17/Constraints!$D$24+1,1)),(IF(G$79="Guardrail",(Roadside!$F$25-1)*(($I$78-G$78)/$I$78)^2*Constraints!$H$31/Constraints!$D$38+1,1))) -> 1 | H188: =IF($I$2="Existing",(D188),(IF($I$2="Design 1",(F188),(IF($I$2="Design 2",(G188),(IF($I$2="Optimal",(I188),E188))))))) -> 1 | I188: =IF(I24=INDEX(MedConf_Header,1,2),(IF(I$79="Guardrail",(Roadside!$F$25-1)*(($I$78-I$78)/$I$78)^2*Constraints!$H$17/Constraints!$D$24+1,1)),(IF(I$79="Guardrail",(Roadside!$F$25-1)*(($I$78-I$78)/$I$78)^2*Constraints!$H$31/Constraints!$D$38+1,1))) -> 1 | K188: =INDEX($D188:$I188,K$100) -> 1 | L188: =INDEX($D188:$I188,L$100) -> 1 | M188: 0 | O188: 0
K189: =INDEX($D189:$I189,K$100) -> 0 | L189: =INDEX($D189:$I189,L$100) -> 0 | M189: 0
K190: =INDEX($D190:$I190,K$100) -> 0 | L190: =INDEX($D190:$I190,L$100) -> 0 | M190: 0
C191: COMBINED Calculated CMF | D191: =+D184*D185*D186*D187*D188 -> 1.023289675 | E191: =+E184*E185*E186*E187*E188 -> 0.825674596 | F191: 1.023289675 | G191: 1.023289675 | H191: =IF($I$2="Existing",(D191),(IF($I$2="Design 1",(F191),(IF($I$2="Design 2",(G191),(IF($I$2="Optimal",(I191),E191))))))) -> 0.825674596 | I191: =+I184*I185*I186*I187*I188 -> 0.7597005016 | K191: =INDEX($D191:$I191,K$100) -> 1.023289675 | L191: =INDEX($D191:$I191,L$100) -> 0.825674596 | M191: 0.1931174364
C192: Calculated Relative to Design Standards (Column E) | D192: =+D191/$E$191 -> 1.239337724 | E192: =+E191/$E$191 -> 1 | F192: 1.239337724 | G192: 1.239337724 | H192: 1 | I192: =+I191/$E$191 -> 0.9200967369 | K192: =INDEX($D192:$I192,K$100) -> 1.239337724 | L192: =INDEX($D192:$I192,L$100) -> 1 | M192: 0.1931174364
C193: P(Crash) | D193: =+D192/(D192+1) -> 0.553439399 | E193: 0.5 | F193: 0.553439399 | G193: 0.553439399 | H193: 0.5 | I193: =+I192/(I192+1) -> 0.4791929069 | K193: =INDEX($D193:$I193,K$100) -> 0.553439399 | L193: =INDEX($D193:$I193,L$100) -> 0.5 | M193: 0.09655871821
C194: Factor Change on S curve | D194: =+D193/$E$193 -> 1.106878798 | E194: =+E193/$E$193 -> 1 | F194: 1.106878798 | G194: 1.106878798 | H194: 1 | I194: =+I193/$E$193 -> 0.9583858138 | K194: =INDEX($D194:$I194,K$100) -> 1.106878798 | L194: =INDEX($D194:$I194,L$100) -> 1 | M194: 0.09655871821
C195: Adjust to Scale of 100 | D195: =+$I$118/D194*100 ->  | I195: =+$I$118/I194*100 ->  | K195: =INDEX($D195:$I195,K$100) ->  | L195: =INDEX($D195:$I195,L$100) ->  | M195: 0
C196: Unadjusted Combined Relative to Standard | D196: =+D191/$E$191 -> 1.239337724 | E196: =+E191/$E$191 -> 1 | F196: 1.239337724 | G196: 1.239337724 | H196: 1 | I196: =+I191/$E$191 -> 0.9200967369 | J196: =I202/E202 -> 1.081081081 | K196: =INDEX($D196:$I196,K$100) -> 1.239337724 | L196: =INDEX($D196:$I196,L$100) -> 1 | M196: 0.1931174364
K197: =INDEX($D197:$I197,K$100) -> 0 | L197: =INDEX($D197:$I197,L$100) -> 0 | M197: 0
C198: Adjusted for PA Basis | D198: =+D191*(1+1)/(1+D191*1) -> 1.011510796 | E198: 0.9045145261 | F198: 1.011510796 | G198: 1.011510796 | H198: =IF($I$2="Existing",(D198),(IF($I$2="Design 1",(F198),(IF($I$2="Design 2",(G198),(IF($I$2="Optimal",(I198),E198))))))) -> 0.9045145261 | I198: =+I191*(1+1)/(1+I191*1) -> 0.8634429562 | K198: =INDEX($D198:$I198,K$100) -> 1.011510796 | L198: =INDEX($D198:$I198,L$100) -> 0.9045145261 | M198: 0.1057786732
C199: Corrected by Odds Ratio | D199: =+D191/$E$191 -> 1.239337724 | E199: =+E191/$E$191 -> 1 | F199: 1.239337724 | G199: 1.239337724 | H199: =IF($I$2="Existing",(D199),(IF($I$2="Design 1",(F199),(IF($I$2="Design 2",(G199),(IF($I$2="Optimal",(I199),E199))))))) -> 1 | I199: =+I191/$E$191 -> 0.9200967369 | J199: =I205/E205 -> 1.481481481 | K199: =INDEX($D199:$I199,K$100) -> 1.239337724 | L199: =INDEX($D199:$I199,L$100) -> 1 | M199: 0.1931174364
D200: =(1/D199)^$D203 -> 1.866669158e-08 | E200: =(1/E199)^$D203 -> 1 | F200: 1.866669158e-08 | G200: 1.866669158e-08 | H200: 1 | I200: 999
D201: =(D200+$F204-1)/(1+(D200+$F204-1)) -> 0.5000000047 | E201: =(E200+$F204-1)/(1+(E200+$F204-1)) -> 0.6666666667 | F201: 0.5000000047 | G201: 0.5000000047 | H201: 0.6666666667 | I201: 0.999000999
C202: Score Odds Ratio with Optimal as 100 (old) | D202: =MIN(ROUND($I$199/D199*Construction!$I$4,0),$I202) -> 30 | E202: =MIN(ROUND($I$199/E199*Construction!$I$4,0),$I202) -> 37 | F202: =MIN(ROUND($I$199/F199*Construction!$I$4,0),$I202) -> 30 | G202: =MIN(ROUND($I$199/G199*Construction!$I$4,0),$I202) -> 30 | I202: =ROUND($I$199/I199*Construction!$I$4,0) -> 40
C203: Logistic1 | D203: =LN((D204/(1-D204))/(0.5/0.5))/LN($E199/I199) -> 82.93765501
C204: Logistic Param | D204: 0.999 | F204: 2
C205: Score | D205: =MIN(ROUND(D201*Construction!$I$4,0),$I202) -> 20 | E205: =MIN(ROUND(E201*Construction!$I$4,0),$I202) -> 27 | F205: =MIN(ROUND(F201*Construction!$I$4,0),$I202) -> 20 | G205: =MIN(ROUND(G201*Construction!$I$4,0),$I202) -> 20 | I205: =MIN(ROUND(I201*Construction!$I$4,0),$I202) -> 40
C210: =D87/D183 ->  | E210: =ROUNDUP((MIN($I$14,$I$15)-E27-E28)/$C$210,0) ->  | F210: =ROUNDUP((MIN($I$14,$I$15)-F27-F28)/$C$210,0) ->  | G210: =ROUNDUP((MIN($I$14,$I$15)-G27-G28)/$C$210,0) ->  | I210: =ROUNDUP((MIN($I$14,$I$15)-I27-I28)/$C$210,0) -> 
C213: Distance to low point | D213: Distance to low point | E213: =$C$210*E183 ->  | F213: =$C$210*F183 ->  | I213: =$C$210*I183 -> 
D214: Additional ROW1 Needed for Foreslope | E214: =IF(E213>($I$14-E27-E28),E213-($I$14-E27-E28),0) ->  | F214: =IF(F213>($I$14-F27-F28),F213-($I$14-F27-F28),0) ->  | G214: =IF(G213>($I$14-G27-G28),G213-($I$14-G27-G28),0) ->  | I214: =IF(I213>($I$14-I27-I28),I213-($I$14-I27-I28),0) -> 
D215: Additional ROW2 Needed for Foreslope | E215: =IF(E213>($I$15-E27-E28),E213-($I$15-E27-E28),0) ->  | F215: =IF(F213>($I$15-F27-F28),F213-($I$15-F27-F28),0) ->  | G215: =IF(G213>($I$15-G27-G28),G213-($I$15-G27-G28),0) ->  | I215: =IF(I213>($I$15-I27-I28),I213-($I$15-I27-I28),0) -> 
D217: Additional ROW1 Needed for Lateral Clearance | E217: =IF((CL251+E30)-$I$14<0,0,(CL251+E30)-$I$14) -> 2 | F217: =IF((CM251+F30)-$I$14<0,0,(CM251+F30)-$I$14) -> 0 | G217: =IF((CN251+G30)-$I$14<0,0,(CN251+G30)-$I$14) -> 0 | I217: =IF((CP251+I30)-$I$14<0,0,(CP251+I30)-$I$14) -> 2
D218: Additional ROW2 Needed for Lateral Clearance | E218: =IF((CL251+E30)-$I$15<0,0,(CL251+E30)-$I$15) -> 2 | F218: =IF((CM251+F30)-$I$15<0,0,(CM251+F30)-$I$15) -> 0 | G218: =IF((CN251+G30)-$I$15<0,0,(CN251+G30)-$I$15) -> 0 | I218: =IF((CP251+I30)-$I$15<0,0,(CP251+I30)-$I$15) -> 2
C230: For Vertical Opt Use when Yes Vertical:
C231: G1 | D231: =D40 -> 0 | F231: =F40 -> 0 | G231: =G40 -> 0 | I231: =IF(ISERROR($E$238),"",INDEX(D231:G231,$E$238)) -> 
C232: G2 | D232: =D41 -> 0 | F232: =F41 -> 0 | G232: =G41 -> 0 | I232: =IF(ISERROR($E$238),"",INDEX(D232:G232,$E$238)) -> 
C233: abs(G2-G1) | D233: =ABS(D40-D41) -> 0 | F233: =ABS(F40-F41) -> 0 | G233: =ABS(G40-G41) -> 0
C234: Count in indicator (K no change; or K change but accept) | D234: =IF(D43<>"",1,"") ->  | F234: =IF(OR(AND($B$38 = "Yes", $D$43 <> F43, F43 <>"", $D$43 <> "", F45="Yes."),AND($B$38 = "Yes", $D$43 = F43, F43 <>"", $D$43 <> "")), 1,"") ->  | G234: =IF(OR(AND($B$38 = "Yes", $D$43 <> G43, G43 <>"", $D$43 <> "", G45="Yes."),AND($B$38 = "Yes", $D$43 = G43, G43 <>"", $D$43 <> "")), 1,"") -> 
C236: Valid abs(G2-G1) | D236: =IF(ISERROR(D233*D234),"",D233*D234) ->  | F236: =IF(ISERROR(F233*F234),"",F233*F234) ->  | G236: =IF(ISERROR(G233*G234),"",G233*G234) -> 
C237: The min valid abs(G2-G1) | E237: =MIN(D236,F236,G236) -> 0
C238: Index | E238: =MATCH(E237,D236:G236,0) -> 
C240: For Vertical Opt Use When No Vertical:
C241: G1 | D241: =IF(ISBLANK(D40), 999, D40) -> 999 | F241: =IF(ISBLANK(F40), 999, F40) -> 999 | G241: =IF(ISBLANK(G40), 999, G40) -> 999 | I241: =IF(E246=999,"",E246) -> 
C242: Sign of G1 | D242: =IF(D241>=0,1,-1) -> 1 | F242: =IF(F241>=0,1,-1) -> 1 | G242: =IF(G241>=0,1,-1) -> 1
C243: Abs G1 | D243: =ABS(D241) -> 999 | F243: =ABS(F241) -> 999 | G243: =ABS(G241) -> 999
C244: Min Abs G1 | E244: =MIN(D243:G243) -> 999
C245: Which is the Best G1 | E245: =MATCH(E244,D243:G243,0) -> 1
C246: Best G1 Value | E246: =INDEX(D241:G241,1,E245) -> 999
C249: Check if all cells filled | D249: =SUM(D251:D314) -> 19 | E249: =SUM(E251:E314) -> 1 | F249: 19 | G249: 19 | H249: 0 | I249: 0
C251: =C24 -> Configuration of Multilane Roadway | D251: =IF(ISBLANK(D24),1,0) -> 1 | E251: =IF(ISBLANK(E24),1,0) -> 0 | F251: 1 | G251: 1 | I251: 0
... 114 more rows

Sheet Configuration 3
G2: Preferred Schematic View to Display | I2: Standard | V2: NOTES:
B3: CHARACTERISTICS TO CONSIDER FOR ANALYSIS | V3: ELEMENTS INCREASING SAFETY | AE3: COMMENTS ON PRIMARY CONSTRAINTS
B4: INPUT INSTRUCTIONS | G4: Relative to | I4: Existing
B5: Blue Boxes -- Select from pulldown options | D5: Select from Pulldown
B6: Yellow Boxes -- Type input information into box | D6: Type Input Value
B7: Rural Multi-Lane Road Segment -- Safety Score Input | CF7: Unadjusted Marginal Safety
B8: General Information: | F8: General Site Features | H8: =I315 & " Missing Features and Curves" -> 9 Missing Features and Curves | CF8: =I2&" relative to " &I4 -> Standard relative to Existing
C9: Analyst: | D9: =+'Start Here'!H7 -> 0 | F9: Location
C10: Agency or Company: | D10: =+'Start Here'!H8 -> 0 | F10: Design Speed (mph)
C11: Date: | D11: =+'Start Here'!H9 -> 00:00:00 | F11: Posted Speed (mph)
C12: Description: | F12: E max (%)
C13: Input additional site information here | F13: Design Year AADT (vehicles per day)
F14: Dist. from Centerline to Left ROW (feet)
F15: Dist. from Centerline to Right ROW (feet)
B17: Warning:
C18: =+IF(+I11>I10,"Posted speed exceeds design speed. Optimal safety will only be achieved if design speed exceeds posted speed. The Safety Assessment Score is based on the higher of the two speed values.","No speed warnings identified") -> No speed warnings identified
C19: =IF(OR(F24=INDEX(MedConf_Header,1,3),+G24=INDEX(MedConf_Header,1,3)), "Multilane undivided facilities are known to have substantially more collisions than multilane facilities with medians. In new construction a median or TWLTL should be considered."," ") ->  | DB19: =COUNTIF(DB23:DB46,DB20) -> 1
C20: =IF(I13="40,001 < AADT < 60,000", "Multi-lane Road Should be Divided Due to High AADT Value","") ->  | DB20: =VLOOKUP(0,CZ23:DB46,3,) -> 10.01
D21: Fill all elements | F21: To enter notes, use boxes to the right of the vortex
B22: =+Construction!$I$2&" Total Available Points" -> 40 Total Available Points | D22: =D249 & " Missing Elements" -> 19 Missing Elements | F22: =F249 & " Missing Elements" -> 19 Missing Elements | G22: =G249 & " Missing Elements" -> 19 Missing Elements | CX22: Ranked element | CY22: CRF | CZ22: abs | DA22: Re-rank | DB22: Rank | DC22: Ranked CRF | DD22: Element | DE22: New Element | DF22: crf.abs | DG22: rank | DH22: Sorted Element | DI22: Sorted CRF
B23: Geometric Design Elements | D23: Existing | E23: Standard (Based on Multi-lane Divided) | F23: Design 1 | G23: Design 2 | H23: ="Marginal Safety for "&$I$2&" (compared to " & $I$4 & ")" -> Marginal Safety for Standard (compared to Existing) | I23: Optimal (Based on Multi-lane Divided) | CX23: =IF(CY23=0,"",DB23&". "&DD23) ->  | CY23: =H24 -> 0 | CZ23: =ABS(CY23) -> 0 | DA23: =_xlfn.RANK.EQ(DB23,$DB$23:$DB$46,1) -> 10 | DB23: =_xlfn.RANK.EQ(CZ23,$CZ$23:$CZ$46)+DG23/100 -> 10.01 | DC23: =CY23 -> 0 | DD23: =IF(ROUND(DF23,2)=0,"",C24) ->  | DE23: =DD23 ->  | DF23: =CZ23 -> 0 | DG23: 1 | DH23: =IFERROR(IF(IFERROR(VLOOKUP(DG23,$DA$23:$DF$46,4,)&", "&CY23=0,""),"",IFERROR(VLOOKUP(DG23,$DA$23:$DE$46,4,),"")),"") -> Pavement Friction (skid number) *** | DI23: =IFERROR(IF(IFERROR(VLOOKUP(DG23,$DA$23:$DF$46,3,)&", "&CY23=0,""),"",IFERROR(VLOOKUP(DG23,$DA$23:$DE$46,3,),"")),"") -> 0.2843095602
C24: Configuration of Multilane Roadway | E24: Divided - Unsurfaced Median | I24: Divided - Unsurfaced Median | CX24: 5.02. Median Configuration (Width or Type) | CY24: =H25 -> 0.09 | CZ24: 0.09 | DA24: =_xlfn.RANK.EQ(DB24,$DB$23:$DB$46,1) -> 5 | DB24: =_xlfn.RANK.EQ(CZ24,$CZ$23:$CZ$46)+DG24/100 -> 5.02 | DC24: =CY24 -> 0.09 | DD24: =IF(ROUND(DF24,2)=0,"",C25) -> Median Configuration (Width or Type) | DE24: =DD24 -> Median Configuration (Width or Type) | DF24: 0.09 | DG24: 2 | DH24: =IFERROR(IF(IFERROR(VLOOKUP(DG24,$DA$23:$DF$46,4,)&", "&CY24=0,""),"",IFERROR(VLOOKUP(DG24,$DA$23:$DE$46,4,),"")),"") -> Driveway Density (driveways per mile) | DI24: =IFERROR(IF(IFERROR(VLOOKUP(DG24,$DA$23:$DF$46,3,)&", "&CY24=0,""),"",IFERROR(VLOOKUP(DG24,$DA$23:$DE$46,3,),"")),"") -> -0.223881142
C25: Median Configuration (Width or Type) | E25: 30 | H25: =M103 -> 0.09 | I25: 100 | CY25: =H27 -> 0 | CZ25: 0 | DA25: 11 | DB25: 10.03 | DC25: =CY25 -> 0 | DD25: =IF(ROUND(DF25,2)=0,"",C27) ->  | DE25: =DD25 ->  | DF25: 0 | DG25: 3 | DH25: =IFERROR(IF(IFERROR(VLOOKUP(DG25,$DA$23:$DF$46,4,)&", "&CY25=0,""),"",IFERROR(VLOOKUP(DG25,$DA$23:$DE$46,4,),"")),"") -> Average Outside Shoulder Width (feet) | DI25: =IFERROR(IF(IFERROR(VLOOKUP(DG25,$DA$23:$DF$46,3,)&", "&CY25=0,""),"",IFERROR(VLOOKUP(DG25,$DA$23:$DE$46,3,),"")),"") -> 0.1806167401
DG26: 4 | DH26: =IFERROR(IF(IFERROR(VLOOKUP(DG26,$DA$23:$DF$46,4,)&", "&CY26=0,""),"",IFERROR(VLOOKUP(DG26,$DA$23:$DE$46,4,),"")),"") -> Roadside Sideslope (Foreslope) | DI26: =IFERROR(IF(IFERROR(VLOOKUP(DG26,$DA$23:$DF$46,3,)&", "&CY26=0,""),"",IFERROR(VLOOKUP(DG26,$DA$23:$DE$46,3,),"")),"") -> 0.1569762247
C27: Lane Width (feet) | E27: 12 | H27: =M104 -> 0 | I27: 12 | DG27: 5 | DH27: Median Configuration (Width or Type) | DI27: 0.09
C28: Average Outside Shoulder Width (feet) | E28: 8 | H28: =M105 -> 0.1806167401 | I28: 10 | CX28: =IF(CY28=0,"",DB28&". "&DD28) -> 3.06. Average Outside Shoulder Width (feet) | CY28: =H28 -> 0.1806167401 | CZ28: =ABS(CY28) -> 0.1806167401 | DA28: 3 | DB28: 3.06 | DC28: =CY28 -> 0.1806167401 | DD28: =IF(ROUND(DF28,2)=0,"",C28) -> Average Outside Shoulder Width (feet) | DE28: =DD28 -> Average Outside Shoulder Width (feet) | DF28: =CZ28 -> 0.1806167401 | DG28: 6 | DH28: Roadside Lateral Clearance to Obstruction (ft) | DI28: 0.064777607
C29: Average Inside Shoulder Width (feet) | E29: 4 | H29: =M106 -> 0 | I29: 10 | CX29: =IF(CY29=0,"",DB29&". "&DD29) ->  | CY29: =H33 -> 0 | CZ29: =ABS(CY29) -> 0 | DA29: 12 | DB29: 10.07 | DC29: 0 | DD29: =IF(ROUND(DF29,2)=0,"","Hz and Vt Alignment") ->  | DF29: =CZ29 -> 0 | DG29: 7 | DH29: Safety Edge | DI29: -0.0234240316
C30: Number of Lanes per Direction of Travel | E30: 2 | I30: 2 | CX30: =IF(CY30=0,"",DB30&". "&DD30) ->  | CY30: =H29 -> 0 | CZ30: =ABS(CY30) -> 0 | DA30: 13 | DB30: 10.08 | DC30: 0 | DD30: =IF(ROUND(DF30,2)=0,"",C29) ->  | DF30: =CZ30 -> 0 | DG30: 8 | DH30: Shoulder Rumble Strips | DI30: 0.0228750088
C31: Horizontal Curve Present? | D31: -- | E31: -- | F31: -- | G31: -- | I31: -- | CX31: =IF(CY31=0,"",DB31&". "&DD31) ->  | CY31: =H47 -> 0 | CZ31: =ABS(CY31) -> 0 | DA31: 14 | DB31: 10.09 | DC31: 0 | DD31: =IF(ROUND(DF31,2)=0,"",C47) ->  | DF31: =CZ31 -> 0 | DG31: 9 | DH31: Lighting | DI31: -0.01709657912
C32: Horizontal Curve Data for Controlling Element: | D32: -- | E32: -- | F32: -- | G32: -- | I32: -- | CY32: =H48 -> 0 | CZ32: 0 | DA32: 15 | DB32: 10.1 | DC32: 0 | DD32: =IF(ROUND(DF32,2)=0,"",C48) ->  | DF32: 0 | DG32: 10 | DI32: 0
C33: Radius (feet) | E33: =IF(MAX($I$10,$I$11)<45,590,IF($I$12=6,VLOOKUP(MAX($I$10,$I$11),Construction!$B$27:$D$34,2,TRUE),VLOOKUP(MAX($I$10,$I$11),Construction!$G$27:$I$34,2,TRUE))) -> 590 | H33: =M144 -> 0 | I33: =IF(MAX($I$10,$I$11)<45,590,IF($I$12=6,VLOOKUP(MAX($I$10,$I$11),Construction!$B$43:$C$50,2,TRUE),VLOOKUP(MAX($I$10,$I$11),Construction!$G$43:$H$50,2,TRUE))) -> 590 | CY33: =H56 -> 0 | CZ33: 0 | DA33: 16 | DB33: 10.11 | DC33: 0 | DD33: =IF(ROUND(DF33,2)=0,"",C56) ->  | DF33: 0 | DG33: 11 | DI33: 0
C34: Length of Horizontal Curve (feet) | E34: =IF(D35="", "", E33*E35/57.296) ->  | I34: =I33*I35/57.296 -> 3758.55208 | CY34: 0 | CZ34: 0 | DA34: 17 | DB34: 10.12 | DC34: 0 | DF34: 0 | DG34: 12 | DI34: 0
C35: Calculated Deflection Angle ∆ | D35: =IF(OR(ISBLANK(D33),ISBLANK(D34),$B$31="No",ISBLANK($B$31)),"",ROUND(D34/D33*57.296,1)) ->  | E35: =IF(ISBLANK(D35), "",D35) ->  | F35: =IF(OR(ISBLANK(F33),ISBLANK(F34),$B$31="No",ISBLANK($B$31)),"",ROUND(F34/F33*57.296,1)) ->  | G35: =IF(OR(ISBLANK(G33),ISBLANK(G34),$B$31="No",ISBLANK($B$31)),"",ROUND(G34/G33*57.296,1)) ->  | I35: =MIN(D35,IF(F37=INDEX(HCurveChange,1,0), F35, 365),IF(G37=INDEX(HCurveChange,1,0), G35, 365)) -> 365 | CY35: 0 | CZ35: 0 | DA35: 18 | DB35: 10.13 | DC35: 0 | DF35: 0 | DG35: 13 | DI35: 0
F36: ∆ has changed. Are you changing the ∆? | G36: ∆ has changed. Are you changing the ∆? | CY36: 0 | CZ36: 0 | DA36: 19 | DB36: 10.14 | DC36: 0 | DF36: 0 | DG36: 14 | DI36: 0
CX37: 8.15. Shoulder Rumble Strips | CY37: 0.0228750088 | CZ37: 0.0228750088 | DA37: 8 | DB37: 8.15 | DC37: 0.0228750088 | DD37: Shoulder Rumble Strips | DE37: Shoulder Rumble Strips | DF37: 0.0228750088 | DG37: 15 | DI37: 0
C38: Vertical Curve Present? | D38: -- | E38: -- | F38: -- | G38: -- | I38: =E38 -> -- | CY38: 0 | CZ38: 0 | DA38: 20 | DB38: 10.16 | DC38: 0 | DF38: 0 | DG38: 16 | DI38: 0
C39: Vertical Curve Data for Controlling Element: | D39: -- | E39: -- | F39: -- | G39: -- | I39: -- | CX39: 2.17. Driveway Density (driveways per mile) | CY39: -0.223881142 | CZ39: 0.223881142 | DA39: 2 | DB39: 2.17 | DC39: -0.223881142 | DD39: =IF(DF39=0,"",C62) -> Driveway Density (driveways per mile) | DE39: Driveway Density (driveways per mile) | DF39: 0.223881142 | DG39: 17 | DI39: 0
C40: Approach (Entry) Grade, G1 (%) | E40: =IF(ISBLANK(D40),"", D40) ->  | I40: =IF(B38="Yes",I231,I241) ->  | CX40: 9.18. Lighting | CY40: -0.01709657912 | CZ40: 0.01709657912 | DA40: 9 | DB40: 9.18 | DC40: -0.01709657912 | DD40: =IF(DF40=0,"",C63) -> Lighting | DE40: Lighting | DF40: 0.01709657912 | DG40: 18 | DI40: 0
C41: Departure (Exit) Grade, G2 (%) | E41: =IF(ISBLANK(D41),"", D41) ->  | I41: =IF($B$38="Yes",I232,"") ->  | CX41: 1.19. Pavement Friction (skid number) *** | CY41: 0.2843095602 | CZ41: 0.2843095602 | DA41: 1 | DB41: 1.19 | DC41: 0.2843095602 | DD41: =IF(DF41=0,"",C64) -> Pavement Friction (skid number) *** | DE41: Pavement Friction (skid number) *** | DF41: 0.2843095602 | DG41: 19 | DI41: 0
C42: Length (feet) | E42: =IF(AND($B$38="Yes", D43<>""), ABS(E40-E41)*D43, "") ->  | I42: =IF(AND($B$38="Yes",I40<>"",I41<>"", NOT(ISBLANK($I$10)), NOT(ISBLANK($I$11))),ABS(I41-I40)*I43,"") ->  | CX42: 4.2. Roadside Sideslope (Foreslope) | CY42: =H75 -> 0.1569762247 | CZ42: 0.1569762247 | DA42: 4 | DB42: 4.2 | DC42: 0.1569762247 | DD42: =IF(DF42=0,"",C75) -> Roadside Sideslope (Foreslope) | DE42: Roadside Sideslope (Foreslope) | DF42: 0.1569762247 | DG42: 20 | DI42: 0
C43: Calculated Rate of Change, K (ft/ft) | D43: =IF(OR($B$38="No",ISBLANK($B$38), ISBLANK(D40), ISBLANK(D41),ISBLANK(D42), D40=D41), "", ROUND(D42/(ABS(D41-D40)),1)) ->  | E43: =IF(AND($B$38="Yes", NOT(ISBLANK($I$10)), NOT(ISBLANK($I$11)), D43<>""), IF($E$46="Crest", VLOOKUP(MAX($I$10,$I$11),Construction!$B$159:$D$171,2,TRUE), VLOOKUP(MAX($I$10,$I$11),Construction!$B$159:$D$171,3,TRUE)), "") ->  | F43: =IF(AND($B$38="Yes", SUM(F267:F269)=0),ROUND(F42/(ABS(F41-F40)),1),"") ->  | G43: =IF(AND($B$38="Yes", SUM(G267:G269)=0),ROUND(G42/(ABS(G41-G40)),1),"") ->  | I43: =IF(OR($B$38<>"Yes", ISBLANK($I$10), ISBLANK($I$11), $I$40="", $I$41="", $I$46="--", ISBLANK($I$46)),"",IF(I$46="Crest",VLOOKUP(MAX($I$10,$I$11),Construction!$B$177:$D$189,2,TRUE),VLOOKUP(MAX($I$10,$I$11),Construction!$B$177:$D$189,3,TRUE))) ->  | CY43: =H76 -> 0 | CZ43: 0 | DA43: 21 | DB43: 10.21 | DC43: 0 | DD43: =IF(DF43=0,"",C76) ->  | DF43: 0 | DG43: 21 | DI43: 0
F44: Are you changing the geometry? | G44: Are you changing the geometry? | CX44: 7.22. Safety Edge | CY44: =H77 -> -0.0234240316 | CZ44: 0.0234240316 | DA44: 7 | DB44: 7.22 | DC44: -0.0234240316 | DD44: =IF(DF44=0,"",C77) -> Safety Edge | DE44: Safety Edge | DF44: 0.0234240316 | DG44: 22 | DI44: 0
CX45: 6.23. Roadside Lateral Clearance to Obstruction (ft) | CY45: =H78 -> 0.064777607 | CZ45: 0.064777607 | DA45: 6 | DB45: 6.23 | DC45: 0.064777607 | DD45: =IF(DF45=0,"",C78) -> Roadside Lateral Clearance to Obstruction (ft) | DE45: Roadside Lateral Clearance to Obstruction (ft) | DF45: 0.064777607 | DG45: 23 | DI45: =IFERROR(IF(IFERROR(VLOOKUP(DG45,$DA$23:$DF$46,3,)&", "&CY45=0,""),"",IFERROR(VLOOKUP(DG45,$DA$23:$DE$46,3,),"")),"") -> 
C46: Calculated Sag or Crest? | D46: =IF(AND($B$38="Yes", SUM(D267:D269)=0),IF(D40>D41,"Crest","Sag"),"--") -> -- | E46: =IF(AND($B$38="Yes", SUM(D267:D269)=0),IF(E40>E41,"Crest","Sag"),"--") -> -- | F46: =IF(AND($B$38="Yes", SUM(F267:F269)=0),IF(F40>F41,"Crest","Sag"),"--") -> -- | G46: =IF(AND($B$38="Yes", SUM(G267:G269)=0),IF(G40>G41,"Crest","Sag"),"--") -> -- | I46: =IF($B$38="Yes",IF(I40>I41,"Crest","Sag"),"--") -> -- | CY46: =H79 -> 0 | CZ46: 0 | DA46: 22 | DB46: 10.24 | DC46: 0 | DD46: =IF(DF46=0,"",C79) ->  | DF46: 0 | DG46: 24 | DI46: =IFERROR(IF(IFERROR(VLOOKUP(DG46,$DA$23:$DF$46,3,)&", "&CY46=0,""),"",IFERROR(VLOOKUP(DG46,$DA$23:$DE$46,3,),"")),"") -> 
C49: Geometric Design Element (Partial Score) | D49: =IF(OR(SUM(D251:D252,D254:D257,D260:D261,D267:D269)>0, ISERR(D129)),"",D129) ->  | E49: =IF(OR(SUM(E251:E252,E254:E257,E260:E261,E267:E269)>0, ISERR(E129)),"",E129) ->  | I49: =IF(OR(SUM(I251:I252,I254:I257,I260:I261,I267:I269)>0, ISERR(I129)),"",I129) ->  | M49: SCHEMATIC REPRESENTING INPUT DATA FOR | U49: =IF($I$2="Existing","EXISTING CONFIGURATION",IF($I$2="Standard","STANDARD OPTION",IF($I$2="Design 1","DESIGN 1 OPTION",IF($I$2="Design 2","DESIGN 2 OPTION","OPTIMAL OPTION")))) -> STANDARD OPTION
C50: Total Safety Score | D50: =IF(OR(D$249>0, $I$315>0, ISERROR(D$205+D$175+D$129)),"",D$205+D$175+D$129) ->  | E50: =IF(OR(E$249>0, $I$315>0, ISERROR(E$205+E$175+E$129)),"",E$205+E$175+E$129) ->  | F50: =IF(OR(F$249>0, $I$315>0, ISERROR(F$205+F$175+F$129)),"",F$205+F$175+F$129) ->  | G50: =IF(OR(G$249>0, $I$315>0, ISERROR(G$205+G$175+G$129)),"",G$205+G$175+G$129) ->  | I50: =IF(OR(I$249>0, $I$315>0, ISERROR(I$205+I$175+I$129)),"",I$205+I$175+I$129) -> 
L51: LT | AA51: RT
L52: R/W | S52: =+O54+W54 -> 0 | AA52: R/W
B54: =+Construction!$I$3&" Total Available Points" -> 20 Total Available Points | O54: =+$I$14 -> 0 | W54: =+$I$15 -> 0
B55: Traffic Elements | D55: Existing | E55: Standard | F55: Design 1 | G55: Design 2 | H55: =H23 -> Marginal Safety for Standard (compared to Existing) | I55: Optimal
C56: Advance Static Curve Warning Signs | E56: No | H56: =M149 -> 0 | I56: Yes | L56: =+O54-N56-P56 -> -32 | N56: =IF(+$I$2="Existing",D28,IF($I$2="Standard",E28,IF($I$2="Design 1",F28,IF($I$2="Design 2",G28,I28)))) -> 8 | P56: =IF(+$I$2="Existing",D27*D30,IF($I$2="Standard",E27*E30,IF($I$2="Design 1",F27*F30,IF($I$2="Design 2",G27*G30,I27*I30)))) -> 24 | V56: =+P56 -> 24 | Y56: =+N56 -> 8 | Z56: =+W54-V56-Y56 -> -32
C57: Chevron Signs on Horizontal Curves | E57: No | H57: =M150 -> 0 | I57: Yes
C58: Post-Mounted Delineators | E58: No | H58: =M151 -> 0 | I58: Yes
C59: Edgeline Pavement Markings or Profile Markings | E59: No | H59: =M152 -> 0 | I59: Yes
C60: Shoulder Rumble Strips | E60: Yes | H60: =M154 -> 0.0228750088 | I60: Yes
C61: Centerline Rumble Strips | E61: No | H61: =M155 -> 0 | I61: Yes | S61: Tangent X-Section
C62: Driveway Density (driveways per mile) | E62: 10 | H62: =M156 -> -0.223881142 | I62: 0
C63: Lighting | E63: No | H63: =M157 -> -0.01709657912 | I63: Yes
C64: Pavement Friction (skid number) *** | E64: 37 | H64: =M158 -> 0.2843095602 | I64: 54
C65: Traffic Control Element (Partial Score): | D65: =IF(ISERROR(D175), "", D175) -> 12 | E65: =IF(ISERROR(E175), "", E175) -> 14 | I65: =IF(ISERROR(I175), "", I175) -> 20
C66: Total Safety Score | D66: =IF(OR(D$249>0, $I$315>0, ISERROR(D$205+D$175+D$129)),"",D$205+D$175+D$129) ->  | E66: =IF(OR(E$249>0, $I$315>0, ISERROR(E$205+E$175+E$129)),"",E$205+E$175+E$129) ->  | I66: =IF(OR(I$249>0, $I$315>0, ISERROR(I$205+I$175+I$129)),"",I$205+I$175+I$129) -> 
C68: *** Pavement friction/skid numbers will not be subject to open records requests *** | Q68: =IF($I$2="Existing","SCORE SUMMARY FOR EXISTING CONFIGURATION", IF($I$2="Standard","SCORE SUMMARY FOR STANDARD OPTION",IF($I$2="Design 1","SCORE SUMMARY FOR DESIGN 1 OPTION",IF($I$2="Design 2","SCORE SUMMARY FOR DESIGN 2 OPTION", "SCORE SUMMARY FOR OPTIMAL OPTION")))) -> SCORE SUMMARY FOR STANDARD OPTION
Q69: GEOMETRIC DESIGN: | W69: =IF($I$2="Existing",D49,IF($I$2="Standard",E49,IF($I$2="Design 1",F49,IF($I$2="Design 2",G49,I49)))) -> 
Q70: TRAFFIC CONTROL: | W70: =IF($I$2="Existing",D65,IF($I$2="Standard",E65,IF($I$2="Design 1",F65,IF($I$2="Design 2",G65,I65)))) -> 14
Q71: ROADSIDE: | W71: =IF($I$2="Existing",D80,IF($I$2="Standard",E80,IF($I$2="Design 1",F80,IF($I$2="Design 2",G80,I80)))) -> 27
Q72: OVERALL SAFETY SCORE: | W72: =SUM(W69:X71) -> 41
B73: =+Construction!$I$4&" Total Available Points" -> 40 Total Available Points
B74: Roadside Elements | D74: Existing | E74: Standard | F74: Design 1 | G74: Design 2 | H74: =H23 -> Marginal Safety for Standard (compared to Existing) | I74: Optimal
C75: Roadside Sideslope (Foreslope) | E75: 1V:4H | H75: =M184 -> 0.1569762247 | I75: 1V:6H
C76: Roadside Backslope | E76: =E75 -> 1V:4H | H76: =M185 -> 0 | I76: 1V:4H
C77: Safety Edge | E77: No | H77: -0.0234240316 | I77: Yes
C78: Roadside Lateral Clearance to Obstruction (ft) | E78: 30 | H78: 0.064777607 | I78: 40
C79: Roadside Obstruction Type | E79: None | H79: 0 | I79: None/Removed
C80: Roadside Element (Partial Score): | D80: =IF(ISERR(D205),"",D205) -> 20 | E80: =IF(ISERR(E205),"",E205) -> 27 | F80: 20 | G80: 20 | I80: =IF(ISERR(I205),"",I205) -> 40
C81: Total Safety Score | D81: =IF(OR(D$249>0, $I$315>0, ISERROR(D$205+D$175+D$129)),"",D$205+D$175+D$129) ->  | E81: =IF(OR(E$249>0, $I$315>0, ISERROR(E$205+E$175+E$129)),"",E$205+E$175+E$129) ->  | I81: =IF(OR(I$249>0, $I$315>0, ISERROR(I$205+I$175+I$129)),"",I$205+I$175+I$129) -> 
B86: ADDITIONAL SIDESLOPE INFORMATION
C87: Distance to Slope Toe from Shoulder (ft) | E87: =D87 -> 0 | F87: =E87 -> 0 | G87: 0 | I87: =G87 -> 0
B88: Minimum foreslope feasible within current ROW | E88: =IF(OR(ISBLANK($D$87), ISERROR(E209)), "", "1V:"&E209&"H") ->  | F88: =IF(OR(ISBLANK($D$87), ISERROR(F209)), "", "1V:"&F209&"H") ->  | G88: =IF(OR(ISBLANK($D$87), ISERROR(G209)), "", "1V:"&G209&"H") ->  | I88: =IF(OR(ISBLANK($D$87), ISERROR(I209)), "", "1V:"&I209&"H") -> 
B89: Additional R/W needed on left side | E89: =IF(OR(ISBLANK($D$87), ISERROR(E213)),"", MAX(E213,E216)) ->  | F89: =IF(OR(ISBLANK($D$87), ISERROR(F213)), "", MAX(F213,F216)) ->  | G89: =IF(OR(ISBLANK($D$87), ISERROR(G213)),"", MAX(G213,G216)) ->  | I89: =IF(OR(ISBLANK($D$87), ISERROR(I213)),"", MAX(I213,I216)) -> 
B90: Additional R/W needed on right side | E90: =IF(OR(ISBLANK($D$87), ISERROR(E214)), "", MAX(E214,E217)) ->  | F90: =IF(OR(ISBLANK($D$87), ISERROR(F214)), "", MAX(F214,F217)) ->  | G90: =IF(OR(ISBLANK($D$87), ISERROR(G214)),"", MAX(G214,G217)) ->  | I90: =IF(OR(ISBLANK($D$87), ISERROR(I214)),"", MAX(I214,I217)) -> 
D98: =GetCMF_MED(D24,D25,2000,D28) -> 1 | J98: =1-I104/E104 -> 0 | K98: For Plot
J99: =1-I105/E105 -> 0.03225806452 | K99: relative to | L99: Prefer
D100: =MAX(SUM(D107:D111)-5,$I$100) ->  | E100: =MAX(SUM(E107:E111)-5,$I$100) ->  | I100: =SUM(I107:I111)-5 ->  | J100: =1-I106/E106 -> 0.1444408096 | K100: =MATCH(K101,ModView,0) -> 1 | L100: =MATCH(L101,ModView,0) -> 2
B101: Geometric | J101: =1-I107/E107 ->  | K101: =I4 -> Existing | L101: =I2 -> Standard | M101: %
C102: Divided versus Undivided | D102: 1 | E102: 1 | F102: 1 | G102: 1 | I102: 1 | K102: =INDEX($D102:$I102,K$100) -> 1 | L102: =INDEX($D102:$I102,L$100) -> 1 | M102: =IF(ISERROR(1-L102/K102), 0, 1-L102/K102) -> 0
C103: Median Width | D103: =GetCMF_MED(D24,D25,$I$13,D28) -> 1 | E103: =GetCMF_MED(E24,E25,$I$13,E28) -> 0.91 | F103: =GetCMF_MED(F24,F25,$I$13,F28) -> 1 | G103: =GetCMF_MED(G24,G25,$I$13,G28) -> 1 | H103: =H25 -> 0.09 | I103: =GetCMF_MED(I24,I25,$I$13,I28) -> 0.66 | K103: =INDEX($D103:$I103,K$100) -> 1 | L103: =INDEX($D103:$I103,L$100) -> 0.91 | M103: =IF(ISERROR(1-L103/K103), 0, 1-L103/K103) -> 0.09
C104: LW CMF | D104: =IF(D24=INDEX(MedConf_Header,1,2),VLOOKUP(+D27,Construction!$N$30:$O$36,2),VLOOKUP(D27,Construction!$I$15:$J$21,2)) ->  | E104: =IF(E24=INDEX(MedConf_Header,1,2),VLOOKUP(+E27,Construction!$N$30:$O$36,2),VLOOKUP(E27,Construction!$I$15:$J$21,2)) -> 1 | F104: =IF(F24=INDEX(MedConf_Header,1,2),VLOOKUP(+F27,Construction!$N$30:$O$36,2),VLOOKUP(F27,Construction!$I$15:$J$21,2)) ->  | G104: =IF(G24=INDEX(MedConf_Header,1,2),VLOOKUP(+G27,Construction!$N$30:$O$36,2),VLOOKUP(G27,Construction!$I$15:$J$21,2)) ->  | H104: =H27 -> 0 | I104: =IF(I24=INDEX(MedConf_Header,1,2),VLOOKUP(+I27,Construction!$N$30:$O$36,2),VLOOKUP(I27,Construction!$I$15:$J$21,2)) -> 1 | K104: =INDEX($D104:$I104,K$100) ->  | L104: =INDEX($D104:$I104,L$100) -> 1 | M104: 0 | O104: 0
C105: SW CMF | D105: =IF(D24=INDEX(MedConf_Header,1,2),VLOOKUP(D28,Construction!$C$11:D21,2),(VLOOKUP(D28,Construction!$O$43:$P$53,2)-1)*0.27+1) -> 1.135 | E105: =IF(E24=INDEX(MedConf_Header,1,2),VLOOKUP(E28,Construction!$C$11:E21,2),(VLOOKUP(E28,Construction!$O$43:$P$53,2)-1)*0.27+1) -> 0.93 | F105: =IF(F24=INDEX(MedConf_Header,1,2),VLOOKUP(F28,Construction!$C$11:F21,2),(VLOOKUP(F28,Construction!$O$43:$P$53,2)-1)*0.27+1) -> 1.135 | G105: =IF(G24=INDEX(MedConf_Header,1,2),VLOOKUP(G28,Construction!$C$11:G21,2),(VLOOKUP(G28,Construction!$O$43:$P$53,2)-1)*0.27+1) -> 1.135 | H105: =IF($I$2="Existing",(1-D105/E105),(IF($I$2="Design 1",(1-F105/E105),(IF($I$2="Design 2",(1-G105/E105),(IF($I$2="Optimal",(1-I105/E105),0))))))) -> 0 | I105: =IF(I24=INDEX(MedConf_Header,1,2),VLOOKUP(I28,Construction!$C$11:I21,2),(VLOOKUP(I28,Construction!$O$43:$P$53,2)-1)*0.27+1) -> 0.9 | K105: =INDEX($D105:$I105,K$100) -> 1.135 | L105: =INDEX($D105:$I105,L$100) -> 0.93 | M105: 0.1806167401 | O105: 0.1550387597
C106: Inside Shoulder Width | D106: =IF(AND(D24=INDEX(MedConf_Header,1,2), NOT(ISBLANK(D29))), EXP(-0.026*(D29-4)), 1) -> 1 | E106: =IF(AND(E24=INDEX(MedConf_Header,1,2), NOT(ISBLANK(E29))), EXP(-0.026*(E29-4)), 1) -> 1 | F106: =IF(AND(F24=INDEX(MedConf_Header,1,2), NOT(ISBLANK(F29))), EXP(-0.026*(F29-4)), 1) -> 1 | G106: =IF(AND(G24=INDEX(MedConf_Header,1,2), NOT(ISBLANK(G29))), EXP(-0.026*(G29-4)), 1) -> 1 | H106: 0 | I106: =IF(AND(I24=INDEX(MedConf_Header,1,2), NOT(ISBLANK(I29))), EXP(-0.026*(I29-4)), 1) -> 0.8555591904 | K106: =INDEX($D106:$I106,K$100) -> 1 | L106: =INDEX($D106:$I106,L$100) -> 1 | M106: 0 | O106: 0
C107: HC and Grade | D107: =D$138^D$131 -> 1 | E107: =E$138^E$131 -> 1 | F107: 1 | G107: 1 | H107: 0 | I107: =I$138^I$131 ->  | K107: =INDEX($D107:$I107,K$100) -> 1 | L107: =INDEX($D107:$I107,L$100) -> 1 | M107: 0 | O107: 0
C108: HC and VC Crest type I | D108: =D$139^D$132 -> 1 | E108: =E$139^E$132 -> 1 | F108: 1 | G108: 1 | H108: 0 | I108: =I$139^I$132 ->  | K108: =INDEX($D108:$I108,K$100) -> 1 | L108: =INDEX($D108:$I108,L$100) -> 1 | M108: 0 | O108: 0
C109: HC and VC Sag type I | D109: =D$140^D$133 -> 1 | E109: =E$140^E$133 -> 1 | F109: 1 | G109: 1 | H109: 0 | I109: =I$140^I$133 ->  | J109: =1-I115/E115 ->  | K109: =INDEX($D109:$I109,K$100) -> 1 | L109: =INDEX($D109:$I109,L$100) -> 1 | M109: 0 | O109: 0
C110: HC and VC Crest type II | D110: =D$141^D$134 -> 1 | E110: =E$141^E$134 -> 1 | F110: 1 | G110: 1 | H110: 0 | I110: =I$141^I$134 ->  | J110: =1-I116/E116 ->  | K110: =INDEX($D110:$I110,K$100) -> 1 | L110: =INDEX($D110:$I110,L$100) -> 1 | M110: 0 | O110: 0
C111: HC and VC Sag type II | D111: =D$142^D$135 -> 1 | E111: =E$142^E$135 -> 1 | F111: 1 | G111: 1 | H111: 0 | I111: =I$142^I$135 ->  | J111: =1-I117/E117 ->  | K111: =INDEX($D111:$I111,K$100) -> 1 | L111: =INDEX($D111:$I111,L$100) -> 1 | M111: 0 | O111: 0
C112: Add TWLTL | D112: =IF(D$47="No",1,CMFs!$F$17) -> 0.71 | E112: =IF(E$47="No",1,CMFs!$F$17) -> 0.71 | F112: =IF(F$47="No",1,CMFs!$F$17) -> 0.71 | G112: =IF(G$47="No",1,CMFs!$F$17) -> 0.71 | H112: 0 | I112: =IF(I$47="No",1,CMFs!$F$17) -> 0.71 | J112: =1-I118/E118 ->  | K112: =INDEX($D112:$I112,K$100) -> 0.71 | L112: =INDEX($D112:$I112,L$100) -> 0.71 | M112: 0 | O112: 0
C113: Provide passing lane | D113: =IF(D$48="No",1,CMFs!$F$21) -> 0.75 | E113: =IF(E$48="No",1,CMFs!$F$21) -> 0.75 | F113: =IF(F$48="No",1,CMFs!$F$21) -> 0.75 | G113: =IF(G$48="No",1,CMFs!$F$21) -> 0.75 | H113: 0 | I113: =IF(I$48="No",1,CMFs!$F$21) -> 0.75 | J113: =I119/E119 ->  | K113: =INDEX($D113:$I113,K$100) -> 0.75 | L113: =INDEX($D113:$I113,L$100) -> 0.75 | M113: 0 | O113: 0
C115: COMBINED Calculated CMF | D115: =+D104*D105*D106*D107*D108*D109*D110*D111*D112*D113*D103*D102 ->  | E115: =+E104*E105*E106*E107*E108*E109*E110*E111*E112*E113*E103*E102 -> 0.45065475 | H115: =IF($I$2="Existing",(D115),(IF($I$2="Design 1",(F115),(IF($I$2="Design 2",(G115),(IF($I$2="Optimal",(I115),E115))))))) -> 0.45065475 | I115: =+I104*I105*I106*I107*I108*I109*I110*I111*I112*I113*I103*I102 ->  | K115: =INDEX($D115:$I115,K$100) ->  | L115: =INDEX($D115:$I115,L$100) -> 0.45065475 | M115: =IF(ISERROR(1-L115/K115), 0, 1-L115/K115) -> 0 | O115: 0
C116: Calculated Relative to Design Standards (Column E) | D116: =+D115/$E$115 ->  | E116: 1 | H116: 1 | K116: =INDEX($D116:$I116,K$100) ->  | L116: =INDEX($D116:$I116,L$100) -> 1 | M116: 0 | O116: 0
C117: P(Crash) | D117: =+D116/(D116+1) ->  | E117: 0.5 | H117: 0.5 | K117: =INDEX($D117:$I117,K$100) ->  | L117: =INDEX($D117:$I117,L$100) -> 0.5 | M117: 0 | O117: 0
C118: Factor Change on S curve | D118: =+D117/$E$117 ->  | E118: 1 | H118: 1 | K118: =INDEX($D118:$I118,K$100) ->  | L118: =INDEX($D118:$I118,L$100) -> 1 | M118: 0 | O118: 0
C119: Adjust to Scale of 100 | D119: =+$I$118/D118*100 ->  | K119: =INDEX($D119:$I119,K$100) ->  | L119: =INDEX($D119:$I119,L$100) ->  | M119: 0
C120: Unadjusted Combined Relative to Standard | D120: =+D115/$E$115 ->  | E120: 1 | H120: 1 | J120: =I126/E126 ->  | K120: =INDEX($D120:$I120,K$100) ->  | L120: =INDEX($D120:$I120,L$100) -> 1 | M120: 0 | O120: 0
C122: Adjusted for PA Basis | D122: =+D115*(1+1)/(1+D115*1) ->  | E122: 0.621312204 | H122: =IF($I$2="Existing",(D122),(IF($I$2="Design 1",(F122),(IF($I$2="Design 2",(G122),(IF($I$2="Optimal",(I122),E122))))))) -> 0.621312204 | K122: =INDEX($D122:$I122,K$100) ->  | L122: =INDEX($D122:$I122,L$100) -> 0.621312204 | M122: =IF(ISERROR(1-L122/K122), 0, 1-L122/K122) -> 0 | O122: 0
C123: Corrected by Odds Ratio | D123: =+D122/$E$122 ->  | E123: 1 | H123: =IF($I$2="Existing",(D123),(IF($I$2="Design 1",(F123),(IF($I$2="Design 2",(G123),(IF($I$2="Optimal",(I123),E123))))))) -> 1 | J123: =I129/E129 ->  | K123: =INDEX($D123:$I123,K$100) ->  | L123: =INDEX($D123:$I123,L$100) -> 1 | M123: 0 | O123: 0
C124: Pinned s | D124: =(1/D123)^$D127 ->  | E124: =(1/E123)^$D127 ->  | G124: =IF(ISERROR((1/G123)^$D127), 0, (1/G123)^$D127) -> 0 | K124: =INDEX($D124:$I124,K$100) ->  | L124: =INDEX($D124:$I124,L$100) ->  | M124: 0 | O124: 0
D125: =(D124+$F128-1)/(1+(D124+$F128-1)) ->  | E125: =(E124+$F128-1)/(1+(E124+$F128-1)) ->  | G125: 0.5714285714 | K125: =INDEX($D125:$I125,K$100) ->  | L125: =INDEX($D125:$I125,L$100) ->  | M125: 0 | O125: 0
C126: Score Odds Ratio with Optimal (old) | D126: =MIN(ROUND($I$123/D123*Construction!$I$2,0),$I126) ->  | E126: =MIN(ROUND($I$123/E123*Construction!$I$2,0),$I126) ->  | F126: =MIN(ROUND($I$123/F123*Construction!$I$2,0),$I126) ->  | G126: =MIN(ROUND($I$123/G123*Construction!$I$2,0),$I126) ->  | H126: =IF($I$2="Existing",(D126),(IF($I$2="Design 1",(F126),(IF($I$2="Design 2",(G126),(IF($I$2="Optimal",(I126),E126))))))) ->  | I126: =ROUND($I$123/I123*Construction!$I$2,0) -> 
C127: Logistic1 | D127: =LN((D128/(1-D128))/(0.5/0.5))/LN(IF($E123/I123=1,0.999,$E123/I123)) -> 
C128: Logistic Param | D128: 0.999 | F128: =0.7/0.3 -> 2.333333333
C129: Score | D129: =MIN(ROUND(D125*Construction!$I$2,0),$I126) ->  | E129: =MIN(ROUND(E125*Construction!$I$2,0),$I126) ->  | F129: =MIN(ROUND(F125*Construction!$I$2,0),$I126) ->  | G129: =MIN(ROUND(G125*Construction!$I$2,0),$I126) ->  | H129: =MIN(ROUND(H125*Construction!$I$2,0),$I126) ->  | I129: =MIN(ROUND(I125*Construction!$I$2,0),$I126) -> 
C131: HC and Grade | D131: =IF($B$139,0,1) -> 1 | E131: =IF($B$139,0,1) -> 1 | F131: 1 | G131: 1 | H131: =IF($I$2="Existing",(D131),(IF($I$2="Design 1",(F131),(IF($I$2="Design 2",(G131),(IF($I$2="Optimal",(I131),E131))))))) -> 1 | I131: =IF($B$139,0,1) -> 1
A132: HC? | C132: HC and VC Crest type I | D132: =IF(AND($B$139=1,SIGN(D$40)=1,ABS(D$40)<=ABS(D$40-D$41),D$46="Crest"),1,0) -> 0 | E132: =IF(AND($B$139=1,SIGN(IF(ISNUMBER(E$40),E$40,0))=1, ABS(IF(ISNUMBER(E$40),E$40,0))<=ABS(IF(ISNUMBER(E$40),E$40,0)-IF(ISNUMBER(E$41),E$41,0)),E$46="Crest"), 1,0) -> 0 | F132: =IF(AND($B$139=1,SIGN(F$40)=1,ABS(F$40)<=ABS(F$40-F$41),F$46="Crest"),1,0) -> 0 | G132: =IF(AND($B$139=1,SIGN(G$40)=1,ABS(G$40)<=ABS(G$40-G$41),G$46="Crest"),1,0) -> 0 | H132: =IF($I$2="Existing",(D132),(IF($I$2="Design 1",(F132),(IF($I$2="Design 2",(G132),(IF($I$2="Optimal",(I132),E132))))))) -> 0 | I132: =IF(AND($B$138=1,SIGN(I$40)=1,ABS(I$40)<=ABS(I$40-IF(ISNUMBER(I$41), I$41,0)),I$46="Crest"),1,0) ->  | K132: =INDEX($D132:$I132,K$100) -> 0 | L132: =INDEX($D132:$I132,L$100) -> 0 | M132: =IF(ISERROR(1-L132/K132), 0, 1-L132/K132) -> 0
A133: VC? | C133: HC and VC Sag type I | D133: =IF(AND($B$139=1,SIGN(D$40)=1,ABS(D$40)<=ABS(D$40-D$41),D$46="Sag"),1,0) -> 0 | E133: =IF(AND($B$139=1,SIGN(IF(ISNUMBER(E$40),E$40,0))=1, ABS(IF(ISNUMBER(E$40),E$40,0))<=ABS(IF(ISNUMBER(E$40),E$40,0)-IF(ISNUMBER(E$41),E$41,0)),E$46="Sag"), 1,0) -> 0 | F133: =IF(AND($B$139=1,SIGN(F$40)=1,ABS(F$40)<=ABS(F$40-F$41),F$46="Sag"),1,0) -> 0 | G133: =IF(AND($B$139=1,SIGN(G$40)=1,ABS(G$40)<=ABS(G$40-G$41),G$46="Sag"),1,0) -> 0 | H133: =IF($I$2="Existing",(D133),(IF($I$2="Design 1",(F133),(IF($I$2="Design 2",(G133),(IF($I$2="Optimal",(I133),E133))))))) -> 0 | I133: =IF(AND($B$138=1,SIGN(I$40)=1,ABS(I$40)<=ABS(I$40-IF(ISNUMBER(I$41), I$41,0)),I$46="Sag"),1,0) ->  | K133: =INDEX($D133:$I133,K$100) -> 0 | L133: =INDEX($D133:$I133,L$100) -> 0 | M133: 0
C134: HC and VC Crest type II | D134: =IF(AND($B$139=1,D$46="Crest",D$132=0),1,0) -> 0 | E134: =IF(AND($B$139=1,E$46="Crest",E$132=0),1,0) -> 0 | F134: =IF(AND($B$139=1,F$46="Crest",F$132=0),1,0) -> 0 | G134: =IF(AND($B$139=1,G$46="Crest",G$132=0),1,0) -> 0 | H134: =IF($I$2="Existing",(D134),(IF($I$2="Design 1",(F134),(IF($I$2="Design 2",(G134),(IF($I$2="Optimal",(I134),E134))))))) -> 0 | I134: =IF(AND($B$139=1,I$46="Crest",I$132=0),1,0) ->  | K134: =INDEX($D134:$I134,K$100) -> 0 | L134: =INDEX($D134:$I134,L$100) -> 0 | M134: 0
C135: HC and VC Sag type II | D135: =IF(AND($B$139=1,D$46="Sag",D$133=0),1,0) -> 0 | E135: =IF(AND($B$139=1,E$46="Sag",E$133=0),1,0) -> 0 | F135: =IF(AND($B$139=1,F$46="Sag",F$133=0),1,0) -> 0 | G135: =IF(AND($B$139=1,G$46="Sag",G$133=0),1,0) -> 0 | H135: =IF($I$2="Existing",(D135),(IF($I$2="Design 1",(F135),(IF($I$2="Design 2",(G135),(IF($I$2="Optimal",(I135),E135))))))) -> 0 | I135: =IF(AND($B$139=1,I$46="Sag",I$133=0),1,0) ->  | K135: =INDEX($D135:$I135,K$100) -> 0 | L135: =INDEX($D135:$I135,L$100) -> 0 | M135: 0
B136: Yes/No
C137: HC and VC:
B138: =IF(B31="Yes",1,0) -> 0 | C138: HC and Grade | D138: =IF($B$139=0, EXP(0.042*ABS(D$40) +$B$138*0.16*LN(2*5730/IF(ISNUMBER(D$33),D$33,1))*$B$138 +4.16*$B$138/IF(ISNUMBER(D$33),D$33,1)/IF( AND(ISNUMBER(D$34),D$34<>0),D$34,1)), 1) -> 1 | E138: =IF($B$139=0, EXP(0.042*ABS(D$40) +$B$138*0.16*LN(2*5730/IF(ISNUMBER(E$33),E$33,1))*$B$138 +4.16*$B$138/IF(ISNUMBER(E$33),E$33,1)/IF( AND(ISNUMBER(E$34),E$34<>0),E$34,1)), 1) -> 1 | F138: =IF($B$139=0, EXP(0.042*ABS(F$40) +$B$138*0.16*LN(2*5730/IF(ISNUMBER(F$33),F$33,1))*$B$138 +4.16*$B$138/IF(ISNUMBER(F$33),F$33,1)/IF( AND(ISNUMBER(F$34),F$34<>0),F$34,1)), 1) -> 1 | G138: =IF($B$139=0, EXP(0.042*ABS(G$40) +$B$138*0.16*LN(2*5730/IF(ISNUMBER(G$33),G$33,1))*$B$138 +4.16*$B$138/IF(ISNUMBER(G$33),G$33,1)/IF( AND(ISNUMBER(G$34),G$34<>0),G$34,1)), 1) -> 1 | I138: =IF($B$139=0, EXP(0.042*ABS(I$40) +$B$138*0.16*LN(2*5730/IF(ISNUMBER(I$33),I$33,1))*$B$138 +4.16*$B$138/IF(ISNUMBER(I$33),I$33,1)/IF( AND(ISNUMBER(I$34),I$34<>0),I$34,1)), 1) ->  | K138: =INDEX($D138:$I138,K$100) -> 1 | L138: =INDEX($D138:$I138,L$100) -> 1 | M138: =IF(ISERROR(1-L138/K138), 0, 1-L138/K138) -> 0 | O138: 0
B139: =IF(B38="Yes",1,0) -> 0 | C139: HC and VC Crest type I | D139: =IF($B$139=0,1,EXP(0.005648908*5730*ABS(+D$40-D$41)*$B$139/D$145*$B$138)) -> 1 | E139: =IF($B$139=0,1,EXP(0.005648908*5730*ABS(+E$40-E$41)*$B$139/E$145*$B$138)) -> 1 | F139: 1 | G139: 1 | H139: =IF($I$2="Existing",(D139),(IF($I$2="Design 1",(F139),(IF($I$2="Design 2",(G139),(IF($I$2="Optimal",(I139),E139))))))) -> 1 | I139: 1 | K139: =INDEX($D139:$I139,K$100) -> 1 | L139: =INDEX($D139:$I139,L$100) -> 1 | M139: 0 | O139: 0
C140: HC and VC Sag type I | D140: =IF($B$139=0,1,EXP(9.15857042*$B$139/D$146+0.010284958*5730*$B$139*$B$138*ABS(+D$40-D$41)/D$145)) -> 1 | E140: =IF($B$139=0,1,EXP(9.15857042*$B$139/E$146+0.010284958*5730*$B$139*$B$138*ABS(+E$40-E$41)/E$145)) -> 1 | F140: 1 | G140: 1 | H140: =IF($I$2="Existing",(D140),(IF($I$2="Design 1",(F140),(IF($I$2="Design 2",(G140),(IF($I$2="Optimal",(I140),E140))))))) -> 1 | I140: 1 | K140: =INDEX($D140:$I140,K$100) -> 1 | L140: =INDEX($D140:$I140,L$100) -> 1 | M140: 0 | O140: 0
C141: HC and VC Crest type II | D141: =IF($B$139=0,1,EXP(0.005648908*5730*ABS(+D$40-D$41)*$B$139/D$145*$B$138)) -> 1 | E141: =IF($B$139=0,1,EXP(0.005648908*5730*ABS(+E$40-E$41)*$B$139/E$145*$B$138)) -> 1 | F141: 1 | G141: 1 | H141: =IF($I$2="Existing",(D141),(IF($I$2="Design 1",(F141),(IF($I$2="Design 2",(G141),(IF($I$2="Optimal",(I141),E141))))))) -> 1 | I141: 1 | K141: =INDEX($D141:$I141,K$100) -> 1 | L141: =INDEX($D141:$I141,L$100) -> 1 | M141: 0 | O141: 0
C142: HC and VC Sag type II | D142: =IF($B$139=0,1,(0.246011284*EXP(LN(0.188*2*5730/D$145)*$B$138)+0.753988716*EXP(0.022*5730/D$145*ABS(D$40-D$41)*$B$139*$B$138))) -> 1 | E142: =IF($B$139=0,1,(0.246011284*EXP(LN(0.188*2*5730/E$145)*$B$138)+0.753988716*EXP(0.022*5730/E$145*ABS(E$40-E$41)*$B$139*$B$138))) -> 1 | F142: 1 | G142: 1 | H142: =IF($I$2="Existing",(D142),(IF($I$2="Design 1",(F142),(IF($I$2="Design 2",(G142),(IF($I$2="Optimal",(I142),E142))))))) -> 1 | I142: 1 | K142: =INDEX($D142:$I142,K$100) -> 1 | L142: =INDEX($D142:$I142,L$100) -> 1 | M142: 0 | O142: 0
C144: Combined HZ and VT | D144: =MMULT(TRANSPOSE(D131:D135),D138:D142) -> 1 | E144: =MMULT(TRANSPOSE(E131:E135),E138:E142) -> 1 | F144: =MMULT(TRANSPOSE(F131:F135),F138:F142) -> 1 | G144: =MMULT(TRANSPOSE(G131:G135),G138:G142) -> 1 | H144: =IF($I$2="Existing",(D144),(IF($I$2="Design 1",(F144),(IF($I$2="Design 2",(G144),(IF($I$2="Optimal",(I144),E144))))))) -> 1 | I144: =MMULT(TRANSPOSE(I131:I135),I138:I142) ->  | K144: =INDEX($D144:$I144,K$100) -> 1 | L144: =INDEX($D144:$I144,L$100) -> 1 | M144: =IF(ISERROR(1-L144/K144), 0, 1-L144/K144) -> 0 | O144: 0
C145: effective R for calculation | D145: =IF(ISNUMBER(D33), D33, 99999999) -> 99999999 | E145: =IF(ISNUMBER(E33), E33, 99999999) -> 590 | F145: 99999999 | G145: 99999999 | I145: 590
C146: effective K for calculation | D146: =IF(ISNUMBER(D43), D43, 99999999) -> 99999999 | E146: =IF(ISNUMBER(E43), E43, 99999999) -> 99999999 | F146: 99999999 | G146: 99999999 | I146: 99999999
B147: Traffic
D148: Existing | E148: Standard | F148: Design 1 | G148: Design 2
C149: Advance static curve warning signs | D149: =IF(D24=INDEX(MedConf_Header,1,2),IF(AND($B$31="Yes",D$56="Yes"),(Traffic!$F$4-1)*AVERAGE(Constraints!$F$24,Constraints!$H$24)/Constraints!$D$24+1,1),(IF(AND($B$31="Yes",D$56="Yes"),(Traffic!$F$4-1)*AVERAGE(Constraints!$F$38,Constraints!$H$38)/Constraints!$D$38+1,1))) -> 1 | E149: =IF(AND($B$31="Yes",E$56="Yes"),(Traffic!$F$4-1)*AVERAGE(Constraints!$F$24,Constraints!$H$24)/Constraints!$D$24+1,1) -> 1 | F149: =IF(F24=INDEX(MedConf_Header,1,2),IF(AND($B$31="Yes",F$56="Yes"),(Traffic!$F$4-1)*AVERAGE(Constraints!$F$24,Constraints!$H$24)/Constraints!$D$24+1,1),(IF(AND($B$31="Yes",F$56="Yes"),(Traffic!$F$4-1)*AVERAGE(Constraints!$F$38,Constraints!$H$38)/Constraints!$D$38+1,1))) -> 1 | G149: =IF(G24=INDEX(MedConf_Header,1,2),IF(AND($B$31="Yes",G$56="Yes"),(Traffic!$F$4-1)*AVERAGE(Constraints!$F$24,Constraints!$H$24)/Constraints!$D$24+1,1),(IF(AND($B$31="Yes",G$56="Yes"),(Traffic!$F$4-1)*AVERAGE(Constraints!$F$38,Constraints!$H$38)/Constraints!$D$38+1,1))) -> 1 | H149: =IF($I$2="Existing",(D149),(IF($I$2="Design 1",(F149),(IF($I$2="Design 2",(G149),(IF($I$2="Optimal",(I149),E149))))))) -> 1 | I149: =IF(AND($B$31="Yes",I$56="Yes"),(Traffic!$F$4-1)*AVERAGE(Constraints!$F$24,Constraints!$H$24)/Constraints!$D$24+1,1) -> 1 | K149: =INDEX($D149:$I149,K$100) -> 1 | L149: =INDEX($D149:$I149,L$100) -> 1 | M149: =IF(ISERROR(1-L149/K149), 0, 1-L149/K149) -> 0 | O149: 0
C150: Install chevron signs on horizontal curves | D150: =IF(D24=INDEX(MedConf_Header,1,2),(IF(D$57="No",1,(IF(AND($B$31="Yes",D$27<11.5),((Traffic!$F$6-1)*(Constraints!$E$18+Constraints!$E$22))+1,1)))),(IF(D$57="No",1,(IF(AND($B$31="Yes",D$27<11.5),((Traffic!$F$6-1)*(Constraints!$E$32+Constraints!$E$36))+1,1))))) -> 1 | E150: =IF(E$57="No",1,(IF(AND($B$31="Yes",E$27<11.5),((Traffic!$F$6-1)*(Constraints!$E$18+Constraints!$E$22))+1,1))) -> 1 | F150: =IF(F24=INDEX(MedConf_Header,1,2),(IF(F$57="No",1,(IF(AND($B$31="Yes",F$27<11.5),((Traffic!$F$6-1)*(Constraints!$E$18+Constraints!$E$22))+1,1)))),(IF(F$57="No",1,(IF(AND($B$31="Yes",F$27<11.5),((Traffic!$F$6-1)*(Constraints!$E$32+Constraints!$E$36))+1,1))))) -> 1 | G150: =IF(G24=INDEX(MedConf_Header,1,2),(IF(G$57="No",1,(IF(AND($B$31="Yes",G$27<11.5),((Traffic!$F$6-1)*(Constraints!$E$18+Constraints!$E$22))+1,1)))),(IF(G$57="No",1,(IF(AND($B$31="Yes",G$27<11.5),((Traffic!$F$6-1)*(Constraints!$E$32+Constraints!$E$36))+1,1))))) -> 1 | H150: =IF($I$2="Existing",(D150),(IF($I$2="Design 1",(F150),(IF($I$2="Design 2",(G150),(IF($I$2="Optimal",(I150),E150))))))) -> 1 | I150: =IF(I$57="No",1,(IF(AND($B$31="Yes",I$27<11.5),((Traffic!$F$6-1)*(Constraints!$E$18+Constraints!$E$22))+1,1))) -> 1 | K150: =INDEX($D150:$I150,K$100) -> 1 | L150: =INDEX($D150:$I150,L$100) -> 1 | M150: 0 | O150: 0
C151: Install post-mounted delineators | D151: =IF(D24=INDEX(MedConf_Header,1,2),IF(AND($B$31="Yes",D$58="Yes"),(Traffic!$F$12-1)*Constraints!$E$17+1,1),(IF(AND($B$31="Yes",D$58="Yes"),(Traffic!$F$12-1)*Constraints!$E$31+1,1))) -> 1 | E151: =IF(AND($B$31="Yes",E$58="Yes"),(Traffic!$F$12-1)*Constraints!$E$17+1,1) -> 1 | F151: =IF(F24=INDEX(MedConf_Header,1,2),IF(AND($B$31="Yes",F$58="Yes"),(Traffic!$F$12-1)*Constraints!$E$17+1,1),(IF(AND($B$31="Yes",F$58="Yes"),(Traffic!$F$12-1)*Constraints!$E$31+1,1))) -> 1 | G151: =IF(G24=INDEX(MedConf_Header,1,2),IF(AND($B$31="Yes",G$58="Yes"),(Traffic!$F$12-1)*Constraints!$E$17+1,1),(IF(AND($B$31="Yes",G$58="Yes"),(Traffic!$F$12-1)*Constraints!$E$31+1,1))) -> 1 | H151: =IF($I$2="Existing",(D151),(IF($I$2="Design 1",(F151),(IF($I$2="Design 2",(G151),(IF($I$2="Optimal",(I151),E151))))))) -> 1 | I151: =IF(AND($B$31="Yes",I$58="Yes"),(Traffic!$F$12-1)*Constraints!$E$17+1,1) -> 1 | K151: =INDEX($D151:$I151,K$100) -> 1 | L151: =INDEX($D151:$I151,L$100) -> 1 | M151: 0 | O151: 0
C152: Install edgeline or Profile pavement markings | D152: =IF(D24=INDEX(MedConf_Header,1,2),(IF(D$59="Yes",Traffic!$F$18*0.5+((Traffic!$F$20*(Constraints!$H$17+Constraints!$H$20+Constraints!$H$21)+1*(Constraints!$H$24-(Constraints!$H$17+Constraints!$H$20+Constraints!$H$21)))/Constraints!$H$24)*0.5,1)),(IF(D$59="Yes",Traffic!$F$18*0.5+((Traffic!$F$20*(Constraints!$H$31+Constraints!$H$34+Constraints!$H$35)+1*(Constraints!$H$38-(Constraints!$H$31+Constraints!$H$34+Constraints!$H$35)))/Constraints!$H$38)*0.5,1))) -> 1 | E152: =IF(E24=INDEX(MedConf_Header,1,2),(IF(E$59="Yes",Traffic!$F$18*0.5+((Traffic!$F$20*(Constraints!$H$17+Constraints!$H$20+Constraints!$H$21)+1*(Constraints!$H$24-(Constraints!$H$17+Constraints!$H$20+Constraints!$H$21)))/Constraints!$H$24)*0.5,1)),(IF(E$59="Yes",Traffic!$F$18*0.5+((Traffic!$F$20*(Constraints!$H$31+Constraints!$H$34+Constraints!$H$35)+1*(Constraints!$H$38-(Constraints!$H$31+Constraints!$H$34+Constraints!$H$35)))/Constraints!$H$38)*0.5,1))) -> 1 | F152: =IF(F24=INDEX(MedConf_Header,1,2),(IF(F$59="Yes",Traffic!$F$18*0.5+((Traffic!$F$20*(Constraints!$H$17+Constraints!$H$20+Constraints!$H$21)+1*(Constraints!$H$24-(Constraints!$H$17+Constraints!$H$20+Constraints!$H$21)))/Constraints!$H$24)*0.5,1)),(IF(F$59="Yes",Traffic!$F$18*0.5+((Traffic!$F$20*(Constraints!$H$31+Constraints!$H$34+Constraints!$H$35)+1*(Constraints!$H$38-(Constraints!$H$31+Constraints!$H$34+Constraints!$H$35)))/Constraints!$H$38)*0.5,1))) -> 1 | G152: =IF(G24=INDEX(MedConf_Header,1,2),(IF(G$59="Yes",Traffic!$F$18*0.5+((Traffic!$F$20*(Constraints!$H$17+Constraints!$H$20+Constraints!$H$21)+1*(Constraints!$H$24-(Constraints!$H$17+Constraints!$H$20+Constraints!$H$21)))/Constraints!$H$24)*0.5,1)),(IF(G$59="Yes",Traffic!$F$18*0.5+((Traffic!$F$20*(Constraints!$H$31+Constraints!$H$34+Constraints!$H$35)+1*(Constraints!$H$38-(Constraints!$H$31+Constraints!$H$34+Constraints!$H$35)))/Constraints!$H$38)*0.5,1))) -> 1 | H152: =IF($I$2="Existing",(D152),(IF($I$2="Design 1",(F152),(IF($I$2="Design 2",(G152),(IF($I$2="Optimal",(I152),E152))))))) -> 1 | I152: =IF(I24=INDEX(MedConf_Header,1,2),(IF(I$59="Yes",Traffic!$F$18*0.5+((Traffic!$F$20*(Constraints!$H$17+Constraints!$H$20+Constraints!$H$21)+1*(Constraints!$H$24-(Constraints!$H$17+Constraints!$H$20+Constraints!$H$21)))/Constraints!$H$24)*0.5,1)),(IF(I$59="Yes",Traffic!$F$18*0.5+((Traffic!$F$20*(Constraints!$H$31+Constraints!$H$34+Constraints!$H$35)+1*(Constraints!$H$38-(Constraints!$H$31+Constraints!$H$34+Constraints!$H$35)))/Constraints!$H$38)*0.5,1))) -> 0.8743964143 | K152: =INDEX($D152:$I152,K$100) -> 1 | L152: =INDEX($D152:$I152,L$100) -> 1 | M152: 0 | O152: 0.1382411869
C153: Profiles | D153: 1 | E153: 1 | F153: 1 | G153: 1 | H153: 1 | I153: 1 | K153: =INDEX($D153:$I153,K$100) -> 1 | L153: =INDEX($D153:$I153,L$100) -> 1 | M153: 0 | O153: 0
C154: Shoulder rumble strips | D154: =IF(D24=INDEX(MedConf_Header,1,2),(IF(D$60="No",1,(Traffic!$F$27*(Constraints!$H$17+Constraints!$H$20+Constraints!$H$21)+1*(Constraints!$H$24-(Constraints!$H$17+Constraints!$H$20+Constraints!$H$21)))/Constraints!$H$24)),(IF(D$60="No",1,(Traffic!$F$27*(Constraints!$H$31+Constraints!$H$34+Constraints!$H$35)+1*(Constraints!$H$38-(Constraints!$H$31+Constraints!$H$34+Constraints!$H$35)))/Constraints!$H$38))) -> 0.9395628946 | E154: =IF(E$60="No",1,(Traffic!$F$27*(Constraints!$H$17+Constraints!$H$20+Constraints!$H$21)+1*(Constraints!$H$24-(Constraints!$H$17+Constraints!$H$20+Constraints!$H$21)))/Constraints!$H$24) -> 0.9180703851 | F154: =IF(F24=INDEX(MedConf_Header,1,2),(IF(F$60="No",1,(Traffic!$F$27*(Constraints!$H$17+Constraints!$H$20+Constraints!$H$21)+1*(Constraints!$H$24-(Constraints!$H$17+Constraints!$H$20+Constraints!$H$21)))/Constraints!$H$24)),(IF(F$60="No",1,(Traffic!$F$27*(Constraints!$H$31+Constraints!$H$34+Constraints!$H$35)+1*(Constraints!$H$38-(Constraints!$H$31+Constraints!$H$34+Constraints!$H$35)))/Constraints!$H$38))) -> 0.9395628946 | G154: =IF(G24=INDEX(MedConf_Header,1,2),(IF(G$60="No",1,(Traffic!$F$27*(Constraints!$H$17+Constraints!$H$20+Constraints!$H$21)+1*(Constraints!$H$24-(Constraints!$H$17+Constraints!$H$20+Constraints!$H$21)))/Constraints!$H$24)),(IF(G$60="No",1,(Traffic!$F$27*(Constraints!$H$31+Constraints!$H$34+Constraints!$H$35)+1*(Constraints!$H$38-(Constraints!$H$31+Constraints!$H$34+Constraints!$H$35)))/Constraints!$H$38))) -> 0.9395628946 | H154: =IF($I$2="Existing",(D154),(IF($I$2="Design 1",(F154),(IF($I$2="Design 2",(G154),(IF($I$2="Optimal",(I154),E154))))))) -> 0.9180703851 | I154: =IF(I$60="No",1,(Traffic!$F$27*(Constraints!$H$17+Constraints!$H$20+Constraints!$H$21)+1*(Constraints!$H$24-(Constraints!$H$17+Constraints!$H$20+Constraints!$H$21)))/Constraints!$H$24) -> 0.9180703851 | K154: =INDEX($D154:$I154,K$100) -> 0.9395628946 | L154: =INDEX($D154:$I154,L$100) -> 0.9180703851 | M154: 0.0228750088 | O154: 0
C155: Install centerline rumble strips | D155: =IF(D24=INDEX(MedConf_Header,1,3),(IF(D$61="No",1,(Traffic!$E$81*(Constraints!$H$31+Constraints!$H$34+Constraints!$H$35)+1*(Constraints!$H$38-(Constraints!$H$31+Constraints!$H$34+Constraints!$H$35)))/Constraints!$H$38)+0.001),1) -> 1 | E155: =IF(E24=INDEX(MedConf_Header,1,3),(IF(E$61="No",1,(Traffic!$E$81*(Constraints!$H$31+Constraints!$H$34+Constraints!$H$35)+1*(Constraints!$H$38-(Constraints!$H$31+Constraints!$H$34+Constraints!$H$35)))/Constraints!$H$38)+0.001),1) -> 1 | F155: =IF(F24=INDEX(MedConf_Header,1,3),(IF(F$61="No",1,(Traffic!$E$81*(Constraints!$H$31+Constraints!$H$34+Constraints!$H$35)+1*(Constraints!$H$38-(Constraints!$H$31+Constraints!$H$34+Constraints!$H$35)))/Constraints!$H$38)+0.001),1) -> 1 | G155: =IF(G24=INDEX(MedConf_Header,1,3),(IF(G$61="No",1,(Traffic!$E$81*(Constraints!$H$31+Constraints!$H$34+Constraints!$H$35)+1*(Constraints!$H$38-(Constraints!$H$31+Constraints!$H$34+Constraints!$H$35)))/Constraints!$H$38)+0.001),1) -> 1 | H155: =IF($I$2="Existing",(D155),(IF($I$2="Design 1",(F155),(IF($I$2="Design 2",(G155),(IF($I$2="Optimal",(I155),E155))))))) -> 1 | I155: =IF(I24=INDEX(MedConf_Header,1,3),(IF(I$61="No",1,(Traffic!$E$81*(Constraints!$H$31+Constraints!$H$34+Constraints!$H$35)+1*(Constraints!$H$38-(Constraints!$H$31+Constraints!$H$34+Constraints!$H$35)))/Constraints!$H$38)+0.001),1) -> 1 | K155: =INDEX($D155:$I155,K$100) -> 1 | L155: =INDEX($D155:$I155,L$100) -> 1 | M155: 0 | O155: -0.1627906977
C156: Driveway Density (driveways per mile) | D156: =EXP(-LN(Traffic!$F$31)*(D$62-$E$62)) -> 0.8170728069 | E156: =EXP(-LN(Traffic!$F$31)*(E$62-$E$62)) -> 1 | F156: =EXP(-LN(Traffic!$F$31)*(F$62-$E$62)) -> 0.8170728069 | G156: =EXP(-LN(Traffic!$F$31)*(G$62-$E$62)) -> 0.8170728069 | H156: =IF($I$2="Existing",(D156),(IF($I$2="Design 1",(F156),(IF($I$2="Design 2",(G156),(IF($I$2="Optimal",(I156),E156))))))) -> 1 | I156: =EXP(-LN(Traffic!$F$31)*(I$62-$E$62)) -> 0.8170728069 | K156: =INDEX($D156:$I156,K$100) -> 0.8170728069 | L156: =INDEX($D156:$I156,L$100) -> 1 | M156: -0.223881142 | O156: -0.223881142
C157: Install lighting | D157: =IF(D24=INDEX(MedConf_Header,1,2),(IF(D$63="No",1,1-(((1-Traffic!$F$54*Constraints!$H$24-Constraints!$F$24/3)+((1-Traffic!$F$54*Constraints!$D$24-Constraints!$H$24)))*$S$19+((1-Traffic!$F$56)*Constraints!$F$24/3))/Constraints!$D$24)),(IF(D$63="No",1,1-(((1-Traffic!$F$54*Constraints!$H$38-Constraints!$F$38/3)+((1-Traffic!$F$54*Constraints!$D$38-Constraints!$H$38)))*$S$19+((1-Traffic!$F$56)*Constraints!$F$38/3))/Constraints!$D$38))) -> 0.9831908007 | E157: =IF(E$63="No",1,1-(((1-Traffic!$F$54*Constraints!$H$24-Constraints!$F$24/3)+((1-Traffic!$F$54*Constraints!$D$24-Constraints!$H$24)))*$S$19+((1-Traffic!$F$56)*Constraints!$F$24/3))/Constraints!$D$24) -> 1 | F157: =IF(F24=INDEX(MedConf_Header,1,2),(IF(F$63="No",1,1-(((1-Traffic!$F$54*Constraints!$H$24-Constraints!$F$24/3)+((1-Traffic!$F$54*Constraints!$D$24-Constraints!$H$24)))*$S$19+((1-Traffic!$F$56)*Constraints!$F$24/3))/Constraints!$D$24)),(IF(F$63="No",1,1-(((1-Traffic!$F$54*Constraints!$H$38-Constraints!$F$38/3)+((1-Traffic!$F$54*Constraints!$D$38-Constraints!$H$38)))*$S$19+((1-Traffic!$F$56)*Constraints!$F$38/3))/Constraints!$D$38))) -> 0.9831908007 | G157: =IF(G24=INDEX(MedConf_Header,1,2),(IF(G$63="No",1,1-(((1-Traffic!$F$54*Constraints!$H$24-Constraints!$F$24/3)+((1-Traffic!$F$54*Constraints!$D$24-Constraints!$H$24)))*$S$19+((1-Traffic!$F$56)*Constraints!$F$24/3))/Constraints!$D$24)),(IF(G$63="No",1,1-(((1-Traffic!$F$54*Constraints!$H$38-Constraints!$F$38/3)+((1-Traffic!$F$54*Constraints!$D$38-Constraints!$H$38)))*$S$19+((1-Traffic!$F$56)*Constraints!$F$38/3))/Constraints!$D$38))) -> 0.9831908007 | H157: =IF($I$2="Existing",(D157),(IF($I$2="Design 1",(F157),(IF($I$2="Design 2",(G157),(IF($I$2="Optimal",(I157),E157))))))) -> 1 | I157: =IF(I$63="No",1,1-(((1-Traffic!$F$54*Constraints!$H$24-Constraints!$F$24/3)+((1-Traffic!$F$54*Constraints!$D$24-Constraints!$H$24)))*$S$19+((1-Traffic!$F$56)*Constraints!$F$24/3))/Constraints!$D$24) -> 0.9806268923 | K157: =INDEX($D157:$I157,K$100) -> 0.9831908007 | L157: =INDEX($D157:$I157,L$100) -> 1 | M157: -0.01709657912 | O157: -0.02349908153
C158: Pavement friction (skid number) | D158: =EXP(LN(Traffic!$F$48)*(D$64-$E$64)) -> 1.397252142 | E158: =EXP(LN(Traffic!$F$48)*(E$64-$E$64)) -> 1 | F158: =IF(MATCH(F64,SkidNums,0)=3, $D158,EXP(LN([5]Traffic!$F$49)*(RIGHT(F$64,2)-$E$64))) ->  | G158: =IF(MATCH(G64,SkidNums,0)=3, $D158,EXP(LN([5]Traffic!$F$49)*(RIGHT(G$64,2)-$E$64))) ->  | H158: =IF($I$2="Existing",(D158),(IF($I$2="Design 1",(F158),(IF($I$2="Design 2",(G158),(IF($I$2="Optimal",(I158),E158))))))) -> 1 | I158: =EXP(LN(Traffic!$F$48)*(I$64-$E$64)) -> 0.8575355363 | K158: =INDEX($D158:$I158,K$100) -> 1.397252142 | L158: =INDEX($D158:$I158,L$100) -> 1 | M158: 0.2843095602 | O158: 0
C161: COMBINED Calculated CMF | D161: =+D149*D150*D151*D152*D153*D154*D155*D156*D157*D158 -> 1.054627774 | E161: =+E149*E150*E151*E152*E153*E154*E155*E156*E157*E158 -> 0.9180703851 | H161: =IF($I$2="Existing",(D161),(IF($I$2="Design 1",(F161),(IF($I$2="Design 2",(G161),(IF($I$2="Optimal",(I161),E161))))))) -> 0.9180703851 | I161: =+I149*I150*I151*I152*I153*I154*I155*I156*I157*I158 -> 0.5515704974 | K161: =INDEX($D161:$I161,K$100) -> 1.054627774 | L161: =INDEX($D161:$I161,L$100) -> 0.9180703851 | M161: =IF(ISERROR(1-L161/K161), 0, 1-L161/K161) -> 0.1294839682 | O161: 0
C162: Calculated Relative to Design Standards (Column E) | D162: =+D161/$E$161 -> 1.148743921 | E162: =+E161/$E$161 -> 1 | H162: 1 | I162: =+I161/$E$161 -> 0.6007932577 | K162: =INDEX($D162:$I162,K$100) -> 1.148743921 | L162: =INDEX($D162:$I162,L$100) -> 1 | M162: 0.1294839682 | O162: 0
C163: P(Crash) | D163: =+D162/(D162+1) -> 0.5346118306 | E163: 0.5 | H163: 0.5 | I163: =+I162/(I162+1) -> 0.3753097127 | K163: =INDEX($D163:$I163,K$100) -> 0.5346118306 | L163: =INDEX($D163:$I163,L$100) -> 0.5 | M163: 0.06474198408
C164: Factor Change on S curve | D164: =+D163/$E$163 -> 1.069223661 | E164: =+E163/$E$163 -> 1 | F164: =+F163/$E$163 ->  | H164: 1 | I164: =+I163/$E$163 -> 0.7506194254 | K164: =INDEX($D164:$I164,K$100) -> 1.069223661 | L164: =INDEX($D164:$I164,L$100) -> 1 | M164: 0.06474198408
C165: Adjust to Scale of 100 | D165: =+$I$118/D164*100 ->  | I165: =+$I$118/I164*100 -> 
C166: Unadjusted Combined Relative to Standard | D166: =+D161/$E$161 -> 1.148743921 | E166: =+E161/$E$161 -> 1 | F166: =+F161/$E$161 ->  | H166: 1 | I166: =+I161/$E$161 -> 0.6007932577 | J166: =I172/E172 -> 1.333333333 | K166: =INDEX($D166:$I166,K$100) -> 1.148743921 | L166: =INDEX($D166:$I166,L$100) -> 1 | M166: =IF(ISERROR(1-L166/K166), 0, 1-L166/K166) -> 0.1294839682
H167: 0 | K167: =INDEX($D167:$I167,K$100) -> 0 | L167: =INDEX($D167:$I167,L$100) -> 0 | M167: 0
C168: Adjusted for PA Basis | D168: =+D161*(1+1)/(1+D161*1) -> 1.026587674 | E168: 0.9572853971 | H168: 0.9572853971 | I168: =+I161*(1+1)/(1+I161*1) -> 0.710983482 | K168: =INDEX($D168:$I168,K$100) -> 1.026587674 | L168: =INDEX($D168:$I168,L$100) -> 0.9572853971 | M168: 0.06750741222
C169: Corrected by Odds Ratio | D169: =+D168/$E$168 -> 1.072394583 | E169: =+E168/$E$168 -> 1 | F169: =+F168/$E$168 ->  | H169: 1 | I169: =+I168/$E$168 -> 0.7427079575 | J169: =I175/E175 -> 1.428571429 | K169: =INDEX($D169:$I169,K$100) -> 1.072394583 | L169: =INDEX($D169:$I169,L$100) -> 1 | M169: 0.06750741222
D170: =(1/D169)^$D173 -> 0.1973217807 | E170: =(1/E169)^$D173 -> 1 | H170: 1 | I170: 999 | K170: =INDEX($D170:$I170,K$100) -> 0.1973217807 | L170: =INDEX($D170:$I170,L$100) -> 1 | M170: -4.067864259
D171: =(D170+$F174-1)/(1+(D170+$F174-1)) -> 0.6048454037 | E171: =(E170+$F174-1)/(1+(E170+$F174-1)) -> 0.7 | H171: 0.7 | I171: 0.9990013316 | K171: =INDEX($D171:$I171,K$100) -> 0.6048454037 | L171: =INDEX($D171:$I171,L$100) -> 0.7 | M171: -0.1573205248
C172: Score Odds Ratio with Optimal as 100 (old) | D172: =MIN(ROUND($I$169/D169*Construction!$I$3,0),$I172) -> 14 | E172: =MIN(ROUND($I$169/E169*Construction!$I$3,0),$I172) -> 15 | F172: =MIN(ROUND($I$169/F169*Construction!$I$3,0),$I172) ->  | G172: =MIN(ROUND($I$169/G169*Construction!$I$3,0),$I172) ->  | I172: =ROUND($I$169/I169*Construction!$I$3,0) -> 20
C173: Logistic1 | D173: =LN((D174/(1-D174))/(0.5/0.5))/LN($E169/I169) -> 23.21969994
C174: Logistic Param | D174: 0.999 | F174: =0.7/0.3 -> 2.333333333
C175: Score | D175: =MIN(ROUND(D171*Construction!$I$3,0),$I172) -> 12 | E175: =MIN(ROUND(E171*Construction!$I$3,0),$I172) -> 14 | F175: =MIN(ROUND(F171*Construction!$I$3,0),$I172) ->  | G175: =MIN(ROUND(G171*Construction!$I$3,0),$I172) ->  | I175: =MIN(ROUND(I171*Construction!$I$3,0),$I172) -> 20
D180: =INDEX(MedConf_Header,1,2) -> Divided - Unsurfaced Median
B182: Roadsde | D182: Existing | E182: Standard | F182: Design 1 | G182: Design 2
D183: =IF(ISBLANK(D75), 0, MID(D75,FIND(":",D75,1)+1,FIND("H",D75,1)-FIND(":",D75,1)-1)+0) -> 0 | E183: =MID(E75,FIND(":",E75,1)+1,FIND("H",E75,1)-FIND(":",E75,1)-1)+0 -> 4 | F183: =IF(ISBLANK(F75), 0, MID(F75,FIND(":",F75,1)+1,FIND("H",F75,1)-FIND(":",F75,1)-1)+0) -> 0 | G183: =IF(ISBLANK(G75), 0, MID(G75,FIND(":",G75,1)+1,FIND("H",G75,1)-FIND(":",G75,1)-1)+0) -> 0 | I183: =MID(I75,FIND(":",I75,1)+1,FIND("H",I75,1)-FIND(":",I75,1)-1)+0 -> 6 | O183: 0
C184: Sideslope (Foreslope) | D184: =IF(D24=INDEX(MedConf_Header,1,2),(IF(D183<=3,1,IF(OR(D183=4,D183=5),(Roadside!$F$15-1)*Constraints!$H$24/Constraints!$D$24+1,(Roadside!$F$15*Roadside!$F$16-1)*Constraints!$H$24/Constraints!$D$24+1))),(IF(D183<=3,1,IF(OR(D183=4,D183=5),(Roadside!$F$15-1)*Constraints!$H$38/Constraints!$D$38+1,(Roadside!$F$15*Roadside!$F$16-1)*Constraints!$H$38/Constraints!$D$38+1)))) -> 1 | E184: =IF(E24=INDEX(MedConf_Header,1,2),(IF(E183<=3,1,IF(OR(E183=4,E183=5),(Roadside!$F$15-1)*Constraints!$H$24/Constraints!$D$24+1,(Roadside!$F$15*Roadside!$F$16-1)*Constraints!$H$24/Constraints!$D$24+1))),(IF(E183<=3,1,IF(OR(E183=4,E183=5),(Roadside!$F$15-1)*Constraints!$H$38/Constraints!$D$38+1,(Roadside!$F$15*Roadside!$F$16-1)*Constraints!$H$38/Constraints!$D$38+1)))) -> 0.8430237753 | F184: =IF(F24=INDEX(MedConf_Header,1,2),(IF(F183<=3,1,IF(OR(F183=4,F183=5),(Roadside!$F$15-1)*Constraints!$H$24/Constraints!$D$24+1,(Roadside!$F$15*Roadside!$F$16-1)*Constraints!$H$24/Constraints!$D$24+1))),(IF(F183<=3,1,IF(OR(F183=4,F183=5),(Roadside!$F$15-1)*Constraints!$H$38/Constraints!$D$38+1,(Roadside!$F$15*Roadside!$F$16-1)*Constraints!$H$38/Constraints!$D$38+1)))) -> 1 | G184: =IF(G24=INDEX(MedConf_Header,1,2),(IF(G183<=3,1,IF(OR(G183=4,G183=5),(Roadside!$F$15-1)*Constraints!$H$24/Constraints!$D$24+1,(Roadside!$F$15*Roadside!$F$16-1)*Constraints!$H$24/Constraints!$D$24+1))),(IF(G183<=3,1,IF(OR(G183=4,G183=5),(Roadside!$F$15-1)*Constraints!$H$38/Constraints!$D$38+1,(Roadside!$F$15*Roadside!$F$16-1)*Constraints!$H$38/Constraints!$D$38+1)))) -> 1 | H184: =IF($I$2="Existing",(D184),(IF($I$2="Design 1",(F184),(IF($I$2="Design 2",(G184),(IF($I$2="Optimal",(I184),E184))))))) -> 0.8430237753 | I184: =IF(I24=INDEX(MedConf_Header,1,2),(IF(I183<=3,1,IF(OR(I183=4,I183=5),(Roadside!$F$15-1)*Constraints!$H$24/Constraints!$D$24+1,(Roadside!$F$15*Roadside!$F$16-1)*Constraints!$H$24/Constraints!$D$24+1))),(IF(I183<=3,1,IF(OR(I183=4,I183=5),(Roadside!$F$15-1)*Constraints!$H$38/Constraints!$D$38+1,(Roadside!$F$15*Roadside!$F$16-1)*Constraints!$H$38/Constraints!$D$38+1)))) -> 0.7953329032 | K184: =INDEX($D184:$I184,K$100) -> 1 | L184: =INDEX($D184:$I184,L$100) -> 0.8430237753 | M184: =IF(ISERROR(1-L184/K184), 0, 1-L184/K184) -> 0.1569762247 | O184: 0
C185: Backslope | D185: 1 | E185: 1 | F185: 1 | G185: 1 | H185: =IF($I$2="Existing",(D185),(IF($I$2="Design 1",(F185),(IF($I$2="Design 2",(G185),(IF($I$2="Optimal",(I185),E185))))))) -> 1 | I185: 1 | K185: =INDEX($D185:$I185,K$100) -> 1 | L185: =INDEX($D185:$I185,L$100) -> 1 | M185: 0 | O185: 0
C186: SafetyEdge | D186: =IF(D24=INDEX(MedConf_Header,1,2),(IF(D$77="No",1,(Roadside!$F$23-1)*AVERAGE(Constraints!$H$24,Constraints!$F$24)/Constraints!$D$24+1)),(IF(D$77="No",1,(Roadside!$F$23-1)*AVERAGE(Constraints!$H$38,Constraints!$F$38)/Constraints!$D$38+1))) -> 0.9771120954 | E186: =IF(E$77="No",1,(Roadside!$F$23-1)*AVERAGE(Constraints!$H$24,Constraints!$F$24)/Constraints!$D$24+1) -> 1 | F186: =IF(F24=INDEX(MedConf_Header,1,2),(IF(F$77="No",1,(Roadside!$F$23-1)*AVERAGE(Constraints!$H$24,Constraints!$F$24)/Constraints!$D$24+1)),(IF(F$77="No",1,(Roadside!$F$23-1)*AVERAGE(Constraints!$H$38,Constraints!$F$38)/Constraints!$D$38+1))) -> 0.9771120954 | G186: =IF(G24=INDEX(MedConf_Header,1,2),(IF(G$77="No",1,(Roadside!$F$23-1)*AVERAGE(Constraints!$H$24,Constraints!$F$24)/Constraints!$D$24+1)),(IF(G$77="No",1,(Roadside!$F$23-1)*AVERAGE(Constraints!$H$38,Constraints!$F$38)/Constraints!$D$38+1))) -> 0.9771120954 | H186: =IF($I$2="Existing",(D186),(IF($I$2="Design 1",(F186),(IF($I$2="Design 2",(G186),(IF($I$2="Optimal",(I186),E186))))))) -> 1 | I186: =IF(I$77="No",1,(Roadside!$F$23-1)*AVERAGE(Constraints!$H$24,Constraints!$F$24)/Constraints!$D$24+1) -> 0.9752688738 | K186: =INDEX($D186:$I186,K$100) -> 0.9771120954 | L186: =INDEX($D186:$I186,L$100) -> 1 | M186: -0.0234240316 | O186: -0.02818899192
C187: Lateral Clearance (ft) | D187: =IF(D24=INDEX(MedConf_Header,1,2),(IF($B$31="Yes",((EXP(LN(Roadside!$F$11)*(IF(D$79="None",40,D$78)-30)/30)-1))*Constraints!$H$17/Constraints!$D$24+1,((EXP(LN(Roadside!$F$10)*(IF(D$79="None",40,D$78)-30)/30)-1))*Constraints!$H$17/Constraints!$D$24+1)),(IF($B$31="Yes",((EXP(LN(Roadside!$F$11)*(IF(D$79="None",40,D$78)-30)/30)-1))*Constraints!$H$31/Constraints!$D$38+1,((EXP(LN(Roadside!$F$10)*(IF(D$79="None",40,D$78)-30)/30)-1))*Constraints!$H$31/Constraints!$D$38+1))) -> 1.047259244 | E187: =IF(E24=INDEX(MedConf_Header,1,2),(IF($B$31="Yes",((EXP(LN(Roadside!$F$11)*(IF(E$79="None",40,E$78)-30)/30)-1))*Constraints!$H$17/Constraints!$D$24+1,((EXP(LN(Roadside!$F$10)*(IF(E$79="None",40,E$78)-30)/30)-1))*Constraints!$H$17/Constraints!$D$24+1)),(IF($B$31="Yes",((EXP(LN(Roadside!$F$11)*(IF(E$79="None",40,E$78)-30)/30)-1))*Constraints!$H$31/Constraints!$D$38+1,((EXP(LN(Roadside!$F$10)*(IF(E$79="None",40,E$78)-30)/30)-1))*Constraints!$H$31/Constraints!$D$38+1))) -> 0.9794202967 | F187: =IF(F24=INDEX(MedConf_Header,1,2),(IF($B$31="Yes",((EXP(LN(Roadside!$F$11)*(IF(F$79="None",40,F$78)-30)/30)-1))*Constraints!$H$17/Constraints!$D$24+1,((EXP(LN(Roadside!$F$10)*(IF(F$79="None",40,F$78)-30)/30)-1))*Constraints!$H$17/Constraints!$D$24+1)),(IF($B$31="Yes",((EXP(LN(Roadside!$F$11)*(IF(F$79="None",40,F$78)-30)/30)-1))*Constraints!$H$31/Constraints!$D$38+1,((EXP(LN(Roadside!$F$10)*(IF(F$79="None",40,F$78)-30)/30)-1))*Constraints!$H$31/Constraints!$D$38+1))) -> 1.047259244 | G187: =IF(G24=INDEX(MedConf_Header,1,2),(IF($B$31="Yes",((EXP(LN(Roadside!$F$11)*(IF(G$79="None",40,G$78)-30)/30)-1))*Constraints!$H$17/Constraints!$D$24+1,((EXP(LN(Roadside!$F$10)*(IF(G$79="None",40,G$78)-30)/30)-1))*Constraints!$H$17/Constraints!$D$24+1)),(IF($B$31="Yes",((EXP(LN(Roadside!$F$11)*(IF(G$79="None",40,G$78)-30)/30)-1))*Constraints!$H$31/Constraints!$D$38+1,((EXP(LN(Roadside!$F$10)*(IF(G$79="None",40,G$78)-30)/30)-1))*Constraints!$H$31/Constraints!$D$38+1))) -> 1.047259244 | H187: =IF($I$2="Existing",(D187),(IF($I$2="Design 1",(F187),(IF($I$2="Design 2",(G187),(IF($I$2="Optimal",(I187),E187))))))) -> 0.9794202967 | I187: =IF(I24=INDEX(MedConf_Header,1,2),(IF($B$31="Yes",((EXP(LN(Roadside!$F$11)*(IF(I$79="None",40,I$78)-30)/30)-1))*Constraints!$H$17/Constraints!$D$24+1,((EXP(LN(Roadside!$F$10)*(IF(I$79="None",40,I$78)-30)/30)-1))*Constraints!$H$17/Constraints!$D$24+1)),(IF($B$31="Yes",((EXP(LN(Roadside!$F$11)*(IF(I$79="None",40,I$78)-30)/30)-1))*Constraints!$H$31/Constraints!$D$38+1,((EXP(LN(Roadside!$F$10)*(IF(I$79="None",40,I$78)-30)/30)-1))*Constraints!$H$31/Constraints!$D$38+1))) -> 0.9794202967 | K187: =INDEX($D187:$I187,K$100) -> 1.047259244 | L187: =INDEX($D187:$I187,L$100) -> 0.9794202967 | M187: 0.064777607 | O187: 0.09030716297
C188: Roadside Obstruction Type | D188: =IF(D24=INDEX(MedConf_Header,1,2),(IF(D$79="Guardrail",(Roadside!$F$25-1)*(($I$78-D$78)/$I$78)^2*Constraints!$H$17/Constraints!$D$24+1,1)),(IF(D$79="Guardrail",(Roadside!$F$25-1)*(($I$78-D$78)/$I$78)^2*Constraints!$H$31/Constraints!$D$38+1,1))) -> 1 | E188: =IF(E24=INDEX(MedConf_Header,1,2),(IF(E$79="Guardrail",(Roadside!$F$25-1)*(($I$78-E$78)/$I$78)^2*Constraints!$H$17/Constraints!$D$24+1,1)),(IF(E$79="Guardrail",(Roadside!$F$25-1)*(($I$78-E$78)/$I$78)^2*Constraints!$H$31/Constraints!$D$38+1,1))) -> 1 | F188: =IF(F24=INDEX(MedConf_Header,1,2),(IF(F$79="Guardrail",(Roadside!$F$25-1)*(($I$78-F$78)/$I$78)^2*Constraints!$H$17/Constraints!$D$24+1,1)),(IF(F$79="Guardrail",(Roadside!$F$25-1)*(($I$78-F$78)/$I$78)^2*Constraints!$H$31/Constraints!$D$38+1,1))) -> 1 | G188: =IF(G24=INDEX(MedConf_Header,1,2),(IF(G$79="Guardrail",(Roadside!$F$25-1)*(($I$78-G$78)/$I$78)^2*Constraints!$H$17/Constraints!$D$24+1,1)),(IF(G$79="Guardrail",(Roadside!$F$25-1)*(($I$78-G$78)/$I$78)^2*Constraints!$H$31/Constraints!$D$38+1,1))) -> 1 | H188: =IF($I$2="Existing",(D188),(IF($I$2="Design 1",(F188),(IF($I$2="Design 2",(G188),(IF($I$2="Optimal",(I188),E188))))))) -> 1 | I188: =IF(I24=INDEX(MedConf_Header,1,2),(IF(I$79="Guardrail",(Roadside!$F$25-1)*(($I$78-I$78)/$I$78)^2*Constraints!$H$17/Constraints!$D$24+1,1)),(IF(I$79="Guardrail",(Roadside!$F$25-1)*(($I$78-I$78)/$I$78)^2*Constraints!$H$31/Constraints!$D$38+1,1))) -> 1 | K188: =INDEX($D188:$I188,K$100) -> 1 | L188: =INDEX($D188:$I188,L$100) -> 1 | M188: 0 | O188: 0
K189: =INDEX($D189:$I189,K$100) -> 0 | L189: =INDEX($D189:$I189,L$100) -> 0 | M189: 0
K190: =INDEX($D190:$I190,K$100) -> 0 | L190: =INDEX($D190:$I190,L$100) -> 0 | M190: 0
C191: COMBINED Calculated CMF | D191: =+D184*D185*D186*D187*D188 -> 1.023289675 | E191: =+E184*E185*E186*E187*E188 -> 0.825674596 | F191: 1.023289675 | G191: 1.023289675 | H191: =IF($I$2="Existing",(D191),(IF($I$2="Design 1",(F191),(IF($I$2="Design 2",(G191),(IF($I$2="Optimal",(I191),E191))))))) -> 0.825674596 | I191: =+I184*I185*I186*I187*I188 -> 0.7597005016 | K191: =INDEX($D191:$I191,K$100) -> 1.023289675 | L191: =INDEX($D191:$I191,L$100) -> 0.825674596 | M191: 0.1931174364
C192: Calculated Relative to Design Standards (Column E) | D192: =+D191/$E$191 -> 1.239337724 | E192: =+E191/$E$191 -> 1 | F192: 1.239337724 | G192: 1.239337724 | H192: 1 | I192: =+I191/$E$191 -> 0.9200967369 | K192: =INDEX($D192:$I192,K$100) -> 1.239337724 | L192: =INDEX($D192:$I192,L$100) -> 1 | M192: 0.1931174364
C193: P(Crash) | D193: =+D192/(D192+1) -> 0.553439399 | E193: 0.5 | F193: 0.553439399 | G193: 0.553439399 | H193: 0.5 | I193: =+I192/(I192+1) -> 0.4791929069 | K193: =INDEX($D193:$I193,K$100) -> 0.553439399 | L193: =INDEX($D193:$I193,L$100) -> 0.5 | M193: 0.09655871821
C194: Factor Change on S curve | D194: =+D193/$E$193 -> 1.106878798 | E194: =+E193/$E$193 -> 1 | F194: 1.106878798 | G194: 1.106878798 | H194: 1 | I194: =+I193/$E$193 -> 0.9583858138 | K194: =INDEX($D194:$I194,K$100) -> 1.106878798 | L194: =INDEX($D194:$I194,L$100) -> 1 | M194: 0.09655871821
C195: Adjust to Scale of 100 | D195: =+$I$118/D194*100 ->  | I195: =+$I$118/I194*100 ->  | K195: =INDEX($D195:$I195,K$100) ->  | L195: =INDEX($D195:$I195,L$100) ->  | M195: 0
C196: Unadjusted Combined Relative to Standard | D196: =+D191/$E$191 -> 1.239337724 | E196: =+E191/$E$191 -> 1 | F196: 1.239337724 | G196: 1.239337724 | H196: 1 | I196: =+I191/$E$191 -> 0.9200967369 | J196: =I202/E202 -> 1.081081081 | K196: =INDEX($D196:$I196,K$100) -> 1.239337724 | L196: =INDEX($D196:$I196,L$100) -> 1 | M196: 0.1931174364
K197: =INDEX($D197:$I197,K$100) -> 0 | L197: =INDEX($D197:$I197,L$100) -> 0 | M197: 0
C198: Adjusted for PA Basis | D198: =+D191*(1+1)/(1+D191*1) -> 1.011510796 | E198: 0.9045145261 | F198: 1.011510796 | G198: 1.011510796 | H198: =IF($I$2="Existing",(D198),(IF($I$2="Design 1",(F198),(IF($I$2="Design 2",(G198),(IF($I$2="Optimal",(I198),E198))))))) -> 0.9045145261 | I198: =+I191*(1+1)/(1+I191*1) -> 0.8634429562 | K198: =INDEX($D198:$I198,K$100) -> 1.011510796 | L198: =INDEX($D198:$I198,L$100) -> 0.9045145261 | M198: 0.1057786732
C199: Corrected by Odds Ratio | D199: =+D191/$E$191 -> 1.239337724 | E199: =+E191/$E$191 -> 1 | F199: 1.239337724 | G199: 1.239337724 | H199: =IF($I$2="Existing",(D199),(IF($I$2="Design 1",(F199),(IF($I$2="Design 2",(G199),(IF($I$2="Optimal",(I199),E199))))))) -> 1 | I199: =+I191/$E$191 -> 0.9200967369 | J199: =I205/E205 -> 1.481481481 | K199: =INDEX($D199:$I199,K$100) -> 1.239337724 | L199: =INDEX($D199:$I199,L$100) -> 1 | M199: 0.1931174364
D200: =(1/D199)^$D203 -> 1.866669158e-08 | E200: =(1/E199)^$D203 -> 1 | F200: 1.866669158e-08 | G200: 1.866669158e-08 | H200: 1 | I200: 999
D201: =(D200+$F204-1)/(1+(D200+$F204-1)) -> 0.5000000047 | E201: =(E200+$F204-1)/(1+(E200+$F204-1)) -> 0.6666666667 | F201: 0.5000000047 | G201: 0.5000000047 | H201: 0.6666666667 | I201: 0.999000999
C202: Score Odds Ratio with Optimal as 100 (old) | D202: =MIN(ROUND($I$199/D199*Construction!$I$4,0),$I202) -> 30 | E202: =MIN(ROUND($I$199/E199*Construction!$I$4,0),$I202) -> 37 | F202: =MIN(ROUND($I$199/F199*Construction!$I$4,0),$I202) -> 30 | G202: =MIN(ROUND($I$199/G199*Construction!$I$4,0),$I202) -> 30 | I202: =ROUND($I$199/I199*Construction!$I$4,0) -> 40
C203: Logistic1 | D203: =LN((D204/(1-D204))/(0.5/0.5))/LN($E199/I199) -> 82.93765501
C204: Logistic Param | D204: 0.999 | F204: 2
C205: Score | D205: =MIN(ROUND(D201*Construction!$I$4,0),$I202) -> 20 | E205: =MIN(ROUND(E201*Construction!$I$4,0),$I202) -> 27 | F205: =MIN(ROUND(F201*Construction!$I$4,0),$I202) -> 20 | G205: =MIN(ROUND(G201*Construction!$I$4,0),$I202) -> 20 | I205: =MIN(ROUND(I201*Construction!$I$4,0),$I202) -> 40
C210: =D87/D183 ->  | E210: =ROUNDUP((MIN($I$14,$I$15)-E27-E28)/$C$210,0) ->  | F210: =ROUNDUP((MIN($I$14,$I$15)-F27-F28)/$C$210,0) ->  | G210: =ROUNDUP((MIN($I$14,$I$15)-G27-G28)/$C$210,0) ->  | I210: =ROUNDUP((MIN($I$14,$I$15)-I27-I28)/$C$210,0) -> 
C213: Distance to low point | D213: Distance to low point | E213: =$C$210*E183 ->  | F213: =$C$210*F183 ->  | I213: =$C$210*I183 -> 
D214: Additional ROW1 Needed for Foreslope | E214: =IF(E213>($I$14-E27-E28),E213-($I$14-E27-E28),0) ->  | F214: =IF(F213>($I$14-F27-F28),F213-($I$14-F27-F28),0) ->  | G214: =IF(G213>($I$14-G27-G28),G213-($I$14-G27-G28),0) ->  | I214: =IF(I213>($I$14-I27-I28),I213-($I$14-I27-I28),0) -> 
D215: Additional ROW2 Needed for Foreslope | E215: =IF(E213>($I$15-E27-E28),E213-($I$15-E27-E28),0) ->  | F215: =IF(F213>($I$15-F27-F28),F213-($I$15-F27-F28),0) ->  | G215: =IF(G213>($I$15-G27-G28),G213-($I$15-G27-G28),0) ->  | I215: =IF(I213>($I$15-I27-I28),I213-($I$15-I27-I28),0) -> 
D217: Additional ROW1 Needed for Lateral Clearance | E217: =IF((CL251+E30)-$I$14<0,0,(CL251+E30)-$I$14) -> 2 | F217: =IF((CM251+F30)-$I$14<0,0,(CM251+F30)-$I$14) -> 0 | G217: =IF((CN251+G30)-$I$14<0,0,(CN251+G30)-$I$14) -> 0 | I217: =IF((CP251+I30)-$I$14<0,0,(CP251+I30)-$I$14) -> 2
D218: Additional ROW2 Needed for Lateral Clearance | E218: =IF((CL251+E30)-$I$15<0,0,(CL251+E30)-$I$15) -> 2 | F218: =IF((CM251+F30)-$I$15<0,0,(CM251+F30)-$I$15) -> 0 | G218: =IF((CN251+G30)-$I$15<0,0,(CN251+G30)-$I$15) -> 0 | I218: =IF((CP251+I30)-$I$15<0,0,(CP251+I30)-$I$15) -> 2
C230: For Vertical Opt Use when Yes Vertical:
C231: G1 | D231: =D40 -> 0 | F231: =F40 -> 0 | G231: =G40 -> 0 | I231: =IF(ISERROR($E$238),"",INDEX(D231:G231,$E$238)) -> 
C232: G2 | D232: =D41 -> 0 | F232: =F41 -> 0 | G232: =G41 -> 0 | I232: =IF(ISERROR($E$238),"",INDEX(D232:G232,$E$238)) -> 
C233: abs(G2-G1) | D233: =ABS(D40-D41) -> 0 | F233: =ABS(F40-F41) -> 0 | G233: =ABS(G40-G41) -> 0
C234: Count in indicator (K no change; or K change but accept) | D234: =IF(D43<>"",1,"") ->  | F234: =IF(OR(AND($B$38 = "Yes", $D$43 <> F43, F43 <>"", $D$43 <> "", F45="Yes."),AND($B$38 = "Yes", $D$43 = F43, F43 <>"", $D$43 <> "")), 1,"") ->  | G234: =IF(OR(AND($B$38 = "Yes", $D$43 <> G43, G43 <>"", $D$43 <> "", G45="Yes."),AND($B$38 = "Yes", $D$43 = G43, G43 <>"", $D$43 <> "")), 1,"") -> 
C236: Valid abs(G2-G1) | D236: =IF(ISERROR(D233*D234),"",D233*D234) ->  | F236: =IF(ISERROR(F233*F234),"",F233*F234) ->  | G236: =IF(ISERROR(G233*G234),"",G233*G234) -> 
C237: The min valid abs(G2-G1) | E237: =MIN(D236,F236,G236) -> 0
C238: Index | E238: =MATCH(E237,D236:G236,0) -> 
C240: For Vertical Opt Use When No Vertical:
C241: G1 | D241: =IF(ISBLANK(D40), 999, D40) -> 999 | F241: =IF(ISBLANK(F40), 999, F40) -> 999 | G241: =IF(ISBLANK(G40), 999, G40) -> 999 | I241: =IF(E246=999,"",E246) -> 
C242: Sign of G1 | D242: =IF(D241>=0,1,-1) -> 1 | F242: =IF(F241>=0,1,-1) -> 1 | G242: =IF(G241>=0,1,-1) -> 1
C243: Abs G1 | D243: =ABS(D241) -> 999 | F243: =ABS(F241) -> 999 | G243: =ABS(G241) -> 999
C244: Min Abs G1 | E244: =MIN(D243:G243) -> 999
C245: Which is the Best G1 | E245: =MATCH(E244,D243:G243,0) -> 1
C246: Best G1 Value | E246: =INDEX(D241:G241,1,E245) -> 999
C249: Check if all cells filled | D249: =SUM(D251:D314) -> 19 | E249: =SUM(E251:E314) -> 1 | F249: 19 | G249: 19 | H249: 0 | I249: 0
C251: =C24 -> Configuration of Multilane Roadway | D251: =IF(ISBLANK(D24),1,0) -> 1 | E251: =IF(ISBLANK(E24),1,0) -> 0 | F251: 1 | G251: 1 | I251: 0
... 114 more rows

Sheet Configuration 4
G2: Preferred Schematic View to Display | I2: Standard | V2: NOTES:
B3: CHARACTERISTICS TO CONSIDER FOR ANALYSIS | V3: ELEMENTS INCREASING SAFETY | AE3: COMMENTS ON PRIMARY CONSTRAINTS
B4: INPUT INSTRUCTIONS | G4: Relative to | I4: Existing
B5: Blue Boxes -- Select from pulldown options | D5: Select from Pulldown
B6: Yellow Boxes -- Type input information into box | D6: Type Input Value
B7: Rural Multi-Lane Road Segment -- Safety Score Input | CF7: Unadjusted Marginal Safety
B8: General Information: | F8: General Site Features | H8: =I315 & " Missing Features and Curves" -> 9 Missing Features and Curves | CF8: =I2&" relative to " &I4 -> Standard relative to Existing
C9: Analyst: | D9: =+'Start Here'!H7 -> 0 | F9: Location
C10: Agency or Company: | D10: =+'Start Here'!H8 -> 0 | F10: Design Speed (mph)
C11: Date: | D11: =+'Start Here'!H9 -> 00:00:00 | F11: Posted Speed (mph)
C12: Description: | F12: E max (%)
C13: Input additional site information here | F13: Design Year AADT (vehicles per day)
F14: Dist. from Centerline to Left ROW (feet)
F15: Dist. from Centerline to Right ROW (feet)
B17: Warning:
C18: =+IF(+I11>I10,"Posted speed exceeds design speed. Optimal safety will only be achieved if design speed exceeds posted speed. The Safety Assessment Score is based on the higher of the two speed values.","No speed warnings identified") -> No speed warnings identified
C19: =IF(OR(F24=INDEX(MedConf_Header,1,3),+G24=INDEX(MedConf_Header,1,3)), "Multilane undivided facilities are known to have substantially more collisions than multilane facilities with medians. In new construction a median or TWLTL should be considered."," ") ->  | DB19: =COUNTIF(DB23:DB46,DB20) -> 1
C20: =IF(I13="40,001 < AADT < 60,000", "Multi-lane Road Should be Divided Due to High AADT Value","") ->  | DB20: =VLOOKUP(0,CZ23:DB46,3,) -> 10.01
D21: Fill all elements | F21: To enter notes, use boxes to the right of the vortex
B22: =+Construction!$I$2&" Total Available Points" -> 40 Total Available Points | D22: =D249 & " Missing Elements" -> 19 Missing Elements | F22: =F249 & " Missing Elements" -> 19 Missing Elements | G22: =G249 & " Missing Elements" -> 19 Missing Elements | CX22: Ranked element | CY22: CRF | CZ22: abs | DA22: Re-rank | DB22: Rank | DC22: Ranked CRF | DD22: Element | DE22: New Element | DF22: crf.abs | DG22: rank | DH22: Sorted Element | DI22: Sorted CRF
B23: Geometric Design Elements | D23: Existing | E23: Standard (Based on Multi-lane Divided) | F23: Design 1 | G23: Design 2 | H23: ="Marginal Safety for "&$I$2&" (compared to " & $I$4 & ")" -> Marginal Safety for Standard (compared to Existing) | I23: Optimal (Based on Multi-lane Divided) | CX23: =IF(CY23=0,"",DB23&". "&DD23) ->  | CY23: =H24 -> 0 | CZ23: =ABS(CY23) -> 0 | DA23: =_xlfn.RANK.EQ(DB23,$DB$23:$DB$46,1) -> 10 | DB23: =_xlfn.RANK.EQ(CZ23,$CZ$23:$CZ$46)+DG23/100 -> 10.01 | DC23: =CY23 -> 0 | DD23: =IF(ROUND(DF23,2)=0,"",C24) ->  | DE23: =DD23 ->  | DF23: =CZ23 -> 0 | DG23: 1 | DH23: =IFERROR(IF(IFERROR(VLOOKUP(DG23,$DA$23:$DF$46,4,)&", "&CY23=0,""),"",IFERROR(VLOOKUP(DG23,$DA$23:$DE$46,4,),"")),"") -> Pavement Friction (skid number) *** | DI23: =IFERROR(IF(IFERROR(VLOOKUP(DG23,$DA$23:$DF$46,3,)&", "&CY23=0,""),"",IFERROR(VLOOKUP(DG23,$DA$23:$DE$46,3,),"")),"") -> 0.2843095602
C24: Configuration of Multilane Roadway | E24: Divided - Unsurfaced Median | I24: Divided - Unsurfaced Median | CX24: 5.02. Median Configuration (Width or Type) | CY24: =H25 -> 0.09 | CZ24: 0.09 | DA24: =_xlfn.RANK.EQ(DB24,$DB$23:$DB$46,1) -> 5 | DB24: =_xlfn.RANK.EQ(CZ24,$CZ$23:$CZ$46)+DG24/100 -> 5.02 | DC24: =CY24 -> 0.09 | DD24: =IF(ROUND(DF24,2)=0,"",C25) -> Median Configuration (Width or Type) | DE24: =DD24 -> Median Configuration (Width or Type) | DF24: 0.09 | DG24: 2 | DH24: =IFERROR(IF(IFERROR(VLOOKUP(DG24,$DA$23:$DF$46,4,)&", "&CY24=0,""),"",IFERROR(VLOOKUP(DG24,$DA$23:$DE$46,4,),"")),"") -> Driveway Density (driveways per mile) | DI24: =IFERROR(IF(IFERROR(VLOOKUP(DG24,$DA$23:$DF$46,3,)&", "&CY24=0,""),"",IFERROR(VLOOKUP(DG24,$DA$23:$DE$46,3,),"")),"") -> -0.223881142
C25: Median Configuration (Width or Type) | E25: 30 | H25: =M103 -> 0.09 | I25: 100 | CY25: =H27 -> 0 | CZ25: 0 | DA25: 11 | DB25: 10.03 | DC25: =CY25 -> 0 | DD25: =IF(ROUND(DF25,2)=0,"",C27) ->  | DE25: =DD25 ->  | DF25: 0 | DG25: 3 | DH25: =IFERROR(IF(IFERROR(VLOOKUP(DG25,$DA$23:$DF$46,4,)&", "&CY25=0,""),"",IFERROR(VLOOKUP(DG25,$DA$23:$DE$46,4,),"")),"") -> Average Outside Shoulder Width (feet) | DI25: =IFERROR(IF(IFERROR(VLOOKUP(DG25,$DA$23:$DF$46,3,)&", "&CY25=0,""),"",IFERROR(VLOOKUP(DG25,$DA$23:$DE$46,3,),"")),"") -> 0.1806167401
DG26: 4 | DH26: =IFERROR(IF(IFERROR(VLOOKUP(DG26,$DA$23:$DF$46,4,)&", "&CY26=0,""),"",IFERROR(VLOOKUP(DG26,$DA$23:$DE$46,4,),"")),"") -> Roadside Sideslope (Foreslope) | DI26: =IFERROR(IF(IFERROR(VLOOKUP(DG26,$DA$23:$DF$46,3,)&", "&CY26=0,""),"",IFERROR(VLOOKUP(DG26,$DA$23:$DE$46,3,),"")),"") -> 0.1569762247
C27: Lane Width (feet) | E27: 12 | H27: =M104 -> 0 | I27: 12 | DG27: 5 | DH27: Median Configuration (Width or Type) | DI27: 0.09
C28: Average Outside Shoulder Width (feet) | E28: 8 | H28: =M105 -> 0.1806167401 | I28: 10 | CX28: =IF(CY28=0,"",DB28&". "&DD28) -> 3.06. Average Outside Shoulder Width (feet) | CY28: =H28 -> 0.1806167401 | CZ28: =ABS(CY28) -> 0.1806167401 | DA28: 3 | DB28: 3.06 | DC28: =CY28 -> 0.1806167401 | DD28: =IF(ROUND(DF28,2)=0,"",C28) -> Average Outside Shoulder Width (feet) | DE28: =DD28 -> Average Outside Shoulder Width (feet) | DF28: =CZ28 -> 0.1806167401 | DG28: 6 | DH28: Roadside Lateral Clearance to Obstruction (ft) | DI28: 0.064777607
C29: Average Inside Shoulder Width (feet) | E29: 4 | H29: =M106 -> 0 | I29: 10 | CX29: =IF(CY29=0,"",DB29&". "&DD29) ->  | CY29: =H33 -> 0 | CZ29: =ABS(CY29) -> 0 | DA29: 12 | DB29: 10.07 | DC29: 0 | DD29: =IF(ROUND(DF29,2)=0,"","Hz and Vt Alignment") ->  | DF29: =CZ29 -> 0 | DG29: 7 | DH29: Safety Edge | DI29: -0.0234240316
C30: Number of Lanes per Direction of Travel | E30: 2 | I30: 2 | CX30: =IF(CY30=0,"",DB30&". "&DD30) ->  | CY30: =H29 -> 0 | CZ30: =ABS(CY30) -> 0 | DA30: 13 | DB30: 10.08 | DC30: 0 | DD30: =IF(ROUND(DF30,2)=0,"",C29) ->  | DF30: =CZ30 -> 0 | DG30: 8 | DH30: Shoulder Rumble Strips | DI30: 0.0228750088
C31: Horizontal Curve Present? | D31: -- | E31: -- | F31: -- | G31: -- | I31: -- | CX31: =IF(CY31=0,"",DB31&". "&DD31) ->  | CY31: =H47 -> 0 | CZ31: =ABS(CY31) -> 0 | DA31: 14 | DB31: 10.09 | DC31: 0 | DD31: =IF(ROUND(DF31,2)=0,"",C47) ->  | DF31: =CZ31 -> 0 | DG31: 9 | DH31: Lighting | DI31: -0.01709657912
C32: Horizontal Curve Data for Controlling Element: | D32: -- | E32: -- | F32: -- | G32: -- | I32: -- | CY32: =H48 -> 0 | CZ32: 0 | DA32: 15 | DB32: 10.1 | DC32: 0 | DD32: =IF(ROUND(DF32,2)=0,"",C48) ->  | DF32: 0 | DG32: 10 | DI32: 0
C33: Radius (feet) | E33: =IF(MAX($I$10,$I$11)<45,590,IF($I$12=6,VLOOKUP(MAX($I$10,$I$11),Construction!$B$27:$D$34,2,TRUE),VLOOKUP(MAX($I$10,$I$11),Construction!$G$27:$I$34,2,TRUE))) -> 590 | H33: =M144 -> 0 | I33: =IF(MAX($I$10,$I$11)<45,590,IF($I$12=6,VLOOKUP(MAX($I$10,$I$11),Construction!$B$43:$C$50,2,TRUE),VLOOKUP(MAX($I$10,$I$11),Construction!$G$43:$H$50,2,TRUE))) -> 590 | CY33: =H56 -> 0 | CZ33: 0 | DA33: 16 | DB33: 10.11 | DC33: 0 | DD33: =IF(ROUND(DF33,2)=0,"",C56) ->  | DF33: 0 | DG33: 11 | DI33: 0
C34: Length of Horizontal Curve (feet) | E34: =IF(D35="", "", E33*E35/57.296) ->  | I34: =I33*I35/57.296 -> 3758.55208 | CY34: 0 | CZ34: 0 | DA34: 17 | DB34: 10.12 | DC34: 0 | DF34: 0 | DG34: 12 | DI34: 0
C35: Calculated Deflection Angle ∆ | D35: =IF(OR(ISBLANK(D33),ISBLANK(D34),$B$31="No",ISBLANK($B$31)),"",ROUND(D34/D33*57.296,1)) ->  | E35: =IF(ISBLANK(D35), "",D35) ->  | F35: =IF(OR(ISBLANK(F33),ISBLANK(F34),$B$31="No",ISBLANK($B$31)),"",ROUND(F34/F33*57.296,1)) ->  | G35: =IF(OR(ISBLANK(G33),ISBLANK(G34),$B$31="No",ISBLANK($B$31)),"",ROUND(G34/G33*57.296,1)) ->  | I35: =MIN(D35,IF(F37=INDEX(HCurveChange,1,0), F35, 365),IF(G37=INDEX(HCurveChange,1,0), G35, 365)) -> 365 | CY35: 0 | CZ35: 0 | DA35: 18 | DB35: 10.13 | DC35: 0 | DF35: 0 | DG35: 13 | DI35: 0
F36: ∆ has changed. Are you changing the ∆? | G36: ∆ has changed. Are you changing the ∆? | CY36: 0 | CZ36: 0 | DA36: 19 | DB36: 10.14 | DC36: 0 | DF36: 0 | DG36: 14 | DI36: 0
CX37: 8.15. Shoulder Rumble Strips | CY37: 0.0228750088 | CZ37: 0.0228750088 | DA37: 8 | DB37: 8.15 | DC37: 0.0228750088 | DD37: Shoulder Rumble Strips | DE37: Shoulder Rumble Strips | DF37: 0.0228750088 | DG37: 15 | DI37: 0
C38: Vertical Curve Present? | D38: -- | E38: -- | F38: -- | G38: -- | I38: =E38 -> -- | CY38: 0 | CZ38: 0 | DA38: 20 | DB38: 10.16 | DC38: 0 | DF38: 0 | DG38: 16 | DI38: 0
C39: Vertical Curve Data for Controlling Element: | D39: -- | E39: -- | F39: -- | G39: -- | I39: -- | CX39: 2.17. Driveway Density (driveways per mile) | CY39: -0.223881142 | CZ39: 0.223881142 | DA39: 2 | DB39: 2.17 | DC39: -0.223881142 | DD39: =IF(DF39=0,"",C62) -> Driveway Density (driveways per mile) | DE39: Driveway Density (driveways per mile) | DF39: 0.223881142 | DG39: 17 | DI39: 0
C40: Approach (Entry) Grade, G1 (%) | E40: =IF(ISBLANK(D40),"", D40) ->  | I40: =IF(B38="Yes",I231,I241) ->  | CX40: 9.18. Lighting | CY40: -0.01709657912 | CZ40: 0.01709657912 | DA40: 9 | DB40: 9.18 | DC40: -0.01709657912 | DD40: =IF(DF40=0,"",C63) -> Lighting | DE40: Lighting | DF40: 0.01709657912 | DG40: 18 | DI40: 0
C41: Departure (Exit) Grade, G2 (%) | E41: =IF(ISBLANK(D41),"", D41) ->  | I41: =IF($B$38="Yes",I232,"") ->  | CX41: 1.19. Pavement Friction (skid number) *** | CY41: 0.2843095602 | CZ41: 0.2843095602 | DA41: 1 | DB41: 1.19 | DC41: 0.2843095602 | DD41: =IF(DF41=0,"",C64) -> Pavement Friction (skid number) *** | DE41: Pavement Friction (skid number) *** | DF41: 0.2843095602 | DG41: 19 | DI41: 0
C42: Length (feet) | E42: =IF(AND($B$38="Yes", D43<>""), ABS(E40-E41)*D43, "") ->  | I42: =IF(AND($B$38="Yes",I40<>"",I41<>"", NOT(ISBLANK($I$10)), NOT(ISBLANK($I$11))),ABS(I41-I40)*I43,"") ->  | CX42: 4.2. Roadside Sideslope (Foreslope) | CY42: =H75 -> 0.1569762247 | CZ42: 0.1569762247 | DA42: 4 | DB42: 4.2 | DC42: 0.1569762247 | DD42: =IF(DF42=0,"",C75) -> Roadside Sideslope (Foreslope) | DE42: Roadside Sideslope (Foreslope) | DF42: 0.1569762247 | DG42: 20 | DI42: 0
C43: Calculated Rate of Change, K (ft/ft) | D43: =IF(OR($B$38="No",ISBLANK($B$38), ISBLANK(D40), ISBLANK(D41),ISBLANK(D42), D40=D41), "", ROUND(D42/(ABS(D41-D40)),1)) ->  | E43: =IF(AND($B$38="Yes", NOT(ISBLANK($I$10)), NOT(ISBLANK($I$11)), D43<>""), IF($E$46="Crest", VLOOKUP(MAX($I$10,$I$11),Construction!$B$159:$D$171,2,TRUE), VLOOKUP(MAX($I$10,$I$11),Construction!$B$159:$D$171,3,TRUE)), "") ->  | F43: =IF(AND($B$38="Yes", SUM(F267:F269)=0),ROUND(F42/(ABS(F41-F40)),1),"") ->  | G43: =IF(AND($B$38="Yes", SUM(G267:G269)=0),ROUND(G42/(ABS(G41-G40)),1),"") ->  | I43: =IF(OR($B$38<>"Yes", ISBLANK($I$10), ISBLANK($I$11), $I$40="", $I$41="", $I$46="--", ISBLANK($I$46)),"",IF(I$46="Crest",VLOOKUP(MAX($I$10,$I$11),Construction!$B$177:$D$189,2,TRUE),VLOOKUP(MAX($I$10,$I$11),Construction!$B$177:$D$189,3,TRUE))) ->  | CY43: =H76 -> 0 | CZ43: 0 | DA43: 21 | DB43: 10.21 | DC43: 0 | DD43: =IF(DF43=0,"",C76) ->  | DF43: 0 | DG43: 21 | DI43: 0
F44: Are you changing the geometry? | G44: Are you changing the geometry? | CX44: 7.22. Safety Edge | CY44: =H77 -> -0.0234240316 | CZ44: 0.0234240316 | DA44: 7 | DB44: 7.22 | DC44: -0.0234240316 | DD44: =IF(DF44=0,"",C77) -> Safety Edge | DE44: Safety Edge | DF44: 0.0234240316 | DG44: 22 | DI44: 0
CX45: 6.23. Roadside Lateral Clearance to Obstruction (ft) | CY45: =H78 -> 0.064777607 | CZ45: 0.064777607 | DA45: 6 | DB45: 6.23 | DC45: 0.064777607 | DD45: =IF(DF45=0,"",C78) -> Roadside Lateral Clearance to Obstruction (ft) | DE45: Roadside Lateral Clearance to Obstruction (ft) | DF45: 0.064777607 | DG45: 23 | DI45: =IFERROR(IF(IFERROR(VLOOKUP(DG45,$DA$23:$DF$46,3,)&", "&CY45=0,""),"",IFERROR(VLOOKUP(DG45,$DA$23:$DE$46,3,),"")),"") -> 
C46: Calculated Sag or Crest? | D46: =IF(AND($B$38="Yes", SUM(D267:D269)=0),IF(D40>D41,"Crest","Sag"),"--") -> -- | E46: =IF(AND($B$38="Yes", SUM(D267:D269)=0),IF(E40>E41,"Crest","Sag"),"--") -> -- | F46: =IF(AND($B$38="Yes", SUM(F267:F269)=0),IF(F40>F41,"Crest","Sag"),"--") -> -- | G46: =IF(AND($B$38="Yes", SUM(G267:G269)=0),IF(G40>G41,"Crest","Sag"),"--") -> -- | I46: =IF($B$38="Yes",IF(I40>I41,"Crest","Sag"),"--") -> -- | CY46: =H79 -> 0 | CZ46: 0 | DA46: 22 | DB46: 10.24 | DC46: 0 | DD46: =IF(DF46=0,"",C79) ->  | DF46: 0 | DG46: 24 | DI46: =IFERROR(IF(IFERROR(VLOOKUP(DG46,$DA$23:$DF$46,3,)&", "&CY46=0,""),"",IFERROR(VLOOKUP(DG46,$DA$23:$DE$46,3,),"")),"") -> 
C49: Geometric Design Element (Partial Score) | D49: =IF(OR(SUM(D251:D252,D254:D257,D260:D261,D267:D269)>0, ISERR(D129)),"",D129) ->  | E49: =IF(OR(SUM(E251:E252,E254:E257,E260:E261,E267:E269)>0, ISERR(E129)),"",E129) ->  | I49: =IF(OR(SUM(I251:I252,I254:I257,I260:I261,I267:I269)>0, ISERR(I129)),"",I129) ->  | M49: SCHEMATIC REPRESENTING INPUT DATA FOR | U49: =IF($I$2="Existing","EXISTING CONFIGURATION",IF($I$2="Standard","STANDARD OPTION",IF($I$2="Design 1","DESIGN 1 OPTION",IF($I$2="Design 2","DESIGN 2 OPTION","OPTIMAL OPTION")))) -> STANDARD OPTION
C50: Total Safety Score | D50: =IF(OR(D$249>0, $I$315>0, ISERROR(D$205+D$175+D$129)),"",D$205+D$175+D$129) ->  | E50: =IF(OR(E$249>0, $I$315>0, ISERROR(E$205+E$175+E$129)),"",E$205+E$175+E$129) ->  | F50: =IF(OR(F$249>0, $I$315>0, ISERROR(F$205+F$175+F$129)),"",F$205+F$175+F$129) ->  | G50: =IF(OR(G$249>0, $I$315>0, ISERROR(G$205+G$175+G$129)),"",G$205+G$175+G$129) ->  | I50: =IF(OR(I$249>0, $I$315>0, ISERROR(I$205+I$175+I$129)),"",I$205+I$175+I$129) -> 
L51: LT | AA51: RT
L52: R/W | S52: =+O54+W54 -> 0 | AA52: R/W
B54: =+Construction!$I$3&" Total Available Points" -> 20 Total Available Points | O54: =+$I$14 -> 0 | W54: =+$I$15 -> 0
B55: Traffic Elements | D55: Existing | E55: Standard | F55: Design 1 | G55: Design 2 | H55: =H23 -> Marginal Safety for Standard (compared to Existing) | I55: Optimal
C56: Advance Static Curve Warning Signs | E56: No | H56: =M149 -> 0 | I56: Yes | L56: =+O54-N56-P56 -> -32 | N56: =IF(+$I$2="Existing",D28,IF($I$2="Standard",E28,IF($I$2="Design 1",F28,IF($I$2="Design 2",G28,I28)))) -> 8 | P56: =IF(+$I$2="Existing",D27*D30,IF($I$2="Standard",E27*E30,IF($I$2="Design 1",F27*F30,IF($I$2="Design 2",G27*G30,I27*I30)))) -> 24 | V56: =+P56 -> 24 | Y56: =+N56 -> 8 | Z56: =+W54-V56-Y56 -> -32
C57: Chevron Signs on Horizontal Curves | E57: No | H57: =M150 -> 0 | I57: Yes
C58: Post-Mounted Delineators | E58: No | H58: =M151 -> 0 | I58: Yes
C59: Edgeline Pavement Markings or Profile Markings | E59: No | H59: =M152 -> 0 | I59: Yes
C60: Shoulder Rumble Strips | E60: Yes | H60: =M154 -> 0.0228750088 | I60: Yes
C61: Centerline Rumble Strips | E61: No | H61: =M155 -> 0 | I61: Yes | S61: Tangent X-Section
C62: Driveway Density (driveways per mile) | E62: 10 | H62: =M156 -> -0.223881142 | I62: 0
C63: Lighting | E63: No | H63: =M157 -> -0.01709657912 | I63: Yes
C64: Pavement Friction (skid number) *** | E64: 37 | H64: =M158 -> 0.2843095602 | I64: 54
C65: Traffic Control Element (Partial Score): | D65: =IF(ISERROR(D175), "", D175) -> 12 | E65: =IF(ISERROR(E175), "", E175) -> 14 | I65: =IF(ISERROR(I175), "", I175) -> 20
C66: Total Safety Score | D66: =IF(OR(D$249>0, $I$315>0, ISERROR(D$205+D$175+D$129)),"",D$205+D$175+D$129) ->  | E66: =IF(OR(E$249>0, $I$315>0, ISERROR(E$205+E$175+E$129)),"",E$205+E$175+E$129) ->  | I66: =IF(OR(I$249>0, $I$315>0, ISERROR(I$205+I$175+I$129)),"",I$205+I$175+I$129) -> 
C68: *** Pavement friction/skid numbers will not be subject to open records requests *** | Q68: =IF($I$2="Existing","SCORE SUMMARY FOR EXISTING CONFIGURATION", IF($I$2="Standard","SCORE SUMMARY FOR STANDARD OPTION",IF($I$2="Design 1","SCORE SUMMARY FOR DESIGN 1 OPTION",IF($I$2="Design 2","SCORE SUMMARY FOR DESIGN 2 OPTION", "SCORE SUMMARY FOR OPTIMAL OPTION")))) -> SCORE SUMMARY FOR STANDARD OPTION
Q69: GEOMETRIC DESIGN: | W69: =IF($I$2="Existing",D49,IF($I$2="Standard",E49,IF($I$2="Design 1",F49,IF($I$2="Design 2",G49,I49)))) -> 
Q70: TRAFFIC CONTROL: | W70: =IF($I$2="Existing",D65,IF($I$2="Standard",E65,IF($I$2="Design 1",F65,IF($I$2="Design 2",G65,I65)))) -> 14
Q71: ROADSIDE: | W71: =IF($I$2="Existing",D80,IF($I$2="Standard",E80,IF($I$2="Design 1",F80,IF($I$2="Design 2",G80,I80)))) -> 27
Q72: OVERALL SAFETY SCORE: | W72: =SUM(W69:X71) -> 41
B73: =+Construction!$I$4&" Total Available Points" -> 40 Total Available Points
B74: Roadside Elements | D74: Existing | E74: Standard | F74: Design 1 | G74: Design 2 | H74: =H23 -> Marginal Safety for Standard (compared to Existing) | I74: Optimal
C75: Roadside Sideslope (Foreslope) | E75: 1V:4H | H75: =M184 -> 0.1569762247 | I75: 1V:6H
C76: Roadside Backslope | E76: =E75 -> 1V:4H | H76: =M185 -> 0 | I76: 1V:4H
C77: Safety Edge | E77: No | H77: -0.0234240316 | I77: Yes
C78: Roadside Lateral Clearance to Obstruction (ft) | E78: 30 | H78: 0.064777607 | I78: 40
C79: Roadside Obstruction Type | E79: None | H79: 0 | I79: None/Removed
C80: Roadside Element (Partial Score): | D80: =IF(ISERR(D205),"",D205) -> 20 | E80: =IF(ISERR(E205),"",E205) -> 27 | F80: 20 | G80: 20 | I80: =IF(ISERR(I205),"",I205) -> 40
C81: Total Safety Score | D81: =IF(OR(D$249>0, $I$315>0, ISERROR(D$205+D$175+D$129)),"",D$205+D$175+D$129) ->  | E81: =IF(OR(E$249>0, $I$315>0, ISERROR(E$205+E$175+E$129)),"",E$205+E$175+E$129) ->  | I81: =IF(OR(I$249>0, $I$315>0, ISERROR(I$205+I$175+I$129)),"",I$205+I$175+I$129) -> 
B86: ADDITIONAL SIDESLOPE INFORMATION
C87: Distance to Slope Toe from Shoulder (ft) | E87: =D87 -> 0 | F87: =E87 -> 0 | G87: 0 | I87: =G87 -> 0
B88: Minimum foreslope feasible within current ROW | E88: =IF(OR(ISBLANK($D$87), ISERROR(E209)), "", "1V:"&E209&"H") ->  | F88: =IF(OR(ISBLANK($D$87), ISERROR(F209)), "", "1V:"&F209&"H") ->  | G88: =IF(OR(ISBLANK($D$87), ISERROR(G209)), "", "1V:"&G209&"H") ->  | I88: =IF(OR(ISBLANK($D$87), ISERROR(I209)), "", "1V:"&I209&"H") -> 
B89: Additional R/W needed on left side | E89: =IF(OR(ISBLANK($D$87), ISERROR(E213)),"", MAX(E213,E216)) ->  | F89: =IF(OR(ISBLANK($D$87), ISERROR(F213)), "", MAX(F213,F216)) ->  | G89: =IF(OR(ISBLANK($D$87), ISERROR(G213)),"", MAX(G213,G216)) ->  | I89: =IF(OR(ISBLANK($D$87), ISERROR(I213)),"", MAX(I213,I216)) -> 
B90: Additional R/W needed on right side | E90: =IF(OR(ISBLANK($D$87), ISERROR(E214)), "", MAX(E214,E217)) ->  | F90: =IF(OR(ISBLANK($D$87), ISERROR(F214)), "", MAX(F214,F217)) ->  | G90: =IF(OR(ISBLANK($D$87), ISERROR(G214)),"", MAX(G214,G217)) ->  | I90: =IF(OR(ISBLANK($D$87), ISERROR(I214)),"", MAX(I214,I217)) -> 
D98: =GetCMF_MED(D24,D25,2000,D28) -> 1 | J98: =1-I104/E104 -> 0 | K98: For Plot
J99: =1-I105/E105 -> 0.03225806452 | K99: relative to | L99: Prefer
D100: =MAX(SUM(D107:D111)-5,$I$100) ->  | E100: =MAX(SUM(E107:E111)-5,$I$100) ->  | I100: =SUM(I107:I111)-5 ->  | J100: =1-I106/E106 -> 0.1444408096 | K100: =MATCH(K101,ModView,0) -> 1 | L100: =MATCH(L101,ModView,0) -> 2
B101: Geometric | J101: =1-I107/E107 ->  | K101: =I4 -> Existing | L101: =I2 -> Standard | M101: %
C102: Divided versus Undivided | D102: 1 | E102: 1 | F102: 1 | G102: 1 | I102: 1 | K102: =INDEX($D102:$I102,K$100) -> 1 | L102: =INDEX($D102:$I102,L$100) -> 1 | M102: =IF(ISERROR(1-L102/K102), 0, 1-L102/K102) -> 0
C103: Median Width | D103: =GetCMF_MED(D24,D25,$I$13,D28) -> 1 | E103: =GetCMF_MED(E24,E25,$I$13,E28) -> 0.91 | F103: =GetCMF_MED(F24,F25,$I$13,F28) -> 1 | G103: =GetCMF_MED(G24,G25,$I$13,G28) -> 1 | H103: =H25 -> 0.09 | I103: =GetCMF_MED(I24,I25,$I$13,I28) -> 0.66 | K103: =INDEX($D103:$I103,K$100) -> 1 | L103: =INDEX($D103:$I103,L$100) -> 0.91 | M103: =IF(ISERROR(1-L103/K103), 0, 1-L103/K103) -> 0.09
C104: LW CMF | D104: =IF(D24=INDEX(MedConf_Header,1,2),VLOOKUP(+D27,Construction!$N$30:$O$36,2),VLOOKUP(D27,Construction!$I$15:$J$21,2)) ->  | E104: =IF(E24=INDEX(MedConf_Header,1,2),VLOOKUP(+E27,Construction!$N$30:$O$36,2),VLOOKUP(E27,Construction!$I$15:$J$21,2)) -> 1 | F104: =IF(F24=INDEX(MedConf_Header,1,2),VLOOKUP(+F27,Construction!$N$30:$O$36,2),VLOOKUP(F27,Construction!$I$15:$J$21,2)) ->  | G104: =IF(G24=INDEX(MedConf_Header,1,2),VLOOKUP(+G27,Construction!$N$30:$O$36,2),VLOOKUP(G27,Construction!$I$15:$J$21,2)) ->  | H104: =H27 -> 0 | I104: =IF(I24=INDEX(MedConf_Header,1,2),VLOOKUP(+I27,Construction!$N$30:$O$36,2),VLOOKUP(I27,Construction!$I$15:$J$21,2)) -> 1 | K104: =INDEX($D104:$I104,K$100) ->  | L104: =INDEX($D104:$I104,L$100) -> 1 | M104: 0 | O104: 0
C105: SW CMF | D105: =IF(D24=INDEX(MedConf_Header,1,2),VLOOKUP(D28,Construction!$C$11:D21,2),(VLOOKUP(D28,Construction!$O$43:$P$53,2)-1)*0.27+1) -> 1.135 | E105: =IF(E24=INDEX(MedConf_Header,1,2),VLOOKUP(E28,Construction!$C$11:E21,2),(VLOOKUP(E28,Construction!$O$43:$P$53,2)-1)*0.27+1) -> 0.93 | F105: =IF(F24=INDEX(MedConf_Header,1,2),VLOOKUP(F28,Construction!$C$11:F21,2),(VLOOKUP(F28,Construction!$O$43:$P$53,2)-1)*0.27+1) -> 1.135 | G105: =IF(G24=INDEX(MedConf_Header,1,2),VLOOKUP(G28,Construction!$C$11:G21,2),(VLOOKUP(G28,Construction!$O$43:$P$53,2)-1)*0.27+1) -> 1.135 | H105: =IF($I$2="Existing",(1-D105/E105),(IF($I$2="Design 1",(1-F105/E105),(IF($I$2="Design 2",(1-G105/E105),(IF($I$2="Optimal",(1-I105/E105),0))))))) -> 0 | I105: =IF(I24=INDEX(MedConf_Header,1,2),VLOOKUP(I28,Construction!$C$11:I21,2),(VLOOKUP(I28,Construction!$O$43:$P$53,2)-1)*0.27+1) -> 0.9 | K105: =INDEX($D105:$I105,K$100) -> 1.135 | L105: =INDEX($D105:$I105,L$100) -> 0.93 | M105: 0.1806167401 | O105: 0.1550387597
C106: Inside Shoulder Width | D106: =IF(AND(D24=INDEX(MedConf_Header,1,2), NOT(ISBLANK(D29))), EXP(-0.026*(D29-4)), 1) -> 1 | E106: =IF(AND(E24=INDEX(MedConf_Header,1,2), NOT(ISBLANK(E29))), EXP(-0.026*(E29-4)), 1) -> 1 | F106: =IF(AND(F24=INDEX(MedConf_Header,1,2), NOT(ISBLANK(F29))), EXP(-0.026*(F29-4)), 1) -> 1 | G106: =IF(AND(G24=INDEX(MedConf_Header,1,2), NOT(ISBLANK(G29))), EXP(-0.026*(G29-4)), 1) -> 1 | H106: 0 | I106: =IF(AND(I24=INDEX(MedConf_Header,1,2), NOT(ISBLANK(I29))), EXP(-0.026*(I29-4)), 1) -> 0.8555591904 | K106: =INDEX($D106:$I106,K$100) -> 1 | L106: =INDEX($D106:$I106,L$100) -> 1 | M106: 0 | O106: 0
C107: HC and Grade | D107: =D$138^D$131 -> 1 | E107: =E$138^E$131 -> 1 | F107: 1 | G107: 1 | H107: 0 | I107: =I$138^I$131 ->  | K107: =INDEX($D107:$I107,K$100) -> 1 | L107: =INDEX($D107:$I107,L$100) -> 1 | M107: 0 | O107: 0
C108: HC and VC Crest type I | D108: =D$139^D$132 -> 1 | E108: =E$139^E$132 -> 1 | F108: 1 | G108: 1 | H108: 0 | I108: =I$139^I$132 ->  | K108: =INDEX($D108:$I108,K$100) -> 1 | L108: =INDEX($D108:$I108,L$100) -> 1 | M108: 0 | O108: 0
C109: HC and VC Sag type I | D109: =D$140^D$133 -> 1 | E109: =E$140^E$133 -> 1 | F109: 1 | G109: 1 | H109: 0 | I109: =I$140^I$133 ->  | J109: =1-I115/E115 ->  | K109: =INDEX($D109:$I109,K$100) -> 1 | L109: =INDEX($D109:$I109,L$100) -> 1 | M109: 0 | O109: 0
C110: HC and VC Crest type II | D110: =D$141^D$134 -> 1 | E110: =E$141^E$134 -> 1 | F110: 1 | G110: 1 | H110: 0 | I110: =I$141^I$134 ->  | J110: =1-I116/E116 ->  | K110: =INDEX($D110:$I110,K$100) -> 1 | L110: =INDEX($D110:$I110,L$100) -> 1 | M110: 0 | O110: 0
C111: HC and VC Sag type II | D111: =D$142^D$135 -> 1 | E111: =E$142^E$135 -> 1 | F111: 1 | G111: 1 | H111: 0 | I111: =I$142^I$135 ->  | J111: =1-I117/E117 ->  | K111: =INDEX($D111:$I111,K$100) -> 1 | L111: =INDEX($D111:$I111,L$100) -> 1 | M111: 0 | O111: 0
C112: Add TWLTL | D112: =IF(D$47="No",1,CMFs!$F$17) -> 0.71 | E112: =IF(E$47="No",1,CMFs!$F$17) -> 0.71 | F112: =IF(F$47="No",1,CMFs!$F$17) -> 0.71 | G112: =IF(G$47="No",1,CMFs!$F$17) -> 0.71 | H112: 0 | I112: =IF(I$47="No",1,CMFs!$F$17) -> 0.71 | J112: =1-I118/E118 ->  | K112: =INDEX($D112:$I112,K$100) -> 0.71 | L112: =INDEX($D112:$I112,L$100) -> 0.71 | M112: 0 | O112: 0
